Workbook

Sheet Köpek
A1: KEDİ/KÖPEK DİYET PROGRAMI | C1: MİKTAR,kg | D1: EV YEMEĞİ | J1: MAMA | O1: =TODAY() -> 2024-11-12 | Q1: Coşkun & İnal & İnal
B2: YİYECEK | C2: =Hesap!AA1 -> 0.3225 | D2: Besin Maddesi | E2: İhtiyaç | F2: Yemek | G2: Sonuç | H2: % | I2: KM'de % | J2: Besin maddesi | K2: İhtiyaç | L2: KM'de % | M2: Sonuç | N2: 100 kcal ME'de | U2: SELÇUK ÜNİVERSİTESİ
A3: 1 | B3: Peynir,süzme | C3: 0.01 | D3: =Hesap!D3 -> Kuru madde, g | F3: =Hesap!F3 -> 143.2333 | G3: =Hesap!G3 -> 0 | H3: =Hesap!H3 -> 44.41342636 | J3: Kuru madde, g | L3: =Hesap!F3/1000 -> 0.1432333 | O3: Kedi / Köpek Tanımlama Bilgileri | U3: VETERİNER FAKÜLTESİ
A4: 1 | B4: Piliç,Göğüs,Et,Çiğ | C4: 0.1 | D4: =Hesap!D4 -> Ham protein, g | E4: 15.54798317 | F4: =Hesap!F4 -> 33.6214 | G4: =Hesap!G4 -> TAMAM | H4: =Hesap!H4 -> 10.42524031 | I4: =Hesap!I4 -> 23.47317279 | J4: =FEDIAF2021!G4 -> Protein, g | K4: 20 | L4: =I4 -> 23.47317279 | M4: =IF(K4=0,"", IF(L4<K4,"EKSİK", "TAMAM")) -> TAMAM | N4: =Hesap!J4 -> 5.405369775 | O4: Hayvan türü | P4: : | Q4: Köpek | U4: KONYA
A5: 1 | B5: Yumurta kabuğu | C5: 0.0005 | D5: =Hesap!D5 -> Enerji, kcal | E5: 621.9193267 | F5: =Hesap!F5 -> 622 | G5: =Hesap!G5 -> TAMAM | H5: =Hesap!H5 -> 192.8682171 | I5: =Hesap!I5 -> 434.2565591 | J5: Enerji, kcal | L5: 434.2565591 | O5: =Hesap!O3 -> Tip | P5: : | Q5: Yetişkin
A6: 2 | B6: Balkabağı, çiğ | C6: 0.04 | D6: =Hesap!D6 -> Lif, g | F6: =Hesap!F6 -> 5.3068 | G6: =Hesap!G6 -> 0 | H6: =Hesap!H6 -> 1.64551938 | I6: =Hesap!I6 -> 3.705004353 | J6: Lif, g | L6: 3.705004353 | N6: =Hesap!J6 -> 0.8531832797 | O6: =Hesap!O4 -> Yaş | P6: : | Q6: 3
A7: 2 | B7: Bezelye, yeşil, çiğ | C7: 0.04 | D7: =Hesap!D7 -> Kül, g | F7: =Hesap!F7 -> 4.53865 | G7: =Hesap!G7 -> 0 | I7: =Hesap!I7 -> 3.168711466 | J7: Kül, g | L7: 3.168711466 | N7: =Hesap!J7 -> 0.7296864952 | O7: =Hesap!O5 -> Canlı ağırlık, kg | P7: : | Q7: 7
A8: 2 | B8: Havuç, çiğ | C8: 0.02 | D8: =Hesap!D8 -> Karbonhidrat, g | F8: =Hesap!F8 -> 85.5776 | G8: =Hesap!G8 -> 0 | H8: =Hesap!H8 -> 26.53568992 | I8: =Hesap!I8 -> 59.74700017 | J8: Karbonhidrat, g | L8: 59.74700017 | N8: =Hesap!J8 -> 13.75845659 | O8: =Hesap!O6 -> Irk | P8: : | Q8: Terrier, West Highland White | U8: Hayvanın türü | V8: =KKSecim -> Köpek | X8: GÜNLÜK VERİLECEK MİKTAR
A9: 2 | B9: Pirinç, beyaz, çiğ | C9: 0.1 | D9: =Hesap!D9 -> Kalsiyum, g | E9: 0.6219193267 | F9: =Hesap!F9 -> 0.84507 | G9: =Hesap!G9 -> FAZLA | H9: =Hesap!H9 -> 0.2620372093 | I9: =Hesap!I9 -> 0.5899954829 | J9: =FEDIAF2021!G9 -> Kalsiyum, g | K9: 0.9 | L9: 0.5899954829 | M9: =IF(K9=0,"", IF(L9<K9,"EKSİK", "TAMAM")) -> EKSİK | N9: =Hesap!J9 -> 0.1358633441 | O9: =Hesap!O7 -> Yavru sayısı | P9: : | U9: Tip | V9: =Q5 -> Yetişkin | X9: =Köpek!O31 -> 322.5 | Y9: GRAM
A10: 3 | B10: Kemik unu | C10: 0.002 | D10: =Hesap!D10 -> Fosfor, g | E10: 0.466439495 | F10: =Hesap!F10 -> 0.64678 | G10: =Hesap!G10 -> FAZLA | H10: =Hesap!H10 -> 0.200551938 | I10: =Hesap!I10 -> 0.4515570052 | J10: =FEDIAF2021!G10 -> Fosfor, g | K10: 0.7 | L10: 0.4515570052 | M10: EKSİK | N10: =Hesap!J10 -> 0.1039839228 | O10: =Hesap!O8 -> Kaç hafta önce doğurdu? | P10: : | U10: Yaş | V10: =CONCATENATE(Q6,IF(Q5="Yavru"," hafta"," yıl")) -> 3 yıl
A11: 3 | B11: Vit-Min. (TheraVet ProCure) | D11: =Hesap!D11 -> Ca/P oranı | E11: 1 | F11: =Hesap!F11 -> 1.30658029 | G11: =Hesap!G11 -> TAMAM | I11: =F11 -> 1.30658029 | J11: =FEDIAF2021!G11 -> Ca/P oranı | K11: 1 | L11: 1.30658029 | M11: TAMAM | O11: =Hesap!O9 -> Gebelik süresi, hafta | P11: : | U11: Canlı ağırlık | V11: =CONCATENATE(Q7," kg") -> 7 kg | X11: MAMADAKİ ENERJİNİN DAĞILIMI
A12: 4 | B12: Ayçiçeği yağı | C12: 0.01 | D12: =Hesap!D12 -> Magnezyum, mg | E12: 74.6303192 | F12: =Hesap!F12 -> 86.81 | G12: =Hesap!G12 -> TAMAM | H12: =Hesap!H12 -> 0.02691782946 | I12: =Hesap!I12 -> 0.06060741462 | J12: =FEDIAF2021!G12 -> Magnezyum, g | K12: 0.04 | L12: 0.06060741462 | M12: TAMAM | N12: =Hesap!J12/1000 -> 0.01395659164 | O12: =Hesap!O10 -> Hareketlilik durumu | P12: : | Q12: Aktif | U12: Irk | V12: =Q8 -> Terrier, West Highland White | X12: =Hesap!Q21 -> 0.2142956977 | Y12: PROTEİNDEN
D13: =Hesap!D13 -> Sodyum, mg | E13: 124.3838653 | F13: =Hesap!F13 -> 139.714 | G13: =Hesap!G13 -> FAZLA | H13: =Hesap!H13 -> 0.04332217054 | I13: =Hesap!I13 -> 0.09754295963 | J13: =FEDIAF2021!G13 -> Sodyum, g | K13: 0.22 | L13: 0.09754295963 | M13: EKSİK | N13: =Hesap!J13/1000 -> 0.02246205788 | O13: Mama tipi | P13: : | Q13: Ev yemeği | U13: Yavru sayısı | V13: =IF(Q5="Emziren dişi",Q9,"") ->  | X13: =Hesap!Q22 -> 0.2402507667 | Y13: YAĞDAN
D14: =Hesap!D14 -> Taurin, g | F14: =Hesap!F14 -> 0.033 | G14: =Hesap!G14 ->  | H14: =Hesap!H14 -> 0.01023255814 | I14: =Hesap!I14 -> 0.02303933513 | J14: =FEDIAF2021!G14 -> Taurin, g | L14: 0.02303933513 | N14: =Hesap!J14 -> 0.005305466238 | U14: Kaç hafta önce doğurdu? | V14: =IF(Q5="Emziren dişi",CONCATENATE(Q10," hafta"),"") ->  | X14: =Hesap!Q23 -> 0.5454535356 | Y14: KARBONHİDRATTAN
D15: =Hesap!D15 -> Yağ, g | E15: 8.551390741 | F15: =Hesap!F15 -> 13.8871 | G15: =Hesap!G15 -> FAZLA | H15: =Hesap!H15 -> 4.306077519 | I15: =Hesap!I15 -> 9.695440934 | J15: =FEDIAF2021!G15 -> Yağ, g | K15: 8.5 | L15: 9.695440934 | M15: TAMAM | N15: =Hesap!J15 -> 2.232652733 | U15: Gebelik süresi | V15: =IF(Q5="Gebe dişi",CONCATENATE(Q11," hafta"),"") -> 
D16: =Hesap!D16 -> Linoleik asit, g | E16: 1.710278148 | F16: =Hesap!F16 -> 5.6435 | G16: =Hesap!G16 -> FAZLA | H16: =Hesap!H16 -> 1.749922481 | I16: =Hesap!I16 -> 3.940075387 | J16: =FEDIAF2021!G16 -> Linoleik asit, g | K16: 1.3 | L16: 3.940075387 | M16: TAMAM | N16: =Hesap!J16 -> 0.9073151125 | U16: Hareketlilik durumu | V16: =IF(KKSecim="Köpek",Q12,"") -> Aktif | AC16: 11.06.2020
D17: =Hesap!D17 -> Arahidonik asit, g | E17: 0 | F17: =Hesap!F17 -> 0.55 | G17: =Hesap!G17 ->  | H17: =Hesap!H17 -> 0.1705426357 | I17: =Hesap!I17 -> 0.3839889188 | J17: =FEDIAF2021!G17 -> Arahidonik asit, g | K17: 0.03 | L17: =I17 -> 0.3839889188 | M17: TAMAM | N17: =Hesap!J17*1000 -> 88.4244373
D18: =Hesap!D18 -> Vitamin A, µg | E18: 235.551945 | F18: =Hesap!F18 -> 311.3765 | G18: =Hesap!G18 -> TAMAM | H18: =Hesap!H18 -> 96.55085271 | I18: =Hesap!I18 -> 217.3911374 | J18: =FEDIAF2021!G18 -> Vitamin A, μg | K18: 150 | L18: 217.3911374 | M18: TAMAM | N18: =Hesap!J18/0.3 -> 166.8684352
D19: =Hesap!D19 -> Vitamin D, µg | E19: 2.145621677 | F19: =Hesap!F19 -> 0 | G19: =Hesap!G19 -> EKSİK | H19: =Hesap!H19 -> 0 | I19: =Hesap!I19 -> 0 | J19: =FEDIAF2021!G19 -> Vitamin D, μg | K19: 1.25 | L19: 0 | M19: EKSİK | N19: =Hesap!J19/0.025 -> 0 | X19: Besin Maddesi | Y19: =IF(MamaTipi="Mama", K2, IF(MamaTipi="Ev yemeği", E2, "")) -> İhtiyaç | Z19: =IF(MamaTipi="Mama", L2, IF(MamaTipi="Ev yemeği", F2, "")) -> Yemek | AA19: =IF(MamaTipi="Mama", M2, IF(MamaTipi="Ev yemeği", G2, "")) -> Sonuç | AB19: =IF(MamaTipi="Mama", N2, IF(MamaTipi="Ev yemeği", H2, "")) -> % | AC19: =IF(MamaTipi="Mama", "", IF(MamaTipi="Ev yemeği", I2, "")) -> KM'de %
D20: =Hesap!D20 -> Vitamin E, mg | E20: 4.66439495 | F20: =Hesap!F20 -> 5.238 | G20: =Hesap!G20 -> TAMAM | H20: =Hesap!H20 -> 1.624186047 | I20: =Hesap!I20 -> 3.65697083 | J20: =FEDIAF2021!G20 -> Vitamin E, mg | K20: 3.35 | L20: 3.65697083 | M20: TAMAM | N20: =Hesap!J20/1 -> 0.8421221865 | U20: YİYECEK | V20: MİKTAR,kg | X20: =IF(MamaTipi="Mama", J3, IF(MamaTipi="Ev yemeği", D3, "")) -> Kuru madde, g | Y20: =IF(MamaTipi="Mama", IF(OR(K3=0,K3="")=TRUE,"",K3), IF(MamaTipi="Ev yemeği", IF(OR(E3=0,E3="")=TRUE,"",E3), "")) ->  | Z20: =IF(MamaTipi="Mama", IF(OR(L3=0,L3="")=TRUE,"",L3), IF(MamaTipi="Ev yemeği", IF(OR(F3=0,F3="")=TRUE,"",F3), "")) -> 143.2333 | AA20: =IF(MamaTipi="Mama", IF(OR(M3=0,M3="")=TRUE,"",M3), IF(MamaTipi="Ev yemeği", IF(OR(G3=0,G3="")=TRUE,"",G3), "")) ->  | AB20: =IF(MamaTipi="Mama", IF(OR(N3=0,N3="")=TRUE,"",N3), IF(MamaTipi="Ev yemeği", IF(OR(H3=0,H3="")=TRUE,"",H3), "")) -> 44.41342636 | AC20: 0
D21: =Hesap!D21 -> Potasyum, g | E21: 0.6219193267 | F21: =Hesap!F21 -> 0.6341 | G21: =Hesap!G21 -> TAMAM | H21: =Hesap!H21 -> 0.196620155 | I21: =Hesap!I21 -> 0.4427043153 | J21: =FEDIAF2021!G21 -> Potasyum, g | K21: 0.44 | L21: 0.4427043153 | M21: TAMAM | N21: =Hesap!J21 -> 0.1019453376 | U21: Peynir altı suyu protein tozu, 70 | V21: 3.5 | X21: Ham protein, g | Y21: 15.54798317 | Z21: 33.6214 | AA21: TAMAM | AB21: 10.42524031 | AC21: 23.47317279
D22: =Hesap!D22 -> Klorid, mg | E22: 186.575798 | F22: =Hesap!F22 -> 0 | G22: =Hesap!G22 -> EKSİK | H22: =Hesap!H22 -> 0 | I22: =Hesap!I22 -> 0 | J22: =FEDIAF2021!G22 -> Klorid, g | K22: 0.33 | L22: 0 | M22: EKSİK | N22: =Hesap!J22 -> 0 | U22: Süt,%3.25 Yağlı | V22: 59 | X22: Enerji, kcal | Y22: =IF(MamaTipi="Mama", IF(OR(K5=0,K5="")=TRUE,"",K5), IF(MamaTipi="Ev yemeği", IF(OR(E5=0,E5="")=TRUE,"",E5), "")) -> 621.9193267 | Z22: 622 | AA22: =IF(MamaTipi="Mama", IF(OR(M5=0,M5="")=TRUE,"",M5), IF(MamaTipi="Ev yemeği", IF(OR(G5=0,G5="")=TRUE,"",G5), "")) -> TAMAM | AB22: =IF(MamaTipi="Mama", IF(OR(N5=0,N5="")=TRUE,"",N5), IF(MamaTipi="Ev yemeği", IF(OR(H5=0,H5="")=TRUE,"",H5), "")) -> 192.8682171 | AC22: 434.2565591
D23: =Hesap!D23 -> Bakır, mg | E23: 0.93287899 | F23: =Hesap!F23 -> 0.34296 | G23: =Hesap!G23 -> EKSİK | H23: =Hesap!H23 -> 0.106344186 | I23: =Hesap!I23 -> 0.2394415265 | J23: =FEDIAF2021!G23 -> Bakır, mg | K23: 1.1 | L23: 0.2394415265 | M23: EKSİK | N23: =Hesap!J23 -> 0.05513826367 | U23: Yumurta kabuğu | V23: 0.2 | X23: Lif, g | Y23: =IF(MamaTipi="Mama", IF(OR(K6=0,K6="")=TRUE,"",K6), IF(MamaTipi="Ev yemeği", IF(OR(E6=0,E6="")=TRUE,"",E6), "")) ->  | Z23: 5.3068 | AA23: =IF(MamaTipi="Mama", IF(OR(M6=0,M6="")=TRUE,"",M6), IF(MamaTipi="Ev yemeği", IF(OR(G6=0,G6="")=TRUE,"",G6), "")) ->  | AB23: 1.64551938 | AC23: 3.705004353
D24: =Hesap!D24 -> Çinko, mg | E24: 9.3287899 | F24: =Hesap!F24 -> 3.32948 | G24: =Hesap!G24 -> EKSİK | H24: =Hesap!H24 -> 1.032396899 | I24: =Hesap!I24 -> 2.324515319 | J24: =FEDIAF2021!G24 -> Çinko, mg | K24: 10 | L24: 2.324515319 | M24: EKSİK | N24: =Hesap!J24 -> 0.5352861736 | U24: Yumurta sarısı,Çiğ | V24: 17.3 | X24: Kül, g | Y24: =IF(MamaTipi="Mama", IF(OR(K7=0,K7="")=TRUE,"",K7), IF(MamaTipi="Ev yemeği", IF(OR(E7=0,E7="")=TRUE,"",E7), "")) ->  | Z24: 4.53865 | AA24: =IF(MamaTipi="Mama", IF(OR(M7=0,M7="")=TRUE,"",M7), IF(MamaTipi="Ev yemeği", IF(OR(G7=0,G7="")=TRUE,"",G7), "")) ->  | AB24: 0 | AC24: 3.168711466
D25: =Hesap!D25 -> Demir, mg | E25: 4.66439495 | F25: =Hesap!F25 -> 4.0418 | G25: =Hesap!G25 -> EKSİK | H25: =Hesap!H25 -> 1.253271318 | I25: =Hesap!I25 -> 2.82182984 | J25: =FEDIAF2021!G25 -> Demir, mg | K25: 8.8 | L25: 2.82182984 | M25: EKSİK | N25: =Hesap!J25 -> 0.649807074 | U25: Su | V25: 12 | X25: Karbonhidrat, g | Y25: =IF(MamaTipi="Mama", IF(OR(K8=0,K8="")=TRUE,"",K8), IF(MamaTipi="Ev yemeği", IF(OR(E8=0,E8="")=TRUE,"",E8), "")) ->  | Z25: 85.5776 | AA25: =IF(MamaTipi="Mama", IF(OR(M8=0,M8="")=TRUE,"",M8), IF(MamaTipi="Ev yemeği", IF(OR(G8=0,G8="")=TRUE,"",G8), "")) ->  | AB25: 26.53568992 | AC25: 59.74700017
D26: =Hesap!D26 -> İyot, mg | E26: 0.1368222519 | F26: =Hesap!F26 -> 0.03576 | G26: =Hesap!G26 -> EKSİK | H26: =Hesap!H26 -> 0.01108837209 | I26: =Hesap!I26 -> 0.02496626134 | J26: =FEDIAF2021!G26 -> İyot, mg | K26: 0.15 | L26: 0.02496626134 | M26: EKSİK | N26: =Hesap!J26 -> 0.005749196141 | U26: Krema | V26: 8 | X26: Kalsiyum, g | Y26: 0.6219193267 | Z26: 0.84507 | AA26: FAZLA | AB26: 0.2620372093 | AC26: 0.5899954829
D27: =Hesap!D27 -> Manganez, mg | E27: 0.746303192 | F27: =Hesap!F27 -> 1.42796 | G27: =Hesap!G27 -> FAZLA | H27: =Hesap!H27 -> 0.4427782946 | I27: =Hesap!I27 -> 0.996946939 | J27: =FEDIAF2021!G27 -> Manganez, mg | K27: 0.56 | L27: 0.996946939 | M27: TAMAM | N27: =Hesap!J27 -> 0.2295755627 | X27: Fosfor, g | Y27: 0.466439495 | Z27: 0.64678 | AA27: FAZLA | AB27: 0.200551938 | AC27: 0.4515570052
D28: =Hesap!D28 -> Selenyum, µg | E28: 54.41794108 | F28: =Hesap!F28 -> 20.86545 | G28: =Hesap!G28 -> EKSİK | H28: =Hesap!H28 -> 6.469906977 | I28: =Hesap!I28 -> 14.56745743 | J28: =FEDIAF2021!G28 -> Selenyum, μg | K28: 40 | L28: 14.56745743 | M28: EKSİK | N28: =Hesap!J28 -> 3.354573955 | X28: Ca/P oranı | Y28: 1 | Z28: 1.30658029 | AA28: TAMAM | AB28: =IF(MamaTipi="Mama", IF(OR(N11=0,N11="")=TRUE,"",N11), IF(MamaTipi="Ev yemeği", IF(OR(H11=0,H11="")=TRUE,"",H11), "")) ->  | AC28: 1.30658029
D29: =Hesap!D29 -> Tiamin, mg | E29: 0.3498296212 | F29: =Hesap!F29 -> 0.325936 | G29: =Hesap!G29 -> EKSİK | H29: =Hesap!H29 -> 0.1010654264 | I29: =Hesap!I29 -> 0.2275560222 | J29: =FEDIAF2021!G29 -> Tiamin, mg | K29: 0.18 | L29: 0.2275560222 | M29: TAMAM | N29: =Hesap!J29 -> 0.05240128617 | X29: Magnezyum, mg | Y29: 74.6303192 | Z29: 86.81 | AA29: TAMAM | AB29: 0.02691782946 | AC29: 0.06060741462
D30: =Hesap!D30 -> Riboflavin, mg | E30: 0.8162691162 | F30: =Hesap!F30 -> 0.275646 | G30: =Hesap!G30 -> EKSİK | H30: =Hesap!H30 -> 0.08547162791 | I30: =Hesap!I30 -> 0.1924454718 | J30: =FEDIAF2021!G30 -> Riboflavin, mg | K30: 0.42 | L30: 0.1924454718 | M30: EKSİK | N30: =Hesap!J30 -> 0.04431607717 | O30: Günlük Verilecek Miktar | X30: Sodyum, mg | Y30: 124.3838653 | Z30: 139.714 | AA30: FAZLA | AB30: 0.04332217054 | AC30: 0.09754295963
D31: =Hesap!D31 -> Niasin, mg | E31: 2.643157138 | F31: =Hesap!F31 -> 14.02716 | G31: =Hesap!G31 -> FAZLA | H31: =Hesap!H31 -> 4.349506977 | I31: =Hesap!I31 -> 9.793225458 | J31: =FEDIAF2021!G31 -> Niasin, mg | K31: 1.36 | L31: 9.793225458 | M31: TAMAM | N31: =Hesap!J31 -> 2.255170418 | O31: =IF(MamaTipi="Mama",IF(KKSecim="Köpek", Hesap!HG5*100/Köpek!L5/(L3/100), Hesap!HX5*100/Köpek!L5/(L3/100)),C2*1000) -> 322.5 | Q31: gram | X31: Taurin, g | Y31: =IF(MamaTipi="Mama", IF(OR(K14=0,K14="")=TRUE,"",K14), IF(MamaTipi="Ev yemeği", IF(OR(E14=0,E14="")=TRUE,"",E14), "")) ->  | Z31: 0.033 | AA31: =IF(MamaTipi="Mama", IF(OR(M14=0,M14="")=TRUE,"",M14), IF(MamaTipi="Ev yemeği", IF(OR(G14=0,G14="")=TRUE,"",G14), "")) ->  | AB31: 0.01023255814 | AC31: 0.02303933513
D32: =Hesap!D32 -> Pantotenik asit, mg | E32: 2.332197475 | F32: =Hesap!F32 -> 2.66285 | G32: =Hesap!G32 -> TAMAM | H32: =Hesap!H32 -> 0.8256899225 | I32: =Hesap!I32 -> 1.859099804 | J32: =FEDIAF2021!G32 -> Pantotenik asit, mg | K32: 1.2 | L32: 1.859099804 | M32: TAMAM | N32: =Hesap!J32 -> 0.4281109325 | X32: Yağ, g | Y32: 8.551390741 | Z32: 13.8871 | AA32: FAZLA | AB32: 4.306077519 | AC32: 9.695440934
D33: =Hesap!D33 -> Pridoksin, mg | E33: 0.2332197475 | F33: =Hesap!F33 -> 0.8235 | G33: =Hesap!G33 -> FAZLA | H33: =Hesap!H33 -> 0.2553488372 | I33: =Hesap!I33 -> 0.5749361357 | J33: =FEDIAF2021!G33 -> Vitamin B6, mg | K33: 0.12 | L33: 0.5749361357 | M33: TAMAM | N33: =Hesap!J33 -> 0.1323954984 | X33: Linoleik asit, g | Y33: 1.710278148 | Z33: 5.6435 | AA33: FAZLA | AB33: 1.749922481 | AC33: 3.940075387
D34: =Hesap!D34 -> Vitamin B12, µg | E34: 5.441794108 | F34: =Hesap!F34 -> 0.506 | G34: =Hesap!G34 -> EKSİK | H34: =Hesap!H34 -> 0.1568992248 | I34: =Hesap!I34 -> 0.3532698053 | J34: =FEDIAF2021!G34 -> Vitamin B12, μg | K34: 2.8 | L34: 0.3532698053 | M34: EKSİK | N34: =Hesap!J34 -> 0.08135048232 | X34: Arahidonik asit, g | Y34: 0 | Z34: 0.55 | AB34: 0.1705426357 | AC34: 0.3839889188
D35: =Hesap!D35 -> Folik asit, µg | E35: 41.97955455 | F35: =Hesap!F35 -> 45.46 | G35: =Hesap!G35 -> TAMAM | H35: =Hesap!H35 -> 14.09612403 | I35: =Hesap!I35 -> 31.73842954 | J35: =FEDIAF2021!G35 -> Folik asit, μg | K35: 21.6 | L35: 31.73842954 | M35: TAMAM | N35: =Hesap!J35 -> 7.308681672 | X35: Vitamin A, µg | Y35: 235.551945 | Z35: 311.3765 | AA35: TAMAM | AB35: 96.55085271 | AC35: 217.3911374
D36: =Hesap!D36 -> Kolin, mg | E36: 264.3157138 | F36: =Hesap!F36 -> 82.5 | G36: =Hesap!G36 -> EKSİK | H36: =Hesap!H36 -> 25.58139535 | I36: =Hesap!I36 -> 57.59833782 | J36: =FEDIAF2021!G36 -> Kolin, mg | K36: 170 | L36: 57.59833782 | M36: EKSİK | N36: =Hesap!J36 -> 13.26366559 | X36: Vitamin D, µg | Y36: 2.145621677 | Z36: 0 | AA36: EKSİK | AB36: 0 | AC36: 0
D37: =Hesap!D37 -> Biotin, µg | F37: =Hesap!F37 -> 11.1 | G37: =Hesap!G37 ->  | H37: =Hesap!H37 -> 3.441860465 | I37: =Hesap!I37 -> 7.749594543 | J37: =FEDIAF2021!G37 -> Biotin, μg | L37: 7.749594543 | N37: =Hesap!J37 -> 1.784565916 | X37: Vitamin E, mg | Y37: 4.66439495 | Z37: 5.238 | AA37: TAMAM | AB37: 1.624186047 | AC37: 3.65697083
D38: =Hesap!D38 -> FİYAT,TL | F38: =Hesap!F38 -> 23.559 | X38: Potasyum, g | Y38: 0.6219193267 | Z38: 0.6341 | AA38: TAMAM | AB38: 0.196620155 | AC38: 0.4427043153
X39: Klorid, mg | Y39: 186.575798 | Z39: 0 | AA39: EKSİK | AB39: 0 | AC39: 0
X40: Bakır, mg | Y40: 0.93287899 | Z40: 0.34296 | AA40: EKSİK | AB40: 0.106344186 | AC40: 0.2394415265
X41: Çinko, mg | Y41: 9.3287899 | Z41: 3.32948 | AA41: EKSİK | AB41: 1.032396899 | AC41: 2.324515319
X42: Demir, mg | Y42: 4.66439495 | Z42: 4.0418 | AA42: EKSİK | AB42: 1.253271318 | AC42: 2.82182984
X43: İyot, mg | Y43: 0.1368222519 | Z43: 0.03576 | AA43: EKSİK | AB43: 0.01108837209 | AC43: 0.02496626134
X44: Manganez, mg | Y44: 0.746303192 | Z44: 1.42796 | AA44: FAZLA | AB44: 0.4427782946 | AC44: 0.996946939
X45: Selenyum, µg | Y45: 54.41794108 | Z45: 20.86545 | AA45: EKSİK | AB45: 6.469906977 | AC45: 14.56745743
X46: Tiamin, mg | Y46: 0.3498296212 | Z46: 0.325936 | AA46: EKSİK | AB46: 0.1010654264 | AC46: 0.2275560222
X47: Riboflavin, mg | Y47: 0.8162691162 | Z47: 0.275646 | AA47: EKSİK | AB47: 0.08547162791 | AC47: 0.1924454718
X48: Niasin, mg | Y48: 2.643157138 | Z48: 14.02716 | AA48: FAZLA | AB48: 4.349506977 | AC48: 9.793225458
X49: Pantotenik asit, mg | Y49: 2.332197475 | Z49: 2.66285 | AA49: TAMAM | AB49: 0.8256899225 | AC49: 1.859099804
X50: Pridoksin, mg | Y50: 0.2332197475 | Z50: 0.8235 | AA50: FAZLA | AB50: 0.2553488372 | AC50: 0.5749361357
X51: Vitamin B12, µg | Y51: 5.441794108 | Z51: 0.506 | AA51: EKSİK | AB51: 0.1568992248 | AC51: 0.3532698053
X52: Folik asit, µg | Y52: 41.97955455 | Z52: 45.46 | AA52: TAMAM | AB52: 14.09612403 | AC52: 31.73842954
U53: TOPLAM = | V53: 100 | W53: kg | X53: Kolin, mg | Y53: 264.3157138 | Z53: 82.5 | AA53: EKSİK | AB53: 25.58139535 | AC53: 57.59833782
X54: Biotin, µg | Y54: =IF(MamaTipi="Mama", IF(OR(K37=0,K37="")=TRUE,"",K37), IF(MamaTipi="Ev yemeği", IF(OR(E37=0,E37="")=TRUE,"",E37), "")) ->  | Z54: 11.1 | AA54: =IF(MamaTipi="Mama", IF(OR(M37=0,M37="")=TRUE,"",M37), IF(MamaTipi="Ev yemeği", IF(OR(G37=0,G37="")=TRUE,"",G37), "")) ->  | AB54: 3.441860465 | AC54: 7.749594543
U55: Hazırlayan Kurum:
U56: selçuk | AB56: HAZIRLAYAN
AB57: Fatma İnal
BB80: Ayçiçeği yağı

Sheet Hesap
B1: KEDİ / KÖPEK MAMASI | C1: MİKTAR | M1: =TODAY() -> 2024-11-12 | O1: Coşkun & İnal & İnal | AA1: =SUM(AA3:AA34) -> 0.3225 | AC1: HESAPLAMA TABLOSU | AD1: 3 | AE1: 7 | AF1: 8 | AG1: 15 | AH1: 16 | AI1: 17 | AJ1: 20 | AK1: 21 | AL1: 18 | AM1: 19 | AN1: 22 | AO1: 23 | AP1: 24 | AQ1: 25 | AR1: 26 | AS1: 27 | AT1: 4 | AU1: 12 | AV1: 13 | AW1: 14 | AX1: 54 | AY1: 55 | AZ1: 28 | BA1: 29 | BB1: 31 | BC1: 33 | BD1: 32 | BE1: 34 | BF1: 38 | BG1: 36 | BH1: 41 | BI1: 39 | BJ1: 40 | BK1: 37 | BL1: 51 | BM1: 52 | BN1: 53 | BO1: 48 | BP1: 47 | BQ1: 49 | BR1: 45 | BS1: 46 | BT1: 50 | BU1: 44 | BV1: 43 | BW1: 2 | BX1: 5 | BY1: 6 | BZ1: 9 | CA1: 10 | CB1: 11 | CC1: 58 | CE1: =SUM(CE3:CE34) -> 33.6214 | CF1: 622 | CG1: 2.3036 | CH1: 1.0044 | CI1: 1.6865 | CJ1: 0.8643 | CK1: 0.4349 | CL1: 2.6136 | CM1: 2.5567 | CN1: 1.491 | CO1: 1.2684 | CP1: =SUM(CP3:CP34) -> 1.131 | CQ1: 0.3969 | CR1: =SUM(CR3:CR34) -> 0.033 | CS1: 1.7861 | CT1: 13.8871 | CU1: 5.6435 | CV1: 0.1517 | CW1: 0.55 | CX1: =SUM(CX3:CX34) -> 2.42775 | CY1: =SUM(CY3:CY34) -> 5.847 | CZ1: 0.84507 | DA1: 0.64678 | DB1: 86.81 | DC1: 139.714 | DD1: 0.6341 | DE1: 0 | DF1: 4.0418 | DG1: 0.34296 | DH1: 3.32948 | DI1: 1.42796 | DJ1: 20.86545 | DK1: 0.03576 | DL1: 311.3765 | DM1: 0 | DN1: 5.238 | DO1: 0.325936 | DP1: 0.275646 | DQ1: 0.8235 | DR1: 14.02716 | DS1: 2.66285 | DT1: 0.506 | DU1: 45.46 | DV1: =SUM(DV3:DV34) -> 82.5 | DW1: =SUM(DW3:DW34) -> 143.2333 | DX1: 5.3068 | DY1: 4.53865 | DZ1: 85.5776 | EA1: 4.06 | EB1: 76.1 | EC1: =SUM(EC3:EC34) -> 23.559 | EF1: 2 | EG1: 3 | EH1: 4 | EI1: 5 | EJ1: 6 | EK1: 7 | EL1: 8 | EM1: 9 | EN1: 10 | EO1: 11 | EP1: 12 | EQ1: 13 | ER1: 14 | ES1: 15 | ET1: 16 | EU1: 17 | EV1: 18 | EW1: 19 | EX1: 20 | EY1: 21 | EZ1: 22 | FA1: 23 | FB1: 24 | FC1: 25 | FD1: 26 | FE1: 27 | FF1: 28 | FG1: 29 | FH1: 30 | FI1: 31 | FJ1: 32 | FK1: 33 | FL1: 34 | FM1: 35 | FN1: 36 | FO1: 37 | FP1: 38 | FQ1: 39 | FR1: 40 | FS1: 41 | FT1: 42 | FU1: 43 | FV1: 44 | FW1: 45 | FX1: 46 | FY1: 47 | FZ1: 48 | GA1: 49 | GB1: 50 | GC1: 51 | GD1: 52 | GE1: 53 | GF1: 54 | GG1: 55 | GH1: 56 | GI1: 57 | GJ1: 58 | GK1: silme | GM1: KÖPEK | HM1: KEDİ | HT1: Kedi ergin ağırlıklar | HW1: KEDİ İhtiyaçlar
C2: =SUM(C3:C34) -> 0.3225 | D2: BESİN MADDESİ | E2: İHTİYAÇ | F2: MAMA | G2: SONUÇ | H2: % | I2: KM'de % | J2: 100 kcal ME'de | O2: Hayvanın türü | P2: : | Q2: Köpek | S2: Kedi | Y2: Seçenekler | AA2: Miktar | AC2: HAMMADDELER | AD2: Ham protein,% | AE2: ME,kcal/g (köpek) | AF2: ME,kcal/g (kedi) | AG2: Arjinin,% | AH2: Histidin,% | AI2: İzolöysin,% | AJ2: Metiyonin,% | AK2: Sistin,% | AL2: Löysin,% | AM2: Lizin,% | AN2: Fenilalanin,% | AO2: Tirozin,% | AP2: Treonin,% | AQ2: Triptofan,% | AR2: Taurin,% | AS2: Valin,% | AT2: Yağ,% | AU2: Linoleik asit,% | AV2: Linolenik asit,% | AW2: Arahidonik asit,% | AX2: Toplam doymuş yağlar, % | AY2: Toplam PUFA, % | AZ2: Kalsiyum,% | BA2: Fosfor,% | BB2: Magnezyum,% | BC2: Sodyum,% | BD2: Potasyum,% | BE2: Klorid,% | BF2: Demir,mg/kg | BG2: Bakır,mg/kg | BH2: Çinko,mg/kg | BI2: Manganez,mg/kg | BJ2: Selenyum,mg/kg | BK2: İyot,mg/kg | BL2: Vitamin A,µg/kg | BM2: Kolekalsiferol,µg/kg | BN2: Vitamin E,mg/kg | BO2: Tiamin,mg/kg | BP2: Riboflavin,mg/kg | BQ2: Pridoksin,mg/kg | BR2: Niasin,mg/kg | BS2: Pantotenik asit,mg/kg | BT2: Kobalamin,mg/kg | BU2: Folat,mg/kg | BV2: Kolin,mg/kg | BW2: KM,% | BX2: HS,% | BY2: HK,% | BZ2: CHO,% | CA2: Şeker,% | CB2: Nişasta,% | CC2: Fiyat,TL | CE2: Ham protein, g | CF2: Enerji, kcal | CG2: Arjinin, g | CH2: Histidin, g | CI2: İzolöysin, g | CJ2: Metiyonin, g | CK2: Sistin, g | CL2: Löysin, g | CM2: Lizin, g | CN2: Fenilalanin, g | CO2: Tirozin, g | CP2: Treonin, g | CQ2: Triptofan, g | CR2: Taurin, g | CS2: Valin, g | CT2: Yağ, g | CU2: Linoleik asit, g | CV2: Linolenik asit, g | CW2: Arahidonik asit, g | CX2: Toplam doymuş yağlar, g | CY2: Toplam PUFA, g | CZ2: Kalsiyum, g | DA2: Fosfor, g | DB2: Magnezyum, mg | DC2: Sodyum, mg | DD2: Potasyum, g | DE2: Klorid, mg | DF2: Demir, mg | DG2: Bakır, mg | DH2: Çinko, mg | DI2: Manganez, mg | DJ2: Selenyum, µg | DK2: İyot, mg | DL2: Vitamin A, µg | DM2: Vitamin D, µg | DN2: Vitamin E, mg | DO2: Tiamin, mg | DP2: Riboflavin, mg | DQ2: Pridoksin, mg | DR2: Niasin, mg | DS2: Pantotenik asit, mg | DT2: Vitamin B12, µg | DU2: Folik asit, µg | DV2: Kolin, mg | DW2: Kuru madde, g | DX2: Lif, g | DY2: Kül, g | DZ2: CHO, g | EA2: Şeker, g | EB2: Nişasta, g | EC2: FİYAT,TL | EF2: KM,% | EG2: HP,% | EH2: HY,% | EI2: HS,% | EJ2: HK,% | EK2: ME,kcal/g (köpek) | EL2: ME,kcal/g (kedi) | EM2: CHO,% | EN2: Şeker,% | EO2: Nişasta,% | EP2: 18:2n-6, % | EQ2: 18:3n-3, % | ER2: 20:4n-6, % | ES2: Arjinin, % | ET2: Histidin, % | EU2: İzolöysin, % | EV2: Löysin, % | EW2: Lizin, % | EX2: Metiyonin, % | EY2: Sistin,% | EZ2: Fenilalanin, % | FA2: Tirozin, % | FB2: Treonin, % | FC2: Triptofan, % | FD2: Taurin,% | FE2: Valin, % | FF2: Ca,% | FG2: P,% | FH2: Kul P,% | FI2: Mg,% | FJ2: K,% | FK2: Na,% | FL2: Cl,% | FM2: S,% | FN2: Cu,mg/kg | FO2: I,mg/kg | FP2: Fe,mg/kg | FQ2: Mn,mg/kg | FR2: Se,mg/kg | FS2: Zn,mg/kg | FT2: Biotin,mg/kg | FU2: Kolin,mg/kg | FV2: Folat,mg/kg | FW2: Niasin,mg/kg | FX2: Pant. asit,mg/kg | FY2: Riboflavin,mg/kg | FZ2: Tiamin,mg/kg | GA2: Vit. B6,mg/kg | GB2: Vit. B12,mg/kg | GC2: Vitamin A,µg/kg | GD2: Kolekalsiferol,µg/kg | GE2: Vit. E,mg/kg | GF2: Doymuş,% | GG2: PUFA,% | GH2: Toplam n-6,% | GI2: Toplam n-3,% | GJ2: Fiyat,TL | GK2: EF | GO2: Yavru | GP2: Yetişkin | GQ2: Gebe dişi | GR2: Emziren dişi | GW2: Farklı köpek ırklarında canlı ağırlıklar | GX2: Enaz | GY2: Ençok | GZ2: Ort. | HA2: Cüsse | HB2: Hayat | HC2: Erkek | HD2: Dişi | HF2: KÖPEK İhtiyaçlar | HG2: Yeni Liste | HH2: Köpek Tanımlama | HI2: =IF(Q3="Yavru", IF(Q4<5,1,2), IF(LEFT(Q3,8)="Yetişkin",3, IF(RIGHT(Q3,4)="dişi",4, 0))) -> 3 | HJ2: Enerji İhtiyacı | HO2: Yavru | HP2: Yetişkin | HQ2: Gebe dişi | HR2: Emziren dişi | HT2: Abyssinian | HU2: 4.3 | HW2: Kedi Tanımlama | HX2: =IF(KediTipi="Yavru", 1, IF(KediTipi="Yetişkin",2, IF(KediTipi="Gebe Dişi",3, IF(KediTipi="Emziren Dişi",4, 0)))) -> 4 | HY2: =100*KediCA^0.67*6.732*(EXP(-0.189*HN16)-0.66) -> 292.4623418 | HZ2: =IF(HN16<1,100,HN16*100) * KediCA^IF(HN16<1, 0.67, 0.67 - (HN16-1)*0.9 ) -> 253.1513188 | IA2: =HZ2* (100 + KediGebeSure*HN15)/100 -> 253.1513188 | IB2: =100 * KediCA^0.67 + HN14 * KediCA * HN13 -> 440.3513188
A3: =Köpek!A3 -> 1 | B3: =Köpek!B3 -> Peynir,süzme | C3: =Köpek!C3 -> 0.01 | D3: =DW2 -> Kuru madde, g | F3: =DW1 -> 143.2333 | H3: =(F3*100)/(C2*1000) -> 44.41342636 | O3: Tip | P3: : | Q3: Yetişkin | S3: Emziren dişi | AA3: =IF(B3="","",IF(C3="","",C3)) -> 0.01 | AC3: =IF(B3="",0,IF(C3="",0,B3)) -> Peynir,süzme | AD3: =IF($AC3=0,"",VLOOKUP($AC3,$EE$3:$GJ$510,AD$1,FALSE)) -> 11 | AE3: 1.96 | AF3: 1.96 | AG3: 0.87 | AH3: 0.82 | AI3: 1.14 | AJ3: 0.57 | AK3: 0.13 | AL3: 2.24 | AM3: 2.12 | AN3: =IF($AC3=0,"",VLOOKUP($AC3,$EE$3:$GJ$510,AN$1,FALSE)) -> 1.23 | AO3: 1.12 | AP3: 0.88 | AQ3: 0.32 | AR3: 0 | AS3: 1.47 | AT3: 16 | AU3: 0.49 | AV3: 0.293 | AW3: 0 | AX3: =IF($AC3=0,"",VLOOKUP($AC3,$EE$3:$GJ$510,AX$1,FALSE)) -> 10 | AY3: 0.8 | AZ3: 0.2 | BA3: 0.1 | BB3: 0.024 | BC3: 0.5 | BD3: 0.136 | BE3: 0 | BF3: 4.3 | BG3: 0.2 | BH3: =IF($AC3=0,"",VLOOKUP($AC3,$EE$3:$GJ$510,BH$1,FALSE)) -> 26 | BI3: 0.1 | BJ3: 0.145 | BK3: 0.39 | BL3: 3240 | BM3: 0 | BN3: 3 | BO3: 0.1 | BP3: 3.5 | BQ3: 0.7 | BR3: =IF($AC3=0,"",VLOOKUP($AC3,$EE$3:$GJ$510,BR$1,FALSE)) -> 1.2 | BS3: 2.9 | BT3: 0.0126 | BU3: 0.2 | BV3: 154 | BW3: 58.89 | BX3: 0 | BY3: 3.18 | BZ3: 2 | CA3: 1.8 | CB3: 0 | CC3: 100 | CE3: =IF(Köpek!$B3="","",IF(Köpek!$C3="","",Köpek!$C3*AD3*10)) -> 1.1 | CF3: =IF(Köpek!$B3="","",IF(Köpek!$C3="","", IF(KKSecim="Köpek", Köpek!$C3*AE3*1000, Köpek!$C3*AF3*1000) ) ) -> 19.6 | CG3: =IF(Köpek!$B3="","",IF(Köpek!$C3="","",Köpek!$C3*AG3*10)) -> 0.087 | CH3: =IF(Köpek!$B3="","",IF(Köpek!$C3="","",Köpek!$C3*AH3*10)) -> 0.082 | CI3: =IF(Köpek!$B3="","",IF(Köpek!$C3="","",Köpek!$C3*AI3*10)) -> 0.114 | CJ3: =IF(Köpek!$B3="","",IF(Köpek!$C3="","",Köpek!$C3*AJ3*10)) -> 0.057 | CK3: =IF(Köpek!$B3="","",IF(Köpek!$C3="","",Köpek!$C3*AK3*10)) -> 0.013 | CL3: =IF(Köpek!$B3="","",IF(Köpek!$C3="","",Köpek!$C3*AL3*10)) -> 0.224 | CM3: =IF(Köpek!$B3="","",IF(Köpek!$C3="","",Köpek!$C3*AM3*10)) -> 0.212 | CN3: =IF(Köpek!$B3="","",IF(Köpek!$C3="","",Köpek!$C3*AN3*10)) -> 0.123 | CO3: =IF(Köpek!$B3="","",IF(Köpek!$C3="","",Köpek!$C3*AO3*10)) -> 0.112 | CP3: =IF(Köpek!$B3="","",IF(Köpek!$C3="","",Köpek!$C3*AP3*10)) -> 0.088 | CQ3: =IF(Köpek!$B3="","",IF(Köpek!$C3="","",Köpek!$C3*AQ3*10)) -> 0.032 | CR3: =IF(Köpek!$B3="","",IF(Köpek!$C3="","",Köpek!$C3*AR3*10)) -> 0 | CS3: =IF(Köpek!$B3="","",IF(Köpek!$C3="","",Köpek!$C3*AS3*10)) -> 0.147 | CT3: =IF(Köpek!$B3="","",IF(Köpek!$C3="","",Köpek!$C3*AT3*10)) -> 1.6 | CU3: =IF(Köpek!$B3="","",IF(Köpek!$C3="","",Köpek!$C3*AU3*10)) -> 0.049 | CV3: =IF(Köpek!$B3="","",IF(Köpek!$C3="","",Köpek!$C3*AV3*10)) -> 0.0293 | CW3: =IF(Köpek!$B3="","",IF(Köpek!$C3="","",Köpek!$C3*AW3*10)) -> 0 | CX3: =IF(Köpek!$B3="","",IF(Köpek!$C3="","",Köpek!$C3*AX3*10)) -> 1 | CY3: =IF(Köpek!$B3="","",IF(Köpek!$C3="","",Köpek!$C3*AY3*10)) -> 0.08 | CZ3: =IF(Köpek!$B3="","",IF(Köpek!$C3="","",Köpek!$C3*AZ3*10)) -> 0.02 | DA3: =IF(Köpek!$B3="","",IF(Köpek!$C3="","",Köpek!$C3*BA3*10)) -> 0.01 | DB3: =IF(Köpek!$B3="","",IF(Köpek!$C3="","",Köpek!$C3*BB3*10000)) -> 2.4 | DC3: =IF(Köpek!$B3="","",IF(Köpek!$C3="","",Köpek!$C3*BC3*10000)) -> 50 | DD3: =IF(Köpek!$B3="","",IF(Köpek!$C3="","",Köpek!$C3*BD3*10)) -> 0.0136 | DE3: =IF(Köpek!$B3="","",IF(Köpek!$C3="","",Köpek!$C3*BE3*10000)) -> 0 | DF3: =IF(Köpek!$B3="","",IF(Köpek!$C3="","",Köpek!$C3*BF3)) -> 0.043 | DG3: =IF(Köpek!$B3="","",IF(Köpek!$C3="","",Köpek!$C3*BG3)) -> 0.002 | DH3: =IF(Köpek!$B3="","",IF(Köpek!$C3="","",Köpek!$C3*BH3)) -> 0.26 | DI3: =IF(Köpek!$B3="","",IF(Köpek!$C3="","",Köpek!$C3*BI3)) -> 0.001 | DJ3: =IF(Köpek!$B3="","",IF(Köpek!$C3="","",Köpek!$C3*BJ3)) -> 0.00145 | DK3: =IF(Köpek!$B3="","",IF(Köpek!$C3="","",Köpek!$C3*BK3)) -> 0.0039 | DL3: =IF(Köpek!$B3="","",IF(Köpek!$C3="","",Köpek!$C3*BL3)) -> 32.4 | DM3: =IF(Köpek!$B3="","",IF(Köpek!$C3="","",Köpek!$C3*BM3)) -> 0 | DN3: =IF(Köpek!$B3="","",IF(Köpek!$C3="","",Köpek!$C3*BN3)) -> 0.03 | DO3: =IF(Köpek!$B3="","",IF(Köpek!$C3="","",Köpek!$C3*BO3)) -> 0.001 | DP3: =IF(Köpek!$B3="","",IF(Köpek!$C3="","",Köpek!$C3*BP3)) -> 0.035 | DQ3: =IF(Köpek!$B3="","",IF(Köpek!$C3="","",Köpek!$C3*BQ3)) -> 0.007 | DR3: =IF(Köpek!$B3="","",IF(Köpek!$C3="","",Köpek!$C3*BR3)) -> 0.012 | DS3: =IF(Köpek!$B3="","",IF(Köpek!$C3="","",Köpek!$C3*BS3)) -> 0.029 | DT3: =IF(Köpek!$B3="","",IF(Köpek!$C3="","",Köpek!$C3*BT3*1000)) -> 0.126 | DU3: =IF(Köpek!$B3="","",IF(Köpek!$C3="","",Köpek!$C3*BU3*1000)) -> 2 | DV3: =IF(Köpek!$B3="","",IF(Köpek!$C3="","",Köpek!$C3*BV3)) -> 1.54 | DW3: =IF(Köpek!$B3="","",IF(Köpek!$C3="","",Köpek!$C3*BW3*10)) -> 5.889 | DX3: =IF(Köpek!$B3="","",IF(Köpek!$C3="","",Köpek!$C3*BX3*10)) -> 0 | DY3: =IF(Köpek!$B3="","",IF(Köpek!$C3="","",Köpek!$C3*BY3*10)) -> 0.318 | DZ3: =IF(Köpek!$B3="","",IF(Köpek!$C3="","",Köpek!$C3*BZ3*10)) -> 0.2 | EA3: =IF(Köpek!$B3="","",IF(Köpek!$C3="","",Köpek!$C3*CA3*10)) -> 0.18 | EB3: =IF(Köpek!$B3="","",IF(Köpek!$C3="","",Köpek!$C3*CB3*10)) -> 0 | EC3: =IF(Köpek!$B3="","",IF(Köpek!$C3="","",Köpek!$C3*CC3)) -> 1 | EE3: Hayvansal kaynaklı yiyecekler | GK3: EG | GO3: hafta | GP3: yıl | GT3: SEÇİLEN | GW3: Afgan tazısı | GX3: 26 | GY3: 34 | GZ3: 30 | HA3: =IF(GZ3<10,"Küçük", IF(GZ3<20,"Orta", IF(GZ3<50,"İri","Dev"))) -> İri | HB3: 12-14 | HC3: 26-28 | HD3: 22-24 | HF3: 1000 kcal ME'de | HG3: İhtiyaç | HH3: Yavru 4-14 hf | HI3: Yavru >14 hf | HJ3: Yetişkin, YP | HK3: Gebe, Emziren | HO3: hafta | HP3: yıl | HQ3: yıl | HR3: yıl | HT3: American Bob | HU3: 5 | HW3: 1000 kcal ME'de | HX3: İhtiyaç | HY3: Yavru | HZ3: Yetişkin | IA3: Gebe Dişi | IB3: Emziren Dişi
A4: =Köpek!A4 -> 1 | B4: =Köpek!B4 -> Piliç,Göğüs,Et,Çiğ | C4: =Köpek!C4 -> 0.1 | D4: =CE2 -> Ham protein, g | E4: =Köpek!E4 -> 15.54798317 | F4: =CE1 -> 33.6214 | G4: =IF(E4=0,"", IF(F4<E4,"EKSİK", IF(F4>E4*2.5,"FAZLA", "TAMAM")) ) -> TAMAM | H4: =(F4*100)/(C2*1000) -> 10.42524031 | I4: =H4*100/H$3 -> 23.47317279 | J4: =F4*100/$F$5 -> 5.405369775 | O4: =CONCATENATE("Yaş",IF(Köpek!Q5="Yavru",", hafta", "")) -> Yaş | P4: : | Q4: 3 | S4: 3 | Y4: Hayvanın Türü | AA4: 0.1 | AC4: Piliç,Göğüs,Et,Çiğ | AD4: 23.09 | AE4: 1.1 | AF4: 1.1 | AG4: 1.39 | AH4: 0.72 | AI4: 1.22 | AJ4: 0.64 | AK4: 0.3 | AL4: 1.73 | AM4: 1.96 | AN4: 0.92 | AO4: 0.78 | AP4: 0.73 | AQ4: 0.27 | AR4: 0.033 | AS4: 1.15 | AT4: 1.24 | AU4: 0.17 | AV4: 0.04 | AW4: 0.05 | AX4: 0.3 | AY4: 0.3 | AZ4: 0.011 | BA4: 0.196 | BB4: 0.028 | BC4: 0.065 | BD4: 0.255 | BE4: 0 | BF4: 7.2 | BG4: 0.4 | BH4: 8 | BI4: 0.2 | BJ4: 0.178 | BK4: 0.024 | BL4: 63 | BM4: 0 | BN4: 1 | BO4: 0.7 | BP4: 0.9 | BQ4: 5.5 | BR4: 111.9 | BS4: 8.2 | BT4: 0.0038 | BU4: 0.04 | BV4: 734 | BW4: 25.24 | BX4: 0 | BY4: 1.02 | BZ4: 0 | CA4: 0 | CB4: 0 | CC4: 175 | CE4: =IF(Köpek!$B4="","",IF(Köpek!$C4="","",Köpek!$C4*AD4*10)) -> 23.09 | CF4: =IF(Köpek!$B4="","",IF(Köpek!$C4="","", IF(KKSecim="Köpek", Köpek!$C4*AE4*1000, Köpek!$C4*AF4*1000) ) ) -> 110 | CG4: =IF(Köpek!$B4="","",IF(Köpek!$C4="","",Köpek!$C4*AG4*10)) -> 1.39 | CH4: =IF(Köpek!$B4="","",IF(Köpek!$C4="","",Köpek!$C4*AH4*10)) -> 0.72 | CI4: =IF(Köpek!$B4="","",IF(Köpek!$C4="","",Köpek!$C4*AI4*10)) -> 1.22 | CJ4: =IF(Köpek!$B4="","",IF(Köpek!$C4="","",Köpek!$C4*AJ4*10)) -> 0.64 | CK4: =IF(Köpek!$B4="","",IF(Köpek!$C4="","",Köpek!$C4*AK4*10)) -> 0.3 | CL4: =IF(Köpek!$B4="","",IF(Köpek!$C4="","",Köpek!$C4*AL4*10)) -> 1.73 | CM4: =IF(Köpek!$B4="","",IF(Köpek!$C4="","",Köpek!$C4*AM4*10)) -> 1.96 | CN4: =IF(Köpek!$B4="","",IF(Köpek!$C4="","",Köpek!$C4*AN4*10)) -> 0.92 | CO4: =IF(Köpek!$B4="","",IF(Köpek!$C4="","",Köpek!$C4*AO4*10)) -> 0.78 | CP4: =IF(Köpek!$B4="","",IF(Köpek!$C4="","",Köpek!$C4*AP4*10)) -> 0.73 | CQ4: =IF(Köpek!$B4="","",IF(Köpek!$C4="","",Köpek!$C4*AQ4*10)) -> 0.27 | CR4: =IF(Köpek!$B4="","",IF(Köpek!$C4="","",Köpek!$C4*AR4*10)) -> 0.033 | CS4: =IF(Köpek!$B4="","",IF(Köpek!$C4="","",Köpek!$C4*AS4*10)) -> 1.15 | CT4: =IF(Köpek!$B4="","",IF(Köpek!$C4="","",Köpek!$C4*AT4*10)) -> 1.24 | CU4: =IF(Köpek!$B4="","",IF(Köpek!$C4="","",Köpek!$C4*AU4*10)) -> 0.17 | CV4: =IF(Köpek!$B4="","",IF(Köpek!$C4="","",Köpek!$C4*AV4*10)) -> 0.04 | CW4: =IF(Köpek!$B4="","",IF(Köpek!$C4="","",Köpek!$C4*AW4*10)) -> 0.05 | CX4: =IF(Köpek!$B4="","",IF(Köpek!$C4="","",Köpek!$C4*AX4*10)) -> 0.3 | CY4: =IF(Köpek!$B4="","",IF(Köpek!$C4="","",Köpek!$C4*AY4*10)) -> 0.3 | CZ4: =IF(Köpek!$B4="","",IF(Köpek!$C4="","",Köpek!$C4*AZ4*10)) -> 0.011 | DA4: =IF(Köpek!$B4="","",IF(Köpek!$C4="","",Köpek!$C4*BA4*10)) -> 0.196 | DB4: =IF(Köpek!$B4="","",IF(Köpek!$C4="","",Köpek!$C4*BB4*10000)) -> 28 | DC4: =IF(Köpek!$B4="","",IF(Köpek!$C4="","",Köpek!$C4*BC4*10000)) -> 65 | DD4: =IF(Köpek!$B4="","",IF(Köpek!$C4="","",Köpek!$C4*BD4*10)) -> 0.255 | DE4: =IF(Köpek!$B4="","",IF(Köpek!$C4="","",Köpek!$C4*BE4*10000)) -> 0 | DF4: =IF(Köpek!$B4="","",IF(Köpek!$C4="","",Köpek!$C4*BF4)) -> 0.72 | DG4: =IF(Köpek!$B4="","",IF(Köpek!$C4="","",Köpek!$C4*BG4)) -> 0.04 | DH4: =IF(Köpek!$B4="","",IF(Köpek!$C4="","",Köpek!$C4*BH4)) -> 0.8 | DI4: =IF(Köpek!$B4="","",IF(Köpek!$C4="","",Köpek!$C4*BI4)) -> 0.02 | DJ4: =IF(Köpek!$B4="","",IF(Köpek!$C4="","",Köpek!$C4*BJ4*1000)) -> 17.8 | DK4: =IF(Köpek!$B4="","",IF(Köpek!$C4="","",Köpek!$C4*BK4)) -> 0.0024 | DL4: =IF(Köpek!$B4="","",IF(Köpek!$C4="","",Köpek!$C4*BL4)) -> 6.3 | DM4: =IF(Köpek!$B4="","",IF(Köpek!$C4="","",Köpek!$C4*BM4)) -> 0 | DN4: =IF(Köpek!$B4="","",IF(Köpek!$C4="","",Köpek!$C4*BN4)) -> 0.1 | DO4: =IF(Köpek!$B4="","",IF(Köpek!$C4="","",Köpek!$C4*BO4)) -> 0.07 | DP4: =IF(Köpek!$B4="","",IF(Köpek!$C4="","",Köpek!$C4*BP4)) -> 0.09 | DQ4: =IF(Köpek!$B4="","",IF(Köpek!$C4="","",Köpek!$C4*BQ4)) -> 0.55 | DR4: =IF(Köpek!$B4="","",IF(Köpek!$C4="","",Köpek!$C4*BR4)) -> 11.19 | DS4: =IF(Köpek!$B4="","",IF(Köpek!$C4="","",Köpek!$C4*BS4)) -> 0.82 | DT4: =IF(Köpek!$B4="","",IF(Köpek!$C4="","",Köpek!$C4*BT4*1000)) -> 0.38 | DU4: =IF(Köpek!$B4="","",IF(Köpek!$C4="","",Köpek!$C4*BU4*1000)) -> 4 | DV4: =IF(Köpek!$B4="","",IF(Köpek!$C4="","",Köpek!$C4*BV4)) -> 73.4 | DW4: =IF(Köpek!$B4="","",IF(Köpek!$C4="","",Köpek!$C4*BW4*10)) -> 25.24 | DX4: =IF(Köpek!$B4="","",IF(Köpek!$C4="","",Köpek!$C4*BX4*10)) -> 0 | DY4: =IF(Köpek!$B4="","",IF(Köpek!$C4="","",Köpek!$C4*BY4*10)) -> 1.02 | DZ4: =IF(Köpek!$B4="","",IF(Köpek!$C4="","",Köpek!$C4*BZ4*10)) -> 0 | EA4: =IF(Köpek!$B4="","",IF(Köpek!$C4="","",Köpek!$C4*CA4*10)) -> 0 | EB4: =IF(Köpek!$B4="","",IF(Köpek!$C4="","",Köpek!$C4*CB4*10)) -> 0 | EC4: =IF(Köpek!$B4="","",IF(Köpek!$C4="","",Köpek!$C4*CC4)) -> 17.5 | EE4: Ahtapot, çiğ | EF4: 19 | EG4: 16.4 | EH4: 0.9 | EJ4: 1 | EK4: 0.77 | EL4: 0.77 | EM4: 1.5 | EN4: 0 | EO4: 1.5 | FF4: 0.028 | FG4: 0.109 | FJ4: 0.232 | FK4: 0.363 | FO4: 0.2 | FP4: 15 | FQ4: 0.1 | FR4: 0.26 | FS4: 16.2 | FV4: 0.1 | FW4: 32 | FX4: 0 | FY4: 0.73 | FZ4: 0.67 | GA4: 3.6 | GB4: 0.1 | GC4: 500 | GD4: 10 | GE4: 21 | GJ4: 700 | GK4: EH | GO4: kg | GT4: IRK | GU4: Terrier, West Highland White | GW4: Akbaş | GX4: 35 | GY4: 55 | GZ4: 45 | HA4: İri | HB4: 10-13 | HC4: 41-61 | HD4: 38-58 | HE4: 2 | HF4: Ham protein, g | HG4: =IF(HI$2=1,HH4, IF(HI$2=2,HI4, IF(HI$2=3,HJ4, IF(HI$2=4,HK4, "YOK")))) * HG$5/1000 -> 15.54798317 | HH4: 56.3 | HI4: 43.8 | HJ4: 25 | HK4: 50 | HO4: kg | HT4: Allerca | HU4: 4.3 | HW4: Ham protein, g | HX4: =IF(HX$2=1,HY4, IF(HX$2=2,HZ4, IF(HX$2=3,IA4, IF(HX$2=4,IB4, "YOK")))) * HX$5/1000 -> 33.02634891 | HY4: 56.3 | HZ4: 50 | IA4: 53.25 | IB4: 75
A5: =Köpek!A5 -> 1 | B5: =Köpek!B5 -> Yumurta kabuğu | C5: =Köpek!C5 -> 0.0005 | D5: =CF2 -> Enerji, kcal | E5: =Köpek!E5 -> 621.9193267 | F5: =CF1 -> 622 | G5: =IF(E5=0,"", IF(F5<E5*0.99,"EKSİK", IF(F5>E5*1.1,"FAZLA", "TAMAM")) ) -> TAMAM | H5: =F5/C2/10 -> 192.8682171 | I5: 434.2565591 | O5: Canlı ağırlık, kg | P5: : | Q5: 7 | S5: 4 | Y5: Köpek | AA5: 0.0005 | AC5: Yumurta kabuğu | AD5: 4.48 | AE5: 0 | AF5: 0 | AG5: 0 | AH5: 0 | AI5: 0 | AJ5: 0 | AK5: 0 | AL5: 0 | AM5: 0 | AN5: 0 | AO5: 0 | AP5: 0 | AQ5: 0 | AR5: 0 | AS5: 0 | AT5: 0.22 | AU5: 0 | AV5: 0 | AW5: 0 | AX5: 0 | AY5: 0 | AZ5: 33.63 | BA5: 0.06 | BB5: 0.33 | BC5: 0.05 | BD5: 0.04 | BE5: 0 | BF5: 0 | BG5: 0 | BH5: 0 | BI5: 0 | BJ5: 0 | BK5: 0 | BL5: 0 | BM5: 0 | BN5: 0 | BO5: 0 | BP5: 0 | BQ5: 0 | BR5: 0 | BS5: 0 | BT5: 0 | BU5: 0 | BV5: 0 | BW5: 99.66 | BX5: 0 | BY5: 94.45 | BZ5: 0 | CA5: 0 | CB5: 0 | CC5: 70 | CE5: =IF(Köpek!$B5="","",IF(Köpek!$C5="","",Köpek!$C5*AD5*10)) -> 0.0224 | CF5: =IF(Köpek!$B5="","",IF(Köpek!$C5="","", IF(KKSecim="Köpek", Köpek!$C5*AE5*1000, Köpek!$C5*AF5*1000) ) ) -> 0 | CG5: =IF(Köpek!$B5="","",IF(Köpek!$C5="","",Köpek!$C5*AG5*10)) -> 0 | CH5: =IF(Köpek!$B5="","",IF(Köpek!$C5="","",Köpek!$C5*AH5*10)) -> 0 | CI5: =IF(Köpek!$B5="","",IF(Köpek!$C5="","",Köpek!$C5*AI5*10)) -> 0 | CJ5: =IF(Köpek!$B5="","",IF(Köpek!$C5="","",Köpek!$C5*AJ5*10)) -> 0 | CK5: =IF(Köpek!$B5="","",IF(Köpek!$C5="","",Köpek!$C5*AK5*10)) -> 0 | CL5: =IF(Köpek!$B5="","",IF(Köpek!$C5="","",Köpek!$C5*AL5*10)) -> 0 | CM5: =IF(Köpek!$B5="","",IF(Köpek!$C5="","",Köpek!$C5*AM5*10)) -> 0 | CN5: =IF(Köpek!$B5="","",IF(Köpek!$C5="","",Köpek!$C5*AN5*10)) -> 0 | CO5: =IF(Köpek!$B5="","",IF(Köpek!$C5="","",Köpek!$C5*AO5*10)) -> 0 | CP5: =IF(Köpek!$B5="","",IF(Köpek!$C5="","",Köpek!$C5*AP5*10)) -> 0 | CQ5: =IF(Köpek!$B5="","",IF(Köpek!$C5="","",Köpek!$C5*AQ5*10)) -> 0 | CR5: =IF(Köpek!$B5="","",IF(Köpek!$C5="","",Köpek!$C5*AR5*10)) -> 0 | CS5: =IF(Köpek!$B5="","",IF(Köpek!$C5="","",Köpek!$C5*AS5*10)) -> 0 | CT5: =IF(Köpek!$B5="","",IF(Köpek!$C5="","",Köpek!$C5*AT5*10)) -> 0.0011 | CU5: =IF(Köpek!$B5="","",IF(Köpek!$C5="","",Köpek!$C5*AU5*10)) -> 0 | CV5: =IF(Köpek!$B5="","",IF(Köpek!$C5="","",Köpek!$C5*AV5*10)) -> 0 | CW5: =IF(Köpek!$B5="","",IF(Köpek!$C5="","",Köpek!$C5*AW5*10)) -> 0 | CX5: =IF(Köpek!$B5="","",IF(Köpek!$C5="","",Köpek!$C5*AX5*10)) -> 0 | CY5: =IF(Köpek!$B5="","",IF(Köpek!$C5="","",Köpek!$C5*AY5*10)) -> 0 | CZ5: =IF(Köpek!$B5="","",IF(Köpek!$C5="","",Köpek!$C5*AZ5*10)) -> 0.16815 | DA5: =IF(Köpek!$B5="","",IF(Köpek!$C5="","",Köpek!$C5*BA5*10)) -> 0.0003 | DB5: =IF(Köpek!$B5="","",IF(Köpek!$C5="","",Köpek!$C5*BB5*10000)) -> 1.65 | DC5: =IF(Köpek!$B5="","",IF(Köpek!$C5="","",Köpek!$C5*BC5*10000)) -> 0.25 | DD5: =IF(Köpek!$B5="","",IF(Köpek!$C5="","",Köpek!$C5*BD5*10)) -> 0.0002 | DE5: =IF(Köpek!$B5="","",IF(Köpek!$C5="","",Köpek!$C5*BE5*10000)) -> 0 | DF5: =IF(Köpek!$B5="","",IF(Köpek!$C5="","",Köpek!$C5*BF5)) -> 0 | DG5: =IF(Köpek!$B5="","",IF(Köpek!$C5="","",Köpek!$C5*BG5)) -> 0 | DH5: =IF(Köpek!$B5="","",IF(Köpek!$C5="","",Köpek!$C5*BH5)) -> 0 | DI5: =IF(Köpek!$B5="","",IF(Köpek!$C5="","",Köpek!$C5*BI5)) -> 0 | DJ5: =IF(Köpek!$B5="","",IF(Köpek!$C5="","",Köpek!$C5*BJ5*1000)) -> 0 | DK5: =IF(Köpek!$B5="","",IF(Köpek!$C5="","",Köpek!$C5*BK5)) -> 0 | DL5: =IF(Köpek!$B5="","",IF(Köpek!$C5="","",Köpek!$C5*BL5)) -> 0 | DM5: =IF(Köpek!$B5="","",IF(Köpek!$C5="","",Köpek!$C5*BM5)) -> 0 | DN5: =IF(Köpek!$B5="","",IF(Köpek!$C5="","",Köpek!$C5*BN5)) -> 0 | DO5: =IF(Köpek!$B5="","",IF(Köpek!$C5="","",Köpek!$C5*BO5)) -> 0 | DP5: =IF(Köpek!$B5="","",IF(Köpek!$C5="","",Köpek!$C5*BP5)) -> 0 | DQ5: =IF(Köpek!$B5="","",IF(Köpek!$C5="","",Köpek!$C5*BQ5)) -> 0 | DR5: =IF(Köpek!$B5="","",IF(Köpek!$C5="","",Köpek!$C5*BR5)) -> 0 | DS5: =IF(Köpek!$B5="","",IF(Köpek!$C5="","",Köpek!$C5*BS5)) -> 0 | DT5: =IF(Köpek!$B5="","",IF(Köpek!$C5="","",Köpek!$C5*BT5*1000)) -> 0 | DU5: =IF(Köpek!$B5="","",IF(Köpek!$C5="","",Köpek!$C5*BU5*1000)) -> 0 | DV5: =IF(Köpek!$B5="","",IF(Köpek!$C5="","",Köpek!$C5*BV5)) -> 0 | DW5: =IF(Köpek!$B5="","",IF(Köpek!$C5="","",Köpek!$C5*BW5*10)) -> 0.4983 | DX5: =IF(Köpek!$B5="","",IF(Köpek!$C5="","",Köpek!$C5*BX5*10)) -> 0 | DY5: =IF(Köpek!$B5="","",IF(Köpek!$C5="","",Köpek!$C5*BY5*10)) -> 0.47225 | DZ5: =IF(Köpek!$B5="","",IF(Köpek!$C5="","",Köpek!$C5*BZ5*10)) -> 0 | EA5: =IF(Köpek!$B5="","",IF(Köpek!$C5="","",Köpek!$C5*CA5*10)) -> 0 | EB5: =IF(Köpek!$B5="","",IF(Köpek!$C5="","",Köpek!$C5*CB5*10)) -> 0 | EC5: =IF(Köpek!$B5="","",IF(Köpek!$C5="","",Köpek!$C5*CC5)) -> 0.035 | EE5: At eti, çiğ | EF5: 27.37 | EG5: 21.39 | EH5: 4.6 | EI5: 0 | EJ5: 0.99 | EK5: 1.33 | EL5: 1.3 | EP5: 1.151 | EQ5: 1.005 | ER5: 0.199 | ES5: 1.16 | ET5: 0.73 | EU5: 0.912 | EV5: 1.49 | EW5: 1.64 | EX5: 0.456 | EY5: 0.137 | EZ5: 0.73 | FA5: 0.669 | FB5: 0.73 | FC5: 0.195 | FE5: 0.912 | FF5: 0.01 | FG5: 0.22 | FI5: 0.02 | FJ5: 0.36 | FK5: 0.05 | FN5: 1.4 | FO5: 0.01 | FP5: 38.2 | FQ5: 0.2 | FR5: 0.101 | FS5: 29 | FT5: 0.037 | FV5: 0.08 | FW5: 46 | FX5: 6 | FY5: 1 | FZ5: 1.3 | GA5: 3.8 | GB5: 0.003 | GC5: 243 | GD5: 3 | GE5: 2.3 | GF5: 3.643 | GG5: 2.408 | GH5: 1.35 | GI5: 1.057 | GJ5: 100 | GK5: EI | GO5: Irklar tablosu | GT5: Ortalama | GU5: =CONCATENATE(GU9,GU13) -> 8 | GW5: Akita | GX5: 34 | GY5: 54 | GZ5: 44 | HA5: İri | HB5: 10-12 | HC5: 39-59 | HD5: 29-50 | HF5: Enerji, kcal | HG5: =GN22 -> 621.9193267 | HO5: Irklar tablosu | HT5: Ashera GD | HU5: 11.3 | HW5: Enerji, kcal | HX5: =IF(KediTipi="Yavru", HY2, IF(KediTipi="Yetişkin",HZ2, IF(KediTipi="Gebe dişi", IA2, IF(KediTipi="Emziren dişi",IB2,0))) ) -> 440.3513188
A6: =Köpek!A6 -> 2 | B6: =Köpek!B6 -> Balkabağı, çiğ | C6: =Köpek!C6 -> 0.04 | D6: =DX2 -> Lif, g | F6: =DX1 -> 5.3068 | H6: =(F6*100)/(C2*1000) -> 1.64551938 | I6: 3.705004353 | J6: =F6*100/$F$5 -> 0.8531832797 | O6: Irk | P6: : | Q6: Terrier, West Highland White | S6: Türk Ankara Kedisi | Y6: Kedi | AA6: 0.04 | AC6: Balkabağı, çiğ | AD6: 1 | AE6: 0.185 | AF6: 0.185 | AG6: 0.0445 | AH6: 0.018 | AI6: 0.036 | AJ6: 0.0135 | AK6: 0.008 | AL6: 0.0525 | AM6: 0.047 | AN6: 0.097 | AO6: 0.0245 | AP6: 0.022 | AQ6: 0.0105 | AR6: 0 | AS6: 0.042 | AT6: 0.15 | AU6: 0.0285 | AV6: 0.049 | AW6: 0 | AX6: 0.039 | AY6: 0.0775 | AZ6: 0.02455 | BA6: 0.0422 | BB6: 0.0144 | BC6: 0.00341 | BD6: 0.2585 | BE6: 0 | BF6: 4.39 | BG6: 0.655 | BH6: 2.475 | BI6: 1.075 | BJ6: 0.0029 | BK6: 0.0015 | BL6: 65.5 | BM6: 0 | BN6: 1 | BO6: 0.379 | BP6: 0.81 | BQ6: 0.765 | BR6: 3.435 | BS6: 2.775 | BT6: 0 | BU6: 0.3715 | BV6: 0 | BW6: 5.55 | BX6: 1.05 | BY6: 0.6 | BZ6: 2.85 | CA6: 2.3 | CB6: 0.6 | CC6: 40 | CE6: =IF(Köpek!$B6="","",IF(Köpek!$C6="","",Köpek!$C6*AD6*10)) -> 0.4 | CF6: =IF(Köpek!$B6="","",IF(Köpek!$C6="","", IF(KKSecim="Köpek", Köpek!$C6*AE6*1000, Köpek!$C6*AF6*1000) ) ) -> 7.4 | CG6: =IF(Köpek!$B6="","",IF(Köpek!$C6="","",Köpek!$C6*AG6*10)) -> 0.0178 | CH6: =IF(Köpek!$B6="","",IF(Köpek!$C6="","",Köpek!$C6*AH6*10)) -> 0.0072 | CI6: =IF(Köpek!$B6="","",IF(Köpek!$C6="","",Köpek!$C6*AI6*10)) -> 0.0144 | CJ6: =IF(Köpek!$B6="","",IF(Köpek!$C6="","",Köpek!$C6*AJ6*10)) -> 0.0054 | CK6: =IF(Köpek!$B6="","",IF(Köpek!$C6="","",Köpek!$C6*AK6*10)) -> 0.0032 | CL6: =IF(Köpek!$B6="","",IF(Köpek!$C6="","",Köpek!$C6*AL6*10)) -> 0.021 | CM6: =IF(Köpek!$B6="","",IF(Köpek!$C6="","",Köpek!$C6*AM6*10)) -> 0.0188 | CN6: =IF(Köpek!$B6="","",IF(Köpek!$C6="","",Köpek!$C6*AN6*10)) -> 0.0388 | CO6: =IF(Köpek!$B6="","",IF(Köpek!$C6="","",Köpek!$C6*AO6*10)) -> 0.0098 | CP6: =IF(Köpek!$B6="","",IF(Köpek!$C6="","",Köpek!$C6*AP6*10)) -> 0.0088 | CQ6: =IF(Köpek!$B6="","",IF(Köpek!$C6="","",Köpek!$C6*AQ6*10)) -> 0.0042 | CR6: =IF(Köpek!$B6="","",IF(Köpek!$C6="","",Köpek!$C6*AR6*10)) -> 0 | CS6: =IF(Köpek!$B6="","",IF(Köpek!$C6="","",Köpek!$C6*AS6*10)) -> 0.0168 | CT6: =IF(Köpek!$B6="","",IF(Köpek!$C6="","",Köpek!$C6*AT6*10)) -> 0.06 | CU6: =IF(Köpek!$B6="","",IF(Köpek!$C6="","",Köpek!$C6*AU6*10)) -> 0.0114 | CV6: =IF(Köpek!$B6="","",IF(Köpek!$C6="","",Köpek!$C6*AV6*10)) -> 0.0196 | CW6: =IF(Köpek!$B6="","",IF(Köpek!$C6="","",Köpek!$C6*AW6*10)) -> 0 | CX6: =IF(Köpek!$B6="","",IF(Köpek!$C6="","",Köpek!$C6*AX6*10)) -> 0.0156 | CY6: =IF(Köpek!$B6="","",IF(Köpek!$C6="","",Köpek!$C6*AY6*10)) -> 0.031 | CZ6: =IF(Köpek!$B6="","",IF(Köpek!$C6="","",Köpek!$C6*AZ6*10)) -> 0.00982 | DA6: =IF(Köpek!$B6="","",IF(Köpek!$C6="","",Köpek!$C6*BA6*10)) -> 0.01688 | DB6: =IF(Köpek!$B6="","",IF(Köpek!$C6="","",Köpek!$C6*BB6*10000)) -> 5.76 | DC6: =IF(Köpek!$B6="","",IF(Köpek!$C6="","",Köpek!$C6*BC6*10000)) -> 1.364 | DD6: =IF(Köpek!$B6="","",IF(Köpek!$C6="","",Köpek!$C6*BD6*10)) -> 0.1034 | DE6: =IF(Köpek!$B6="","",IF(Köpek!$C6="","",Köpek!$C6*BE6*10000)) -> 0 | DF6: =IF(Köpek!$B6="","",IF(Köpek!$C6="","",Köpek!$C6*BF6)) -> 0.1756 | DG6: =IF(Köpek!$B6="","",IF(Köpek!$C6="","",Köpek!$C6*BG6)) -> 0.0262 | DH6: =IF(Köpek!$B6="","",IF(Köpek!$C6="","",Köpek!$C6*BH6)) -> 0.099 | DI6: =IF(Köpek!$B6="","",IF(Köpek!$C6="","",Köpek!$C6*BI6)) -> 0.043 | DJ6: =IF(Köpek!$B6="","",IF(Köpek!$C6="","",Köpek!$C6*BJ6*1000)) -> 0.116 | DK6: =IF(Köpek!$B6="","",IF(Köpek!$C6="","",Köpek!$C6*BK6)) -> 6e-05 | DL6: =IF(Köpek!$B6="","",IF(Köpek!$C6="","",Köpek!$C6*BL6)) -> 2.62 | DM6: =IF(Köpek!$B6="","",IF(Köpek!$C6="","",Köpek!$C6*BM6)) -> 0 | DN6: =IF(Köpek!$B6="","",IF(Köpek!$C6="","",Köpek!$C6*BN6)) -> 0.04 | DO6: =IF(Köpek!$B6="","",IF(Köpek!$C6="","",Köpek!$C6*BO6)) -> 0.01516 | DP6: =IF(Köpek!$B6="","",IF(Köpek!$C6="","",Köpek!$C6*BP6)) -> 0.0324 | DQ6: =IF(Köpek!$B6="","",IF(Köpek!$C6="","",Köpek!$C6*BQ6)) -> 0.0306 | DR6: =IF(Köpek!$B6="","",IF(Köpek!$C6="","",Köpek!$C6*BR6)) -> 0.1374 | DS6: =IF(Köpek!$B6="","",IF(Köpek!$C6="","",Köpek!$C6*BS6)) -> 0.111 | DT6: =IF(Köpek!$B6="","",IF(Köpek!$C6="","",Köpek!$C6*BT6*1000)) -> 0 | DU6: =IF(Köpek!$B6="","",IF(Köpek!$C6="","",Köpek!$C6*BU6*1000)) -> 14.86 | DV6: =IF(Köpek!$B6="","",IF(Köpek!$C6="","",Köpek!$C6*BV6)) -> 0 | DW6: =IF(Köpek!$B6="","",IF(Köpek!$C6="","",Köpek!$C6*BW6*10)) -> 2.22 | DX6: =IF(Köpek!$B6="","",IF(Köpek!$C6="","",Köpek!$C6*BX6*10)) -> 0.42 | DY6: =IF(Köpek!$B6="","",IF(Köpek!$C6="","",Köpek!$C6*BY6*10)) -> 0.24 | DZ6: =IF(Köpek!$B6="","",IF(Köpek!$C6="","",Köpek!$C6*BZ6*10)) -> 1.14 | EA6: =IF(Köpek!$B6="","",IF(Köpek!$C6="","",Köpek!$C6*CA6*10)) -> 0.92 | EB6: =IF(Köpek!$B6="","",IF(Köpek!$C6="","",Köpek!$C6*CB6*10)) -> 0.24 | EC6: =IF(Köpek!$B6="","",IF(Köpek!$C6="","",Köpek!$C6*CC6)) -> 1.6 | EE6: Balık Çözünürleri,Kurutulmuş | EF6: 93 | EG6: 62.5 | EH6: 8.277 | EI6: 1.395 | EJ6: 12.555 | EK6: 2.81 | EL6: 2.81 | EM6: 6.51 | EP6: 0.07 | EQ6: 0.07 | ER6: 2.4 | ES6: 3.23 | ET6: 3.06 | EU6: 2.17 | EV6: 3.84 | EW6: 3.67 | EX6: 1.39 | EY6: 0.77 | EZ6: 2.12 | FA6: 0.99 | FB6: 1.79 | FC6: 0.65 | FE6: 2.5 | FF6: 1.2927 | FG6: 1.488 | FI6: 0.1 | FJ6: 5 | FK6: 8 | FN6: 150 | FP6: 303.18 | FQ6: 50.22 | FS6: 77.19 | FV6: 0.558 | FW6: 256.68 | FX6: 50.499 | FY6: 13.578 | FZ6: 7.44 | GA6: 24.087 | GB6: 0.48732 | GC6: 0 | GJ6: 100 | GK6: EJ | GO6: adet | GT6: En az | GU6: =CONCATENATE(GU10,GU14) -> 6 | GW6: Alaska kurdu | GX6: 32 | GY6: 43 | GZ6: 37.5 | HA6: İri | HB6: 10-12 | HC6: 38-39 | HD6: 33-35 | HR6: adet | HT6: American Curl | HU6: 3.9
A7: =Köpek!A7 -> 2 | B7: =Köpek!B7 -> Bezelye, yeşil, çiğ | C7: =Köpek!C7 -> 0.04 | D7: =DY2 -> Kül, g | F7: =DY1 -> 4.53865 | H7: =(F7*100)/(C2*1000) -> 1.407333333 | I7: 3.168711466 | J7: 0.7296864952 | O7: Yavru sayısı | P7: : | S7: 3 | AA7: 0.04 | AC7: Bezelye, yeşil, çiğ | AD7: 5.09 | AE7: 0.7 | AF7: 0.7 | AG7: 0.704 | AH7: 0.105 | AI7: 0.228 | AJ7: 0.05 | AK7: 0.019 | AL7: 0.352 | AM7: 0.371 | AN7: 0.209 | AO7: 0.133 | AP7: 0.219 | AQ7: 0.047 | AR7: 0 | AS7: 0.285 | AT7: 0.7 | AU7: 0.32 | AV7: 0.064 | AW7: 0 | AX7: 0.128 | AY7: 0.384 | AZ7: 0.03 | BA7: 0.13 | BB7: 0.028 | BC7: 0.002 | BD7: 0.3 | BE7: 0 | BF7: 18 | BG7: 1.1 | BH7: 7.5 | BI7: 3.8 | BJ7: 0.0102 | BK7: 0.0015 | BL7: 180.2 | BM7: 0 | BN7: 0.2 | BO7: 3.1 | BP7: 1.3 | BQ7: 1.6 | BR7: 22 | BS7: 7.5 | BT7: 0 | BU7: 0.25 | BV7: 0 | BW7: 20.04 | BX7: 5.09 | BY7: 0.8 | BZ7: 7 | CA7: 4.7 | CB7: 1.8 | CC7: 40 | CE7: =IF(Köpek!$B7="","",IF(Köpek!$C7="","",Köpek!$C7*AD7*10)) -> 2.036 | CF7: =IF(Köpek!$B7="","",IF(Köpek!$C7="","", IF(KKSecim="Köpek", Köpek!$C7*AE7*1000, Köpek!$C7*AF7*1000) ) ) -> 28 | CG7: =IF(Köpek!$B7="","",IF(Köpek!$C7="","",Köpek!$C7*AG7*10)) -> 0.2816 | CH7: =IF(Köpek!$B7="","",IF(Köpek!$C7="","",Köpek!$C7*AH7*10)) -> 0.042 | CI7: =IF(Köpek!$B7="","",IF(Köpek!$C7="","",Köpek!$C7*AI7*10)) -> 0.0912 | CJ7: =IF(Köpek!$B7="","",IF(Köpek!$C7="","",Köpek!$C7*AJ7*10)) -> 0.02 | CK7: =IF(Köpek!$B7="","",IF(Köpek!$C7="","",Köpek!$C7*AK7*10)) -> 0.0076 | CL7: =IF(Köpek!$B7="","",IF(Köpek!$C7="","",Köpek!$C7*AL7*10)) -> 0.1408 | CM7: =IF(Köpek!$B7="","",IF(Köpek!$C7="","",Köpek!$C7*AM7*10)) -> 0.1484 | CN7: =IF(Köpek!$B7="","",IF(Köpek!$C7="","",Köpek!$C7*AN7*10)) -> 0.0836 | CO7: =IF(Köpek!$B7="","",IF(Köpek!$C7="","",Köpek!$C7*AO7*10)) -> 0.0532 | CP7: =IF(Köpek!$B7="","",IF(Köpek!$C7="","",Köpek!$C7*AP7*10)) -> 0.0876 | CQ7: =IF(Köpek!$B7="","",IF(Köpek!$C7="","",Köpek!$C7*AQ7*10)) -> 0.0188 | CR7: =IF(Köpek!$B7="","",IF(Köpek!$C7="","",Köpek!$C7*AR7*10)) -> 0 | CS7: =IF(Köpek!$B7="","",IF(Köpek!$C7="","",Köpek!$C7*AS7*10)) -> 0.114 | CT7: =IF(Köpek!$B7="","",IF(Köpek!$C7="","",Köpek!$C7*AT7*10)) -> 0.28 | CU7: =IF(Köpek!$B7="","",IF(Köpek!$C7="","",Köpek!$C7*AU7*10)) -> 0.128 | CV7: =IF(Köpek!$B7="","",IF(Köpek!$C7="","",Köpek!$C7*AV7*10)) -> 0.0256 | CW7: =IF(Köpek!$B7="","",IF(Köpek!$C7="","",Köpek!$C7*AW7*10)) -> 0 | CX7: =IF(Köpek!$B7="","",IF(Köpek!$C7="","",Köpek!$C7*AX7*10)) -> 0.0512 | CY7: =IF(Köpek!$B7="","",IF(Köpek!$C7="","",Köpek!$C7*AY7*10)) -> 0.1536 | CZ7: =IF(Köpek!$B7="","",IF(Köpek!$C7="","",Köpek!$C7*AZ7*10)) -> 0.012 | DA7: =IF(Köpek!$B7="","",IF(Köpek!$C7="","",Köpek!$C7*BA7*10)) -> 0.052 | DB7: =IF(Köpek!$B7="","",IF(Köpek!$C7="","",Köpek!$C7*BB7*10000)) -> 11.2 | DC7: =IF(Köpek!$B7="","",IF(Köpek!$C7="","",Köpek!$C7*BC7*10000)) -> 0.8 | DD7: =IF(Köpek!$B7="","",IF(Köpek!$C7="","",Köpek!$C7*BD7*10)) -> 0.12 | DE7: =IF(Köpek!$B7="","",IF(Köpek!$C7="","",Köpek!$C7*BE7*10000)) -> 0 | DF7: =IF(Köpek!$B7="","",IF(Köpek!$C7="","",Köpek!$C7*BF7)) -> 0.72 | DG7: =IF(Köpek!$B7="","",IF(Köpek!$C7="","",Köpek!$C7*BG7)) -> 0.044 | DH7: =IF(Köpek!$B7="","",IF(Köpek!$C7="","",Köpek!$C7*BH7)) -> 0.3 | DI7: =IF(Köpek!$B7="","",IF(Köpek!$C7="","",Köpek!$C7*BI7)) -> 0.152 | DJ7: =IF(Köpek!$B7="","",IF(Köpek!$C7="","",Köpek!$C7*BJ7*1000)) -> 0.408 | DK7: =IF(Köpek!$B7="","",IF(Köpek!$C7="","",Köpek!$C7*BK7)) -> 6e-05 | DL7: =IF(Köpek!$B7="","",IF(Köpek!$C7="","",Köpek!$C7*BL7)) -> 7.208 | DM7: =IF(Köpek!$B7="","",IF(Köpek!$C7="","",Köpek!$C7*BM7)) -> 0 | DN7: =IF(Köpek!$B7="","",IF(Köpek!$C7="","",Köpek!$C7*BN7)) -> 0.008 | DO7: =IF(Köpek!$B7="","",IF(Köpek!$C7="","",Köpek!$C7*BO7)) -> 0.124 | DP7: =IF(Köpek!$B7="","",IF(Köpek!$C7="","",Köpek!$C7*BP7)) -> 0.052 | DQ7: =IF(Köpek!$B7="","",IF(Köpek!$C7="","",Köpek!$C7*BQ7)) -> 0.064 | DR7: =IF(Köpek!$B7="","",IF(Köpek!$C7="","",Köpek!$C7*BR7)) -> 0.88 | DS7: =IF(Köpek!$B7="","",IF(Köpek!$C7="","",Köpek!$C7*BS7)) -> 0.3 | DT7: =IF(Köpek!$B7="","",IF(Köpek!$C7="","",Köpek!$C7*BT7*1000)) -> 0 | DU7: =IF(Köpek!$B7="","",IF(Köpek!$C7="","",Köpek!$C7*BU7*1000)) -> 10 | DV7: =IF(Köpek!$B7="","",IF(Köpek!$C7="","",Köpek!$C7*BV7)) -> 0 | DW7: =IF(Köpek!$B7="","",IF(Köpek!$C7="","",Köpek!$C7*BW7*10)) -> 8.016 | DX7: =IF(Köpek!$B7="","",IF(Köpek!$C7="","",Köpek!$C7*BX7*10)) -> 2.036 | DY7: =IF(Köpek!$B7="","",IF(Köpek!$C7="","",Köpek!$C7*BY7*10)) -> 0.32 | DZ7: =IF(Köpek!$B7="","",IF(Köpek!$C7="","",Köpek!$C7*BZ7*10)) -> 2.8 | EA7: =IF(Köpek!$B7="","",IF(Köpek!$C7="","",Köpek!$C7*CA7*10)) -> 1.88 | EB7: =IF(Köpek!$B7="","",IF(Köpek!$C7="","",Köpek!$C7*CB7*10)) -> 0.72 | EC7: =IF(Köpek!$B7="","",IF(Köpek!$C7="","",Köpek!$C7*CC7)) -> 1.6 | EE7: Balık Çözünürleri,Yoğunlaştırılmış | EF7: 50 | EG7: 31.5 | EH7: 10.416 | EI7: 0.837 | EJ7: 17.856 | EK7: 2.99181 | EL7: 2.99181 | EM7: 3.255 | EP7: 0.3627 | ES7: 1.63 | ET7: 1.54 | EU7: 1.09 | EV7: 1.94 | EW7: 1.85 | EX7: 0.7 | EY7: 0.39 | EZ7: 1.07 | FA7: 0.5 | FB7: 0.9 | FC7: 0.33 | FE7: 1.26 | FF7: 0.3999 | FG7: 1.0974 | FI7: 0.0558 | FJ7: 2.9946 | FK7: 4.3431 | FN7: 85.56 | FP7: 413.85 | FQ7: 25.11 | FS7: 80.91 | FV7: 0.372 | FW7: 325.5 | FX7: 65.844 | FY7: 23.436 | FZ7: 9.3 | GA7: 22.506 | GB7: 0.93651 | GC7: 660 | GJ7: 150 | GK7: EK | GO7: hafta | GT7: En çok | GU7: =CONCATENATE(GU11,GU15) -> 10 | GW7: Alman kısa tüylü pointeri | GX7: 20 | GY7: 32 | GZ7: 26 | HA7: İri | HB7: 12-14 | HC7: 25-32 | HD7: 20-27 | HR7: hafta | HT7: American Ringtail | HU7: 4.3
A8: =Köpek!A8 -> 2 | B8: =Köpek!B8 -> Havuç, çiğ | C8: =Köpek!C8 -> 0.02 | D8: Karbonhidrat, g | F8: =DZ1 -> 85.5776 | H8: =(F8*100)/(C2*1000) -> 26.53568992 | I8: 59.74700017 | J8: =F8*100/$F$5 -> 13.75845659 | O8: Kaç hafta önce doğurdu? | P8: : | S8: 3 | AA8: 0.02 | AC8: Havuç, çiğ | AD8: 1 | AE8: 0.4 | AF8: 0.4 | AG8: 0.036 | AH8: 0.016 | AI8: 0.0345 | AJ8: 0.0095 | AK8: 0.0055 | AL8: 0.039 | AM8: 0.0375 | AN8: 0.028 | AO8: 0.017 | AP8: 0.033 | AQ8: 0.0095 | AR8: 0 | AS8: 0.0415 | AT8: 0.3 | AU8: 0.161 | AV8: 0.016 | AW8: 0 | AX8: 0.0395 | AY8: 0.1675 | AZ8: 0.0345 | BA8: 0.032 | BB8: 0.012 | BC8: 0.0675 | BD8: 0.3115 | BE8: 0 | BF8: 3.5 | BG8: 0.18 | BH8: 2.35 | BI8: 2.3 | BJ8: 0.002 | BK8: 0.015 | BL8: 12937 | BM8: 0 | BN8: 6.25 | BO8: 0.75 | BP8: 0.725 | BQ8: 1.095 | BR8: 10 | BS8: 2.9 | BT8: 0 | BU8: 0.28 | BV8: 88 | BW8: 11.6 | BX8: 2.05 | BY8: 0.9 | BZ8: 9.45 | CA8: 5.4 | CB8: 0.7 | CC8: 1.2 | CE8: =IF(Köpek!$B8="","",IF(Köpek!$C8="","",Köpek!$C8*AD8*10)) -> 0.2 | CF8: =IF(Köpek!$B8="","",IF(Köpek!$C8="","", IF(KKSecim="Köpek", Köpek!$C8*AE8*1000, Köpek!$C8*AF8*1000) ) ) -> 8 | CG8: =IF(Köpek!$B8="","",IF(Köpek!$C8="","",Köpek!$C8*AG8*10)) -> 0.0072 | CH8: =IF(Köpek!$B8="","",IF(Köpek!$C8="","",Köpek!$C8*AH8*10)) -> 0.0032 | CI8: =IF(Köpek!$B8="","",IF(Köpek!$C8="","",Köpek!$C8*AI8*10)) -> 0.0069 | CJ8: =IF(Köpek!$B8="","",IF(Köpek!$C8="","",Köpek!$C8*AJ8*10)) -> 0.0019 | CK8: =IF(Köpek!$B8="","",IF(Köpek!$C8="","",Köpek!$C8*AK8*10)) -> 0.0011 | CL8: =IF(Köpek!$B8="","",IF(Köpek!$C8="","",Köpek!$C8*AL8*10)) -> 0.0078 | CM8: =IF(Köpek!$B8="","",IF(Köpek!$C8="","",Köpek!$C8*AM8*10)) -> 0.0075 | CN8: =IF(Köpek!$B8="","",IF(Köpek!$C8="","",Köpek!$C8*AN8*10)) -> 0.0056 | CO8: =IF(Köpek!$B8="","",IF(Köpek!$C8="","",Köpek!$C8*AO8*10)) -> 0.0034 | CP8: =IF(Köpek!$B8="","",IF(Köpek!$C8="","",Köpek!$C8*AP8*10)) -> 0.0066 | CQ8: =IF(Köpek!$B8="","",IF(Köpek!$C8="","",Köpek!$C8*AQ8*10)) -> 0.0019 | CR8: =IF(Köpek!$B8="","",IF(Köpek!$C8="","",Köpek!$C8*AR8*10)) -> 0 | CS8: =IF(Köpek!$B8="","",IF(Köpek!$C8="","",Köpek!$C8*AS8*10)) -> 0.0083 | CT8: =IF(Köpek!$B8="","",IF(Köpek!$C8="","",Köpek!$C8*AT8*10)) -> 0.06 | CU8: =IF(Köpek!$B8="","",IF(Köpek!$C8="","",Köpek!$C8*AU8*10)) -> 0.0322 | CV8: =IF(Köpek!$B8="","",IF(Köpek!$C8="","",Köpek!$C8*AV8*10)) -> 0.0032 | CW8: =IF(Köpek!$B8="","",IF(Köpek!$C8="","",Köpek!$C8*AW8*10)) -> 0 | CX8: =IF(Köpek!$B8="","",IF(Köpek!$C8="","",Köpek!$C8*AX8*10)) -> 0.0079 | CY8: =IF(Köpek!$B8="","",IF(Köpek!$C8="","",Köpek!$C8*AY8*10)) -> 0.0335 | CZ8: =IF(Köpek!$B8="","",IF(Köpek!$C8="","",Köpek!$C8*AZ8*10)) -> 0.0069 | DA8: =IF(Köpek!$B8="","",IF(Köpek!$C8="","",Köpek!$C8*BA8*10)) -> 0.0064 | DB8: =IF(Köpek!$B8="","",IF(Köpek!$C8="","",Köpek!$C8*BB8*10000)) -> 2.4 | DC8: =IF(Köpek!$B8="","",IF(Köpek!$C8="","",Köpek!$C8*BC8*10000)) -> 13.5 | DD8: =IF(Köpek!$B8="","",IF(Köpek!$C8="","",Köpek!$C8*BD8*10)) -> 0.0623 | DE8: =IF(Köpek!$B8="","",IF(Köpek!$C8="","",Köpek!$C8*BE8*10000)) -> 0 | DF8: =IF(Köpek!$B8="","",IF(Köpek!$C8="","",Köpek!$C8*BF8)) -> 0.07 | DG8: =IF(Köpek!$B8="","",IF(Köpek!$C8="","",Köpek!$C8*BG8)) -> 0.0036 | DH8: =IF(Köpek!$B8="","",IF(Köpek!$C8="","",Köpek!$C8*BH8)) -> 0.047 | DI8: =IF(Köpek!$B8="","",IF(Köpek!$C8="","",Köpek!$C8*BI8)) -> 0.046 | DJ8: =IF(Köpek!$B8="","",IF(Köpek!$C8="","",Köpek!$C8*BJ8*1000)) -> 0.04 | DK8: =IF(Köpek!$B8="","",IF(Köpek!$C8="","",Köpek!$C8*BK8)) -> 0.0003 | DL8: =IF(Köpek!$B8="","",IF(Köpek!$C8="","",Köpek!$C8*BL8)) -> 258.74 | DM8: =IF(Köpek!$B8="","",IF(Köpek!$C8="","",Köpek!$C8*BM8)) -> 0 | DN8: =IF(Köpek!$B8="","",IF(Köpek!$C8="","",Köpek!$C8*BN8)) -> 0.125 | DO8: =IF(Köpek!$B8="","",IF(Köpek!$C8="","",Köpek!$C8*BO8)) -> 0.015 | DP8: =IF(Köpek!$B8="","",IF(Köpek!$C8="","",Köpek!$C8*BP8)) -> 0.0145 | DQ8: =IF(Köpek!$B8="","",IF(Köpek!$C8="","",Köpek!$C8*BQ8)) -> 0.0219 | DR8: =IF(Köpek!$B8="","",IF(Köpek!$C8="","",Köpek!$C8*BR8)) -> 0.2 | DS8: =IF(Köpek!$B8="","",IF(Köpek!$C8="","",Köpek!$C8*BS8)) -> 0.058 | DT8: =IF(Köpek!$B8="","",IF(Köpek!$C8="","",Köpek!$C8*BT8*1000)) -> 0 | DU8: =IF(Köpek!$B8="","",IF(Köpek!$C8="","",Köpek!$C8*BU8*1000)) -> 5.6 | DV8: =IF(Köpek!$B8="","",IF(Köpek!$C8="","",Köpek!$C8*BV8)) -> 1.76 | DW8: =IF(Köpek!$B8="","",IF(Köpek!$C8="","",Köpek!$C8*BW8*10)) -> 2.32 | DX8: =IF(Köpek!$B8="","",IF(Köpek!$C8="","",Köpek!$C8*BX8*10)) -> 0.41 | DY8: =IF(Köpek!$B8="","",IF(Köpek!$C8="","",Köpek!$C8*BY8*10)) -> 0.18 | DZ8: =IF(Köpek!$B8="","",IF(Köpek!$C8="","",Köpek!$C8*BZ8*10)) -> 1.89 | EA8: =IF(Köpek!$B8="","",IF(Köpek!$C8="","",Köpek!$C8*CA8*10)) -> 1.08 | EB8: =IF(Köpek!$B8="","",IF(Köpek!$C8="","",Köpek!$C8*CB8*10)) -> 0.14 | EC8: =IF(Köpek!$B8="","",IF(Köpek!$C8="","",Köpek!$C8*CC8)) -> 0.024 | EE8: Balık,Alabalık | EF8: 28.6 | EG8: 20.87 | EH8: 6.6 | EI8: 0 | EJ8: 1.2 | EK8: 1.48 | EL8: 1.48 | EM8: 0 | EN8: 0 | EO8: 0 | EP8: 0.175 | EQ8: 1.068 | ES8: 1.07 | ET8: 0.53 | EU8: 0.82 | EV8: 1.45 | EW8: 1.64 | EX8: 0.53 | EY8: 0.19 | EZ8: 0.7 | FA8: 0.6 | FB8: 0.78 | FC8: 0.2 | FD8: 0.126 | FE8: 0.92 | FF8: 0.043 | FG8: 0.245 | FI8: 0.022 | FJ8: 0.361 | FK8: 0.052 | FN8: 2 | FO8: 0.6 | FP8: 2.7 | FQ8: 9 | FR8: 0.126 | FS8: 7 | FU8: 650 | FV8: 0.13 | FW8: 45 | FX8: 19 | FY8: 3 | FZ8: 4 | GA8: 2 | GB8: 0.078 | GC8: 171 | GE8: 2 | GF8: 1.1 | GG8: 1.5 | GH8: 0.175 | GI8: 1.068 | GJ8: 150 | GK8: EL | GO8: İnaktif | GP8: Aktif | GW8: Alman kurdu | GX8: 35 | GY8: 40 | GZ8: 37.5 | HA8: İri | HB8: 10-12 | HC8: 34-43 | HD8: 34-43 | HQ8: hafta | HT8: American SH | HU8: 4.8
A9: =Köpek!A9 -> 2 | B9: =Köpek!B9 -> Pirinç, beyaz, çiğ | C9: =Köpek!C9 -> 0.1 | D9: =CZ2 -> Kalsiyum, g | E9: =Köpek!E9 -> 0.6219193267 | F9: =CZ1 -> 0.84507 | G9: =IF(E9=0,"", IF(F9<E9*0.99,"EKSİK", IF(F9>E9*1.2,"FAZLA", "TAMAM")) ) -> FAZLA | H9: =(F9*100)/(C2*1000) -> 0.2620372093 | I9: 0.5899954829 | J9: 0.1358633441 | O9: Gebelik süresi, hafta | P9: : | Y9: Tipi | AA9: 0.1 | AC9: Pirinç, beyaz, çiğ | AD9: 6.61 | AE9: 3.58 | AF9: 3.58 | AG9: 0.52 | AH9: 0.15 | AI9: 0.24 | AJ9: 0.14 | AK9: 0.11 | AL9: 0.49 | AM9: 0.21 | AN9: 0.32 | AO9: 0.31 | AP9: 0.21 | AQ9: 0.07 | AR9: 0 | AS9: 0.35 | AT9: 0.58 | AU9: 0.114 | AV9: 0.024 | AW9: 0.5 | AX9: 0.1 | AY9: 0.1 | AZ9: 0.003 | BA9: 0.108 | BB9: 0.023 | BC9: 0.001 | BD9: 0.076 | BE9: 0 | BF9: 8 | BG9: 2 | BH9: 11.6 | BI9: 11 | BJ9: 0.025 | BK9: 0.2904 | BL9: 40 | BM9: 0 | BN9: 1.3 | BO9: 1 | BP9: 0.5 | BQ9: 1.5 | BR9: 16 | BS9: 13.4 | BT9: 0 | BU9: 0.09 | BV9: 58 | BW9: 87.11 | BX9: 2.4 | BY9: 0.58 | BZ9: 79.34 | CA9: 0 | CB9: 75 | CC9: 12 | CE9: =IF(Köpek!$B9="","",IF(Köpek!$C9="","",Köpek!$C9*AD9*10)) -> 6.61 | CF9: =IF(Köpek!$B9="","",IF(Köpek!$C9="","", IF(KKSecim="Köpek", Köpek!$C9*AE9*1000, Köpek!$C9*AF9*1000) ) ) -> 358 | CG9: =IF(Köpek!$B9="","",IF(Köpek!$C9="","",Köpek!$C9*AG9*10)) -> 0.52 | CH9: =IF(Köpek!$B9="","",IF(Köpek!$C9="","",Köpek!$C9*AH9*10)) -> 0.15 | CI9: =IF(Köpek!$B9="","",IF(Köpek!$C9="","",Köpek!$C9*AI9*10)) -> 0.24 | CJ9: =IF(Köpek!$B9="","",IF(Köpek!$C9="","",Köpek!$C9*AJ9*10)) -> 0.14 | CK9: =IF(Köpek!$B9="","",IF(Köpek!$C9="","",Köpek!$C9*AK9*10)) -> 0.11 | CL9: =IF(Köpek!$B9="","",IF(Köpek!$C9="","",Köpek!$C9*AL9*10)) -> 0.49 | CM9: =IF(Köpek!$B9="","",IF(Köpek!$C9="","",Köpek!$C9*AM9*10)) -> 0.21 | CN9: =IF(Köpek!$B9="","",IF(Köpek!$C9="","",Köpek!$C9*AN9*10)) -> 0.32 | CO9: =IF(Köpek!$B9="","",IF(Köpek!$C9="","",Köpek!$C9*AO9*10)) -> 0.31 | CP9: =IF(Köpek!$B9="","",IF(Köpek!$C9="","",Köpek!$C9*AP9*10)) -> 0.21 | CQ9: =IF(Köpek!$B9="","",IF(Köpek!$C9="","",Köpek!$C9*AQ9*10)) -> 0.07 | CR9: =IF(Köpek!$B9="","",IF(Köpek!$C9="","",Köpek!$C9*AR9*10)) -> 0 | CS9: =IF(Köpek!$B9="","",IF(Köpek!$C9="","",Köpek!$C9*AS9*10)) -> 0.35 | CT9: =IF(Köpek!$B9="","",IF(Köpek!$C9="","",Köpek!$C9*AT9*10)) -> 0.58 | CU9: =IF(Köpek!$B9="","",IF(Köpek!$C9="","",Köpek!$C9*AU9*10)) -> 0.114 | CV9: =IF(Köpek!$B9="","",IF(Köpek!$C9="","",Köpek!$C9*AV9*10)) -> 0.024 | CW9: =IF(Köpek!$B9="","",IF(Köpek!$C9="","",Köpek!$C9*AW9*10)) -> 0.5 | CX9: =IF(Köpek!$B9="","",IF(Köpek!$C9="","",Köpek!$C9*AX9*10)) -> 0.1 | CY9: =IF(Köpek!$B9="","",IF(Köpek!$C9="","",Köpek!$C9*AY9*10)) -> 0.1 | CZ9: =IF(Köpek!$B9="","",IF(Köpek!$C9="","",Köpek!$C9*AZ9*10)) -> 0.003 | DA9: =IF(Köpek!$B9="","",IF(Köpek!$C9="","",Köpek!$C9*BA9*10)) -> 0.108 | DB9: =IF(Köpek!$B9="","",IF(Köpek!$C9="","",Köpek!$C9*BB9*10000)) -> 23 | DC9: =IF(Köpek!$B9="","",IF(Köpek!$C9="","",Köpek!$C9*BC9*10000)) -> 1 | DD9: =IF(Köpek!$B9="","",IF(Köpek!$C9="","",Köpek!$C9*BD9*10)) -> 0.076 | DE9: =IF(Köpek!$B9="","",IF(Köpek!$C9="","",Köpek!$C9*BE9*10000)) -> 0 | DF9: =IF(Köpek!$B9="","",IF(Köpek!$C9="","",Köpek!$C9*BF9)) -> 0.8 | DG9: =IF(Köpek!$B9="","",IF(Köpek!$C9="","",Köpek!$C9*BG9)) -> 0.2 | DH9: =IF(Köpek!$B9="","",IF(Köpek!$C9="","",Köpek!$C9*BH9)) -> 1.16 | DI9: =IF(Köpek!$B9="","",IF(Köpek!$C9="","",Köpek!$C9*BI9)) -> 1.1 | DJ9: =IF(Köpek!$B9="","",IF(Köpek!$C9="","",Köpek!$C9*BJ9*1000)) -> 2.5 | DK9: =IF(Köpek!$B9="","",IF(Köpek!$C9="","",Köpek!$C9*BK9)) -> 0.02904 | DL9: =IF(Köpek!$B9="","",IF(Köpek!$C9="","",Köpek!$C9*BL9)) -> 4 | DM9: =IF(Köpek!$B9="","",IF(Köpek!$C9="","",Köpek!$C9*BM9)) -> 0 | DN9: =IF(Köpek!$B9="","",IF(Köpek!$C9="","",Köpek!$C9*BN9)) -> 0.13 | DO9: =IF(Köpek!$B9="","",IF(Köpek!$C9="","",Köpek!$C9*BO9)) -> 0.1 | DP9: =IF(Köpek!$B9="","",IF(Köpek!$C9="","",Köpek!$C9*BP9)) -> 0.05 | DQ9: =IF(Köpek!$B9="","",IF(Köpek!$C9="","",Köpek!$C9*BQ9)) -> 0.15 | DR9: =IF(Köpek!$B9="","",IF(Köpek!$C9="","",Köpek!$C9*BR9)) -> 1.6 | DS9: =IF(Köpek!$B9="","",IF(Köpek!$C9="","",Köpek!$C9*BS9)) -> 1.34 | DT9: =IF(Köpek!$B9="","",IF(Köpek!$C9="","",Köpek!$C9*BT9*1000)) -> 0 | DU9: =IF(Köpek!$B9="","",IF(Köpek!$C9="","",Köpek!$C9*BU9*1000)) -> 9 | DV9: =IF(Köpek!$B9="","",IF(Köpek!$C9="","",Köpek!$C9*BV9)) -> 5.8 | DW9: =IF(Köpek!$B9="","",IF(Köpek!$C9="","",Köpek!$C9*BW9*10)) -> 87.11 | DX9: =IF(Köpek!$B9="","",IF(Köpek!$C9="","",Köpek!$C9*BX9*10)) -> 2.4 | DY9: =IF(Köpek!$B9="","",IF(Köpek!$C9="","",Köpek!$C9*BY9*10)) -> 0.58 | DZ9: =IF(Köpek!$B9="","",IF(Köpek!$C9="","",Köpek!$C9*BZ9*10)) -> 79.34 | EA9: =IF(Köpek!$B9="","",IF(Köpek!$C9="","",Köpek!$C9*CA9*10)) -> 0 | EB9: =IF(Köpek!$B9="","",IF(Köpek!$C9="","",Köpek!$C9*CB9*10)) -> 75 | EC9: =IF(Köpek!$B9="","",IF(Köpek!$C9="","",Köpek!$C9*CC9)) -> 1.2 | EE9: Balık, Kalkan | EF9: 21.7 | EG9: 16.4 | EH9: 1.4 | EJ9: 1 | EK9: 0.9 | EL9: 0.9 | EQ9: 0.037 | ES9: 0.971 | ET9: 0.472 | EU9: 0.761 | EV9: 1.34 | EW9: 1.5 | EX9: 0.472 | EY9: 0.176 | EZ9: 0.63 | FA9: 0.551 | FB9: 0.708 | FC9: 0.184 | FD9: 0.126 | FE9: 0.84 | FF9: 0.049 | FG9: 0.203 | FI9: 0.023 | FJ9: 0.33 | FK9: 0.07 | FO9: 0.35 | FP9: 2.5 | FV9: 0.16 | FW9: 61 | FX9: 0 | FY9: 0.8 | FZ9: 0.36 | GA9: 1.52 | GB9: 0.008 | GC9: 117 | GE9: 0 | GF9: 0.258 | GG9: 0.465 | GH9: 0 | GI9: 0.465 | GJ9: 300 | GK9: EM | GO9: hafta | GS9: KÖPEK | GT9: Ortalama | GU9: =IF(ISERROR(VLOOKUP(SecilenIrk,Hesap!GW3:GZ110,4,FALSE))=TRUE,"",VLOOKUP(SecilenIrk,Hesap!GW3:GZ110,4,FALSE)) -> 8 | GW9: Apso | GX9: 5.9 | GY9: 6.8 | GZ9: 6.35 | HA9: Küçük | HB9: 12-14 | HC9: 6-7 | HD9: 6-7 | HF9: Kalsiyum, g | HG9: =IF(HI$2=1,HH9, IF(HI$2=2,HI9, IF(HI$2=3,HJ9, IF(HI$2=4,HK9, "YOK")))) * HG$5/1000 -> 0.6219193267 | HH9: 3 | HI9: 3 | HJ9: 1 | HK9: 2 | HT9: American Wirehair | HU9: 4.5 | HW9: Kalsiyum, g | HX9: =IF(HX$2=1,HY9, IF(HX$2=2,HZ9, IF(HX$2=3,IA9, IF(HX$2=4,IB9, "YOK")))) * HX$5/1000 -> 1.188948561 | HY9: 2 | HZ9: 0.72 | IA9: 2.7 | IB9: 2.7
A10: =Köpek!A10 -> 3 | B10: =Köpek!B10 -> Kemik unu | C10: =Köpek!C10 -> 0.002 | D10: =DA2 -> Fosfor, g | E10: =Köpek!E10 -> 0.466439495 | F10: =DA1 -> 0.64678 | G10: =IF(E10=0,"", IF(F10<E10*0.99,"EKSİK", IF(F10>E10*1.1,"FAZLA", "TAMAM")) ) -> FAZLA | H10: =(F10*100)/(C2*1000) -> 0.200551938 | I10: 0.4515570052 | J10: 0.1039839228 | O10: Hareketlilik durumu | P10: : | Q10: Aktif | S10: İnaktif | Y10: Yavru | AA10: 0.002 | AC10: Kemik unu | AD10: 8.15 | AE10: 0.9 | AF10: 0.9 | AG10: 0 | AH10: 0 | AI10: 0 | AJ10: 0 | AK10: 0 | AL10: 0 | AM10: 0 | AN10: 0 | AO10: 0 | AP10: 0 | AQ10: 0 | AR10: 0 | AS10: 0 | AT10: 3.3 | AU10: 0 | AV10: 0 | AW10: 0 | AX10: 0 | AY10: 0 | AZ10: 30.71 | BA10: 12.86 | BB10: 0.62 | BC10: 0.39 | BD10: 0.18 | BE10: 0 | BF10: 756.6 | BG10: 13.58 | BH10: 331.74 | BI10: 32.98 | BJ10: 0 | BK10: 0 | BL10: 0 | BM10: 0 | BN10: 0 | BO10: 0.388 | BP10: 0.873 | BQ10: 0 | BR10: 3.88 | BS10: 2.425 | BT10: 0 | BU10: 0 | BV10: 0 | BW10: 97 | BX10: 2.04 | BY10: 70.42 | BZ10: 10.38 | CA10: 0 | CB10: 0 | CC10: 75 | CE10: =IF(Köpek!$B10="","",IF(Köpek!$C10="","",Köpek!$C10*AD10*10)) -> 0.163 | CF10: =IF(Köpek!$B10="","",IF(Köpek!$C10="","", IF(KKSecim="Köpek", Köpek!$C10*AE10*1000, Köpek!$C10*AF10*1000) ) ) -> 1.8 | CG10: =IF(Köpek!$B10="","",IF(Köpek!$C10="","",Köpek!$C10*AG10*10)) -> 0 | CH10: =IF(Köpek!$B10="","",IF(Köpek!$C10="","",Köpek!$C10*AH10*10)) -> 0 | CI10: =IF(Köpek!$B10="","",IF(Köpek!$C10="","",Köpek!$C10*AI10*10)) -> 0 | CJ10: =IF(Köpek!$B10="","",IF(Köpek!$C10="","",Köpek!$C10*AJ10*10)) -> 0 | CK10: =IF(Köpek!$B10="","",IF(Köpek!$C10="","",Köpek!$C10*AK10*10)) -> 0 | CL10: =IF(Köpek!$B10="","",IF(Köpek!$C10="","",Köpek!$C10*AL10*10)) -> 0 | CM10: =IF(Köpek!$B10="","",IF(Köpek!$C10="","",Köpek!$C10*AM10*10)) -> 0 | CN10: =IF(Köpek!$B10="","",IF(Köpek!$C10="","",Köpek!$C10*AN10*10)) -> 0 | CO10: =IF(Köpek!$B10="","",IF(Köpek!$C10="","",Köpek!$C10*AO10*10)) -> 0 | CP10: =IF(Köpek!$B10="","",IF(Köpek!$C10="","",Köpek!$C10*AP10*10)) -> 0 | CQ10: =IF(Köpek!$B10="","",IF(Köpek!$C10="","",Köpek!$C10*AQ10*10)) -> 0 | CR10: =IF(Köpek!$B10="","",IF(Köpek!$C10="","",Köpek!$C10*AR10*10)) -> 0 | CS10: =IF(Köpek!$B10="","",IF(Köpek!$C10="","",Köpek!$C10*AS10*10)) -> 0 | CT10: =IF(Köpek!$B10="","",IF(Köpek!$C10="","",Köpek!$C10*AT10*10)) -> 0.066 | CU10: =IF(Köpek!$B10="","",IF(Köpek!$C10="","",Köpek!$C10*AU10*10)) -> 0 | CV10: =IF(Köpek!$B10="","",IF(Köpek!$C10="","",Köpek!$C10*AV10*10)) -> 0 | CW10: =IF(Köpek!$B10="","",IF(Köpek!$C10="","",Köpek!$C10*AW10*10)) -> 0 | CX10: =IF(Köpek!$B10="","",IF(Köpek!$C10="","",Köpek!$C10*AX10*10)) -> 0 | CY10: =IF(Köpek!$B10="","",IF(Köpek!$C10="","",Köpek!$C10*AY10*10)) -> 0 | CZ10: =IF(Köpek!$B10="","",IF(Köpek!$C10="","",Köpek!$C10*AZ10*10)) -> 0.6142 | DA10: =IF(Köpek!$B10="","",IF(Köpek!$C10="","",Köpek!$C10*BA10*10)) -> 0.2572 | DB10: =IF(Köpek!$B10="","",IF(Köpek!$C10="","",Köpek!$C10*BB10*10000)) -> 12.4 | DC10: =IF(Köpek!$B10="","",IF(Köpek!$C10="","",Köpek!$C10*BC10*10000)) -> 7.8 | DD10: =IF(Köpek!$B10="","",IF(Köpek!$C10="","",Köpek!$C10*BD10*10)) -> 0.0036 | DE10: =IF(Köpek!$B10="","",IF(Köpek!$C10="","",Köpek!$C10*BE10*10000)) -> 0 | DF10: =IF(Köpek!$B10="","",IF(Köpek!$C10="","",Köpek!$C10*BF10)) -> 1.5132 | DG10: =IF(Köpek!$B10="","",IF(Köpek!$C10="","",Köpek!$C10*BG10)) -> 0.02716 | DH10: =IF(Köpek!$B10="","",IF(Köpek!$C10="","",Köpek!$C10*BH10)) -> 0.66348 | DI10: =IF(Köpek!$B10="","",IF(Köpek!$C10="","",Köpek!$C10*BI10)) -> 0.06596 | DJ10: =IF(Köpek!$B10="","",IF(Köpek!$C10="","",Köpek!$C10*BJ10*1000)) -> 0 | DK10: =IF(Köpek!$B10="","",IF(Köpek!$C10="","",Köpek!$C10*BK10)) -> 0 | DL10: =IF(Köpek!$B10="","",IF(Köpek!$C10="","",Köpek!$C10*BL10)) -> 0 | DM10: =IF(Köpek!$B10="","",IF(Köpek!$C10="","",Köpek!$C10*BM10)) -> 0 | DN10: =IF(Köpek!$B10="","",IF(Köpek!$C10="","",Köpek!$C10*BN10)) -> 0 | DO10: =IF(Köpek!$B10="","",IF(Köpek!$C10="","",Köpek!$C10*BO10)) -> 0.000776 | DP10: =IF(Köpek!$B10="","",IF(Köpek!$C10="","",Köpek!$C10*BP10)) -> 0.001746 | DQ10: =IF(Köpek!$B10="","",IF(Köpek!$C10="","",Köpek!$C10*BQ10)) -> 0 | DR10: =IF(Köpek!$B10="","",IF(Köpek!$C10="","",Köpek!$C10*BR10)) -> 0.00776 | DS10: =IF(Köpek!$B10="","",IF(Köpek!$C10="","",Köpek!$C10*BS10)) -> 0.00485 | DT10: =IF(Köpek!$B10="","",IF(Köpek!$C10="","",Köpek!$C10*BT10*1000)) -> 0 | DU10: =IF(Köpek!$B10="","",IF(Köpek!$C10="","",Köpek!$C10*BU10*1000)) -> 0 | DV10: =IF(Köpek!$B10="","",IF(Köpek!$C10="","",Köpek!$C10*BV10)) -> 0 | DW10: =IF(Köpek!$B10="","",IF(Köpek!$C10="","",Köpek!$C10*BW10*10)) -> 1.94 | DX10: =IF(Köpek!$B10="","",IF(Köpek!$C10="","",Köpek!$C10*BX10*10)) -> 0.0408 | DY10: =IF(Köpek!$B10="","",IF(Köpek!$C10="","",Köpek!$C10*BY10*10)) -> 1.4084 | DZ10: =IF(Köpek!$B10="","",IF(Köpek!$C10="","",Köpek!$C10*BZ10*10)) -> 0.2076 | EA10: =IF(Köpek!$B10="","",IF(Köpek!$C10="","",Köpek!$C10*CA10*10)) -> 0 | EB10: =IF(Köpek!$B10="","",IF(Köpek!$C10="","",Köpek!$C10*CB10*10)) -> 0 | EC10: =IF(Köpek!$B10="","",IF(Köpek!$C10="","",Köpek!$C10*CC10)) -> 0.15 | EE10: Balık, Morina | EF10: 19.3 | EG10: 17.6 | EH10: 0.6 | EJ10: 1.2 | EK10: 0.75 | EL10: 0.75 | EP10: 0.001 | EQ10: 0.008 | ES10: 1.08 | ET10: 0.359 | EU10: 0.869 | EV10: 1.35 | EW10: 1.65 | EX10: 0.569 | EY10: 0.129 | EZ10: 0.689 | FA10: 0.659 | FB10: 0.749 | FC10: 0.171 | FD10: 0.126 | FE10: 0.959 | FF10: 0.015 | FG10: 0.2 | FI10: 0.025 | FJ10: 0.338 | FK10: 0.076 | FN10: 0.19 | FO10: 2.53 | FP10: 2 | FQ10: 0.2 | FR10: 0.287 | FS10: 3.8 | FT10: 0.011 | FV10: 0.16 | FW10: 20 | FX10: 1.4 | FY10: 0.4 | FZ10: 0.5 | GA10: 2.21 | GB10: 0.0111 | GD10: 10 | GE10: 4.5 | GF10: 0.102 | GG10: 0.24 | GH10: 0.001 | GI10: 0.239 | GJ10: 350 | GK10: EN | GT10: En az | GU10: =IF(ISERROR(VLOOKUP(SecilenIrk,Hesap!GW3:GZ110,2,FALSE))=TRUE,"",VLOOKUP(SecilenIrk,Hesap!GW3:GZ110,2,FALSE)) -> 6 | GW10: Avustralya çoban köpeği | GX10: 18 | GY10: 29 | GZ10: 23.5 | HA10: İri | HB10: 12-15 | HC10: 23-29 | HD10: 18-25 | HF10: Fosfor, g | HG10: =IF(HI$2=1,HH10, IF(HI$2=2,HI10, IF(HI$2=3,HJ10, IF(HI$2=4,HK10, "YOK")))) * HG$5/1000 -> 0.466439495 | HH10: 2.5 | HI10: 2.5 | HJ10: 0.75 | HK10: 1.25 | HT10: Balinese | HU10: 3.9 | HW10: Fosfor, g | HX10: 0.8366675057 | HY10: 1.8 | HZ10: 0.64 | IA10: 1.9 | IB10: 1.9
A11: =Köpek!A11 -> 3 | B11: =Köpek!B11 -> Vit-Min. (TheraVet ProCure) | C11: =Köpek!C11 -> 0 | D11: Ca/P oranı | E11: =Köpek!E11 -> 1 | F11: =F9/F10 -> 1.30658029 | G11: =IF(E11=0,"", IF(F11<E11*0.99,"EKSİK", IF(F11>E11*1.5,"FAZLA", "TAMAM")) ) -> TAMAM | O11: Mama tipi | P11: : | Q11: Ev yemeği | S11: =MamaTipi -> Ev yemeği | Y11: Yetişkin | AA11: 0 | AC11: Vit-Min. (TheraVet ProCure) | AD11: 0 | AE11: 0 | AF11: 0 | AG11: 0 | AH11: 0 | AI11: 0 | AJ11: 0 | AK11: 0 | AL11: 0 | AM11: 0 | AN11: 0 | AO11: 0 | AP11: 0 | AQ11: 0 | AR11: 0 | AS11: 0 | AT11: 0 | AU11: 0 | AV11: 0 | AW11: 0 | AX11: 0 | AY11: 0 | AZ11: 0.17 | BA11: 0 | BB11: 0 | BC11: 0 | BD11: 0 | BE11: 0 | BF11: 0 | BG11: 0 | BH11: 0 | BI11: 0 | BJ11: 0 | BK11: 0 | BL11: 0 | BM11: 0 | BN11: 0 | BO11: 0 | BP11: 0 | BQ11: 0 | BR11: 0 | BS11: 0 | BT11: 0 | BU11: 0 | BV11: 0 | BW11: 0 | BX11: 0 | BY11: 0 | BZ11: 0 | CA11: 0 | CB11: 0 | CC11: 25 | CE11: =IF(Köpek!$B11="","",IF(Köpek!$C11="","",Köpek!$C11*AD11*10)) ->  | CF11: =IF(Köpek!$B11="","",IF(Köpek!$C11="","", IF(KKSecim="Köpek", Köpek!$C11*AE11*1000, Köpek!$C11*AF11*1000) ) ) ->  | CG11: =IF(Köpek!$B11="","",IF(Köpek!$C11="","",Köpek!$C11*AG11*10)) ->  | CH11: =IF(Köpek!$B11="","",IF(Köpek!$C11="","",Köpek!$C11*AH11*10)) ->  | CI11: =IF(Köpek!$B11="","",IF(Köpek!$C11="","",Köpek!$C11*AI11*10)) ->  | CJ11: =IF(Köpek!$B11="","",IF(Köpek!$C11="","",Köpek!$C11*AJ11*10)) ->  | CK11: =IF(Köpek!$B11="","",IF(Köpek!$C11="","",Köpek!$C11*AK11*10)) ->  | CL11: =IF(Köpek!$B11="","",IF(Köpek!$C11="","",Köpek!$C11*AL11*10)) ->  | CM11: =IF(Köpek!$B11="","",IF(Köpek!$C11="","",Köpek!$C11*AM11*10)) ->  | CN11: =IF(Köpek!$B11="","",IF(Köpek!$C11="","",Köpek!$C11*AN11*10)) ->  | CO11: =IF(Köpek!$B11="","",IF(Köpek!$C11="","",Köpek!$C11*AO11*10)) ->  | CP11: =IF(Köpek!$B11="","",IF(Köpek!$C11="","",Köpek!$C11*AP11*10)) ->  | CQ11: =IF(Köpek!$B11="","",IF(Köpek!$C11="","",Köpek!$C11*AQ11*10)) ->  | CR11: =IF(Köpek!$B11="","",IF(Köpek!$C11="","",Köpek!$C11*AR11*10)) ->  | CS11: =IF(Köpek!$B11="","",IF(Köpek!$C11="","",Köpek!$C11*AS11*10)) ->  | CT11: =IF(Köpek!$B11="","",IF(Köpek!$C11="","",Köpek!$C11*AT11*10)) ->  | CU11: =IF(Köpek!$B11="","",IF(Köpek!$C11="","",Köpek!$C11*AU11*10)) ->  | CV11: =IF(Köpek!$B11="","",IF(Köpek!$C11="","",Köpek!$C11*AV11*10)) ->  | CW11: =IF(Köpek!$B11="","",IF(Köpek!$C11="","",Köpek!$C11*AW11*10)) ->  | CX11: =IF(Köpek!$B11="","",IF(Köpek!$C11="","",Köpek!$C11*AX11*10)) ->  | CY11: =IF(Köpek!$B11="","",IF(Köpek!$C11="","",Köpek!$C11*AY11*10)) ->  | CZ11: =IF(Köpek!$B11="","",IF(Köpek!$C11="","",Köpek!$C11*AZ11*10)) ->  | DA11: =IF(Köpek!$B11="","",IF(Köpek!$C11="","",Köpek!$C11*BA11*10)) ->  | DB11: =IF(Köpek!$B11="","",IF(Köpek!$C11="","",Köpek!$C11*BB11*10000)) ->  | DC11: =IF(Köpek!$B11="","",IF(Köpek!$C11="","",Köpek!$C11*BC11*10000)) ->  | DD11: =IF(Köpek!$B11="","",IF(Köpek!$C11="","",Köpek!$C11*BD11*10)) ->  | DE11: =IF(Köpek!$B11="","",IF(Köpek!$C11="","",Köpek!$C11*BE11*10000)) ->  | DF11: =IF(Köpek!$B11="","",IF(Köpek!$C11="","",Köpek!$C11*BF11)) ->  | DG11: =IF(Köpek!$B11="","",IF(Köpek!$C11="","",Köpek!$C11*BG11)) ->  | DH11: =IF(Köpek!$B11="","",IF(Köpek!$C11="","",Köpek!$C11*BH11)) ->  | DI11: =IF(Köpek!$B11="","",IF(Köpek!$C11="","",Köpek!$C11*BI11)) ->  | DJ11: =IF(Köpek!$B11="","",IF(Köpek!$C11="","",Köpek!$C11*BJ11*1000)) ->  | DK11: =IF(Köpek!$B11="","",IF(Köpek!$C11="","",Köpek!$C11*BK11)) ->  | DL11: =IF(Köpek!$B11="","",IF(Köpek!$C11="","",Köpek!$C11*BL11)) ->  | DM11: =IF(Köpek!$B11="","",IF(Köpek!$C11="","",Köpek!$C11*BM11)) ->  | DN11: =IF(Köpek!$B11="","",IF(Köpek!$C11="","",Köpek!$C11*BN11)) ->  | DO11: =IF(Köpek!$B11="","",IF(Köpek!$C11="","",Köpek!$C11*BO11)) ->  | DP11: =IF(Köpek!$B11="","",IF(Köpek!$C11="","",Köpek!$C11*BP11)) ->  | DQ11: =IF(Köpek!$B11="","",IF(Köpek!$C11="","",Köpek!$C11*BQ11)) ->  | DR11: =IF(Köpek!$B11="","",IF(Köpek!$C11="","",Köpek!$C11*BR11)) ->  | DS11: =IF(Köpek!$B11="","",IF(Köpek!$C11="","",Köpek!$C11*BS11)) ->  | DT11: =IF(Köpek!$B11="","",IF(Köpek!$C11="","",Köpek!$C11*BT11*1000)) ->  | DU11: =IF(Köpek!$B11="","",IF(Köpek!$C11="","",Köpek!$C11*BU11*1000)) ->  | DV11: =IF(Köpek!$B11="","",IF(Köpek!$C11="","",Köpek!$C11*BV11)) ->  | DW11: =IF(Köpek!$B11="","",IF(Köpek!$C11="","",Köpek!$C11*BW11*10)) ->  | DX11: =IF(Köpek!$B11="","",IF(Köpek!$C11="","",Köpek!$C11*BX11*10)) ->  | DY11: =IF(Köpek!$B11="","",IF(Köpek!$C11="","",Köpek!$C11*BY11*10)) ->  | DZ11: =IF(Köpek!$B11="","",IF(Köpek!$C11="","",Köpek!$C11*BZ11*10)) ->  | EA11: =IF(Köpek!$B11="","",IF(Köpek!$C11="","",Köpek!$C11*CA11*10)) ->  | EB11: =IF(Köpek!$B11="","",IF(Köpek!$C11="","",Köpek!$C11*CB11*10)) ->  | EC11: =IF(Köpek!$B11="","",IF(Köpek!$C11="","",Köpek!$C11*CC11)) ->  | EE11: Balık,Sazan | EF11: 23.69 | EG11: 17.83 | EH11: 5.6 | EI11: 0 | EJ11: 1.46 | EK11: 1.27 | EL11: 1.27 | EM11: 0 | EP11: 0.517 | EQ11: 0.704 | ES11: 1.24 | ET11: 0.61 | EU11: 0.96 | EV11: 1.69 | EW11: 1.91 | EX11: 0.62 | EY11: 0.22 | EZ11: 0.81 | FA11: 0.7 | FB11: 0.91 | FC11: 0.23 | FD11: 0.126 | FE11: 1.07 | FF11: 0.041 | FG11: 0.415 | FI11: 0.029 | FJ11: 0.333 | FK11: 0.049 | FN11: 1 | FO11: 0.6 | FP11: 12.4 | FQ11: 0.4 | FR11: 0.126 | FS11: 14.8 | FU11: 650 | FV11: 0.15 | FW11: 16 | FX11: 7 | FY11: 1 | FZ11: 1 | GA11: 2 | GB11: 0.0153 | GC11: 90 | GE11: 6 | GF11: 1.1 | GG11: 1.4 | GH11: 0.517 | GI11: 0.704 | GJ11: 200 | GK11: EO | GM11: Yavru sayısı, n | GN11: =IF(Q7<5,Q7,4) -> 0 | GT11: En çok | GU11: =IF(ISERROR(VLOOKUP(SecilenIrk,Hesap!GW3:GZ110,3,FALSE))=TRUE,"",VLOOKUP(SecilenIrk,Hesap!GW3:GZ110,3,FALSE)) -> 10 | GW11: Bassett Hound | GX11: 20 | GY11: 29 | GZ11: 24.5 | HA11: İri | HB11: 8-12 | HC11: 18-27 | HD11: 18-27 | HG11: 1 | HH11: 1 | HI11: 1 | HJ11: 1 | HK11: 1 | HM11: Enerji İhtiyacı | HN11: =IF(KediTipi="Yavru", HY2, IF(KediTipi="Yetişkin", HZ2, IF(KediTipi="Gebe dişi", IA2, IF(KediTipi="Emziren dişi",IB2,0))) ) -> 440.3513188 | HT11: Bambino | HU11: 3.9 | HX11: 1 | HY11: 1 | HZ11: 1 | IA11: 1 | IB11: 1
A12: =Köpek!A12 -> 4 | B12: =Köpek!B12 -> Ayçiçeği yağı | C12: =Köpek!C12 -> 0.01 | D12: =DB2 -> Magnezyum, mg | E12: =Köpek!E12 -> 74.6303192 | F12: =DB1 -> 86.81 | G12: =IF(E12=0,"", IF(F12<E12*0.99,"EKSİK", IF(F12>E12*1.5,"FAZLA", "TAMAM")) ) -> TAMAM | H12: =(F12/10)/(C2*1000) -> 0.02691782946 | I12: =H12*100/H$3 -> 0.06060741462 | J12: =F12*100/$F$5 -> 13.95659164 | U12: Mama seçimi | Y12: Gebe dişi | AA12: 0.01 | AC12: Ayçiçeği yağı | AD12: 0 | AE12: 8.92 | AF12: 8.92 | AG12: 0 | AH12: 0 | AI12: 0 | AJ12: 0 | AK12: 0 | AL12: 0 | AM12: 0 | AN12: 0 | AO12: 0 | AP12: 0 | AQ12: 0 | AR12: 0 | AS12: 0 | AT12: 100 | AU12: 51.389 | AV12: 0.1 | AW12: 0 | AX12: 9.5305 | AY12: 51.489 | AZ12: 0 | BA12: 0 | BB12: 0 | BC12: 0 | BD12: 0 | BE12: 0 | BF12: 0 | BG12: 0 | BH12: 0 | BI12: 0 | BJ12: 0 | BK12: 0 | BL12: 10.85 | BM12: 0 | BN12: 480.5 | BO12: 0 | BP12: 0 | BQ12: 0 | BR12: 0 | BS12: 0 | BT12: 0 | BU12: 0 | BV12: 0 | BW12: 100 | BX12: 0 | BY12: 0 | BZ12: 0 | CA12: 0 | CB12: 0 | CC12: 45 | CE12: =IF(Köpek!$B12="","",IF(Köpek!$C12="","",Köpek!$C12*AD12*10)) -> 0 | CF12: =IF(Köpek!$B12="","",IF(Köpek!$C12="","", IF(KKSecim="Köpek", Köpek!$C12*AE12*1000, Köpek!$C12*AF12*1000) ) ) -> 89.2 | CG12: =IF(Köpek!$B12="","",IF(Köpek!$C12="","",Köpek!$C12*AG12*10)) -> 0 | CH12: =IF(Köpek!$B12="","",IF(Köpek!$C12="","",Köpek!$C12*AH12*10)) -> 0 | CI12: =IF(Köpek!$B12="","",IF(Köpek!$C12="","",Köpek!$C12*AI12*10)) -> 0 | CJ12: =IF(Köpek!$B12="","",IF(Köpek!$C12="","",Köpek!$C12*AJ12*10)) -> 0 | CK12: =IF(Köpek!$B12="","",IF(Köpek!$C12="","",Köpek!$C12*AK12*10)) -> 0 | CL12: =IF(Köpek!$B12="","",IF(Köpek!$C12="","",Köpek!$C12*AL12*10)) -> 0 | CM12: =IF(Köpek!$B12="","",IF(Köpek!$C12="","",Köpek!$C12*AM12*10)) -> 0 | CN12: =IF(Köpek!$B12="","",IF(Köpek!$C12="","",Köpek!$C12*AN12*10)) -> 0 | CO12: =IF(Köpek!$B12="","",IF(Köpek!$C12="","",Köpek!$C12*AO12*10)) -> 0 | CP12: =IF(Köpek!$B12="","",IF(Köpek!$C12="","",Köpek!$C12*AP12*10)) -> 0 | CQ12: =IF(Köpek!$B12="","",IF(Köpek!$C12="","",Köpek!$C12*AQ12*10)) -> 0 | CR12: =IF(Köpek!$B12="","",IF(Köpek!$C12="","",Köpek!$C12*AR12*10)) -> 0 | CS12: =IF(Köpek!$B12="","",IF(Köpek!$C12="","",Köpek!$C12*AS12*10)) -> 0 | CT12: =IF(Köpek!$B12="","",IF(Köpek!$C12="","",Köpek!$C12*AT12*10)) -> 10 | CU12: =IF(Köpek!$B12="","",IF(Köpek!$C12="","",Köpek!$C12*AU12*10)) -> 5.1389 | CV12: =IF(Köpek!$B12="","",IF(Köpek!$C12="","",Köpek!$C12*AV12*10)) -> 0.01 | CW12: =IF(Köpek!$B12="","",IF(Köpek!$C12="","",Köpek!$C12*AW12*10)) -> 0 | CX12: =IF(Köpek!$B12="","",IF(Köpek!$C12="","",Köpek!$C12*AX12*10)) -> 0.95305 | CY12: =IF(Köpek!$B12="","",IF(Köpek!$C12="","",Köpek!$C12*AY12*10)) -> 5.1489 | CZ12: =IF(Köpek!$B12="","",IF(Köpek!$C12="","",Köpek!$C12*AZ12*10)) -> 0 | DA12: =IF(Köpek!$B12="","",IF(Köpek!$C12="","",Köpek!$C12*BA12*10)) -> 0 | DB12: =IF(Köpek!$B12="","",IF(Köpek!$C12="","",Köpek!$C12*BB12*10000)) -> 0 | DC12: =IF(Köpek!$B12="","",IF(Köpek!$C12="","",Köpek!$C12*BC12*10000)) -> 0 | DD12: =IF(Köpek!$B12="","",IF(Köpek!$C12="","",Köpek!$C12*BD12*10)) -> 0 | DE12: =IF(Köpek!$B12="","",IF(Köpek!$C12="","",Köpek!$C12*BE12*10000)) -> 0 | DF12: =IF(Köpek!$B12="","",IF(Köpek!$C12="","",Köpek!$C12*BF12)) -> 0 | DG12: =IF(Köpek!$B12="","",IF(Köpek!$C12="","",Köpek!$C12*BG12)) -> 0 | DH12: =IF(Köpek!$B12="","",IF(Köpek!$C12="","",Köpek!$C12*BH12)) -> 0 | DI12: =IF(Köpek!$B12="","",IF(Köpek!$C12="","",Köpek!$C12*BI12)) -> 0 | DJ12: =IF(Köpek!$B12="","",IF(Köpek!$C12="","",Köpek!$C12*BJ12*1000)) -> 0 | DK12: =IF(Köpek!$B12="","",IF(Köpek!$C12="","",Köpek!$C12*BK12)) -> 0 | DL12: =IF(Köpek!$B12="","",IF(Köpek!$C12="","",Köpek!$C12*BL12)) -> 0.1085 | DM12: =IF(Köpek!$B12="","",IF(Köpek!$C12="","",Köpek!$C12*BM12)) -> 0 | DN12: =IF(Köpek!$B12="","",IF(Köpek!$C12="","",Köpek!$C12*BN12)) -> 4.805 | DO12: =IF(Köpek!$B12="","",IF(Köpek!$C12="","",Köpek!$C12*BO12)) -> 0 | DP12: =IF(Köpek!$B12="","",IF(Köpek!$C12="","",Köpek!$C12*BP12)) -> 0 | DQ12: =IF(Köpek!$B12="","",IF(Köpek!$C12="","",Köpek!$C12*BQ12)) -> 0 | DR12: =IF(Köpek!$B12="","",IF(Köpek!$C12="","",Köpek!$C12*BR12)) -> 0 | DS12: =IF(Köpek!$B12="","",IF(Köpek!$C12="","",Köpek!$C12*BS12)) -> 0 | DT12: =IF(Köpek!$B12="","",IF(Köpek!$C12="","",Köpek!$C12*BT12*1000)) -> 0 | DU12: =IF(Köpek!$B12="","",IF(Köpek!$C12="","",Köpek!$C12*BU12*1000)) -> 0 | DV12: =IF(Köpek!$B12="","",IF(Köpek!$C12="","",Köpek!$C12*BV12)) -> 0 | DW12: =IF(Köpek!$B12="","",IF(Köpek!$C12="","",Köpek!$C12*BW12*10)) -> 10 | DX12: =IF(Köpek!$B12="","",IF(Köpek!$C12="","",Köpek!$C12*BX12*10)) -> 0 | DY12: =IF(Köpek!$B12="","",IF(Köpek!$C12="","",Köpek!$C12*BY12*10)) -> 0 | DZ12: =IF(Köpek!$B12="","",IF(Köpek!$C12="","",Köpek!$C12*BZ12*10)) -> 0 | EA12: =IF(Köpek!$B12="","",IF(Köpek!$C12="","",Köpek!$C12*CA12*10)) -> 0 | EB12: =IF(Köpek!$B12="","",IF(Köpek!$C12="","",Köpek!$C12*CB12*10)) -> 0 | EC12: =IF(Köpek!$B12="","",IF(Köpek!$C12="","",Köpek!$C12*CC12)) -> 0.45 | EE12: Balık, Somon, Atlantik, çiğ | EF12: 32 | EG12: 18.4 | EH12: 7.5 | EI12: 0 | EJ12: 1.6 | EK12: 1.59 | EL12: 1.59 | EP12: 0.214 | EQ12: 0.137 | ES12: 2.06 | ET12: 0.412 | EU12: 0.913 | EV12: 1.44 | EW12: 1.65 | EX12: 0.559 | EY12: 0.118 | EZ12: 0.736 | FA12: 0.618 | FB12: 0.824 | FC12: 0.194 | FD12: 0.126 | FE12: 1.06 | FF12: 0.02 | FG12: 0.2 | FI12: 0.024 | FJ12: 0.33 | FK12: 0.057 | FN12: 1.7 | FO12: 0.3 | FP12: 8 | FQ12: 0.4 | FR12: 0.322 | FS12: 10.4 | FT12: 0.05 | FV12: 0.26 | FW12: 60 | FX12: 20 | FY12: 1 | FZ12: 2.3 | GA12: 9.75 | GB12: 0.062 | GC12: 150 | GD12: 300 | GE12: 13 | GF12: 1.358 | GG12: 1.908 | GH12: 0.249 | GI12: 1.659 | GJ12: 350 | GK12: EP | GM12: Yavru sayısı, m | GN12: =IF(Q7<5,0,Q7-4) -> 0 | GW12: Beagle | GX12: 9 | GY12: 11 | GZ12: 10 | HA12: Orta | HB12: 12-15 | HC12: 8-14 | HD12: 8-14 | HF12: Magnezyum, mg | HG12: =IF(HI$2=1,HH12, IF(HI$2=2,HI12, IF(HI$2=3,HJ12, IF(HI$2=4,HK12, "YOK")))) * HG$5/1000 -> 74.6303192 | HH12: 100 | HI12: 100 | HJ12: 120 | HK12: 150 | HM12: Ergin canlı ağırlık, kg | HN12: =VLOOKUP(KediIrk,HT2:HU71,2,FALSE) -> 4.1 | HT12: Bengal | HU12: 5 | HW12: Magnezyum, mg | HX12: 55.04391485 | HY12: 100 | HZ12: 100 | IA12: 125 | IB12: 125
A13: =Köpek!A13 -> 0 | B13: =Köpek!B13 -> 0 | C13: =Köpek!C13 -> 0 | D13: =DC2 -> Sodyum, mg | E13: =Köpek!E13 -> 124.3838653 | F13: =DC1 -> 139.714 | G13: =IF(E13=0,"", IF(F13<E13*0.99,"EKSİK", IF(F13>E13*1.05,"FAZLA", "TAMAM")) ) -> FAZLA | H13: =(F13/10)/(C2*1000) -> 0.04332217054 | I13: 0.09754295963 | J13: 22.46205788 | O13: Mama seçimi | Q13: =VLOOKUP(CONCATENATE(KopekTipi,KopekHareket,IF(KopekYas<14,"Küçük","Büyük")),MamaSec,2,FALSE) -> 2 | S13: =VLOOKUP(CONCATENATE(KediTipi,KediHareket,IF(KediYas<14,"Küçük","Büyük")),MamaSec,2,FALSE) -> 4 | U13: YavruİnaktifKüçük | V13: 3 | Y13: Emziren dişi | AA13: 0 | AC13: 0 | AD13: =IF($AC13=0,"",VLOOKUP($AC13,$EE$3:$GJ$510,AD$1,FALSE)) ->  | AN13: =IF($AC13=0,"",VLOOKUP($AC13,$EE$3:$GJ$510,AN$1,FALSE)) ->  | AX13: =IF($AC13=0,"",VLOOKUP($AC13,$EE$3:$GJ$510,AX$1,FALSE)) ->  | BH13: =IF($AC13=0,"",VLOOKUP($AC13,$EE$3:$GJ$510,BH$1,FALSE)) ->  | BR13: =IF($AC13=0,"",VLOOKUP($AC13,$EE$3:$GJ$510,BR$1,FALSE)) ->  | CE13: =IF(Köpek!$B13="","",IF(Köpek!$C13="","",Köpek!$C13*AD13*10)) ->  | CF13: =IF(Köpek!$B13="","",IF(Köpek!$C13="","", IF(KKSecim="Köpek", Köpek!$C13*AE13*1000, Köpek!$C13*AF13*1000) ) ) ->  | CG13: =IF(Köpek!$B13="","",IF(Köpek!$C13="","",Köpek!$C13*AG13*10)) ->  | CH13: =IF(Köpek!$B13="","",IF(Köpek!$C13="","",Köpek!$C13*AH13*10)) ->  | CI13: =IF(Köpek!$B13="","",IF(Köpek!$C13="","",Köpek!$C13*AI13*10)) ->  | CJ13: =IF(Köpek!$B13="","",IF(Köpek!$C13="","",Köpek!$C13*AJ13*10)) ->  | CK13: =IF(Köpek!$B13="","",IF(Köpek!$C13="","",Köpek!$C13*AK13*10)) ->  | CL13: =IF(Köpek!$B13="","",IF(Köpek!$C13="","",Köpek!$C13*AL13*10)) ->  | CM13: =IF(Köpek!$B13="","",IF(Köpek!$C13="","",Köpek!$C13*AM13*10)) ->  | CN13: =IF(Köpek!$B13="","",IF(Köpek!$C13="","",Köpek!$C13*AN13*10)) ->  | CO13: =IF(Köpek!$B13="","",IF(Köpek!$C13="","",Köpek!$C13*AO13*10)) ->  | CP13: =IF(Köpek!$B13="","",IF(Köpek!$C13="","",Köpek!$C13*AP13*10)) ->  | CQ13: =IF(Köpek!$B13="","",IF(Köpek!$C13="","",Köpek!$C13*AQ13*10)) ->  | CR13: =IF(Köpek!$B13="","",IF(Köpek!$C13="","",Köpek!$C13*AR13*10)) ->  | CS13: =IF(Köpek!$B13="","",IF(Köpek!$C13="","",Köpek!$C13*AS13*10)) ->  | CT13: =IF(Köpek!$B13="","",IF(Köpek!$C13="","",Köpek!$C13*AT13*10)) ->  | CU13: =IF(Köpek!$B13="","",IF(Köpek!$C13="","",Köpek!$C13*AU13*10)) ->  | CV13: =IF(Köpek!$B13="","",IF(Köpek!$C13="","",Köpek!$C13*AV13*10)) ->  | CW13: =IF(Köpek!$B13="","",IF(Köpek!$C13="","",Köpek!$C13*AW13*10)) ->  | CX13: =IF(Köpek!$B13="","",IF(Köpek!$C13="","",Köpek!$C13*AX13*10)) ->  | CY13: =IF(Köpek!$B13="","",IF(Köpek!$C13="","",Köpek!$C13*AY13*10)) ->  | CZ13: =IF(Köpek!$B13="","",IF(Köpek!$C13="","",Köpek!$C13*AZ13*10)) ->  | DA13: =IF(Köpek!$B13="","",IF(Köpek!$C13="","",Köpek!$C13*BA13*10)) ->  | DB13: =IF(Köpek!$B13="","",IF(Köpek!$C13="","",Köpek!$C13*BB13*10000)) ->  | DC13: =IF(Köpek!$B13="","",IF(Köpek!$C13="","",Köpek!$C13*BC13*10000)) ->  | DD13: =IF(Köpek!$B13="","",IF(Köpek!$C13="","",Köpek!$C13*BD13*10)) ->  | DE13: =IF(Köpek!$B13="","",IF(Köpek!$C13="","",Köpek!$C13*BE13*10000)) ->  | DF13: =IF(Köpek!$B13="","",IF(Köpek!$C13="","",Köpek!$C13*BF13)) ->  | DG13: =IF(Köpek!$B13="","",IF(Köpek!$C13="","",Köpek!$C13*BG13)) ->  | DH13: =IF(Köpek!$B13="","",IF(Köpek!$C13="","",Köpek!$C13*BH13)) ->  | DI13: =IF(Köpek!$B13="","",IF(Köpek!$C13="","",Köpek!$C13*BI13)) ->  | DJ13: =IF(Köpek!$B13="","",IF(Köpek!$C13="","",Köpek!$C13*BJ13*1000)) ->  | DK13: =IF(Köpek!$B13="","",IF(Köpek!$C13="","",Köpek!$C13*BK13)) ->  | DL13: =IF(Köpek!$B13="","",IF(Köpek!$C13="","",Köpek!$C13*BL13)) ->  | DM13: =IF(Köpek!$B13="","",IF(Köpek!$C13="","",Köpek!$C13*BM13)) ->  | DN13: =IF(Köpek!$B13="","",IF(Köpek!$C13="","",Köpek!$C13*BN13)) ->  | DO13: =IF(Köpek!$B13="","",IF(Köpek!$C13="","",Köpek!$C13*BO13)) ->  | DP13: =IF(Köpek!$B13="","",IF(Köpek!$C13="","",Köpek!$C13*BP13)) ->  | DQ13: =IF(Köpek!$B13="","",IF(Köpek!$C13="","",Köpek!$C13*BQ13)) ->  | DR13: =IF(Köpek!$B13="","",IF(Köpek!$C13="","",Köpek!$C13*BR13)) ->  | DS13: =IF(Köpek!$B13="","",IF(Köpek!$C13="","",Köpek!$C13*BS13)) ->  | DT13: =IF(Köpek!$B13="","",IF(Köpek!$C13="","",Köpek!$C13*BT13*1000)) ->  | DU13: =IF(Köpek!$B13="","",IF(Köpek!$C13="","",Köpek!$C13*BU13*1000)) ->  | DV13: =IF(Köpek!$B13="","",IF(Köpek!$C13="","",Köpek!$C13*BV13)) ->  | DW13: =IF(Köpek!$B13="","",IF(Köpek!$C13="","",Köpek!$C13*BW13*10)) ->  | DX13: =IF(Köpek!$B13="","",IF(Köpek!$C13="","",Köpek!$C13*BX13*10)) ->  | DY13: =IF(Köpek!$B13="","",IF(Köpek!$C13="","",Köpek!$C13*BY13*10)) ->  | DZ13: =IF(Köpek!$B13="","",IF(Köpek!$C13="","",Köpek!$C13*BZ13*10)) ->  | EA13: =IF(Köpek!$B13="","",IF(Köpek!$C13="","",Köpek!$C13*CA13*10)) ->  | EB13: =IF(Köpek!$B13="","",IF(Köpek!$C13="","",Köpek!$C13*CB13*10)) ->  | EC13: =IF(Köpek!$B13="","",IF(Köpek!$C13="","",Köpek!$C13*CC13)) ->  | EE13: Balık, Somon, Atlantik, kültür, çiğ | EF13: 35.3 | EG13: 15.8 | EH13: 18.3 | EI13: 0 | EJ13: 1.1 | EK13: 2.28 | EL13: 2.28 | EP13: 2.049 | EQ13: 0.908 | ES13: 2.18 | ET13: 0.436 | EU13: 0.966 | EV13: 1.53 | EW13: 1.75 | EX13: 0.592 | EY13: 0.125 | EZ13: 0.779 | FA13: 0.655 | FB13: 0.873 | FC13: 0.206 | FD13: 0.126 | FE13: 1.12 | FF13: 0.00868 | FG13: 0.219 | FI13: 0.0256 | FJ13: 0.362 | FK13: 0.0468 | FL13: 0.131 | FN13: 0.379 | FO13: 0.0274 | FP13: 2.22 | FQ13: 0.0229 | FR13: 0.166 | FS13: 3.17 | FT13: 0.0275 | FV13: 0 | FW13: 76.5 | FX13: 8.1 | FY13: 0.7 | FZ13: 2.5 | GA13: 6.35 | GB13: 0.041 | GC13: 70.5 | GD13: 96.6 | GE13: 33 | GF13: 2.206 | GG13: 4.503 | GH13: 2.229 | GI13: 2.274 | GJ13: 350 | GK13: EQ | GM13: Yetişkin, aktif, b değeri | GN13: =VLOOKUP(GN16,GR38:GS51,2) + IF(LEFT(Q6,5)="Danua", 60, IF(LEFT(Q6,7)="Terrier",40,0)) -> 185 | GO13: =0.0012*Q4^5 - 0.0514*Q4^4 + 0.8431*Q4^3 - 6.4413*Q4^2 + 18.908*Q4 + 126.87 -> 144.5142 | GP13: hesaplama | GS13: KEDİ | GT13: Ortalama | GU13: =IF(ISERROR(VLOOKUP(SecilenIrk,Hesap!HT2:HU79,2,FALSE))=TRUE,"",VLOOKUP(SecilenIrk,Hesap!HT2:HU79,2,FALSE)) ->  | GW13: Belçika kurdu | GX13: 28 | GY13: 28 | GZ13: 28 | HA13: İri | HF13: Sodyum, mg | HG13: =IF(HI$2=1,HH13, IF(HI$2=2,HI13, IF(HI$2=3,HJ13, IF(HI$2=4,HK13, "YOK")))) * HG$5/1000 -> 124.3838653 | HH13: 550 | HI13: 550 | HJ13: 200 | HK13: 500 | HM13: Laktasyon Süresi Katsayısı | HN13: =VLOOKUP(KediLakSure,HQ15:HR21,2,FALSE) -> 1.2 | HT13: Birman | HU13: 4.5 | HW13: Sodyum, mg | HX13: 295.0353836 | HY13: 350 | HZ13: 170 | IA13: 670 | IB13: 670
A14: =Köpek!A14 -> 0 | B14: =Köpek!B14 -> 0 | C14: =Köpek!C14 -> 0 | D14: =CR2 -> Taurin, g | E14: =Köpek!E14 -> 0 | F14: =CR1 -> 0.033 | G14: =IF(E14=0,"", IF(F14<E14*0.99,"EKSİK", IF(F14>E14*1.2,"FAZLA", "TAMAM")) ) ->  | H14: =(F14*100)/(C2*1000) -> 0.01023255814 | I14: 0.02303933513 | J14: 0.005305466238 | U14: YetişkinİnaktifKüçük | V14: 1 | AA14: 0 | AC14: 0 | CE14: =IF(Köpek!$B14="","",IF(Köpek!$C14="","",Köpek!$C14*AD14*10)) ->  | CF14: =IF(Köpek!$B14="","",IF(Köpek!$C14="","", IF(KKSecim="Köpek", Köpek!$C14*AE14*1000, Köpek!$C14*AF14*1000) ) ) ->  | CG14: =IF(Köpek!$B14="","",IF(Köpek!$C14="","",Köpek!$C14*AG14*10)) ->  | CH14: =IF(Köpek!$B14="","",IF(Köpek!$C14="","",Köpek!$C14*AH14*10)) ->  | CI14: =IF(Köpek!$B14="","",IF(Köpek!$C14="","",Köpek!$C14*AI14*10)) ->  | CJ14: =IF(Köpek!$B14="","",IF(Köpek!$C14="","",Köpek!$C14*AJ14*10)) ->  | CK14: =IF(Köpek!$B14="","",IF(Köpek!$C14="","",Köpek!$C14*AK14*10)) ->  | CL14: =IF(Köpek!$B14="","",IF(Köpek!$C14="","",Köpek!$C14*AL14*10)) ->  | CM14: =IF(Köpek!$B14="","",IF(Köpek!$C14="","",Köpek!$C14*AM14*10)) ->  | CN14: =IF(Köpek!$B14="","",IF(Köpek!$C14="","",Köpek!$C14*AN14*10)) ->  | CO14: =IF(Köpek!$B14="","",IF(Köpek!$C14="","",Köpek!$C14*AO14*10)) ->  | CP14: =IF(Köpek!$B14="","",IF(Köpek!$C14="","",Köpek!$C14*AP14*10)) ->  | CQ14: =IF(Köpek!$B14="","",IF(Köpek!$C14="","",Köpek!$C14*AQ14*10)) ->  | CR14: =IF(Köpek!$B14="","",IF(Köpek!$C14="","",Köpek!$C14*AR14*10)) ->  | CS14: =IF(Köpek!$B14="","",IF(Köpek!$C14="","",Köpek!$C14*AS14*10)) ->  | CT14: =IF(Köpek!$B14="","",IF(Köpek!$C14="","",Köpek!$C14*AT14*10)) ->  | CU14: =IF(Köpek!$B14="","",IF(Köpek!$C14="","",Köpek!$C14*AU14*10)) ->  | CV14: =IF(Köpek!$B14="","",IF(Köpek!$C14="","",Köpek!$C14*AV14*10)) ->  | CW14: =IF(Köpek!$B14="","",IF(Köpek!$C14="","",Köpek!$C14*AW14*10)) ->  | CX14: =IF(Köpek!$B14="","",IF(Köpek!$C14="","",Köpek!$C14*AX14*10)) ->  | CY14: =IF(Köpek!$B14="","",IF(Köpek!$C14="","",Köpek!$C14*AY14*10)) ->  | CZ14: =IF(Köpek!$B14="","",IF(Köpek!$C14="","",Köpek!$C14*AZ14*10)) ->  | DA14: =IF(Köpek!$B14="","",IF(Köpek!$C14="","",Köpek!$C14*BA14*10)) ->  | DB14: =IF(Köpek!$B14="","",IF(Köpek!$C14="","",Köpek!$C14*BB14*10000)) ->  | DC14: =IF(Köpek!$B14="","",IF(Köpek!$C14="","",Köpek!$C14*BC14*10000)) ->  | DD14: =IF(Köpek!$B14="","",IF(Köpek!$C14="","",Köpek!$C14*BD14*10)) ->  | DE14: =IF(Köpek!$B14="","",IF(Köpek!$C14="","",Köpek!$C14*BE14*10000)) ->  | DF14: =IF(Köpek!$B14="","",IF(Köpek!$C14="","",Köpek!$C14*BF14)) ->  | DG14: =IF(Köpek!$B14="","",IF(Köpek!$C14="","",Köpek!$C14*BG14)) ->  | DH14: =IF(Köpek!$B14="","",IF(Köpek!$C14="","",Köpek!$C14*BH14)) ->  | DI14: =IF(Köpek!$B14="","",IF(Köpek!$C14="","",Köpek!$C14*BI14)) ->  | DJ14: =IF(Köpek!$B14="","",IF(Köpek!$C14="","",Köpek!$C14*BJ14*1000)) ->  | DK14: =IF(Köpek!$B14="","",IF(Köpek!$C14="","",Köpek!$C14*BK14)) ->  | DL14: =IF(Köpek!$B14="","",IF(Köpek!$C14="","",Köpek!$C14*BL14)) ->  | DM14: =IF(Köpek!$B14="","",IF(Köpek!$C14="","",Köpek!$C14*BM14)) ->  | DN14: =IF(Köpek!$B14="","",IF(Köpek!$C14="","",Köpek!$C14*BN14)) ->  | DO14: =IF(Köpek!$B14="","",IF(Köpek!$C14="","",Köpek!$C14*BO14)) ->  | DP14: =IF(Köpek!$B14="","",IF(Köpek!$C14="","",Köpek!$C14*BP14)) ->  | DQ14: =IF(Köpek!$B14="","",IF(Köpek!$C14="","",Köpek!$C14*BQ14)) ->  | DR14: =IF(Köpek!$B14="","",IF(Köpek!$C14="","",Köpek!$C14*BR14)) ->  | DS14: =IF(Köpek!$B14="","",IF(Köpek!$C14="","",Köpek!$C14*BS14)) ->  | DT14: =IF(Köpek!$B14="","",IF(Köpek!$C14="","",Köpek!$C14*BT14*1000)) ->  | DU14: =IF(Köpek!$B14="","",IF(Köpek!$C14="","",Köpek!$C14*BU14*1000)) ->  | DV14: =IF(Köpek!$B14="","",IF(Köpek!$C14="","",Köpek!$C14*BV14)) ->  | DW14: =IF(Köpek!$B14="","",IF(Köpek!$C14="","",Köpek!$C14*BW14*10)) ->  | DX14: =IF(Köpek!$B14="","",IF(Köpek!$C14="","",Köpek!$C14*BX14*10)) ->  | DY14: =IF(Köpek!$B14="","",IF(Köpek!$C14="","",Köpek!$C14*BY14*10)) ->  | DZ14: =IF(Köpek!$B14="","",IF(Köpek!$C14="","",Köpek!$C14*BZ14*10)) ->  | EA14: =IF(Köpek!$B14="","",IF(Köpek!$C14="","",Köpek!$C14*CA14*10)) ->  | EB14: =IF(Köpek!$B14="","",IF(Köpek!$C14="","",Köpek!$C14*CB14*10)) ->  | EC14: =IF(Köpek!$B14="","",IF(Köpek!$C14="","",Köpek!$C14*CC14)) ->  | EE14: Balık unu, % 63 HP | EF14: 91.2 | EG14: 62.5 | EH14: 9.5 | EI14: 1 | EJ14: 18 | EK14: 3.72 | EL14: 3.67 | EP14: 4.48 | EQ14: 0.94 | ER14: 2.4 | ES14: 3.64 | ET14: 1.64 | EU14: 2.48 | EV14: 4.46 | EW14: 4.74 | EX14: 1.73 | EY14: 0.53 | EZ14: 2 | FB14: 2.69 | FC14: 0.58 | FD14: 0.32 | FE14: 2.91 | FF14: 4.87 | FG14: 2.78 | FH14: 2.61 | FI14: 0.18 | FJ14: 0.68 | FK14: 0.62 | FL14: 0.75 | FM14: 1.04 | FN14: 6.41 | FO14: 2 | FP14: 518 | FQ14: 29 | FR14: 2.06 | FS14: 102 | FT14: 0.15 | FU14: 3080 | FV14: 1 | FW14: 55 | FX14: 8.8 | FY14: 4.8 | FZ14: 0.2 | GA14: 5 | GB14: 0.08 | GE14: 5.7 | GJ14: 130 | GK14: ER | GM14: Yetişkin, İnaktif, b değeri | GN14: =VLOOKUP(GN16,GR38:GU51,4) + IF(Q6="Great Dane", 60, IF(Q6="Terier",40,0)) -> 126.15 | GO14: =0.0023*Q4^5 - 0.0988*Q4^4 + 1.5871*Q4^3 - 11.338*Q4^2 + 28.512*Q4 + 107.41 -> 126.3118 | GP14: hesaplama | GW14: Bernese Mountain Dog | GX14: 36 | GY14: 50 | GZ14: 43 | HA14: İri | HM14: Yavru Sayısı Katsayısı | HN14: =IF(KediYavruSay>0, IF(KediYavruSay<3,18, KediYavruSay*21-24), 0) -> 39 | HQ14: hafta | HR14: katsayı | HT14: Bombay | HU14: 4.5 | HW14: Taurin (g) | HX14: 0.05834654974 | HY14: 0.1 | HZ14: 0.1 | IA14: 0.1325 | IB14: 0.1325
A15: =Köpek!A15 -> 0 | B15: =Köpek!B15 -> 0 | C15: =Köpek!C15 -> 0 | D15: =CT2 -> Yağ, g | E15: =Köpek!E15 -> 8.551390741 | F15: =CT1 -> 13.8871 | G15: =IF(E15=0,"", IF(F15<E15*0.99,"EKSİK", IF(F15>E15*1.5,"FAZLA", "TAMAM")) ) -> FAZLA | H15: =(F15*100)/(C2*1000) -> 4.306077519 | I15: 9.695440934 | J15: 2.232652733 | U15: Gebe dişiİnaktifKüçük | V15: 4 | AA15: 0 | AC15: 0 | CE15: =IF(Köpek!$B15="","",IF(Köpek!$C15="","",Köpek!$C15*AD15*10)) ->  | CF15: =IF(Köpek!$B15="","",IF(Köpek!$C15="","", IF(KKSecim="Köpek", Köpek!$C15*AE15*1000, Köpek!$C15*AF15*1000) ) ) ->  | CG15: =IF(Köpek!$B15="","",IF(Köpek!$C15="","",Köpek!$C15*AG15*10)) ->  | CH15: =IF(Köpek!$B15="","",IF(Köpek!$C15="","",Köpek!$C15*AH15*10)) ->  | CI15: =IF(Köpek!$B15="","",IF(Köpek!$C15="","",Köpek!$C15*AI15*10)) ->  | CJ15: =IF(Köpek!$B15="","",IF(Köpek!$C15="","",Köpek!$C15*AJ15*10)) ->  | CK15: =IF(Köpek!$B15="","",IF(Köpek!$C15="","",Köpek!$C15*AK15*10)) ->  | CL15: =IF(Köpek!$B15="","",IF(Köpek!$C15="","",Köpek!$C15*AL15*10)) ->  | CM15: =IF(Köpek!$B15="","",IF(Köpek!$C15="","",Köpek!$C15*AM15*10)) ->  | CN15: =IF(Köpek!$B15="","",IF(Köpek!$C15="","",Köpek!$C15*AN15*10)) ->  | CO15: =IF(Köpek!$B15="","",IF(Köpek!$C15="","",Köpek!$C15*AO15*10)) ->  | CP15: =IF(Köpek!$B15="","",IF(Köpek!$C15="","",Köpek!$C15*AP15*10)) ->  | CQ15: =IF(Köpek!$B15="","",IF(Köpek!$C15="","",Köpek!$C15*AQ15*10)) ->  | CR15: =IF(Köpek!$B15="","",IF(Köpek!$C15="","",Köpek!$C15*AR15*10)) ->  | CS15: =IF(Köpek!$B15="","",IF(Köpek!$C15="","",Köpek!$C15*AS15*10)) ->  | CT15: =IF(Köpek!$B15="","",IF(Köpek!$C15="","",Köpek!$C15*AT15*10)) ->  | CU15: =IF(Köpek!$B15="","",IF(Köpek!$C15="","",Köpek!$C15*AU15*10)) ->  | CV15: =IF(Köpek!$B15="","",IF(Köpek!$C15="","",Köpek!$C15*AV15*10)) ->  | CW15: =IF(Köpek!$B15="","",IF(Köpek!$C15="","",Köpek!$C15*AW15*10)) ->  | CX15: =IF(Köpek!$B15="","",IF(Köpek!$C15="","",Köpek!$C15*AX15*10)) ->  | CY15: =IF(Köpek!$B15="","",IF(Köpek!$C15="","",Köpek!$C15*AY15*10)) ->  | CZ15: =IF(Köpek!$B15="","",IF(Köpek!$C15="","",Köpek!$C15*AZ15*10)) ->  | DA15: =IF(Köpek!$B15="","",IF(Köpek!$C15="","",Köpek!$C15*BA15*10)) ->  | DB15: =IF(Köpek!$B15="","",IF(Köpek!$C15="","",Köpek!$C15*BB15*10000)) ->  | DC15: =IF(Köpek!$B15="","",IF(Köpek!$C15="","",Köpek!$C15*BC15*10000)) ->  | DD15: =IF(Köpek!$B15="","",IF(Köpek!$C15="","",Köpek!$C15*BD15*10)) ->  | DE15: =IF(Köpek!$B15="","",IF(Köpek!$C15="","",Köpek!$C15*BE15*10000)) ->  | DF15: =IF(Köpek!$B15="","",IF(Köpek!$C15="","",Köpek!$C15*BF15)) ->  | DG15: =IF(Köpek!$B15="","",IF(Köpek!$C15="","",Köpek!$C15*BG15)) ->  | DH15: =IF(Köpek!$B15="","",IF(Köpek!$C15="","",Köpek!$C15*BH15)) ->  | DI15: =IF(Köpek!$B15="","",IF(Köpek!$C15="","",Köpek!$C15*BI15)) ->  | DJ15: =IF(Köpek!$B15="","",IF(Köpek!$C15="","",Köpek!$C15*BJ15*1000)) ->  | DK15: =IF(Köpek!$B15="","",IF(Köpek!$C15="","",Köpek!$C15*BK15)) ->  | DL15: =IF(Köpek!$B15="","",IF(Köpek!$C15="","",Köpek!$C15*BL15)) ->  | DM15: =IF(Köpek!$B15="","",IF(Köpek!$C15="","",Köpek!$C15*BM15)) ->  | DN15: =IF(Köpek!$B15="","",IF(Köpek!$C15="","",Köpek!$C15*BN15)) ->  | DO15: =IF(Köpek!$B15="","",IF(Köpek!$C15="","",Köpek!$C15*BO15)) ->  | DP15: =IF(Köpek!$B15="","",IF(Köpek!$C15="","",Köpek!$C15*BP15)) ->  | DQ15: =IF(Köpek!$B15="","",IF(Köpek!$C15="","",Köpek!$C15*BQ15)) ->  | DR15: =IF(Köpek!$B15="","",IF(Köpek!$C15="","",Köpek!$C15*BR15)) ->  | DS15: =IF(Köpek!$B15="","",IF(Köpek!$C15="","",Köpek!$C15*BS15)) ->  | DT15: =IF(Köpek!$B15="","",IF(Köpek!$C15="","",Köpek!$C15*BT15*1000)) ->  | DU15: =IF(Köpek!$B15="","",IF(Köpek!$C15="","",Köpek!$C15*BU15*1000)) ->  | DV15: =IF(Köpek!$B15="","",IF(Köpek!$C15="","",Köpek!$C15*BV15)) ->  | DW15: =IF(Köpek!$B15="","",IF(Köpek!$C15="","",Köpek!$C15*BW15*10)) ->  | DX15: =IF(Köpek!$B15="","",IF(Köpek!$C15="","",Köpek!$C15*BX15*10)) ->  | DY15: =IF(Köpek!$B15="","",IF(Köpek!$C15="","",Köpek!$C15*BY15*10)) ->  | DZ15: =IF(Köpek!$B15="","",IF(Köpek!$C15="","",Köpek!$C15*BZ15*10)) ->  | EA15: =IF(Köpek!$B15="","",IF(Köpek!$C15="","",Köpek!$C15*CA15*10)) ->  | EB15: =IF(Köpek!$B15="","",IF(Köpek!$C15="","",Köpek!$C15*CB15*10)) ->  | EC15: =IF(Köpek!$B15="","",IF(Köpek!$C15="","",Köpek!$C15*CC15)) ->  | EE15: Balık unu, % 53 HP | EF15: 93 | EG15: 53 | EH15: 11 | EI15: 5 | EJ15: 25 | EK15: 3.35 | EL15: 3.3 | ER15: 2.4 | ES15: 3.2 | ET15: 1.8 | EU15: 2.4 | EV15: 3.8 | EW15: 3.9 | EX15: 1.5 | EY15: 0.4 | EZ15: 2.5 | FB15: 2.5 | FC15: 0.71 | FD15: 0.32 | FE15: 2.8 | FF15: 8.4 | FG15: 4.2 | FH15: 4.2 | FI15: 0.3 | FJ15: 0.4 | FK15: 0.7 | FN15: 6 | FO15: 2 | FP15: 650 | FQ15: 10 | FR15: 4 | FS15: 240 | FU15: 3050 | FV15: 0.24 | FW15: 65 | FX15: 8.8 | FY15: 8.8 | GA15: 4 | GB15: 0.14 | GE15: 5.6 | GJ15: 100 | GK15: ES | GM15: Yaş katsayısı | GN15: =IF(GN18<10,14/12, IF(GN18<20,14/10, IF(GN18<50,14/9,14/7))) -> 1.166666667 | GW15: Bichon Frise | GX15: 3 | GY15: 5 | GZ15: 4 | HA15: Küçük | HF15: Yağ, g | HG15: =IF(HI$2=1,HH15, IF(HI$2=2,HI15, IF(HI$2=3,HJ15, IF(HI$2=4,HK15, "YOK")))) * HG$5/1000 -> 8.551390741 | HH15: 21.3 | HI15: 21.3 | HJ15: 13.75 | HK15: 21.25 | HM15: Gebelik Süresi Katsayısı | HN15: =50 / 9 -> 5.555555556 | HQ15: 1 | HR15: 0.9 | HT15: British SH | HU15: 4.8 | HW15: Yağ, g | HX15: 9.907904673 | HY15: 22.5 | HZ15: 22.5 | IA15: 22.5 | IB15: 22.5
A16: =Köpek!A16 -> 0 | B16: =Köpek!B16 -> 0 | C16: =Köpek!C16 -> 0 | D16: =CU2 -> Linoleik asit, g | E16: =Köpek!E16 -> 1.710278148 | F16: =CU1 -> 5.6435 | G16: =IF(E16=0,"", IF(F16<E16*0.99,"EKSİK", IF(F16>E16*1.5,"FAZLA", "TAMAM")) ) -> FAZLA | H16: =(F16*100)/(C2*1000) -> 1.749922481 | I16: 3.940075387 | J16: 0.9073151125 | U16: Emziren dişiİnaktifKüçük | V16: 4 | Y16: Hareketlilik | AA16: 0 | AC16: 0 | CE16: =IF(Köpek!$B16="","",IF(Köpek!$C16="","",Köpek!$C16*AD16*10)) ->  | CF16: =IF(Köpek!$B16="","",IF(Köpek!$C16="","", IF(KKSecim="Köpek", Köpek!$C16*AE16*1000, Köpek!$C16*AF16*1000) ) ) ->  | CG16: =IF(Köpek!$B16="","",IF(Köpek!$C16="","",Köpek!$C16*AG16*10)) ->  | CH16: =IF(Köpek!$B16="","",IF(Köpek!$C16="","",Köpek!$C16*AH16*10)) ->  | CI16: =IF(Köpek!$B16="","",IF(Köpek!$C16="","",Köpek!$C16*AI16*10)) ->  | CJ16: =IF(Köpek!$B16="","",IF(Köpek!$C16="","",Köpek!$C16*AJ16*10)) ->  | CK16: =IF(Köpek!$B16="","",IF(Köpek!$C16="","",Köpek!$C16*AK16*10)) ->  | CL16: =IF(Köpek!$B16="","",IF(Köpek!$C16="","",Köpek!$C16*AL16*10)) ->  | CM16: =IF(Köpek!$B16="","",IF(Köpek!$C16="","",Köpek!$C16*AM16*10)) ->  | CN16: =IF(Köpek!$B16="","",IF(Köpek!$C16="","",Köpek!$C16*AN16*10)) ->  | CO16: =IF(Köpek!$B16="","",IF(Köpek!$C16="","",Köpek!$C16*AO16*10)) ->  | CP16: =IF(Köpek!$B16="","",IF(Köpek!$C16="","",Köpek!$C16*AP16*10)) ->  | CQ16: =IF(Köpek!$B16="","",IF(Köpek!$C16="","",Köpek!$C16*AQ16*10)) ->  | CR16: =IF(Köpek!$B16="","",IF(Köpek!$C16="","",Köpek!$C16*AR16*10)) ->  | CS16: =IF(Köpek!$B16="","",IF(Köpek!$C16="","",Köpek!$C16*AS16*10)) ->  | CT16: =IF(Köpek!$B16="","",IF(Köpek!$C16="","",Köpek!$C16*AT16*10)) ->  | CU16: =IF(Köpek!$B16="","",IF(Köpek!$C16="","",Köpek!$C16*AU16*10)) ->  | CV16: =IF(Köpek!$B16="","",IF(Köpek!$C16="","",Köpek!$C16*AV16*10)) ->  | CW16: =IF(Köpek!$B16="","",IF(Köpek!$C16="","",Köpek!$C16*AW16*10)) ->  | CX16: =IF(Köpek!$B16="","",IF(Köpek!$C16="","",Köpek!$C16*AX16*10)) ->  | CY16: =IF(Köpek!$B16="","",IF(Köpek!$C16="","",Köpek!$C16*AY16*10)) ->  | CZ16: =IF(Köpek!$B16="","",IF(Köpek!$C16="","",Köpek!$C16*AZ16*10)) ->  | DA16: =IF(Köpek!$B16="","",IF(Köpek!$C16="","",Köpek!$C16*BA16*10)) ->  | DB16: =IF(Köpek!$B16="","",IF(Köpek!$C16="","",Köpek!$C16*BB16*10000)) ->  | DC16: =IF(Köpek!$B16="","",IF(Köpek!$C16="","",Köpek!$C16*BC16*10000)) ->  | DD16: =IF(Köpek!$B16="","",IF(Köpek!$C16="","",Köpek!$C16*BD16*10)) ->  | DE16: =IF(Köpek!$B16="","",IF(Köpek!$C16="","",Köpek!$C16*BE16*10000)) ->  | DF16: =IF(Köpek!$B16="","",IF(Köpek!$C16="","",Köpek!$C16*BF16)) ->  | DG16: =IF(Köpek!$B16="","",IF(Köpek!$C16="","",Köpek!$C16*BG16)) ->  | DH16: =IF(Köpek!$B16="","",IF(Köpek!$C16="","",Köpek!$C16*BH16)) ->  | DI16: =IF(Köpek!$B16="","",IF(Köpek!$C16="","",Köpek!$C16*BI16)) ->  | DJ16: =IF(Köpek!$B16="","",IF(Köpek!$C16="","",Köpek!$C16*BJ16*1000)) ->  | DK16: =IF(Köpek!$B16="","",IF(Köpek!$C16="","",Köpek!$C16*BK16)) ->  | DL16: =IF(Köpek!$B16="","",IF(Köpek!$C16="","",Köpek!$C16*BL16)) ->  | DM16: =IF(Köpek!$B16="","",IF(Köpek!$C16="","",Köpek!$C16*BM16)) ->  | DN16: =IF(Köpek!$B16="","",IF(Köpek!$C16="","",Köpek!$C16*BN16)) ->  | DO16: =IF(Köpek!$B16="","",IF(Köpek!$C16="","",Köpek!$C16*BO16)) ->  | DP16: =IF(Köpek!$B16="","",IF(Köpek!$C16="","",Köpek!$C16*BP16)) ->  | DQ16: =IF(Köpek!$B16="","",IF(Köpek!$C16="","",Köpek!$C16*BQ16)) ->  | DR16: =IF(Köpek!$B16="","",IF(Köpek!$C16="","",Köpek!$C16*BR16)) ->  | DS16: =IF(Köpek!$B16="","",IF(Köpek!$C16="","",Köpek!$C16*BS16)) ->  | DT16: =IF(Köpek!$B16="","",IF(Köpek!$C16="","",Köpek!$C16*BT16*1000)) ->  | DU16: =IF(Köpek!$B16="","",IF(Köpek!$C16="","",Köpek!$C16*BU16*1000)) ->  | DV16: =IF(Köpek!$B16="","",IF(Köpek!$C16="","",Köpek!$C16*BV16)) ->  | DW16: =IF(Köpek!$B16="","",IF(Köpek!$C16="","",Köpek!$C16*BW16*10)) ->  | DX16: =IF(Köpek!$B16="","",IF(Köpek!$C16="","",Köpek!$C16*BX16*10)) ->  | DY16: =IF(Köpek!$B16="","",IF(Köpek!$C16="","",Köpek!$C16*BY16*10)) ->  | DZ16: =IF(Köpek!$B16="","",IF(Köpek!$C16="","",Köpek!$C16*BZ16*10)) ->  | EA16: =IF(Köpek!$B16="","",IF(Köpek!$C16="","",Köpek!$C16*CA16*10)) ->  | EB16: =IF(Köpek!$B16="","",IF(Köpek!$C16="","",Köpek!$C16*CB16*10)) ->  | EC16: =IF(Köpek!$B16="","",IF(Köpek!$C16="","",Köpek!$C16*CC16)) ->  | EE16: Balık unu, % 62 HP | EF16: 91 | EG16: 61.8 | EH16: 4.3 | EI16: 0.9 | EJ16: 24 | EK16: 3.22 | EL16: 3.2 | ER16: 2.4 | ES16: 4.11 | ET16: 1.64 | EU16: 2.91 | EV16: 4.43 | EW16: 4.42 | EX16: 1.67 | EY16: 0.75 | EZ16: 2.54 | FA16: 1.83 | FB16: 2.59 | FC16: 0.69 | FD16: 0.32 | FE16: 2.48 | FF16: 7.16 | FG16: 3.66 | FH16: 3.5 | FI16: 0.2 | FJ16: 0.97 | FK16: 0.88 | FL16: 0.5 | FM16: 0.48 | FN16: 7 | FO16: 3 | FP16: 131 | FQ16: 11 | FR16: 1.56 | FS16: 85 | FT16: 0.8 | FU16: 3575 | FV16: 0.3 | FW16: 49 | FX16: 7.3 | FY16: 6.9 | FZ16: 1.6 | GA16: 5.9 | GB16: 0.08 | GE16: 7.3 | GJ16: 120 | GK16: ET | GM16: Düzeltilmiş yaş | GN16: =Q4*GN15 -> 3.5 | GW16: Blood Hound | GX16: 32 | GY16: 50 | GZ16: 41 | HA16: İri | HF16: Linoleik asit, g | HG16: 1.710278148 | HH16: 3.3 | HI16: 3.3 | HJ16: 2.75 | HK16: 3.25 | HM16: Yaşama Payı Katsayısı | HN16: =KediCA/KediEA -> 0.9756097561 | HQ16: 2 | HR16: 0.9 | HT16: Burmese | HU16: 3.9 | HW16: Linoleik asit, g | HX16: 0.6054830633 | HY16: 1.375 | HZ16: 1.4 | IA16: 1.375 | IB16: 1.375
A17: =Köpek!A17 -> 0 | B17: =Köpek!B17 -> 0 | C17: =Köpek!C17 -> 0 | D17: =CW2 -> Arahidonik asit, g | E17: =Köpek!E17 -> 0 | F17: =CW1 -> 0.55 | G17: =IF(E17=0,"", IF(F17<E17*0.99,"EKSİK", IF(F17>E17*1.5,"FAZLA", "TAMAM")) ) ->  | H17: =(F17*100)/(C2*1000) -> 0.1705426357 | I17: 0.3839889188 | J17: 0.0884244373 | U17: YavruAktifKüçük | V17: 3 | Y17: İnaktif | AA17: =IF(B17="","",IF(C17="","",C17)) -> 0 | AC17: =IF(B17="",0,IF(C17="",0,B17)) -> 0 | CE17: =IF(Köpek!$B17="","",IF(Köpek!$C17="","",Köpek!$C17*AD17*10)) ->  | CF17: =IF(Köpek!$B17="","",IF(Köpek!$C17="","", IF(KKSecim="Köpek", Köpek!$C17*AE17*1000, Köpek!$C17*AF17*1000) ) ) ->  | CG17: =IF(Köpek!$B17="","",IF(Köpek!$C17="","",Köpek!$C17*AG17*10)) ->  | CH17: =IF(Köpek!$B17="","",IF(Köpek!$C17="","",Köpek!$C17*AH17*10)) ->  | CI17: =IF(Köpek!$B17="","",IF(Köpek!$C17="","",Köpek!$C17*AI17*10)) ->  | CJ17: =IF(Köpek!$B17="","",IF(Köpek!$C17="","",Köpek!$C17*AJ17*10)) ->  | CK17: =IF(Köpek!$B17="","",IF(Köpek!$C17="","",Köpek!$C17*AK17*10)) ->  | CL17: =IF(Köpek!$B17="","",IF(Köpek!$C17="","",Köpek!$C17*AL17*10)) ->  | CM17: =IF(Köpek!$B17="","",IF(Köpek!$C17="","",Köpek!$C17*AM17*10)) ->  | CN17: =IF(Köpek!$B17="","",IF(Köpek!$C17="","",Köpek!$C17*AN17*10)) ->  | CO17: =IF(Köpek!$B17="","",IF(Köpek!$C17="","",Köpek!$C17*AO17*10)) ->  | CP17: =IF(Köpek!$B17="","",IF(Köpek!$C17="","",Köpek!$C17*AP17*10)) ->  | CQ17: =IF(Köpek!$B17="","",IF(Köpek!$C17="","",Köpek!$C17*AQ17*10)) ->  | CR17: =IF(Köpek!$B17="","",IF(Köpek!$C17="","",Köpek!$C17*AR17*10)) ->  | CS17: =IF(Köpek!$B17="","",IF(Köpek!$C17="","",Köpek!$C17*AS17*10)) ->  | CT17: =IF(Köpek!$B17="","",IF(Köpek!$C17="","",Köpek!$C17*AT17*10)) ->  | CU17: =IF(Köpek!$B17="","",IF(Köpek!$C17="","",Köpek!$C17*AU17*10)) ->  | CV17: =IF(Köpek!$B17="","",IF(Köpek!$C17="","",Köpek!$C17*AV17*10)) ->  | CW17: =IF(Köpek!$B17="","",IF(Köpek!$C17="","",Köpek!$C17*AW17*10)) ->  | CX17: =IF(Köpek!$B17="","",IF(Köpek!$C17="","",Köpek!$C17*AX17*10)) ->  | CY17: =IF(Köpek!$B17="","",IF(Köpek!$C17="","",Köpek!$C17*AY17*10)) ->  | CZ17: =IF(Köpek!$B17="","",IF(Köpek!$C17="","",Köpek!$C17*AZ17*10)) ->  | DA17: =IF(Köpek!$B17="","",IF(Köpek!$C17="","",Köpek!$C17*BA17*10)) ->  | DB17: =IF(Köpek!$B17="","",IF(Köpek!$C17="","",Köpek!$C17*BB17*10000)) ->  | DC17: =IF(Köpek!$B17="","",IF(Köpek!$C17="","",Köpek!$C17*BC17*10000)) ->  | DD17: =IF(Köpek!$B17="","",IF(Köpek!$C17="","",Köpek!$C17*BD17*10)) ->  | DE17: =IF(Köpek!$B17="","",IF(Köpek!$C17="","",Köpek!$C17*BE17*10000)) ->  | DF17: =IF(Köpek!$B17="","",IF(Köpek!$C17="","",Köpek!$C17*BF17)) ->  | DG17: =IF(Köpek!$B17="","",IF(Köpek!$C17="","",Köpek!$C17*BG17)) ->  | DH17: =IF(Köpek!$B17="","",IF(Köpek!$C17="","",Köpek!$C17*BH17)) ->  | DI17: =IF(Köpek!$B17="","",IF(Köpek!$C17="","",Köpek!$C17*BI17)) ->  | DJ17: =IF(Köpek!$B17="","",IF(Köpek!$C17="","",Köpek!$C17*BJ17*1000)) ->  | DK17: =IF(Köpek!$B17="","",IF(Köpek!$C17="","",Köpek!$C17*BK17)) ->  | DL17: =IF(Köpek!$B17="","",IF(Köpek!$C17="","",Köpek!$C17*BL17)) ->  | DM17: =IF(Köpek!$B17="","",IF(Köpek!$C17="","",Köpek!$C17*BM17)) ->  | DN17: =IF(Köpek!$B17="","",IF(Köpek!$C17="","",Köpek!$C17*BN17)) ->  | DO17: =IF(Köpek!$B17="","",IF(Köpek!$C17="","",Köpek!$C17*BO17)) ->  | DP17: =IF(Köpek!$B17="","",IF(Köpek!$C17="","",Köpek!$C17*BP17)) ->  | DQ17: =IF(Köpek!$B17="","",IF(Köpek!$C17="","",Köpek!$C17*BQ17)) ->  | DR17: =IF(Köpek!$B17="","",IF(Köpek!$C17="","",Köpek!$C17*BR17)) ->  | DS17: =IF(Köpek!$B17="","",IF(Köpek!$C17="","",Köpek!$C17*BS17)) ->  | DT17: =IF(Köpek!$B17="","",IF(Köpek!$C17="","",Köpek!$C17*BT17*1000)) ->  | DU17: =IF(Köpek!$B17="","",IF(Köpek!$C17="","",Köpek!$C17*BU17*1000)) ->  | DV17: =IF(Köpek!$B17="","",IF(Köpek!$C17="","",Köpek!$C17*BV17)) ->  | DW17: =IF(Köpek!$B17="","",IF(Köpek!$C17="","",Köpek!$C17*BW17*10)) ->  | DX17: =IF(Köpek!$B17="","",IF(Köpek!$C17="","",Köpek!$C17*BX17*10)) ->  | DY17: =IF(Köpek!$B17="","",IF(Köpek!$C17="","",Köpek!$C17*BY17*10)) ->  | DZ17: =IF(Köpek!$B17="","",IF(Köpek!$C17="","",Köpek!$C17*BZ17*10)) ->  | EA17: =IF(Köpek!$B17="","",IF(Köpek!$C17="","",Köpek!$C17*CA17*10)) ->  | EB17: =IF(Köpek!$B17="","",IF(Köpek!$C17="","",Köpek!$C17*CB17*10)) ->  | EC17: =IF(Köpek!$B17="","",IF(Köpek!$C17="","",Köpek!$C17*CC17)) ->  | EE17: Böcek unu, cırcır böceği unu (Acheta domesticus) | EF17: 93 | EG17: =(66.6+64.9+64.38+70.75+73.1)/5*0.93 -> 63.18978 | EH17: =(22.1+13.8+18.55+22.8+15.9)/5*0.93 -> 17.3259 | EI17: =2.1*0.93 -> 1.953 | EJ17: =(3.6+5.7+3.57+5.1+5.6)/5*0.93 -> 4.38402 | EK17: 4.2 | EL17: 4.2 | EM17: =(5.4+2.6)/2*0.93 -> 3.72 | EP17: =36.3/EH17 -> 2.095129257 | EQ17: =1/EH17 -> 0.05771705943 | ET17: =(((22.7+23.4)/2)/100*0.93)/(EG17/100) -> 0.3392399847 | EU17: =(((36.4+45.9)/2)/100*0.93)/(EG17/100) -> 0.6056279987 | EV17: =(((66.7+100)/2)/100*0.93)/(EG17/100) -> 1.226709446 | EW17: =(((51.1+53.7)/2)/100*0.93)/(EG17/100) -> 0.7712006593 | EX17: =(((14.6+19.6)/2)/100*0.93)/(EG17/100) -> 0.2516704442 | EY17: =(((8.3+9.8)/2)/100*0.93)/(EG17/100) -> 0.133194007 | EZ17: =(((74.2+80.5)/4)/100*0.93)/(EG17/100) -> 0.5692020134 | FA17: =(((74.2+80.5)/4)/100*0.93)/(EG17/100) -> 0.5692020134 | FB17: =(((31.1+36.1)/2)/100*0.93)/(EG17/100) -> 0.4945103465 | FC17: =(((6.3+7.6)/2)/100*0.93)/(EG17/100) -> 0.1022871104 | FD17: =1410/10000*0.93 -> 0.13113 | FE17: =(((48.4+52.2)/2)/100*0.93)/(EG17/100) -> 0.7402937627 | FF17: =((132.14+210)/2)*0.93/1000 -> 0.1590951 | FG17: =((780+957.79)/2)*0.93/1000 -> 0.80807235 | FI17: =((80+109.42)/2)*0.93/1000 -> 0.0880803 | FJ17: =1126.62*0.93/1000 -> 1.0477566 | FK17: =435.06*0.93/1000 -> 0.4046058 | FL17: =0.23*0.93 -> 0.2139 | FN17: =((0.85+2.01)/2)*10*0.93 -> 13.299 | FO17: =0.21*0.93 -> 0.1953 | FP17: =((6.27+11.23)/2)*10*0.93 -> 81.375 | FQ17: =((2.97+3.73)/2)*10*0.93 -> 31.155 | FR17: =0.6*10*0.93 -> 5.58 | FS17: =((18.64+21.79)/2)*10*0.93 -> 187.9995 | FT17: =55.19/100*0.93 -> 0.513267 | FV17: =0.93*0.49*10 -> 4.557 | FW17: =0.93*12.59*10 -> 117.087 | FX17: =0.93*7.47*10 -> 69.471 | FY17: =0.93*11.07*10 -> 102.951 | FZ17: =0.93*0.13*10 -> 1.209 | GC17: =0.93*24.33*10 -> 226.269 | GE17: =0.93*(63.96+81)/2 -> 67.4064 | GF17: =0.356*(EH17/100) -> 0.061680204 | GG17: =0.373*(EH17/100) -> 0.064625607 | GH17: =EP17+ER17 -> 2.095129257 | GI17: =EQ17 -> 0.05771705943 | GJ17: 1500 | GK17: EU | GM17: Emziren dişi katsayı | GN17: =VLOOKUP(Q8,GN40:GO43,2) ->  | GW17: Border Collie | GX17: 12 | GY17: 40 | GZ17: 26 | HA17: İri | HF17: Arahidonik Asit, g | HG17: =IF(HI$2=1,HH17, IF(HI$2=2,HI17, IF(HI$2=3,HJ17, IF(HI$2=4,HK17, "YOK")))) * HG$5/1000 -> 0 | HH17: 0.08 | HI17: 0.08 | HQ17: 3 | HR17: 1.2 | HT17: Burmilla | HU17: 4.3 | HW17: Arahidonik asit, g | HX17: =IF(HX$2=1,HY17, IF(HX$2=2,HZ17, IF(HX$2=3,IA17, IF(HX$2=4,IB17, "YOK")))) * HX$5/1000 -> 0.02201756594 | HY17: 0.05 | HZ17: 0.015 | IA17: 0.05 | IB17: 0.05
A18: =Köpek!A18 -> 0 | B18: =Köpek!B18 -> 0 | C18: =Köpek!C18 -> 0 | D18: =DL2 -> Vitamin A, µg | E18: =Köpek!E18 -> 235.551945 | F18: =DL1 -> 311.3765 | G18: =IF(E18=0,"", IF(F18<E18*0.99,"EKSİK", IF(F18>E18*4,"FAZLA", "TAMAM")) ) -> TAMAM | H18: =(F18*100)/(C2*1000) -> 96.55085271 | I18: =H18*100/H$3 -> 217.3911374 | J18: 50.06053055 | U18: YetişkinAktifKüçük | V18: 2 | Y18: Aktif | AA18: 0 | AC18: 0 | CE18: =IF(Köpek!$B18="","",IF(Köpek!$C18="","",Köpek!$C18*AD18*10)) ->  | CF18: =IF(Köpek!$B18="","",IF(Köpek!$C18="","", IF(KKSecim="Köpek", Köpek!$C18*AE18*1000, Köpek!$C18*AF18*1000) ) ) ->  | CG18: =IF(Köpek!$B18="","",IF(Köpek!$C18="","",Köpek!$C18*AG18*10)) ->  | CH18: =IF(Köpek!$B18="","",IF(Köpek!$C18="","",Köpek!$C18*AH18*10)) ->  | CI18: =IF(Köpek!$B18="","",IF(Köpek!$C18="","",Köpek!$C18*AI18*10)) ->  | CJ18: =IF(Köpek!$B18="","",IF(Köpek!$C18="","",Köpek!$C18*AJ18*10)) ->  | CK18: =IF(Köpek!$B18="","",IF(Köpek!$C18="","",Köpek!$C18*AK18*10)) ->  | CL18: =IF(Köpek!$B18="","",IF(Köpek!$C18="","",Köpek!$C18*AL18*10)) ->  | CM18: =IF(Köpek!$B18="","",IF(Köpek!$C18="","",Köpek!$C18*AM18*10)) ->  | CN18: =IF(Köpek!$B18="","",IF(Köpek!$C18="","",Köpek!$C18*AN18*10)) ->  | CO18: =IF(Köpek!$B18="","",IF(Köpek!$C18="","",Köpek!$C18*AO18*10)) ->  | CP18: =IF(Köpek!$B18="","",IF(Köpek!$C18="","",Köpek!$C18*AP18*10)) ->  | CQ18: =IF(Köpek!$B18="","",IF(Köpek!$C18="","",Köpek!$C18*AQ18*10)) ->  | CR18: =IF(Köpek!$B18="","",IF(Köpek!$C18="","",Köpek!$C18*AR18*10)) ->  | CS18: =IF(Köpek!$B18="","",IF(Köpek!$C18="","",Köpek!$C18*AS18*10)) ->  | CT18: =IF(Köpek!$B18="","",IF(Köpek!$C18="","",Köpek!$C18*AT18*10)) ->  | CU18: =IF(Köpek!$B18="","",IF(Köpek!$C18="","",Köpek!$C18*AU18*10)) ->  | CV18: =IF(Köpek!$B18="","",IF(Köpek!$C18="","",Köpek!$C18*AV18*10)) ->  | CW18: =IF(Köpek!$B18="","",IF(Köpek!$C18="","",Köpek!$C18*AW18*10)) ->  | CX18: =IF(Köpek!$B18="","",IF(Köpek!$C18="","",Köpek!$C18*AX18*10)) ->  | CY18: =IF(Köpek!$B18="","",IF(Köpek!$C18="","",Köpek!$C18*AY18*10)) ->  | CZ18: =IF(Köpek!$B18="","",IF(Köpek!$C18="","",Köpek!$C18*AZ18*10)) ->  | DA18: =IF(Köpek!$B18="","",IF(Köpek!$C18="","",Köpek!$C18*BA18*10)) ->  | DB18: =IF(Köpek!$B18="","",IF(Köpek!$C18="","",Köpek!$C18*BB18*10000)) ->  | DC18: =IF(Köpek!$B18="","",IF(Köpek!$C18="","",Köpek!$C18*BC18*10000)) ->  | DD18: =IF(Köpek!$B18="","",IF(Köpek!$C18="","",Köpek!$C18*BD18*10)) ->  | DE18: =IF(Köpek!$B18="","",IF(Köpek!$C18="","",Köpek!$C18*BE18*10000)) ->  | DF18: =IF(Köpek!$B18="","",IF(Köpek!$C18="","",Köpek!$C18*BF18)) ->  | DG18: =IF(Köpek!$B18="","",IF(Köpek!$C18="","",Köpek!$C18*BG18)) ->  | DH18: =IF(Köpek!$B18="","",IF(Köpek!$C18="","",Köpek!$C18*BH18)) ->  | DI18: =IF(Köpek!$B18="","",IF(Köpek!$C18="","",Köpek!$C18*BI18)) ->  | DJ18: =IF(Köpek!$B18="","",IF(Köpek!$C18="","",Köpek!$C18*BJ18*1000)) ->  | DK18: =IF(Köpek!$B18="","",IF(Köpek!$C18="","",Köpek!$C18*BK18)) ->  | DL18: =IF(Köpek!$B18="","",IF(Köpek!$C18="","",Köpek!$C18*BL18)) ->  | DM18: =IF(Köpek!$B18="","",IF(Köpek!$C18="","",Köpek!$C18*BM18)) ->  | DN18: =IF(Köpek!$B18="","",IF(Köpek!$C18="","",Köpek!$C18*BN18)) ->  | DO18: =IF(Köpek!$B18="","",IF(Köpek!$C18="","",Köpek!$C18*BO18)) ->  | DP18: =IF(Köpek!$B18="","",IF(Köpek!$C18="","",Köpek!$C18*BP18)) ->  | DQ18: =IF(Köpek!$B18="","",IF(Köpek!$C18="","",Köpek!$C18*BQ18)) ->  | DR18: =IF(Köpek!$B18="","",IF(Köpek!$C18="","",Köpek!$C18*BR18)) ->  | DS18: =IF(Köpek!$B18="","",IF(Köpek!$C18="","",Köpek!$C18*BS18)) ->  | DT18: =IF(Köpek!$B18="","",IF(Köpek!$C18="","",Köpek!$C18*BT18*1000)) ->  | DU18: =IF(Köpek!$B18="","",IF(Köpek!$C18="","",Köpek!$C18*BU18*1000)) ->  | DV18: =IF(Köpek!$B18="","",IF(Köpek!$C18="","",Köpek!$C18*BV18)) ->  | DW18: =IF(Köpek!$B18="","",IF(Köpek!$C18="","",Köpek!$C18*BW18*10)) ->  | DX18: =IF(Köpek!$B18="","",IF(Köpek!$C18="","",Köpek!$C18*BX18*10)) ->  | DY18: =IF(Köpek!$B18="","",IF(Köpek!$C18="","",Köpek!$C18*BY18*10)) ->  | DZ18: =IF(Köpek!$B18="","",IF(Köpek!$C18="","",Köpek!$C18*BZ18*10)) ->  | EA18: =IF(Köpek!$B18="","",IF(Köpek!$C18="","",Köpek!$C18*CA18*10)) ->  | EB18: =IF(Köpek!$B18="","",IF(Köpek!$C18="","",Köpek!$C18*CB18*10)) ->  | EC18: =IF(Köpek!$B18="","",IF(Köpek!$C18="","",Köpek!$C18*CC18)) ->  | EE18: Böcek unu, çekirge unu (Locusta migratoria) | EF18: 93 | EG18: 60 | EH18: 16 | EJ18: =5.1*0.93 -> 4.743 | EK18: 3.63 | EL18: 3.63 | EP18: 0.598 | EQ18: 0.584 | ES18: 5.06 | ET18: 2.186 | EU18: 4.32 | EV18: 7.634 | EW18: 5.465 | EX18: 2.268 | EY18: 1.466 | EZ18: 6.217 | FA18: 6.731 | FB18: 3.652 | FC18: 0.62 | FE18: 5.417 | FF18: =70*0.93/1000 -> 0.0651 | FG18: =123.32*0.93/1000 -> 0.1146876 | FI18: =33.1*0.93/1000 -> 0.030783 | FJ18: =259.7*0.93/1000 -> 0.241521 | FK18: =121*0.93/1000 -> 0.11253 | FN18: =2.5*10*0.93 -> 23.25 | FP18: =229.7*10*0.93 -> 2136.21 | FQ18: =12.4*10*0.93 -> 115.32 | FR18: =0.5*10*0.93 -> 4.65 | FS18: =13*10*0.93 -> 120.9 | FV18: =0.93*0.9*10 -> 8.37 | FW18: =0.93*2.4*10 -> 22.32 | FY18: =0.93*1.4*10 -> 13.02 | GC18: =0.93*2.8*10 -> 26.04 | GE18: =0.93*22.64 -> 21.0552 | GF18: =0.277*(EH18/100) -> 0.04432 | GG18: =0.421*(EH18/100) -> 0.06736 | GH18: =EP18+ER18 -> 0.598 | GI18: =EQ18 -> 0.584 | GJ18: 1575 | GK18: EV | GM18: Ergin canlı ağırlık, kg | GN18: =VLOOKUP(Q6,GW3:GZ84,4,FALSE) -> 8 | GW18: Bouvier | GX18: 25 | GY18: 41 | GZ18: 33 | HA18: İri | HF18: Vitamin A, µg retinol | HG18: 235.551945 | HH18: 378.75 | HI18: 378.75 | HJ18: 378.75 | HK18: 378.75 | HQ18: 4 | HR18: 1.2 | HT18: Calif Spangled | HU18: 5 | HW18: Vitamin A, µg retinol | HX18: 220.1756594 | HY18: 250 | HZ18: 250 | IA18: 500 | IB18: 500
A19: =Köpek!A19 -> 0 | B19: =Köpek!B19 -> 0 | C19: =Köpek!C19 -> 0 | D19: =DM2 -> Vitamin D, µg | E19: =Köpek!E19 -> 2.145621677 | F19: =DM1 -> 0 | G19: =IF(E19=0,"", IF(F19<E19*0.99,"EKSİK", IF(F19>E19*2,"FAZLA", "TAMAM")) ) -> EKSİK | H19: =(F19*100)/(C2*1000) -> 0 | I19: =H19*100/H$3 -> 0 | J19: 0 | U19: Gebe dişiAktifKüçük | V19: 4 | AA19: 0 | AC19: 0 | CE19: =IF(Köpek!$B19="","",IF(Köpek!$C19="","",Köpek!$C19*AD19*10)) ->  | CF19: =IF(Köpek!$B19="","",IF(Köpek!$C19="","", IF(KKSecim="Köpek", Köpek!$C19*AE19*1000, Köpek!$C19*AF19*1000) ) ) ->  | CG19: =IF(Köpek!$B19="","",IF(Köpek!$C19="","",Köpek!$C19*AG19*10)) ->  | CH19: =IF(Köpek!$B19="","",IF(Köpek!$C19="","",Köpek!$C19*AH19*10)) ->  | CI19: =IF(Köpek!$B19="","",IF(Köpek!$C19="","",Köpek!$C19*AI19*10)) ->  | CJ19: =IF(Köpek!$B19="","",IF(Köpek!$C19="","",Köpek!$C19*AJ19*10)) ->  | CK19: =IF(Köpek!$B19="","",IF(Köpek!$C19="","",Köpek!$C19*AK19*10)) ->  | CL19: =IF(Köpek!$B19="","",IF(Köpek!$C19="","",Köpek!$C19*AL19*10)) ->  | CM19: =IF(Köpek!$B19="","",IF(Köpek!$C19="","",Köpek!$C19*AM19*10)) ->  | CN19: =IF(Köpek!$B19="","",IF(Köpek!$C19="","",Köpek!$C19*AN19*10)) ->  | CO19: =IF(Köpek!$B19="","",IF(Köpek!$C19="","",Köpek!$C19*AO19*10)) ->  | CP19: =IF(Köpek!$B19="","",IF(Köpek!$C19="","",Köpek!$C19*AP19*10)) ->  | CQ19: =IF(Köpek!$B19="","",IF(Köpek!$C19="","",Köpek!$C19*AQ19*10)) ->  | CR19: =IF(Köpek!$B19="","",IF(Köpek!$C19="","",Köpek!$C19*AR19*10)) ->  | CS19: =IF(Köpek!$B19="","",IF(Köpek!$C19="","",Köpek!$C19*AS19*10)) ->  | CT19: =IF(Köpek!$B19="","",IF(Köpek!$C19="","",Köpek!$C19*AT19*10)) ->  | CU19: =IF(Köpek!$B19="","",IF(Köpek!$C19="","",Köpek!$C19*AU19*10)) ->  | CV19: =IF(Köpek!$B19="","",IF(Köpek!$C19="","",Köpek!$C19*AV19*10)) ->  | CW19: =IF(Köpek!$B19="","",IF(Köpek!$C19="","",Köpek!$C19*AW19*10)) ->  | CX19: =IF(Köpek!$B19="","",IF(Köpek!$C19="","",Köpek!$C19*AX19*10)) ->  | CY19: =IF(Köpek!$B19="","",IF(Köpek!$C19="","",Köpek!$C19*AY19*10)) ->  | CZ19: =IF(Köpek!$B19="","",IF(Köpek!$C19="","",Köpek!$C19*AZ19*10)) ->  | DA19: =IF(Köpek!$B19="","",IF(Köpek!$C19="","",Köpek!$C19*BA19*10)) ->  | DB19: =IF(Köpek!$B19="","",IF(Köpek!$C19="","",Köpek!$C19*BB19*10000)) ->  | DC19: =IF(Köpek!$B19="","",IF(Köpek!$C19="","",Köpek!$C19*BC19*10000)) ->  | DD19: =IF(Köpek!$B19="","",IF(Köpek!$C19="","",Köpek!$C19*BD19*10)) ->  | DE19: =IF(Köpek!$B19="","",IF(Köpek!$C19="","",Köpek!$C19*BE19*10000)) ->  | DF19: =IF(Köpek!$B19="","",IF(Köpek!$C19="","",Köpek!$C19*BF19)) ->  | DG19: =IF(Köpek!$B19="","",IF(Köpek!$C19="","",Köpek!$C19*BG19)) ->  | DH19: =IF(Köpek!$B19="","",IF(Köpek!$C19="","",Köpek!$C19*BH19)) ->  | DI19: =IF(Köpek!$B19="","",IF(Köpek!$C19="","",Köpek!$C19*BI19)) ->  | DJ19: =IF(Köpek!$B19="","",IF(Köpek!$C19="","",Köpek!$C19*BJ19*1000)) ->  | DK19: =IF(Köpek!$B19="","",IF(Köpek!$C19="","",Köpek!$C19*BK19)) ->  | DL19: =IF(Köpek!$B19="","",IF(Köpek!$C19="","",Köpek!$C19*BL19)) ->  | DM19: =IF(Köpek!$B19="","",IF(Köpek!$C19="","",Köpek!$C19*BM19)) ->  | DN19: =IF(Köpek!$B19="","",IF(Köpek!$C19="","",Köpek!$C19*BN19)) ->  | DO19: =IF(Köpek!$B19="","",IF(Köpek!$C19="","",Köpek!$C19*BO19)) ->  | DP19: =IF(Köpek!$B19="","",IF(Köpek!$C19="","",Köpek!$C19*BP19)) ->  | DQ19: =IF(Köpek!$B19="","",IF(Köpek!$C19="","",Köpek!$C19*BQ19)) ->  | DR19: =IF(Köpek!$B19="","",IF(Köpek!$C19="","",Köpek!$C19*BR19)) ->  | DS19: =IF(Köpek!$B19="","",IF(Köpek!$C19="","",Köpek!$C19*BS19)) ->  | DT19: =IF(Köpek!$B19="","",IF(Köpek!$C19="","",Köpek!$C19*BT19*1000)) ->  | DU19: =IF(Köpek!$B19="","",IF(Köpek!$C19="","",Köpek!$C19*BU19*1000)) ->  | DV19: =IF(Köpek!$B19="","",IF(Köpek!$C19="","",Köpek!$C19*BV19)) ->  | DW19: =IF(Köpek!$B19="","",IF(Köpek!$C19="","",Köpek!$C19*BW19*10)) ->  | DX19: =IF(Köpek!$B19="","",IF(Köpek!$C19="","",Köpek!$C19*BX19*10)) ->  | DY19: =IF(Köpek!$B19="","",IF(Köpek!$C19="","",Köpek!$C19*BY19*10)) ->  | DZ19: =IF(Köpek!$B19="","",IF(Köpek!$C19="","",Köpek!$C19*BZ19*10)) ->  | EA19: =IF(Köpek!$B19="","",IF(Köpek!$C19="","",Köpek!$C19*CA19*10)) ->  | EB19: =IF(Köpek!$B19="","",IF(Köpek!$C19="","",Köpek!$C19*CB19*10)) ->  | EC19: =IF(Köpek!$B19="","",IF(Köpek!$C19="","",Köpek!$C19*CC19)) ->  | EE19: Böcek unu, çekirge unu (Hetracris littoralis, Ruspolia differens) | EF19: 93 | EG19: =(69.19+68)/2 -> 68.595 | EH19: =(8.18+9.66)/2 -> 8.92 | EJ19: =5.1*0.93 -> 4.743 | EK19: 3.63 | EL19: 3.63 | EP19: 0.598 | EQ19: 0.584 | ES19: 5.06 | ET19: 2.186 | EU19: 4.32 | EV19: 7.634 | EW19: 5.465 | EX19: 2.268 | EY19: 1.466 | EZ19: 6.217 | FA19: 6.731 | FB19: 3.652 | FC19: 0.62 | FE19: 5.417 | FF19: =70*0.93/1000 -> 0.0651 | FG19: =123.32*0.93/1000 -> 0.1146876 | FI19: =33.1*0.93/1000 -> 0.030783 | FJ19: =259.7*0.93/1000 -> 0.241521 | FK19: =121*0.93/1000 -> 0.11253 | FN19: =2.5*10*0.93 -> 23.25 | FP19: =229.7*10*0.93 -> 2136.21 | FQ19: =12.4*10*0.93 -> 115.32 | FR19: =0.5*10*0.93 -> 4.65 | FS19: =13*10*0.93 -> 120.9 | FV19: =0.93*0.9*10 -> 8.37 | FW19: =0.93*2.4*10 -> 22.32 | FY19: =0.93*1.4*10 -> 13.02 | GC19: =0.93*2.8*10 -> 26.04 | GE19: =0.93*22.64 -> 21.0552 | GF19: =0.277*(EH19/100) -> 0.0247084 | GG19: =0.421*(EH19/100) -> 0.0375532 | GH19: =EP19+ER19 -> 0.598 | GI19: =EQ19 -> 0.584 | GJ19: 1575 | GK19: EW | GW19: Boxer | GX19: 24 | GY19: 32 | GZ19: 28 | HA19: İri | HB19: 12-13 | HF19: Kolekalsiferol, µg | HG19: 2.145621677 | HH19: 3.45 | HI19: 3.45 | HJ19: 3.45 | HK19: 3.45 | HQ19: 5 | HR19: 1.1 | HT19: Chausie | HU19: 6.8 | HW19: Kolekalsiferol, µg | HX19: =IF(HX$2=1,HY19, IF(HX$2=2,HZ19, IF(HX$2=3,IA19, IF(HX$2=4,IB19, "YOK")))) * HX$5/1000 -> 0.7706148079 | HY19: 1.4 | HZ19: 1.75 | IA19: 1.75 | IB19: 1.75
A20: =Köpek!A20 -> 0 | B20: =Köpek!B20 -> 0 | C20: =Köpek!C20 -> 0 | D20: =DN2 -> Vitamin E, mg | E20: =Köpek!E20 -> 4.66439495 | F20: =DN1 -> 5.238 | G20: =IF(E20=0,"", IF(F20<E20*0.99,"EKSİK", IF(F20>E20*2,"FAZLA", "TAMAM")) ) -> TAMAM | H20: =(F20*100)/(C2*1000) -> 1.624186047 | I20: =H20*100/H$3 -> 3.65697083 | J20: 0.8421221865 | O20: SİLİNMESİN % HESAP | Q20: Enerjinin Dağılımı | U20: Emziren dişiAktifKüçük | V20: 4 | AA20: 0 | AC20: 0 | CE20: =IF(Köpek!$B20="","",IF(Köpek!$C20="","",Köpek!$C20*AD20*10)) ->  | CF20: =IF(Köpek!$B20="","",IF(Köpek!$C20="","", IF(KKSecim="Köpek", Köpek!$C20*AE20*1000, Köpek!$C20*AF20*1000) ) ) ->  | CG20: =IF(Köpek!$B20="","",IF(Köpek!$C20="","",Köpek!$C20*AG20*10)) ->  | CH20: =IF(Köpek!$B20="","",IF(Köpek!$C20="","",Köpek!$C20*AH20*10)) ->  | CI20: =IF(Köpek!$B20="","",IF(Köpek!$C20="","",Köpek!$C20*AI20*10)) ->  | CJ20: =IF(Köpek!$B20="","",IF(Köpek!$C20="","",Köpek!$C20*AJ20*10)) ->  | CK20: =IF(Köpek!$B20="","",IF(Köpek!$C20="","",Köpek!$C20*AK20*10)) ->  | CL20: =IF(Köpek!$B20="","",IF(Köpek!$C20="","",Köpek!$C20*AL20*10)) ->  | CM20: =IF(Köpek!$B20="","",IF(Köpek!$C20="","",Köpek!$C20*AM20*10)) ->  | CN20: =IF(Köpek!$B20="","",IF(Köpek!$C20="","",Köpek!$C20*AN20*10)) ->  | CO20: =IF(Köpek!$B20="","",IF(Köpek!$C20="","",Köpek!$C20*AO20*10)) ->  | CP20: =IF(Köpek!$B20="","",IF(Köpek!$C20="","",Köpek!$C20*AP20*10)) ->  | CQ20: =IF(Köpek!$B20="","",IF(Köpek!$C20="","",Köpek!$C20*AQ20*10)) ->  | CR20: =IF(Köpek!$B20="","",IF(Köpek!$C20="","",Köpek!$C20*AR20*10)) ->  | CS20: =IF(Köpek!$B20="","",IF(Köpek!$C20="","",Köpek!$C20*AS20*10)) ->  | CT20: =IF(Köpek!$B20="","",IF(Köpek!$C20="","",Köpek!$C20*AT20*10)) ->  | CU20: =IF(Köpek!$B20="","",IF(Köpek!$C20="","",Köpek!$C20*AU20*10)) ->  | CV20: =IF(Köpek!$B20="","",IF(Köpek!$C20="","",Köpek!$C20*AV20*10)) ->  | CW20: =IF(Köpek!$B20="","",IF(Köpek!$C20="","",Köpek!$C20*AW20*10)) ->  | CY20: =IF(Köpek!$B20="","",IF(Köpek!$C20="","",Köpek!$C20*AY20*10)) ->  | CZ20: =IF(Köpek!$B20="","",IF(Köpek!$C20="","",Köpek!$C20*AZ20*10)) ->  | DA20: =IF(Köpek!$B20="","",IF(Köpek!$C20="","",Köpek!$C20*BA20*10)) ->  | DB20: =IF(Köpek!$B20="","",IF(Köpek!$C20="","",Köpek!$C20*BB20*10000)) ->  | DC20: =IF(Köpek!$B20="","",IF(Köpek!$C20="","",Köpek!$C20*BC20*10000)) ->  | DD20: =IF(Köpek!$B20="","",IF(Köpek!$C20="","",Köpek!$C20*BD20*10)) ->  | DE20: =IF(Köpek!$B20="","",IF(Köpek!$C20="","",Köpek!$C20*BE20*10000)) ->  | DF20: =IF(Köpek!$B20="","",IF(Köpek!$C20="","",Köpek!$C20*BF20)) ->  | DG20: =IF(Köpek!$B20="","",IF(Köpek!$C20="","",Köpek!$C20*BG20)) ->  | DH20: =IF(Köpek!$B20="","",IF(Köpek!$C20="","",Köpek!$C20*BH20)) ->  | DI20: =IF(Köpek!$B20="","",IF(Köpek!$C20="","",Köpek!$C20*BI20)) ->  | DJ20: =IF(Köpek!$B20="","",IF(Köpek!$C20="","",Köpek!$C20*BJ20*1000)) ->  | DK20: =IF(Köpek!$B20="","",IF(Köpek!$C20="","",Köpek!$C20*BK20)) ->  | DL20: =IF(Köpek!$B20="","",IF(Köpek!$C20="","",Köpek!$C20*BL20)) ->  | DM20: =IF(Köpek!$B20="","",IF(Köpek!$C20="","",Köpek!$C20*BM20)) ->  | DN20: =IF(Köpek!$B20="","",IF(Köpek!$C20="","",Köpek!$C20*BN20)) ->  | DO20: =IF(Köpek!$B20="","",IF(Köpek!$C20="","",Köpek!$C20*BO20)) ->  | DP20: =IF(Köpek!$B20="","",IF(Köpek!$C20="","",Köpek!$C20*BP20)) ->  | DQ20: =IF(Köpek!$B20="","",IF(Köpek!$C20="","",Köpek!$C20*BQ20)) ->  | DR20: =IF(Köpek!$B20="","",IF(Köpek!$C20="","",Köpek!$C20*BR20)) ->  | DS20: =IF(Köpek!$B20="","",IF(Köpek!$C20="","",Köpek!$C20*BS20)) ->  | DT20: =IF(Köpek!$B20="","",IF(Köpek!$C20="","",Köpek!$C20*BT20*1000)) ->  | DU20: =IF(Köpek!$B20="","",IF(Köpek!$C20="","",Köpek!$C20*BU20*1000)) ->  | DV20: =IF(Köpek!$B20="","",IF(Köpek!$C20="","",Köpek!$C20*BV20)) ->  | DW20: =IF(Köpek!$B20="","",IF(Köpek!$C20="","",Köpek!$C20*BW20*10)) ->  | DX20: =IF(Köpek!$B20="","",IF(Köpek!$C20="","",Köpek!$C20*BX20*10)) ->  | DY20: =IF(Köpek!$B20="","",IF(Köpek!$C20="","",Köpek!$C20*BY20*10)) ->  | DZ20: =IF(Köpek!$B20="","",IF(Köpek!$C20="","",Köpek!$C20*BZ20*10)) ->  | EA20: =IF(Köpek!$B20="","",IF(Köpek!$C20="","",Köpek!$C20*CA20*10)) ->  | EB20: =IF(Köpek!$B20="","",IF(Köpek!$C20="","",Köpek!$C20*CB20*10)) ->  | EC20: =IF(Köpek!$B20="","",IF(Köpek!$C20="","",Köpek!$C20*CC20)) ->  | EE20: Böcek unu, siyah asker sineği larva unu (Hermetia illucens) | EF20: 93 | EG20: 56 | EH20: 12.8 | EI20: =2.5*0.93 -> 2.325 | EJ20: 10 | EK20: 4.2 | EL20: 4.2 | EM20: 0.8 | EP20: =13.75/EH20 -> 1.07421875 | EQ20: =1.2/EH20 -> 0.09375 | ER20: =1.15/EH20 -> 0.08984375 | ES20: =3.7*0.93 -> 3.441 | ET20: 4 | EU20: 3.6 | EV20: 5.5 | EW20: =5.4*0.93 -> 5.022 | EX20: =1.4*0.93 -> 1.302 | EZ20: 2.8 | FB20: 3.3 | FD20: 0.001 | FE20: 5 | FF20: 7.56 | FG20: 0.9 | FI20: 0.17 | FJ20: 0.45 | FK20: 0.2 | FL20: =0.12*0.93 -> 0.1116 | FN20: 4 | FO20: =0.26*0.93 -> 0.2418 | FP20: 66.6 | FQ20: 61.8 | FR20: 0.32 | FS20: 56.2 | FT20: 0.35 | FU20: 1100 | FV20: 2.7 | FW20: 71 | FX20: 38.5 | FY20: 16.2 | FZ20: 7.7 | GA20: 6 | GB20: 0.056 | GC20: 270 | GD20: 2.5 | GE20: 6.6 | GF20: =69.4/EH20 -> 5.421875 | GG20: =14.1/EH20 -> 1.1015625 | GH20: =12.8/EH20 -> 1 | GI20: =1.37/EH20 -> 0.10703125 | GJ20: 300 | GK20: EX | GM20: Yavru ise | GN20: =IF(Q3="Yavru", IF(Q4<5,GP25, IF(Q4<15,GP26,GP27) ) * IF(Q10="İnaktif",0.9,1), "Yavru değil") -> Yavru değil | GW20: Bulldog | GX20: 22 | GY20: 25 | GZ20: 23.5 | HA20: İri | HF20: Vitamin E (α-tokoferol), mg | HG20: 4.66439495 | HH20: 7.5 | HI20: 7.5 | HJ20: 7.5 | HK20: 7.5 | HQ20: 6 | HR20: 1 | HT20: Chartreux | HU20: 4.8 | HW20: Vitamin E (α-tokoferol), mg | HX20: 3.412722721 | HY20: 9.5 | HZ20: 10 | IA20: 7.75 | IB20: 7.75
A21: =Köpek!A21 -> 0 | B21: =Köpek!B21 -> 0 | C21: =Köpek!C21 -> 0 | D21: =B62 -> Potasyum, g | E21: =Köpek!E21 -> 0.6219193267 | F21: =DD1 -> 0.6341 | G21: =IF(E21=0,"", IF(F21<E21*0.99,"EKSİK", IF(F21>E21*1.5,"FAZLA", "TAMAM")) ) -> TAMAM | H21: =(F21*100)/(C2*1000) -> 0.196620155 | I21: =H21*100/H$3 -> 0.4427043153 | J21: 0.1019453376 | O21: =(F4*100/(F3)*3.5/(F5*100/(F3))) -> 0.1891879421 | Q21: =O21/SUM(O21:O23) -> 0.2142956977 | S21: Proteinden | U21: YavruİnaktifBüyük | V21: 5 | Y21: Yemler | AA21: 0 | AC21: 0 | CE21: =IF(Köpek!$B21="","",IF(Köpek!$C21="","",Köpek!$C21*AD21*10)) ->  | CF21: =IF(Köpek!$B21="","",IF(Köpek!$C21="","", IF(KKSecim="Köpek", Köpek!$C21*AE21*1000, Köpek!$C21*AF21*1000) ) ) ->  | CG21: =IF(Köpek!$B21="","",IF(Köpek!$C21="","",Köpek!$C21*AG21*10)) ->  | CH21: =IF(Köpek!$B21="","",IF(Köpek!$C21="","",Köpek!$C21*AH21*10)) ->  | CI21: =IF(Köpek!$B21="","",IF(Köpek!$C21="","",Köpek!$C21*AI21*10)) ->  | CJ21: =IF(Köpek!$B21="","",IF(Köpek!$C21="","",Köpek!$C21*AJ21*10)) ->  | CK21: =IF(Köpek!$B21="","",IF(Köpek!$C21="","",Köpek!$C21*AK21*10)) ->  | CL21: =IF(Köpek!$B21="","",IF(Köpek!$C21="","",Köpek!$C21*AL21*10)) ->  | CM21: =IF(Köpek!$B21="","",IF(Köpek!$C21="","",Köpek!$C21*AM21*10)) ->  | CN21: =IF(Köpek!$B21="","",IF(Köpek!$C21="","",Köpek!$C21*AN21*10)) ->  | CO21: =IF(Köpek!$B21="","",IF(Köpek!$C21="","",Köpek!$C21*AO21*10)) ->  | CP21: =IF(Köpek!$B21="","",IF(Köpek!$C21="","",Köpek!$C21*AP21*10)) ->  | CQ21: =IF(Köpek!$B21="","",IF(Köpek!$C21="","",Köpek!$C21*AQ21*10)) ->  | CR21: =IF(Köpek!$B21="","",IF(Köpek!$C21="","",Köpek!$C21*AR21*10)) ->  | CS21: =IF(Köpek!$B21="","",IF(Köpek!$C21="","",Köpek!$C21*AS21*10)) ->  | CT21: =IF(Köpek!$B21="","",IF(Köpek!$C21="","",Köpek!$C21*AT21*10)) ->  | CU21: =IF(Köpek!$B21="","",IF(Köpek!$C21="","",Köpek!$C21*AU21*10)) ->  | CV21: =IF(Köpek!$B21="","",IF(Köpek!$C21="","",Köpek!$C21*AV21*10)) ->  | CW21: =IF(Köpek!$B21="","",IF(Köpek!$C21="","",Köpek!$C21*AW21*10)) ->  | CX21: =IF(Köpek!$B21="","",IF(Köpek!$C21="","",Köpek!$C21*AX21*10)) ->  | CY21: =IF(Köpek!$B21="","",IF(Köpek!$C21="","",Köpek!$C21*AY21*10)) ->  | CZ21: =IF(Köpek!$B21="","",IF(Köpek!$C21="","",Köpek!$C21*AZ21*10)) ->  | DA21: =IF(Köpek!$B21="","",IF(Köpek!$C21="","",Köpek!$C21*BA21*10)) ->  | DB21: =IF(Köpek!$B21="","",IF(Köpek!$C21="","",Köpek!$C21*BB21*10000)) ->  | DC21: =IF(Köpek!$B21="","",IF(Köpek!$C21="","",Köpek!$C21*BC21*10000)) ->  | DD21: =IF(Köpek!$B21="","",IF(Köpek!$C21="","",Köpek!$C21*BD21*10)) ->  | DE21: =IF(Köpek!$B21="","",IF(Köpek!$C21="","",Köpek!$C21*BE21*10000)) ->  | DF21: =IF(Köpek!$B21="","",IF(Köpek!$C21="","",Köpek!$C21*BF21)) ->  | DG21: =IF(Köpek!$B21="","",IF(Köpek!$C21="","",Köpek!$C21*BG21)) ->  | DH21: =IF(Köpek!$B21="","",IF(Köpek!$C21="","",Köpek!$C21*BH21)) ->  | DI21: =IF(Köpek!$B21="","",IF(Köpek!$C21="","",Köpek!$C21*BI21)) ->  | DJ21: =IF(Köpek!$B21="","",IF(Köpek!$C21="","",Köpek!$C21*BJ21*1000)) ->  | DK21: =IF(Köpek!$B21="","",IF(Köpek!$C21="","",Köpek!$C21*BK21)) ->  | DL21: =IF(Köpek!$B21="","",IF(Köpek!$C21="","",Köpek!$C21*BL21)) ->  | DM21: =IF(Köpek!$B21="","",IF(Köpek!$C21="","",Köpek!$C21*BM21)) ->  | DN21: =IF(Köpek!$B21="","",IF(Köpek!$C21="","",Köpek!$C21*BN21)) ->  | DO21: =IF(Köpek!$B21="","",IF(Köpek!$C21="","",Köpek!$C21*BO21)) ->  | DP21: =IF(Köpek!$B21="","",IF(Köpek!$C21="","",Köpek!$C21*BP21)) ->  | DQ21: =IF(Köpek!$B21="","",IF(Köpek!$C21="","",Köpek!$C21*BQ21)) ->  | DR21: =IF(Köpek!$B21="","",IF(Köpek!$C21="","",Köpek!$C21*BR21)) ->  | DS21: =IF(Köpek!$B21="","",IF(Köpek!$C21="","",Köpek!$C21*BS21)) ->  | DT21: =IF(Köpek!$B21="","",IF(Köpek!$C21="","",Köpek!$C21*BT21*1000)) ->  | DU21: =IF(Köpek!$B21="","",IF(Köpek!$C21="","",Köpek!$C21*BU21*1000)) ->  | DV21: =IF(Köpek!$B21="","",IF(Köpek!$C21="","",Köpek!$C21*BV21)) ->  | DW21: =IF(Köpek!$B21="","",IF(Köpek!$C21="","",Köpek!$C21*BW21*10)) ->  | DX21: =IF(Köpek!$B21="","",IF(Köpek!$C21="","",Köpek!$C21*BX21*10)) ->  | DY21: =IF(Köpek!$B21="","",IF(Köpek!$C21="","",Köpek!$C21*BY21*10)) ->  | DZ21: =IF(Köpek!$B21="","",IF(Köpek!$C21="","",Köpek!$C21*BZ21*10)) ->  | EA21: =IF(Köpek!$B21="","",IF(Köpek!$C21="","",Köpek!$C21*CA21*10)) ->  | EB21: =IF(Köpek!$B21="","",IF(Köpek!$C21="","",Köpek!$C21*CB21*10)) ->  | EC21: =IF(Köpek!$B21="","",IF(Köpek!$C21="","",Köpek!$C21*CC21)) ->  | EE21: Böcek unu, bufalo kurdu unu (Alphitobius diaperinus) | EF21: 92 | EG21: 61 | EH21: 21 | EJ21: 4 | EK21: 5.2 | EL21: 5.2 | EM21: 1.1 | EP21: =26/EH21 -> 1.238095238 | EQ21: =0.8/EH21 -> 0.0380952381 | ES21: 3.9 | ET21: 3.7 | EU21: 3.65 | EV21: 5.3 | EW21: 5 | EX21: 1 | EZ21: 4 | FB21: 3.2 | FC21: 0.5 | FE21: 3.8 | FF21: =0.02*0.93 -> 0.0186 | FG21: =0.29*0.93 -> 0.2697 | FI21: =0.08*0.93 -> 0.0744 | FJ21: =0.34*0.93 -> 0.3162 | FK21: =0.05*0.93 -> 0.0465 | FL21: =0.19*0.93 -> 0.1767 | FN21: =6.1*0.93 -> 5.673 | FO21: =0.17*0.93 -> 0.1581 | FP21: =20.6*0.93 -> 19.158 | FQ21: =5.2*0.93 -> 4.836 | FR21: =0.25*0.93 -> 0.2325 | FS21: =52*0.93 -> 48.36 | FT21: =0.3*0.93 -> 0.279 | FU21: =1844*0.93 -> 1714.92 | FV21: =1.6*0.93 -> 1.488 | FW21: =40.7*0.93 -> 37.851 | FX21: =26.2*0.93 -> 24.366 | FY21: =8.1*0.93 -> 7.533 | FZ21: =2.4*0.93 -> 2.232 | GA21: =8.1*0.93 -> 7.533 | GB21: =5*0.93/1000 -> 0.00465 | GE21: 4 | GF21: =34/(EH21) -> 1.619047619 | GG21: =29.6/(EH21) -> 1.40952381 | GH21: =26.6/EH21 -> 1.266666667 | GI21: =EQ21 -> 0.0380952381 | GJ21: 395 | GK21: EY | GM21: Yetişkin ise | GN21: =IF(OR(Q3="Yetişkin", Q3="Gebe dişi", Q3="Emziren dişi")=TRUE, IF(Q10="Aktif",GO13,GO14) *Q5^0.75 + IF(Q3="Gebe dişi", GP33, IF(Q3="Emziren dişi",GP34,0)), "Yetişkin değil") -> 621.9193267 | GW21: Bullmastiff | GX21: 45 | GY21: 60 | GZ21: 52.5 | HA21: Dev | HF21: Potasyum, g | HG21: 0.6219193267 | HH21: 1.1 | HI21: 1.1 | HJ21: 1 | HK21: 0.9 | HQ21: 7 | HR21: 0.8 | HT21: Cornish Rex | HU21: 3.4 | HW21: Potasyum, g | HX21: 0.5724567144 | HY21: 1 | HZ21: 1.3 | IA21: 1.3 | IB21: 1.3
A22: =Köpek!A22 -> 0 | B22: =Köpek!B22 -> 0 | C22: =Köpek!C22 -> 0 | D22: =B63 -> Klorid, mg | E22: =Köpek!E22 -> 186.575798 | F22: =DE1 -> 0 | G22: EKSİK | H22: =(F22/10)/(C2*1000) -> 0 | I22: 0 | J22: 0 | O22: =(((F15*100/(F3))*9.5)/(F5*100/(F3))) -> 0.2121020096 | Q22: =O22/SUM(O21:O23) -> 0.2402507667 | S22: Yağdan | U22: YetişkinİnaktifBüyük | V22: 1 | Y22: Hayvansal kaynaklı yiyecekler | AA22: 0 | AC22: 0 | CE22: =IF(Köpek!$B22="","",IF(Köpek!$C22="","",Köpek!$C22*AD22*10)) ->  | CF22: =IF(Köpek!$B22="","",IF(Köpek!$C22="","", IF(KKSecim="Köpek", Köpek!$C22*AE22*1000, Köpek!$C22*AF22*1000) ) ) ->  | CG22: =IF(Köpek!$B22="","",IF(Köpek!$C22="","",Köpek!$C22*AG22*10)) ->  | CH22: =IF(Köpek!$B22="","",IF(Köpek!$C22="","",Köpek!$C22*AH22*10)) ->  | CI22: =IF(Köpek!$B22="","",IF(Köpek!$C22="","",Köpek!$C22*AI22*10)) ->  | CJ22: =IF(Köpek!$B22="","",IF(Köpek!$C22="","",Köpek!$C22*AJ22*10)) ->  | CK22: =IF(Köpek!$B22="","",IF(Köpek!$C22="","",Köpek!$C22*AK22*10)) ->  | CL22: =IF(Köpek!$B22="","",IF(Köpek!$C22="","",Köpek!$C22*AL22*10)) ->  | CM22: =IF(Köpek!$B22="","",IF(Köpek!$C22="","",Köpek!$C22*AM22*10)) ->  | CN22: =IF(Köpek!$B22="","",IF(Köpek!$C22="","",Köpek!$C22*AN22*10)) ->  | CO22: =IF(Köpek!$B22="","",IF(Köpek!$C22="","",Köpek!$C22*AO22*10)) ->  | CP22: =IF(Köpek!$B22="","",IF(Köpek!$C22="","",Köpek!$C22*AP22*10)) ->  | CQ22: =IF(Köpek!$B22="","",IF(Köpek!$C22="","",Köpek!$C22*AQ22*10)) ->  | CR22: =IF(Köpek!$B22="","",IF(Köpek!$C22="","",Köpek!$C22*AR22*10)) ->  | CS22: =IF(Köpek!$B22="","",IF(Köpek!$C22="","",Köpek!$C22*AS22*10)) ->  | CT22: =IF(Köpek!$B22="","",IF(Köpek!$C22="","",Köpek!$C22*AT22*10)) ->  | CU22: =IF(Köpek!$B22="","",IF(Köpek!$C22="","",Köpek!$C22*AU22*10)) ->  | CV22: =IF(Köpek!$B22="","",IF(Köpek!$C22="","",Köpek!$C22*AV22*10)) ->  | CW22: =IF(Köpek!$B22="","",IF(Köpek!$C22="","",Köpek!$C22*AW22*10)) ->  | CX22: =IF(Köpek!$B22="","",IF(Köpek!$C22="","",Köpek!$C22*AX22*10)) ->  | CY22: =IF(Köpek!$B22="","",IF(Köpek!$C22="","",Köpek!$C22*AY22*10)) ->  | CZ22: =IF(Köpek!$B22="","",IF(Köpek!$C22="","",Köpek!$C22*AZ22*10)) ->  | DA22: =IF(Köpek!$B22="","",IF(Köpek!$C22="","",Köpek!$C22*BA22*10)) ->  | DB22: =IF(Köpek!$B22="","",IF(Köpek!$C22="","",Köpek!$C22*BB22*10000)) ->  | DC22: =IF(Köpek!$B22="","",IF(Köpek!$C22="","",Köpek!$C22*BC22*10000)) ->  | DD22: =IF(Köpek!$B22="","",IF(Köpek!$C22="","",Köpek!$C22*BD22*10)) ->  | DE22: =IF(Köpek!$B22="","",IF(Köpek!$C22="","",Köpek!$C22*BE22*10000)) ->  | DF22: =IF(Köpek!$B22="","",IF(Köpek!$C22="","",Köpek!$C22*BF22)) ->  | DG22: =IF(Köpek!$B22="","",IF(Köpek!$C22="","",Köpek!$C22*BG22)) ->  | DH22: =IF(Köpek!$B22="","",IF(Köpek!$C22="","",Köpek!$C22*BH22)) ->  | DI22: =IF(Köpek!$B22="","",IF(Köpek!$C22="","",Köpek!$C22*BI22)) ->  | DJ22: =IF(Köpek!$B22="","",IF(Köpek!$C22="","",Köpek!$C22*BJ22*1000)) ->  | DK22: =IF(Köpek!$B22="","",IF(Köpek!$C22="","",Köpek!$C22*BK22)) ->  | DL22: =IF(Köpek!$B22="","",IF(Köpek!$C22="","",Köpek!$C22*BL22)) ->  | DM22: =IF(Köpek!$B22="","",IF(Köpek!$C22="","",Köpek!$C22*BM22)) ->  | DN22: =IF(Köpek!$B22="","",IF(Köpek!$C22="","",Köpek!$C22*BN22)) ->  | DO22: =IF(Köpek!$B22="","",IF(Köpek!$C22="","",Köpek!$C22*BO22)) ->  | DP22: =IF(Köpek!$B22="","",IF(Köpek!$C22="","",Köpek!$C22*BP22)) ->  | DQ22: =IF(Köpek!$B22="","",IF(Köpek!$C22="","",Köpek!$C22*BQ22)) ->  | DR22: =IF(Köpek!$B22="","",IF(Köpek!$C22="","",Köpek!$C22*BR22)) ->  | DS22: =IF(Köpek!$B22="","",IF(Köpek!$C22="","",Köpek!$C22*BS22)) ->  | DT22: =IF(Köpek!$B22="","",IF(Köpek!$C22="","",Köpek!$C22*BT22*1000)) ->  | DU22: =IF(Köpek!$B22="","",IF(Köpek!$C22="","",Köpek!$C22*BU22*1000)) ->  | DV22: =IF(Köpek!$B22="","",IF(Köpek!$C22="","",Köpek!$C22*BV22)) ->  | DW22: =IF(Köpek!$B22="","",IF(Köpek!$C22="","",Köpek!$C22*BW22*10)) ->  | DX22: =IF(Köpek!$B22="","",IF(Köpek!$C22="","",Köpek!$C22*BX22*10)) ->  | DY22: =IF(Köpek!$B22="","",IF(Köpek!$C22="","",Köpek!$C22*BY22*10)) ->  | DZ22: =IF(Köpek!$B22="","",IF(Köpek!$C22="","",Köpek!$C22*BZ22*10)) ->  | EA22: =IF(Köpek!$B22="","",IF(Köpek!$C22="","",Köpek!$C22*CA22*10)) ->  | EB22: =IF(Köpek!$B22="","",IF(Köpek!$C22="","",Köpek!$C22*CB22*10)) ->  | EC22: =IF(Köpek!$B22="","",IF(Köpek!$C22="","",Köpek!$C22*CC22)) ->  | EE22: Böcek unu, un kurdu unu (Tenebrio molitor) | EF22: 93 | EG22: =(46.44+48.82)/2*0.93 -> 44.2959 | EH22: =(32.7+36.85)/2*0.93 -> 32.34075 | EI22: =4.58*0.93 -> 4.2594 | EJ22: =(2.86+3.27)/2*0.93 -> 2.85045 | EK22: 4.8 | EL22: 4.8 | EM22: 2.7 | EP22: =30.9/EH22 -> 0.9554509404 | EQ22: =1.4/EH22 -> 0.04328903937 | ET22: =(31.6/100*0.93)/(EG22/100) -> 0.6634474071 | EU22: =(50.3/100*0.93)/(EG22/100) -> 1.056057107 | EV22: =(106.4/100*0.93)/(EG22/100) -> 2.233886206 | EW22: =(54.5/100*0.93)/(EG22/100) -> 1.144236826 | EX22: =(12.8/100*0.93)/(EG22/100) -> 0.2687381902 | EY22: =(8.6/100*0.93)/(EG22/100) -> 0.1805584716 | EZ22: =(36.33/100*0.93)/(EG22/100) -> 0.7627545664 | FA22: =(73.47/100*0.93)/(EG22/100) -> 1.542515221 | FB22: =(41.8/100*0.93)/(EG22/100) -> 0.8775981524 | FC22: =(8/100*0.93)/(EG22/100) -> 0.1679613689 | FD22: =80/10000*0.93 -> 0.00744 | FE22: =(58.8/100*0.93)/(EG22/100) -> 1.234516061 | FF22: 1.65 | FI22: =0.08*0.93 -> 0.0744 | FJ22: =0.34*0.93 -> 0.3162 | FK22: 0.1 | FL22: =0.19*0.93 -> 0.1767 | FN22: =6.1*0.93 -> 5.673 | FO22: =0.17*0.93 -> 0.1581 | FP22: =20.6*0.93 -> 19.158 | FQ22: =5.2*0.93 -> 4.836 | FR22: =0.25*0.93 -> 0.2325 | FS22: =52*0.93 -> 48.36 | FT22: =0.3*0.93 -> 0.279 | FU22: =1844*0.93 -> 1714.92 | FV22: =1.6*0.93 -> 1.488 | FW22: =40.7*0.93 -> 37.851 | FX22: =26.2*0.93 -> 24.366 | FY22: =8.1*0.93 -> 7.533 | FZ22: =2.4*0.93 -> 2.232 | GA22: =8.1*0.93 -> 7.533 | GB22: =5*0.93/1000 -> 0.00465 | GE22: 4 | GF22: =0.223*(EH22/100) -> 0.0721198725 | GG22: =0.323*(EH22/100) -> 0.1044606225 | GH22: =EP22+ER22 -> 0.9554509404 | GI22: =EQ22 -> 0.04328903937 | GJ22: 300 | GK22: EZ | GM22: Enerji İhtiyacı | GN22: =IF(Q3="Yavru", IF(Q4<5,GP25, IF(Q4<15,GP26,GP27) ) * IF(Q10="İnaktif",0.9,1), IF(OR(Q3="Yetişkin", Q3="Gebe dişi", Q3="Emziren dişi")=TRUE, IF(Q10="Aktif",GO13,GO14) *Q5^0.75 + IF(Q3="Gebe dişi", GP33, IF(Q3="Emziren dişi",GP34,0)), 0) ) -> 621.9193267 | GW22: Cavalier King Charles Spaniel | GX22: 5 | GY22: 8 | GZ22: 6.5 | HA22: Küçük | HF22: Klorid, mg | HG22: =IF(HI$2=1,HH22, IF(HI$2=2,HI22, IF(HI$2=3,HJ22, IF(HI$2=4,HK22, "YOK")))) * HG$5/1000 -> 186.575798 | HH22: 725 | HI22: 725 | HJ22: 300 | HK22: 750 | HT22: Cymric | HU22: 4.4 | HW22: Klorid, mg | HX22: =IF(HX$2=1,HY22, IF(HX$2=2,HZ22, IF(HX$2=3,IA22, IF(HX$2=4,IB22, "YOK")))) * HX$5/1000 -> 440.3513188 | HY22: 225 | HZ22: 240 | IA22: 1000 | IB22: 1000
A23: =Köpek!A23 -> 0 | B23: =Köpek!B23 -> 0 | C23: =Köpek!C23 -> 0 | D23: =B65 -> Bakır, mg | E23: =Köpek!E23 -> 0.93287899 | F23: =DG1 -> 0.34296 | G23: =IF(E23=0,"", IF(F23<E23*0.99,"EKSİK", IF(F23>E23*1.2,"FAZLA", "TAMAM")) ) -> EKSİK | H23: =(F23*100)/(C2*1000) -> 0.106344186 | I23: 0.2394415265 | J23: 0.05513826367 | O23: =(((F8*100/(F3))*3.5)/(F5*100/(F3))) -> 0.4815459807 | Q23: =O23/SUM(O21:O23) -> 0.5454535356 | S23: Karbonhidrattan | U23: Gebe dişiİnaktifBüyük | V23: 4 | Y23: Bitkisel kaynaklı yiyecekler | AA23: 0 | AC23: 0 | AD23: =IF($AC23=0,"",VLOOKUP($AC23,$EE$3:$GJ$510,AD$1,FALSE)) ->  | AN23: =IF($AC23=0,"",VLOOKUP($AC23,$EE$3:$GJ$510,AN$1,FALSE)) ->  | AX23: =IF($AC23=0,"",VLOOKUP($AC23,$EE$3:$GJ$510,AX$1,FALSE)) ->  | BH23: =IF($AC23=0,"",VLOOKUP($AC23,$EE$3:$GJ$510,BH$1,FALSE)) ->  | BR23: =IF($AC23=0,"",VLOOKUP($AC23,$EE$3:$GJ$510,BR$1,FALSE)) ->  | CE23: =IF(Köpek!$B23="","",IF(Köpek!$C23="","",Köpek!$C23*AD23*10)) ->  | CF23: =IF(Köpek!$B23="","",IF(Köpek!$C23="","", IF(KKSecim="Köpek", Köpek!$C23*AE23*1000, Köpek!$C23*AF23*1000) ) ) ->  | CG23: =IF(Köpek!$B23="","",IF(Köpek!$C23="","",Köpek!$C23*AG23*10)) ->  | CH23: =IF(Köpek!$B23="","",IF(Köpek!$C23="","",Köpek!$C23*AH23*10)) ->  | CI23: =IF(Köpek!$B23="","",IF(Köpek!$C23="","",Köpek!$C23*AI23*10)) ->  | CJ23: =IF(Köpek!$B23="","",IF(Köpek!$C23="","",Köpek!$C23*AJ23*10)) ->  | CK23: =IF(Köpek!$B23="","",IF(Köpek!$C23="","",Köpek!$C23*AK23*10)) ->  | CL23: =IF(Köpek!$B23="","",IF(Köpek!$C23="","",Köpek!$C23*AL23*10)) ->  | CM23: =IF(Köpek!$B23="","",IF(Köpek!$C23="","",Köpek!$C23*AM23*10)) ->  | CN23: =IF(Köpek!$B23="","",IF(Köpek!$C23="","",Köpek!$C23*AN23*10)) ->  | CO23: =IF(Köpek!$B23="","",IF(Köpek!$C23="","",Köpek!$C23*AO23*10)) ->  | CP23: =IF(Köpek!$B23="","",IF(Köpek!$C23="","",Köpek!$C23*AP23*10)) ->  | CQ23: =IF(Köpek!$B23="","",IF(Köpek!$C23="","",Köpek!$C23*AQ23*10)) ->  | CR23: =IF(Köpek!$B23="","",IF(Köpek!$C23="","",Köpek!$C23*AR23*10)) ->  | CS23: =IF(Köpek!$B23="","",IF(Köpek!$C23="","",Köpek!$C23*AS23*10)) ->  | CT23: =IF(Köpek!$B23="","",IF(Köpek!$C23="","",Köpek!$C23*AT23*10)) ->  | CU23: =IF(Köpek!$B23="","",IF(Köpek!$C23="","",Köpek!$C23*AU23*10)) ->  | CV23: =IF(Köpek!$B23="","",IF(Köpek!$C23="","",Köpek!$C23*AV23*10)) ->  | CW23: =IF(Köpek!$B23="","",IF(Köpek!$C23="","",Köpek!$C23*AW23*10)) ->  | CX23: =IF(Köpek!$B23="","",IF(Köpek!$C23="","",Köpek!$C23*AX23*10)) ->  | CY23: =IF(Köpek!$B23="","",IF(Köpek!$C23="","",Köpek!$C23*AY23*10)) ->  | CZ23: =IF(Köpek!$B23="","",IF(Köpek!$C23="","",Köpek!$C23*AZ23*10)) ->  | DA23: =IF(Köpek!$B23="","",IF(Köpek!$C23="","",Köpek!$C23*BA23*10)) ->  | DB23: =IF(Köpek!$B23="","",IF(Köpek!$C23="","",Köpek!$C23*BB23*10000)) ->  | DC23: =IF(Köpek!$B23="","",IF(Köpek!$C23="","",Köpek!$C23*BC23*10000)) ->  | DD23: =IF(Köpek!$B23="","",IF(Köpek!$C23="","",Köpek!$C23*BD23*10)) ->  | DE23: =IF(Köpek!$B23="","",IF(Köpek!$C23="","",Köpek!$C23*BE23*10000)) ->  | DF23: =IF(Köpek!$B23="","",IF(Köpek!$C23="","",Köpek!$C23*BF23)) ->  | DG23: =IF(Köpek!$B23="","",IF(Köpek!$C23="","",Köpek!$C23*BG23)) ->  | DH23: =IF(Köpek!$B23="","",IF(Köpek!$C23="","",Köpek!$C23*BH23)) ->  | DI23: =IF(Köpek!$B23="","",IF(Köpek!$C23="","",Köpek!$C23*BI23)) ->  | DJ23: =IF(Köpek!$B23="","",IF(Köpek!$C23="","",Köpek!$C23*BJ23*1000)) ->  | DK23: =IF(Köpek!$B23="","",IF(Köpek!$C23="","",Köpek!$C23*BK23)) ->  | DL23: =IF(Köpek!$B23="","",IF(Köpek!$C23="","",Köpek!$C23*BL23)) ->  | DM23: =IF(Köpek!$B23="","",IF(Köpek!$C23="","",Köpek!$C23*BM23)) ->  | DN23: =IF(Köpek!$B23="","",IF(Köpek!$C23="","",Köpek!$C23*BN23)) ->  | DO23: =IF(Köpek!$B23="","",IF(Köpek!$C23="","",Köpek!$C23*BO23)) ->  | DP23: =IF(Köpek!$B23="","",IF(Köpek!$C23="","",Köpek!$C23*BP23)) ->  | DQ23: =IF(Köpek!$B23="","",IF(Köpek!$C23="","",Köpek!$C23*BQ23)) ->  | DR23: =IF(Köpek!$B23="","",IF(Köpek!$C23="","",Köpek!$C23*BR23)) ->  | DS23: =IF(Köpek!$B23="","",IF(Köpek!$C23="","",Köpek!$C23*BS23)) ->  | DT23: =IF(Köpek!$B23="","",IF(Köpek!$C23="","",Köpek!$C23*BT23*1000)) ->  | DU23: =IF(Köpek!$B23="","",IF(Köpek!$C23="","",Köpek!$C23*BU23*1000)) ->  | DV23: =IF(Köpek!$B23="","",IF(Köpek!$C23="","",Köpek!$C23*BV23)) ->  | DW23: =IF(Köpek!$B23="","",IF(Köpek!$C23="","",Köpek!$C23*BW23*10)) ->  | DX23: =IF(Köpek!$B23="","",IF(Köpek!$C23="","",Köpek!$C23*BX23*10)) ->  | DY23: =IF(Köpek!$B23="","",IF(Köpek!$C23="","",Köpek!$C23*BY23*10)) ->  | DZ23: =IF(Köpek!$B23="","",IF(Köpek!$C23="","",Köpek!$C23*BZ23*10)) ->  | EA23: =IF(Köpek!$B23="","",IF(Köpek!$C23="","",Köpek!$C23*CA23*10)) ->  | EB23: =IF(Köpek!$B23="","",IF(Köpek!$C23="","",Köpek!$C23*CB23*10)) ->  | EC23: =IF(Köpek!$B23="","",IF(Köpek!$C23="","",Köpek!$C23*CC23)) ->  | EE23: Dana eti, yağsız (< %5 yağ), çiğ | EF23: 26.8 | EG23: 21.5 | EH23: 4.3 | EJ23: 1 | EK23: 1.25 | EL23: 1.25 | EP23: 0.081 | EQ23: 0.052 | ER23: 0.04 | ES23: 1.32 | ET23: 0.764 | EU23: 1.04 | EV23: 1.7 | EW23: 1.84 | EX23: 0.556 | EY23: 0.146 | EZ23: 0.868 | FA23: 0.729 | FB23: 0.937 | FC23: 0.226 | FE23: 1.15 | FF23: 0.005 | FG23: 0.17 | FI23: 0.022 | FJ23: 0.36 | FK23: 0.05 | FN23: 0.85 | FO23: 0.008 | FP23: 21 | FQ23: 0.11 | FR23: 0.065 | FS23: 36 | FT23: 0.0087 | FV23: 0.07 | FW23: 62 | FX23: 6.2 | FY23: 1.93 | FZ23: 0.55 | GA23: 3.2 | GB23: 0.014 | GC23: 117 | GD23: 4 | GE23: 2.3 | GF23: 1.808 | GG23: 0.173 | GH23: 0.121 | GI23: 0.052 | GJ23: 400 | GK23: FA | GW23: Chesapeake Bay Retriever | GX23: 25 | GY23: 36 | GZ23: 30.5 | HA23: İri | HF23: Bakır, mg | HG23: 0.93287899 | HH23: 2.75 | HI23: 2.75 | HJ23: 1.5 | HK23: 3.1 | HT23: Devon Rex | HU23: 3.6 | HW23: Bakır, mg | HX23: 0.9687729013 | HY23: 2.1 | HZ23: 1.2 | IA23: 2.2 | IB23: 2.2
A24: =Köpek!A24 -> 0 | B24: =Köpek!B24 -> 0 | C24: =Köpek!C24 -> 0 | D24: =B66 -> Çinko, mg | E24: =Köpek!E24 -> 9.3287899 | F24: =DH1 -> 3.32948 | G24: =IF(E24=0,"", IF(F24<E24*0.99,"EKSİK", IF(F24>E24*1.2,"FAZLA", "TAMAM")) ) -> EKSİK | H24: =(F24*100)/(C2*1000) -> 1.032396899 | I24: 2.324515319 | J24: 0.5352861736 | U24: Emziren dişiİnaktifBüyük | V24: 4 | Y24: Mineral kaynakları | AA24: 0 | AC24: 0 | CE24: =IF(Köpek!$B24="","",IF(Köpek!$C24="","",Köpek!$C24*AD24*10)) ->  | CF24: =IF(Köpek!$B24="","",IF(Köpek!$C24="","", IF(KKSecim="Köpek", Köpek!$C24*AE24*1000, Köpek!$C24*AF24*1000) ) ) ->  | CG24: =IF(Köpek!$B24="","",IF(Köpek!$C24="","",Köpek!$C24*AG24*10)) ->  | CH24: =IF(Köpek!$B24="","",IF(Köpek!$C24="","",Köpek!$C24*AH24*10)) ->  | CI24: =IF(Köpek!$B24="","",IF(Köpek!$C24="","",Köpek!$C24*AI24*10)) ->  | CJ24: =IF(Köpek!$B24="","",IF(Köpek!$C24="","",Köpek!$C24*AJ24*10)) ->  | CK24: =IF(Köpek!$B24="","",IF(Köpek!$C24="","",Köpek!$C24*AK24*10)) ->  | CL24: =IF(Köpek!$B24="","",IF(Köpek!$C24="","",Köpek!$C24*AL24*10)) ->  | CM24: =IF(Köpek!$B24="","",IF(Köpek!$C24="","",Köpek!$C24*AM24*10)) ->  | CN24: =IF(Köpek!$B24="","",IF(Köpek!$C24="","",Köpek!$C24*AN24*10)) ->  | CO24: =IF(Köpek!$B24="","",IF(Köpek!$C24="","",Köpek!$C24*AO24*10)) ->  | CP24: =IF(Köpek!$B24="","",IF(Köpek!$C24="","",Köpek!$C24*AP24*10)) ->  | CQ24: =IF(Köpek!$B24="","",IF(Köpek!$C24="","",Köpek!$C24*AQ24*10)) ->  | CR24: =IF(Köpek!$B24="","",IF(Köpek!$C24="","",Köpek!$C24*AR24*10)) ->  | CS24: =IF(Köpek!$B24="","",IF(Köpek!$C24="","",Köpek!$C24*AS24*10)) ->  | CT24: =IF(Köpek!$B24="","",IF(Köpek!$C24="","",Köpek!$C24*AT24*10)) ->  | CU24: =IF(Köpek!$B24="","",IF(Köpek!$C24="","",Köpek!$C24*AU24*10)) ->  | CV24: =IF(Köpek!$B24="","",IF(Köpek!$C24="","",Köpek!$C24*AV24*10)) ->  | CW24: =IF(Köpek!$B24="","",IF(Köpek!$C24="","",Köpek!$C24*AW24*10)) ->  | CX24: =IF(Köpek!$B24="","",IF(Köpek!$C24="","",Köpek!$C24*AX24*10)) ->  | CY24: =IF(Köpek!$B24="","",IF(Köpek!$C24="","",Köpek!$C24*AY24*10)) ->  | CZ24: =IF(Köpek!$B24="","",IF(Köpek!$C24="","",Köpek!$C24*AZ24*10)) ->  | DA24: =IF(Köpek!$B24="","",IF(Köpek!$C24="","",Köpek!$C24*BA24*10)) ->  | DB24: =IF(Köpek!$B24="","",IF(Köpek!$C24="","",Köpek!$C24*BB24*10000)) ->  | DC24: =IF(Köpek!$B24="","",IF(Köpek!$C24="","",Köpek!$C24*BC24*10000)) ->  | DD24: =IF(Köpek!$B24="","",IF(Köpek!$C24="","",Köpek!$C24*BD24*10)) ->  | DE24: =IF(Köpek!$B24="","",IF(Köpek!$C24="","",Köpek!$C24*BE24*10000)) ->  | DF24: =IF(Köpek!$B24="","",IF(Köpek!$C24="","",Köpek!$C24*BF24)) ->  | DG24: =IF(Köpek!$B24="","",IF(Köpek!$C24="","",Köpek!$C24*BG24)) ->  | DH24: =IF(Köpek!$B24="","",IF(Köpek!$C24="","",Köpek!$C24*BH24)) ->  | DI24: =IF(Köpek!$B24="","",IF(Köpek!$C24="","",Köpek!$C24*BI24)) ->  | DJ24: =IF(Köpek!$B24="","",IF(Köpek!$C24="","",Köpek!$C24*BJ24*1000)) ->  | DK24: =IF(Köpek!$B24="","",IF(Köpek!$C24="","",Köpek!$C24*BK24)) ->  | DL24: =IF(Köpek!$B24="","",IF(Köpek!$C24="","",Köpek!$C24*BL24)) ->  | DM24: =IF(Köpek!$B24="","",IF(Köpek!$C24="","",Köpek!$C24*BM24)) ->  | DN24: =IF(Köpek!$B24="","",IF(Köpek!$C24="","",Köpek!$C24*BN24)) ->  | DO24: =IF(Köpek!$B24="","",IF(Köpek!$C24="","",Köpek!$C24*BO24)) ->  | DP24: =IF(Köpek!$B24="","",IF(Köpek!$C24="","",Köpek!$C24*BP24)) ->  | DQ24: =IF(Köpek!$B24="","",IF(Köpek!$C24="","",Köpek!$C24*BQ24)) ->  | DR24: =IF(Köpek!$B24="","",IF(Köpek!$C24="","",Köpek!$C24*BR24)) ->  | DS24: =IF(Köpek!$B24="","",IF(Köpek!$C24="","",Köpek!$C24*BS24)) ->  | DT24: =IF(Köpek!$B24="","",IF(Köpek!$C24="","",Köpek!$C24*BT24*1000)) ->  | DU24: =IF(Köpek!$B24="","",IF(Köpek!$C24="","",Köpek!$C24*BU24*1000)) ->  | DV24: =IF(Köpek!$B24="","",IF(Köpek!$C24="","",Köpek!$C24*BV24)) ->  | DW24: =IF(Köpek!$B24="","",IF(Köpek!$C24="","",Köpek!$C24*BW24*10)) ->  | DX24: =IF(Köpek!$B24="","",IF(Köpek!$C24="","",Köpek!$C24*BX24*10)) ->  | DY24: =IF(Köpek!$B24="","",IF(Köpek!$C24="","",Köpek!$C24*BY24*10)) ->  | DZ24: =IF(Köpek!$B24="","",IF(Köpek!$C24="","",Köpek!$C24*BZ24*10)) ->  | EA24: =IF(Köpek!$B24="","",IF(Köpek!$C24="","",Köpek!$C24*CA24*10)) ->  | EB24: =IF(Köpek!$B24="","",IF(Köpek!$C24="","",Köpek!$C24*CB24*10)) ->  | EC24: =IF(Köpek!$B24="","",IF(Köpek!$C24="","",Köpek!$C24*CC24)) ->  | EE24: Dana eti, %5-10 yağlı, çiğ | EF24: 29.2 | EG24: 20.4 | EH24: 7.8 | EJ24: 1 | EK24: 1.52 | EL24: 1.52 | EP24: 0.146 | EQ24: 0.095 | ER24: 0.073 | ES24: 1.28 | ET24: 0.709 | EU24: 1.01 | EV24: 1.62 | EW24: 1.76 | EX24: 0.54 | EY24: 0.145 | EZ24: 0.844 | FA24: 0.709 | FB24: 0.912 | FC24: 0.23 | FE24: 1.11 | FF24: 0.005 | FG24: 0.17 | FI24: 0.022 | FJ24: 0.325 | FK24: 0.065 | FN24: 0.83 | FO24: 0.008 | FP24: 21 | FQ24: 0.11 | FR24: 0.068 | FS24: 48 | FT24: 0.0087 | FV24: 0.073 | FW24: 62 | FX24: 6.2 | FY24: 1.74 | FZ24: 0.46 | GA24: 3.2 | GB24: 0.014 | GC24: 117 | GD24: 5 | GE24: 2.3 | GF24: 3.284 | GG24: 0.314 | GH24: 0.219 | GI24: 0.095 | GJ24: 450 | GK24: FB | GN24: Enerji ihtiyacı | GO24: İnaktif | GP24: Aktif | GR24: b | GW24: Chihuahua | GX24: 1 | GY24: 3 | GZ24: 2 | HA24: Küçük | HF24: Çinko, mg | HG24: 9.3287899 | HH24: 25 | HI24: 25 | HJ24: 15 | HK24: 24 | HR24: Potasyum, g | HT24: Don Sphynx | HU24: 4.3 | HW24: Çinko, mg | HX24: 6.605269782 | HY24: 18.75 | HZ24: 18.5 | IA24: 15 | IB24: 15
A25: =Köpek!A25 -> 0 | B25: =Köpek!B25 -> 0 | C25: =Köpek!C25 -> 0 | D25: =B64 -> Demir, mg | E25: =Köpek!E25 -> 4.66439495 | F25: =DF1 -> 4.0418 | G25: =IF(E25=0,"", IF(F25<E25*0.99,"EKSİK", IF(F25>E25*1.5,"FAZLA", "TAMAM")) ) -> EKSİK | H25: =(F25*100)/(C2*1000) -> 1.253271318 | I25: 2.82182984 | J25: 0.649807074 | U25: YavruAktifBüyük | V25: 5 | Y25: Yağlar | AA25: 0 | AC25: 0 | CE25: =IF(Köpek!$B25="","",IF(Köpek!$C25="","",Köpek!$C25*AD25*10)) ->  | CF25: =IF(Köpek!$B25="","",IF(Köpek!$C25="","", IF(KKSecim="Köpek", Köpek!$C25*AE25*1000, Köpek!$C25*AF25*1000) ) ) ->  | CG25: =IF(Köpek!$B25="","",IF(Köpek!$C25="","",Köpek!$C25*AG25*10)) ->  | CH25: =IF(Köpek!$B25="","",IF(Köpek!$C25="","",Köpek!$C25*AH25*10)) ->  | CI25: =IF(Köpek!$B25="","",IF(Köpek!$C25="","",Köpek!$C25*AI25*10)) ->  | CJ25: =IF(Köpek!$B25="","",IF(Köpek!$C25="","",Köpek!$C25*AJ25*10)) ->  | CK25: =IF(Köpek!$B25="","",IF(Köpek!$C25="","",Köpek!$C25*AK25*10)) ->  | CL25: =IF(Köpek!$B25="","",IF(Köpek!$C25="","",Köpek!$C25*AL25*10)) ->  | CM25: =IF(Köpek!$B25="","",IF(Köpek!$C25="","",Köpek!$C25*AM25*10)) ->  | CN25: =IF(Köpek!$B25="","",IF(Köpek!$C25="","",Köpek!$C25*AN25*10)) ->  | CO25: =IF(Köpek!$B25="","",IF(Köpek!$C25="","",Köpek!$C25*AO25*10)) ->  | CP25: =IF(Köpek!$B25="","",IF(Köpek!$C25="","",Köpek!$C25*AP25*10)) ->  | CQ25: =IF(Köpek!$B25="","",IF(Köpek!$C25="","",Köpek!$C25*AQ25*10)) ->  | CR25: =IF(Köpek!$B25="","",IF(Köpek!$C25="","",Köpek!$C25*AR25*10)) ->  | CS25: =IF(Köpek!$B25="","",IF(Köpek!$C25="","",Köpek!$C25*AS25*10)) ->  | CT25: =IF(Köpek!$B25="","",IF(Köpek!$C25="","",Köpek!$C25*AT25*10)) ->  | CU25: =IF(Köpek!$B25="","",IF(Köpek!$C25="","",Köpek!$C25*AU25*10)) ->  | CV25: =IF(Köpek!$B25="","",IF(Köpek!$C25="","",Köpek!$C25*AV25*10)) ->  | CW25: =IF(Köpek!$B25="","",IF(Köpek!$C25="","",Köpek!$C25*AW25*10)) ->  | CX25: =IF(Köpek!$B25="","",IF(Köpek!$C25="","",Köpek!$C25*AX25*10)) ->  | CY25: =IF(Köpek!$B25="","",IF(Köpek!$C25="","",Köpek!$C25*AY25*10)) ->  | CZ25: =IF(Köpek!$B25="","",IF(Köpek!$C25="","",Köpek!$C25*AZ25*10)) ->  | DA25: =IF(Köpek!$B25="","",IF(Köpek!$C25="","",Köpek!$C25*BA25*10)) ->  | DB25: =IF(Köpek!$B25="","",IF(Köpek!$C25="","",Köpek!$C25*BB25*10000)) ->  | DC25: =IF(Köpek!$B25="","",IF(Köpek!$C25="","",Köpek!$C25*BC25*10000)) ->  | DD25: =IF(Köpek!$B25="","",IF(Köpek!$C25="","",Köpek!$C25*BD25*10)) ->  | DE25: =IF(Köpek!$B25="","",IF(Köpek!$C25="","",Köpek!$C25*BE25*10000)) ->  | DF25: =IF(Köpek!$B25="","",IF(Köpek!$C25="","",Köpek!$C25*BF25)) ->  | DG25: =IF(Köpek!$B25="","",IF(Köpek!$C25="","",Köpek!$C25*BG25)) ->  | DH25: =IF(Köpek!$B25="","",IF(Köpek!$C25="","",Köpek!$C25*BH25)) ->  | DI25: =IF(Köpek!$B25="","",IF(Köpek!$C25="","",Köpek!$C25*BI25)) ->  | DJ25: =IF(Köpek!$B25="","",IF(Köpek!$C25="","",Köpek!$C25*BJ25*1000)) ->  | DK25: =IF(Köpek!$B25="","",IF(Köpek!$C25="","",Köpek!$C25*BK25)) ->  | DL25: =IF(Köpek!$B25="","",IF(Köpek!$C25="","",Köpek!$C25*BL25)) ->  | DM25: =IF(Köpek!$B25="","",IF(Köpek!$C25="","",Köpek!$C25*BM25)) ->  | DN25: =IF(Köpek!$B25="","",IF(Köpek!$C25="","",Köpek!$C25*BN25)) ->  | DO25: =IF(Köpek!$B25="","",IF(Köpek!$C25="","",Köpek!$C25*BO25)) ->  | DP25: =IF(Köpek!$B25="","",IF(Köpek!$C25="","",Köpek!$C25*BP25)) ->  | DQ25: =IF(Köpek!$B25="","",IF(Köpek!$C25="","",Köpek!$C25*BQ25)) ->  | DR25: =IF(Köpek!$B25="","",IF(Köpek!$C25="","",Köpek!$C25*BR25)) ->  | DS25: =IF(Köpek!$B25="","",IF(Köpek!$C25="","",Köpek!$C25*BS25)) ->  | DT25: =IF(Köpek!$B25="","",IF(Köpek!$C25="","",Köpek!$C25*BT25*1000)) ->  | DU25: =IF(Köpek!$B25="","",IF(Köpek!$C25="","",Köpek!$C25*BU25*1000)) ->  | DV25: =IF(Köpek!$B25="","",IF(Köpek!$C25="","",Köpek!$C25*BV25)) ->  | DW25: =IF(Köpek!$B25="","",IF(Köpek!$C25="","",Köpek!$C25*BW25*10)) ->  | DX25: =IF(Köpek!$B25="","",IF(Köpek!$C25="","",Köpek!$C25*BX25*10)) ->  | DY25: =IF(Köpek!$B25="","",IF(Köpek!$C25="","",Köpek!$C25*BY25*10)) ->  | DZ25: =IF(Köpek!$B25="","",IF(Köpek!$C25="","",Köpek!$C25*BZ25*10)) ->  | EA25: =IF(Köpek!$B25="","",IF(Köpek!$C25="","",Köpek!$C25*CA25*10)) ->  | EB25: =IF(Köpek!$B25="","",IF(Köpek!$C25="","",Köpek!$C25*CB25*10)) ->  | EC25: =IF(Köpek!$B25="","",IF(Köpek!$C25="","",Köpek!$C25*CC25)) ->  | EE25: Dana eti, %10-15 yağlı, çiğ | EF25: 30 | EG25: 19.4 | EH25: 9.7 | EJ25: 0.9 | EK25: 1.64 | EL25: 1.64 | EP25: 0.147 | EQ25: 0.039 | ER25: 0.073 | ES25: 1.28 | ET25: 0.709 | EU25: 1.01 | EV25: 1.62 | EW25: 1.76 | EX25: 0.54 | EY25: 0.145 | EZ25: 0.844 | FA25: 0.709 | FB25: 0.912 | FC25: 0.23 | FE25: 1.11 | FF25: 0.00689 | FG25: 0.174 | FI25: 0.0193 | FJ25: 0.302 | FK25: 0.0648 | FN25: 0.666 | FO25: 0.008 | FP25: 22.5 | FQ25: 0.085 | FR25: 0.068 | FS25: 44 | FT25: 0.0127 | FV25: 0.0963 | FW25: 39.3 | FX25: 3.4 | FY25: 1.66 | FZ25: 0.441 | GA25: 2.61 | GB25: 0.0204 | GC25: 117 | GD25: 5 | GE25: 3.93 | GF25: 2.796 | GG25: 0.185 | GH25: 0.147 | GI25: 0.039 | GJ25: 450 | GK25: FC | GM25: CA | GN25: Yeni doğan | GO25: =GP25*0.9 -> 1575 | GP25: =25*(Q5*10) -> 1750 | GW25: Chinese Shar Pei | GX25: 18 | GY25: 25 | GZ25: 21.5 | HA25: İri | HF25: Demir, mg | HG25: 4.66439495 | HH25: 22 | HI25: 22 | HJ25: 7.5 | HK25: 17.5 | HR25: Bakır, mg | HT25: Egyptian Mau | HU25: 3.8 | HW25: Demir, mg | HX25: 8.807026376 | HY25: 20 | HZ25: 20 | IA25: 20 | IB25: 20
A26: =Köpek!A26 -> 0 | B26: =Köpek!B26 -> 0 | C26: =Köpek!C26 -> 0 | D26: =B69 -> İyot, mg | E26: =Köpek!E26 -> 0.1368222519 | F26: =DK1 -> 0.03576 | G26: =IF(E26=0,"", IF(F26<E26*0.99,"EKSİK", IF(F26>E26*1.1,"FAZLA", "TAMAM")) ) -> EKSİK | H26: =(F26*100)/(C2*1000) -> 0.01108837209 | I26: 0.02496626134 | J26: 0.005749196141 | U26: YetişkinAktifBüyük | V26: 2 | AA26: 0 | AC26: 0 | CE26: =IF(Köpek!$B26="","",IF(Köpek!$C26="","",Köpek!$C26*AD26*10)) ->  | CF26: =IF(Köpek!$B26="","",IF(Köpek!$C26="","", IF(KKSecim="Köpek", Köpek!$C26*AE26*1000, Köpek!$C26*AF26*1000) ) ) ->  | CG26: =IF(Köpek!$B26="","",IF(Köpek!$C26="","",Köpek!$C26*AG26*10)) ->  | CH26: =IF(Köpek!$B26="","",IF(Köpek!$C26="","",Köpek!$C26*AH26*10)) ->  | CI26: =IF(Köpek!$B26="","",IF(Köpek!$C26="","",Köpek!$C26*AI26*10)) ->  | CJ26: =IF(Köpek!$B26="","",IF(Köpek!$C26="","",Köpek!$C26*AJ26*10)) ->  | CK26: =IF(Köpek!$B26="","",IF(Köpek!$C26="","",Köpek!$C26*AK26*10)) ->  | CL26: =IF(Köpek!$B26="","",IF(Köpek!$C26="","",Köpek!$C26*AL26*10)) ->  | CM26: =IF(Köpek!$B26="","",IF(Köpek!$C26="","",Köpek!$C26*AM26*10)) ->  | CN26: =IF(Köpek!$B26="","",IF(Köpek!$C26="","",Köpek!$C26*AN26*10)) ->  | CO26: =IF(Köpek!$B26="","",IF(Köpek!$C26="","",Köpek!$C26*AO26*10)) ->  | CP26: =IF(Köpek!$B26="","",IF(Köpek!$C26="","",Köpek!$C26*AP26*10)) ->  | CQ26: =IF(Köpek!$B26="","",IF(Köpek!$C26="","",Köpek!$C26*AQ26*10)) ->  | CR26: =IF(Köpek!$B26="","",IF(Köpek!$C26="","",Köpek!$C26*AR26*10)) ->  | CS26: =IF(Köpek!$B26="","",IF(Köpek!$C26="","",Köpek!$C26*AS26*10)) ->  | CT26: =IF(Köpek!$B26="","",IF(Köpek!$C26="","",Köpek!$C26*AT26*10)) ->  | CU26: =IF(Köpek!$B26="","",IF(Köpek!$C26="","",Köpek!$C26*AU26*10)) ->  | CV26: =IF(Köpek!$B26="","",IF(Köpek!$C26="","",Köpek!$C26*AV26*10)) ->  | CW26: =IF(Köpek!$B26="","",IF(Köpek!$C26="","",Köpek!$C26*AW26*10)) ->  | CX26: =IF(Köpek!$B26="","",IF(Köpek!$C26="","",Köpek!$C26*AX26*10)) ->  | CY26: =IF(Köpek!$B26="","",IF(Köpek!$C26="","",Köpek!$C26*AY26*10)) ->  | CZ26: =IF(Köpek!$B26="","",IF(Köpek!$C26="","",Köpek!$C26*AZ26*10)) ->  | DA26: =IF(Köpek!$B26="","",IF(Köpek!$C26="","",Köpek!$C26*BA26*10)) ->  | DB26: =IF(Köpek!$B26="","",IF(Köpek!$C26="","",Köpek!$C26*BB26*10000)) ->  | DC26: =IF(Köpek!$B26="","",IF(Köpek!$C26="","",Köpek!$C26*BC26*10000)) ->  | DD26: =IF(Köpek!$B26="","",IF(Köpek!$C26="","",Köpek!$C26*BD26*10)) ->  | DE26: =IF(Köpek!$B26="","",IF(Köpek!$C26="","",Köpek!$C26*BE26*10000)) ->  | DF26: =IF(Köpek!$B26="","",IF(Köpek!$C26="","",Köpek!$C26*BF26)) ->  | DG26: =IF(Köpek!$B26="","",IF(Köpek!$C26="","",Köpek!$C26*BG26)) ->  | DH26: =IF(Köpek!$B26="","",IF(Köpek!$C26="","",Köpek!$C26*BH26)) ->  | DI26: =IF(Köpek!$B26="","",IF(Köpek!$C26="","",Köpek!$C26*BI26)) ->  | DJ26: =IF(Köpek!$B26="","",IF(Köpek!$C26="","",Köpek!$C26*BJ26*1000)) ->  | DK26: =IF(Köpek!$B26="","",IF(Köpek!$C26="","",Köpek!$C26*BK26)) ->  | DL26: =IF(Köpek!$B26="","",IF(Köpek!$C26="","",Köpek!$C26*BL26)) ->  | DM26: =IF(Köpek!$B26="","",IF(Köpek!$C26="","",Köpek!$C26*BM26)) ->  | DN26: =IF(Köpek!$B26="","",IF(Köpek!$C26="","",Köpek!$C26*BN26)) ->  | DO26: =IF(Köpek!$B26="","",IF(Köpek!$C26="","",Köpek!$C26*BO26)) ->  | DP26: =IF(Köpek!$B26="","",IF(Köpek!$C26="","",Köpek!$C26*BP26)) ->  | DQ26: =IF(Köpek!$B26="","",IF(Köpek!$C26="","",Köpek!$C26*BQ26)) ->  | DR26: =IF(Köpek!$B26="","",IF(Köpek!$C26="","",Köpek!$C26*BR26)) ->  | DS26: =IF(Köpek!$B26="","",IF(Köpek!$C26="","",Köpek!$C26*BS26)) ->  | DT26: =IF(Köpek!$B26="","",IF(Köpek!$C26="","",Köpek!$C26*BT26*1000)) ->  | DU26: =IF(Köpek!$B26="","",IF(Köpek!$C26="","",Köpek!$C26*BU26*1000)) ->  | DV26: =IF(Köpek!$B26="","",IF(Köpek!$C26="","",Köpek!$C26*BV26)) ->  | DW26: =IF(Köpek!$B26="","",IF(Köpek!$C26="","",Köpek!$C26*BW26*10)) ->  | DX26: =IF(Köpek!$B26="","",IF(Köpek!$C26="","",Köpek!$C26*BX26*10)) ->  | DY26: =IF(Köpek!$B26="","",IF(Köpek!$C26="","",Köpek!$C26*BY26*10)) ->  | DZ26: =IF(Köpek!$B26="","",IF(Köpek!$C26="","",Köpek!$C26*BZ26*10)) ->  | EA26: =IF(Köpek!$B26="","",IF(Köpek!$C26="","",Köpek!$C26*CA26*10)) ->  | EB26: =IF(Köpek!$B26="","",IF(Köpek!$C26="","",Köpek!$C26*CB26*10)) ->  | EC26: =IF(Köpek!$B26="","",IF(Köpek!$C26="","",Köpek!$C26*CC26)) ->  | EE26: Dana eti, % 15-20 yağlı, çiğ | EF26: 34.9 | EG26: 17.8 | EH26: 16.2 | EJ26: 0.9 | EK26: 2.17 | EL26: 2.17 | EP26: 0.331 | EQ26: 0.084 | ER26: 0.131 | ES26: 1.17 | ET26: 0.662 | EU26: 0.946 | EV26: 1.48 | EW26: 1.64 | EX26: 0.473 | EY26: 0.142 | EZ26: 0.756 | FA26: 0.63 | FB26: 0.82 | FC26: 0.224 | FE26: 1.01 | FF26: 0.00816 | FG26: 0.162 | FI26: 0.0176 | FJ26: 0.277 | FK26: 0.0652 | FN26: 0.617 | FO26: 0.01 | FP26: 19.7 | FQ26: 0.0871 | FR26: 0.065 | FS26: 39.1 | FT26: 0.0128 | FV26: 0.0921 | FW26: 37.4 | FX26: 3.1 | FY26: 1.5 | FZ26: 0.43 | GA26: 2.38 | GB26: 0.0182 | GC26: 124 | GD26: 6 | GE26: 4.03 | GF26: 6.921 | GG26: 0.416 | GH26: 0.331 | GI26: 0.084 | GJ26: 400 | GK26: FD | GM26: CA, ECA | GN26: 4-14 haftalık | GO26: =GP26*0.9 -> 591.4563609 | GP26: =130*Q5^0.75*3.2*(EXP(-0.87*(Q5/GN18))-0.1) -> 657.1737343 | GR26: 130 | GW26: Chow Chow | GX26: 25 | GY26: 32 | GZ26: 28.5 | HA26: İri | HF26: İyot, mg | HG26: =IF(HI$2=1,HH26, IF(HI$2=2,HI26, IF(HI$2=3,HJ26, IF(HI$2=4,HK26, "YOK")))) * HG$5/1000/1000 -> 0.1368222519 | HH26: 220 | HI26: 220 | HJ26: 220 | HK26: 220 | HR26: Çinko, mg | HT26: Elf cat | HU26: 3.9 | HW26: İyot,mg | HX26: =IF(HX$2=1,HY26, IF(HX$2=2,HZ26, IF(HX$2=3,IA26, IF(HX$2=4,IB26, "YOK")))) * HX$5/1000/1000 -> 0.1981580935 | HY26: 450 | HZ26: 350 | IA26: 450 | IB26: 450
A27: =Köpek!A27 -> 0 | B27: =Köpek!B27 -> 0 | C27: =Köpek!C27 -> 0 | D27: =B67 -> Manganez, mg | E27: =Köpek!E27 -> 0.746303192 | F27: =DI1 -> 1.42796 | G27: =IF(E27=0,"", IF(F27<E27*0.99,"EKSİK", IF(F27>E27*1.2,"FAZLA", "TAMAM")) ) -> FAZLA | H27: =(F27*100)/(C2*1000) -> 0.4427782946 | I27: 0.996946939 | J27: 0.2295755627 | U27: Gebe dişiAktifBüyük | V27: 4 | AA27: 0 | AC27: 0 | CE27: =IF(Köpek!$B27="","",IF(Köpek!$C27="","",Köpek!$C27*AD27*10)) ->  | CF27: =IF(Köpek!$B27="","",IF(Köpek!$C27="","", IF(KKSecim="Köpek", Köpek!$C27*AE27*1000, Köpek!$C27*AF27*1000) ) ) ->  | CG27: =IF(Köpek!$B27="","",IF(Köpek!$C27="","",Köpek!$C27*AG27*10)) ->  | CH27: =IF(Köpek!$B27="","",IF(Köpek!$C27="","",Köpek!$C27*AH27*10)) ->  | CI27: =IF(Köpek!$B27="","",IF(Köpek!$C27="","",Köpek!$C27*AI27*10)) ->  | CJ27: =IF(Köpek!$B27="","",IF(Köpek!$C27="","",Köpek!$C27*AJ27*10)) ->  | CK27: =IF(Köpek!$B27="","",IF(Köpek!$C27="","",Köpek!$C27*AK27*10)) ->  | CL27: =IF(Köpek!$B27="","",IF(Köpek!$C27="","",Köpek!$C27*AL27*10)) ->  | CM27: =IF(Köpek!$B27="","",IF(Köpek!$C27="","",Köpek!$C27*AM27*10)) ->  | CN27: =IF(Köpek!$B27="","",IF(Köpek!$C27="","",Köpek!$C27*AN27*10)) ->  | CO27: =IF(Köpek!$B27="","",IF(Köpek!$C27="","",Köpek!$C27*AO27*10)) ->  | CP27: =IF(Köpek!$B27="","",IF(Köpek!$C27="","",Köpek!$C27*AP27*10)) ->  | CQ27: =IF(Köpek!$B27="","",IF(Köpek!$C27="","",Köpek!$C27*AQ27*10)) ->  | CR27: =IF(Köpek!$B27="","",IF(Köpek!$C27="","",Köpek!$C27*AR27*10)) ->  | CS27: =IF(Köpek!$B27="","",IF(Köpek!$C27="","",Köpek!$C27*AS27*10)) ->  | CT27: =IF(Köpek!$B27="","",IF(Köpek!$C27="","",Köpek!$C27*AT27*10)) ->  | CU27: =IF(Köpek!$B27="","",IF(Köpek!$C27="","",Köpek!$C27*AU27*10)) ->  | CV27: =IF(Köpek!$B27="","",IF(Köpek!$C27="","",Köpek!$C27*AV27*10)) ->  | CW27: =IF(Köpek!$B27="","",IF(Köpek!$C27="","",Köpek!$C27*AW27*10)) ->  | CX27: =IF(Köpek!$B27="","",IF(Köpek!$C27="","",Köpek!$C27*AX27*10)) ->  | CY27: =IF(Köpek!$B27="","",IF(Köpek!$C27="","",Köpek!$C27*AY27*10)) ->  | CZ27: =IF(Köpek!$B27="","",IF(Köpek!$C27="","",Köpek!$C27*AZ27*10)) ->  | DA27: =IF(Köpek!$B27="","",IF(Köpek!$C27="","",Köpek!$C27*BA27*10)) ->  | DB27: =IF(Köpek!$B27="","",IF(Köpek!$C27="","",Köpek!$C27*BB27*10000)) ->  | DC27: =IF(Köpek!$B27="","",IF(Köpek!$C27="","",Köpek!$C27*BC27*10000)) ->  | DD27: =IF(Köpek!$B27="","",IF(Köpek!$C27="","",Köpek!$C27*BD27*10)) ->  | DE27: =IF(Köpek!$B27="","",IF(Köpek!$C27="","",Köpek!$C27*BE27*10000)) ->  | DF27: =IF(Köpek!$B27="","",IF(Köpek!$C27="","",Köpek!$C27*BF27)) ->  | DG27: =IF(Köpek!$B27="","",IF(Köpek!$C27="","",Köpek!$C27*BG27)) ->  | DH27: =IF(Köpek!$B27="","",IF(Köpek!$C27="","",Köpek!$C27*BH27)) ->  | DI27: =IF(Köpek!$B27="","",IF(Köpek!$C27="","",Köpek!$C27*BI27)) ->  | DJ27: =IF(Köpek!$B27="","",IF(Köpek!$C27="","",Köpek!$C27*BJ27*1000)) ->  | DK27: =IF(Köpek!$B27="","",IF(Köpek!$C27="","",Köpek!$C27*BK27)) ->  | DL27: =IF(Köpek!$B27="","",IF(Köpek!$C27="","",Köpek!$C27*BL27)) ->  | DM27: =IF(Köpek!$B27="","",IF(Köpek!$C27="","",Köpek!$C27*BM27)) ->  | DN27: =IF(Köpek!$B27="","",IF(Köpek!$C27="","",Köpek!$C27*BN27)) ->  | DO27: =IF(Köpek!$B27="","",IF(Köpek!$C27="","",Köpek!$C27*BO27)) ->  | DP27: =IF(Köpek!$B27="","",IF(Köpek!$C27="","",Köpek!$C27*BP27)) ->  | DQ27: =IF(Köpek!$B27="","",IF(Köpek!$C27="","",Köpek!$C27*BQ27)) ->  | DR27: =IF(Köpek!$B27="","",IF(Köpek!$C27="","",Köpek!$C27*BR27)) ->  | DS27: =IF(Köpek!$B27="","",IF(Köpek!$C27="","",Köpek!$C27*BS27)) ->  | DT27: =IF(Köpek!$B27="","",IF(Köpek!$C27="","",Köpek!$C27*BT27*1000)) ->  | DU27: =IF(Köpek!$B27="","",IF(Köpek!$C27="","",Köpek!$C27*BU27*1000)) ->  | DV27: =IF(Köpek!$B27="","",IF(Köpek!$C27="","",Köpek!$C27*BV27)) ->  | DW27: =IF(Köpek!$B27="","",IF(Köpek!$C27="","",Köpek!$C27*BW27*10)) ->  | DX27: =IF(Köpek!$B27="","",IF(Köpek!$C27="","",Köpek!$C27*BX27*10)) ->  | DY27: =IF(Köpek!$B27="","",IF(Köpek!$C27="","",Köpek!$C27*BY27*10)) ->  | DZ27: =IF(Köpek!$B27="","",IF(Köpek!$C27="","",Köpek!$C27*BZ27*10)) ->  | EA27: =IF(Köpek!$B27="","",IF(Köpek!$C27="","",Köpek!$C27*CA27*10)) ->  | EB27: =IF(Köpek!$B27="","",IF(Köpek!$C27="","",Köpek!$C27*CB27*10)) ->  | EC27: =IF(Köpek!$B27="","",IF(Köpek!$C27="","",Köpek!$C27*CC27)) ->  | EE27: Dana eti, % 25 yağlı, çiğ | EF27: 45.8 | EG27: 16.4 | EH27: 28.4 | EJ27: 0.8 | EK27: 3.22 | EL27: 3.22 | EP27: 0.529 | EQ27: 0.349 | ER27: 0.269 | ES27: 0.971 | ET27: 0.551 | EU27: 0.787 | EV27: 1.23 | EW27: 1.36 | EX27: 0.394 | EY27: 0.118 | EZ27: 0.63 | FA27: 0.525 | FB27: 0.682 | FC27: 0.186 | FE27: 0.84 | FF27: 0.004 | FG27: 0.17 | FI27: 0.017 | FJ27: 0.272 | FK27: 0.062 | FN27: 0.59 | FO27: 0.012 | FP27: 16 | FQ27: 0.11 | FR27: 0.065 | FS27: 39 | FT27: 0.0128 | FV27: 0.0686 | FW27: 50 | FX27: 4.7 | FY27: 1.38 | FZ27: 0.32 | GA27: 3.2 | GB27: 0.014 | GC27: 420 | GD27: 8.98 | GE27: 9 | GF27: 11.895 | GG27: 1.148 | GH27: 0.798 | GI27: 0.349 | GJ27: 420 | GK27: FE | GM27: CA, ECA | GN27: 14 haftadan büyük | GO27: =GP27*0.9 -> 591.4563609 | GP27: =130*Q5^0.75*3.2*(EXP(-0.87*(Q5/GN18))-0.1) -> 657.1737343 | GR27: 130 | GW27: Cocker Spaniel | GX27: 7 | GY27: 13 | GZ27: 10 | HA27: Orta | HF27: Manganez, mg | HG27: =IF(HI$2=1,HH27, IF(HI$2=2,HI27, IF(HI$2=3,HJ27, IF(HI$2=4,HK27, "YOK")))) * HG$5/1000 -> 0.746303192 | HH27: 1.4 | HI27: 1.4 | HJ27: 1.2 | HK27: 1.8 | HR27: Demir, mg | HT27: Exotic Shorthair | HU27: 4.8 | HW27: Manganez, mg | HX27: =IF(HX$2=1,HY27, IF(HX$2=2,HZ27, IF(HX$2=3,IA27, IF(HX$2=4,IB27, "YOK")))) * HX$5/1000 -> 0.7926323738 | HY27: 1.2 | HZ27: 1.2 | IA27: 1.8 | IB27: 1.8
A28: =Köpek!A28 -> 0 | B28: =Köpek!B28 -> 0 | C28: =Köpek!C28 -> 0 | D28: =B68 -> Selenyum, µg | E28: =Köpek!E28 -> 54.41794108 | F28: =DJ1 -> 20.86545 | G28: =IF(E28=0,"", IF(F28<E28*0.99,"EKSİK", IF(F28>E28*1.1,"FAZLA", "TAMAM")) ) -> EKSİK | H28: =(F28*100)/(C2*1000) -> 6.469906977 | I28: 14.56745743 | J28: 3.354573955 | U28: Emziren dişiAktifBüyük | V28: 4 | Y28: Mamanın Tipi | AA28: 0 | AC28: 0 | CE28: =IF(Köpek!$B28="","",IF(Köpek!$C28="","",Köpek!$C28*AD28*10)) ->  | CF28: =IF(Köpek!$B28="","",IF(Köpek!$C28="","", IF(KKSecim="Köpek", Köpek!$C28*AE28*1000, Köpek!$C28*AF28*1000) ) ) ->  | CG28: =IF(Köpek!$B28="","",IF(Köpek!$C28="","",Köpek!$C28*AG28*10)) ->  | CH28: =IF(Köpek!$B28="","",IF(Köpek!$C28="","",Köpek!$C28*AH28*10)) ->  | CI28: =IF(Köpek!$B28="","",IF(Köpek!$C28="","",Köpek!$C28*AI28*10)) ->  | CJ28: =IF(Köpek!$B28="","",IF(Köpek!$C28="","",Köpek!$C28*AJ28*10)) ->  | CK28: =IF(Köpek!$B28="","",IF(Köpek!$C28="","",Köpek!$C28*AK28*10)) ->  | CL28: =IF(Köpek!$B28="","",IF(Köpek!$C28="","",Köpek!$C28*AL28*10)) ->  | CM28: =IF(Köpek!$B28="","",IF(Köpek!$C28="","",Köpek!$C28*AM28*10)) ->  | CN28: =IF(Köpek!$B28="","",IF(Köpek!$C28="","",Köpek!$C28*AN28*10)) ->  | CO28: =IF(Köpek!$B28="","",IF(Köpek!$C28="","",Köpek!$C28*AO28*10)) ->  | CP28: =IF(Köpek!$B28="","",IF(Köpek!$C28="","",Köpek!$C28*AP28*10)) ->  | CQ28: =IF(Köpek!$B28="","",IF(Köpek!$C28="","",Köpek!$C28*AQ28*10)) ->  | CR28: =IF(Köpek!$B28="","",IF(Köpek!$C28="","",Köpek!$C28*AR28*10)) ->  | CS28: =IF(Köpek!$B28="","",IF(Köpek!$C28="","",Köpek!$C28*AS28*10)) ->  | CT28: =IF(Köpek!$B28="","",IF(Köpek!$C28="","",Köpek!$C28*AT28*10)) ->  | CU28: =IF(Köpek!$B28="","",IF(Köpek!$C28="","",Köpek!$C28*AU28*10)) ->  | CV28: =IF(Köpek!$B28="","",IF(Köpek!$C28="","",Köpek!$C28*AV28*10)) ->  | CW28: =IF(Köpek!$B28="","",IF(Köpek!$C28="","",Köpek!$C28*AW28*10)) ->  | CX28: =IF(Köpek!$B28="","",IF(Köpek!$C28="","",Köpek!$C28*AX28*10)) ->  | CY28: =IF(Köpek!$B28="","",IF(Köpek!$C28="","",Köpek!$C28*AY28*10)) ->  | CZ28: =IF(Köpek!$B28="","",IF(Köpek!$C28="","",Köpek!$C28*AZ28*10)) ->  | DA28: =IF(Köpek!$B28="","",IF(Köpek!$C28="","",Köpek!$C28*BA28*10)) ->  | DB28: =IF(Köpek!$B28="","",IF(Köpek!$C28="","",Köpek!$C28*BB28*10000)) ->  | DC28: =IF(Köpek!$B28="","",IF(Köpek!$C28="","",Köpek!$C28*BC28*10000)) ->  | DD28: =IF(Köpek!$B28="","",IF(Köpek!$C28="","",Köpek!$C28*BD28*10)) ->  | DE28: =IF(Köpek!$B28="","",IF(Köpek!$C28="","",Köpek!$C28*BE28*10000)) ->  | DF28: =IF(Köpek!$B28="","",IF(Köpek!$C28="","",Köpek!$C28*BF28)) ->  | DG28: =IF(Köpek!$B28="","",IF(Köpek!$C28="","",Köpek!$C28*BG28)) ->  | DH28: =IF(Köpek!$B28="","",IF(Köpek!$C28="","",Köpek!$C28*BH28)) ->  | DI28: =IF(Köpek!$B28="","",IF(Köpek!$C28="","",Köpek!$C28*BI28)) ->  | DJ28: =IF(Köpek!$B28="","",IF(Köpek!$C28="","",Köpek!$C28*BJ28*1000)) ->  | DK28: =IF(Köpek!$B28="","",IF(Köpek!$C28="","",Köpek!$C28*BK28)) ->  | DL28: =IF(Köpek!$B28="","",IF(Köpek!$C28="","",Köpek!$C28*BL28)) ->  | DM28: =IF(Köpek!$B28="","",IF(Köpek!$C28="","",Köpek!$C28*BM28)) ->  | DN28: =IF(Köpek!$B28="","",IF(Köpek!$C28="","",Köpek!$C28*BN28)) ->  | DO28: =IF(Köpek!$B28="","",IF(Köpek!$C28="","",Köpek!$C28*BO28)) ->  | DP28: =IF(Köpek!$B28="","",IF(Köpek!$C28="","",Köpek!$C28*BP28)) ->  | DQ28: =IF(Köpek!$B28="","",IF(Köpek!$C28="","",Köpek!$C28*BQ28)) ->  | DR28: =IF(Köpek!$B28="","",IF(Köpek!$C28="","",Köpek!$C28*BR28)) ->  | DS28: =IF(Köpek!$B28="","",IF(Köpek!$C28="","",Köpek!$C28*BS28)) ->  | DT28: =IF(Köpek!$B28="","",IF(Köpek!$C28="","",Köpek!$C28*BT28*1000)) ->  | DU28: =IF(Köpek!$B28="","",IF(Köpek!$C28="","",Köpek!$C28*BU28*1000)) ->  | DV28: =IF(Köpek!$B28="","",IF(Köpek!$C28="","",Köpek!$C28*BV28)) ->  | DW28: =IF(Köpek!$B28="","",IF(Köpek!$C28="","",Köpek!$C28*BW28*10)) ->  | DX28: =IF(Köpek!$B28="","",IF(Köpek!$C28="","",Köpek!$C28*BX28*10)) ->  | DY28: =IF(Köpek!$B28="","",IF(Köpek!$C28="","",Köpek!$C28*BY28*10)) ->  | DZ28: =IF(Köpek!$B28="","",IF(Köpek!$C28="","",Köpek!$C28*BZ28*10)) ->  | EA28: =IF(Köpek!$B28="","",IF(Köpek!$C28="","",Köpek!$C28*CA28*10)) ->  | EB28: =IF(Köpek!$B28="","",IF(Köpek!$C28="","",Köpek!$C28*CB28*10)) ->  | EC28: =IF(Köpek!$B28="","",IF(Köpek!$C28="","",Köpek!$C28*CC28)) ->  | EE28: Dana, kalp, çiğ | EF28: 22.9 | EG28: 17.7 | EH28: 3.1 | EJ28: 1.1 | EK28: 1.03 | EL28: 1.03 | EM28: 0.7 | EO28: 0.7 | EP28: 0.346 | EQ28: 0.03 | ES28: 1.11 | ET28: 0.482 | EU28: 0.851 | EV28: 1.62 | EW28: 1.64 | EX28: 0.454 | EY28: 0.184 | EZ28: 0.822 | FA28: 0.652 | FB28: 0.822 | FC28: 1.96 | FE28: 0.068 | FF28: 0.00395 | FG28: 0.214 | FI28: 0.017 | FJ28: 0.24 | FK28: 0.095 | FN28: 3.1 | FO28: 0.018 | FP28: 42 | FQ28: 0.32 | FR28: 0.14 | FS28: 14 | FT28: 0.02 | FV28: 0.2 | FW28: 75 | FX28: 25 | FY28: 7.5 | FZ28: 3.35 | GA28: 2.6 | GB28: 0.1 | GD28: 10 | GE28: 2 | GF28: 1.213 | GG28: 0.584 | GH28: 0.374 | GI28: 0.209 | GJ28: 200 | GK28: FF | GM28: CA | GN28: Yaşama payı, genç ergin | GP28: =140*Q5^0.75 -> 602.4923899 | GR28: 140 | GW28: Collie | GX28: 20 | GY28: 34 | GZ28: 27 | HA28: İri | HF28: Selenyum, µg | HG28: 54.41794108 | HH28: 87.5 | HI28: 87.5 | HJ28: 87.5 | HK28: 87.5 | HR28: İyot, mg | HT28: Havana Brown | HU28: 4 | HW28: Selenyum, µg | HX28: 33.02634891 | HY28: 75 | HZ28: 75 | IA28: 75 | IB28: 75
A29: =Köpek!A29 -> 0 | B29: =Köpek!B29 -> 0 | C29: =Köpek!C29 -> 0 | D29: =B71 -> Tiamin, mg | E29: =Köpek!E29 -> 0.3498296212 | F29: =DO1 -> 0.325936 | G29: =IF(E29=0,"", IF(F29<E29*0.99,"EKSİK", IF(F29>E29*2,"FAZLA", "TAMAM")) ) -> EKSİK | H29: =(F29*100)/(C2*1000) -> 0.1010654264 | I29: 0.2275560222 | J29: 0.05240128617 | Y29: Ev yemeği | AA29: 0 | AC29: 0 | CE29: =IF(Köpek!$B29="","",IF(Köpek!$C29="","",Köpek!$C29*AD29*10)) ->  | CF29: =IF(Köpek!$B29="","",IF(Köpek!$C29="","", IF(KKSecim="Köpek", Köpek!$C29*AE29*1000, Köpek!$C29*AF29*1000) ) ) ->  | CG29: =IF(Köpek!$B29="","",IF(Köpek!$C29="","",Köpek!$C29*AG29*10)) ->  | CH29: =IF(Köpek!$B29="","",IF(Köpek!$C29="","",Köpek!$C29*AH29*10)) ->  | CI29: =IF(Köpek!$B29="","",IF(Köpek!$C29="","",Köpek!$C29*AI29*10)) ->  | CJ29: =IF(Köpek!$B29="","",IF(Köpek!$C29="","",Köpek!$C29*AJ29*10)) ->  | CK29: =IF(Köpek!$B29="","",IF(Köpek!$C29="","",Köpek!$C29*AK29*10)) ->  | CL29: =IF(Köpek!$B29="","",IF(Köpek!$C29="","",Köpek!$C29*AL29*10)) ->  | CM29: =IF(Köpek!$B29="","",IF(Köpek!$C29="","",Köpek!$C29*AM29*10)) ->  | CN29: =IF(Köpek!$B29="","",IF(Köpek!$C29="","",Köpek!$C29*AN29*10)) ->  | CO29: =IF(Köpek!$B29="","",IF(Köpek!$C29="","",Köpek!$C29*AO29*10)) ->  | CP29: =IF(Köpek!$B29="","",IF(Köpek!$C29="","",Köpek!$C29*AP29*10)) ->  | CQ29: =IF(Köpek!$B29="","",IF(Köpek!$C29="","",Köpek!$C29*AQ29*10)) ->  | CR29: =IF(Köpek!$B29="","",IF(Köpek!$C29="","",Köpek!$C29*AR29*10)) ->  | CS29: =IF(Köpek!$B29="","",IF(Köpek!$C29="","",Köpek!$C29*AS29*10)) ->  | CT29: =IF(Köpek!$B29="","",IF(Köpek!$C29="","",Köpek!$C29*AT29*10)) ->  | CU29: =IF(Köpek!$B29="","",IF(Köpek!$C29="","",Köpek!$C29*AU29*10)) ->  | CV29: =IF(Köpek!$B29="","",IF(Köpek!$C29="","",Köpek!$C29*AV29*10)) ->  | CW29: =IF(Köpek!$B29="","",IF(Köpek!$C29="","",Köpek!$C29*AW29*10)) ->  | CX29: =IF(Köpek!$B29="","",IF(Köpek!$C29="","",Köpek!$C29*AX29*10)) ->  | CY29: =IF(Köpek!$B29="","",IF(Köpek!$C29="","",Köpek!$C29*AY29*10)) ->  | CZ29: =IF(Köpek!$B29="","",IF(Köpek!$C29="","",Köpek!$C29*AZ29*10)) ->  | DA29: =IF(Köpek!$B29="","",IF(Köpek!$C29="","",Köpek!$C29*BA29*10)) ->  | DB29: =IF(Köpek!$B29="","",IF(Köpek!$C29="","",Köpek!$C29*BB29*10000)) ->  | DC29: =IF(Köpek!$B29="","",IF(Köpek!$C29="","",Köpek!$C29*BC29*10000)) ->  | DD29: =IF(Köpek!$B29="","",IF(Köpek!$C29="","",Köpek!$C29*BD29*10)) ->  | DE29: =IF(Köpek!$B29="","",IF(Köpek!$C29="","",Köpek!$C29*BE29*10000)) ->  | DF29: =IF(Köpek!$B29="","",IF(Köpek!$C29="","",Köpek!$C29*BF29)) ->  | DG29: =IF(Köpek!$B29="","",IF(Köpek!$C29="","",Köpek!$C29*BG29)) ->  | DH29: =IF(Köpek!$B29="","",IF(Köpek!$C29="","",Köpek!$C29*BH29)) ->  | DI29: =IF(Köpek!$B29="","",IF(Köpek!$C29="","",Köpek!$C29*BI29)) ->  | DJ29: =IF(Köpek!$B29="","",IF(Köpek!$C29="","",Köpek!$C29*BJ29*1000)) ->  | DK29: =IF(Köpek!$B29="","",IF(Köpek!$C29="","",Köpek!$C29*BK29)) ->  | DL29: =IF(Köpek!$B29="","",IF(Köpek!$C29="","",Köpek!$C29*BL29)) ->  | DM29: =IF(Köpek!$B29="","",IF(Köpek!$C29="","",Köpek!$C29*BM29)) ->  | DN29: =IF(Köpek!$B29="","",IF(Köpek!$C29="","",Köpek!$C29*BN29)) ->  | DO29: =IF(Köpek!$B29="","",IF(Köpek!$C29="","",Köpek!$C29*BO29)) ->  | DP29: =IF(Köpek!$B29="","",IF(Köpek!$C29="","",Köpek!$C29*BP29)) ->  | DQ29: =IF(Köpek!$B29="","",IF(Köpek!$C29="","",Köpek!$C29*BQ29)) ->  | DR29: =IF(Köpek!$B29="","",IF(Köpek!$C29="","",Köpek!$C29*BR29)) ->  | DS29: =IF(Köpek!$B29="","",IF(Köpek!$C29="","",Köpek!$C29*BS29)) ->  | DT29: =IF(Köpek!$B29="","",IF(Köpek!$C29="","",Köpek!$C29*BT29*1000)) ->  | DU29: =IF(Köpek!$B29="","",IF(Köpek!$C29="","",Köpek!$C29*BU29*1000)) ->  | DV29: =IF(Köpek!$B29="","",IF(Köpek!$C29="","",Köpek!$C29*BV29)) ->  | DW29: =IF(Köpek!$B29="","",IF(Köpek!$C29="","",Köpek!$C29*BW29*10)) ->  | DX29: =IF(Köpek!$B29="","",IF(Köpek!$C29="","",Köpek!$C29*BX29*10)) ->  | DY29: =IF(Köpek!$B29="","",IF(Köpek!$C29="","",Köpek!$C29*BY29*10)) ->  | DZ29: =IF(Köpek!$B29="","",IF(Köpek!$C29="","",Köpek!$C29*BZ29*10)) ->  | EA29: =IF(Köpek!$B29="","",IF(Köpek!$C29="","",Köpek!$C29*CA29*10)) ->  | EB29: =IF(Köpek!$B29="","",IF(Köpek!$C29="","",Köpek!$C29*CB29*10)) ->  | EC29: =IF(Köpek!$B29="","",IF(Köpek!$C29="","",Köpek!$C29*CC29)) ->  | EE29: Et unu | EF29: 93.9 | EG29: 54.1 | EH29: 11.8 | EI29: 2.5 | EJ29: 21.8 | EK29: 2.22 | EL29: 2.22 | EM29: 3.666 | EP29: 5.51 | EQ29: 0.53 | ER29: 0.62 | ES29: 3.82 | ET29: 1.11 | EU29: 1.6 | EV29: 3.41 | EW29: 2.91 | EX29: 0.77 | EY29: 0.61 | EZ29: 1.93 | FB29: 1.83 | FC29: 0.36 | FD29: 0.06 | FE29: 2.4 | FF29: 8.31 | FG29: 3.94 | FI29: 0.25 | FJ29: 0.46 | FK29: 0.75 | FL29: 0.66 | FM29: 0.48 | FN29: 19.56 | FP29: 655 | FQ29: 23 | FR29: 0.42 | FS29: 106 | FT29: 0.14 | FU29: 2200 | FV29: 0.6 | FW29: 59 | FX29: 5.8 | FY29: 5.2 | FZ29: 0.2 | GB29: 0.09 | GH29: 5.51 | GI29: 0.53 | GJ29: 80 | GK29: FG | GM29: CA | GN29: Yaşama payı, yetişkin | GO29: =95*Q5^0.75 -> 408.8341217 | GP29: =130*Q5^0.75 -> 559.4572192 | GQ29: 95 | GR29: 130 | GW29: Corgi | GX29: 11 | GY29: 13 | GZ29: 12 | HA29: Orta | HF29: Tiamin, mg | HG29: 0.3498296212 | HH29: 0.345 | HI29: 0.345 | HJ29: 0.5625 | HK29: 0.5625 | HR29: Manganez, mg | HT29: Himalayan | HU29: 4.8 | HW29: Tiamin, mg | HX29: 0.6935533271 | HY29: 1.375 | HZ29: 1.4 | IA29: 1.575 | IB29: 1.575
A30: =Köpek!A30 -> 0 | B30: =Köpek!B30 -> 0 | C30: =Köpek!C30 -> 0 | D30: Riboflavin, mg | E30: =Köpek!E30 -> 0.8162691162 | F30: =DP1 -> 0.275646 | G30: EKSİK | H30: =(F30*100)/(C2*1000) -> 0.08547162791 | I30: 0.1924454718 | J30: 0.04431607717 | Y30: Mama | AA30: 0 | AC30: 0 | CE30: =IF(Köpek!$B30="","",IF(Köpek!$C30="","",Köpek!$C30*AD30*10)) ->  | CF30: =IF(Köpek!$B30="","",IF(Köpek!$C30="","", IF(KKSecim="Köpek", Köpek!$C30*AE30*1000, Köpek!$C30*AF30*1000) ) ) ->  | CG30: =IF(Köpek!$B30="","",IF(Köpek!$C30="","",Köpek!$C30*AG30*10)) ->  | CH30: =IF(Köpek!$B30="","",IF(Köpek!$C30="","",Köpek!$C30*AH30*10)) ->  | CI30: =IF(Köpek!$B30="","",IF(Köpek!$C30="","",Köpek!$C30*AI30*10)) ->  | CJ30: =IF(Köpek!$B30="","",IF(Köpek!$C30="","",Köpek!$C30*AJ30*10)) ->  | CK30: =IF(Köpek!$B30="","",IF(Köpek!$C30="","",Köpek!$C30*AK30*10)) ->  | CL30: =IF(Köpek!$B30="","",IF(Köpek!$C30="","",Köpek!$C30*AL30*10)) ->  | CM30: =IF(Köpek!$B30="","",IF(Köpek!$C30="","",Köpek!$C30*AM30*10)) ->  | CN30: =IF(Köpek!$B30="","",IF(Köpek!$C30="","",Köpek!$C30*AN30*10)) ->  | CO30: =IF(Köpek!$B30="","",IF(Köpek!$C30="","",Köpek!$C30*AO30*10)) ->  | CP30: =IF(Köpek!$B30="","",IF(Köpek!$C30="","",Köpek!$C30*AP30*10)) ->  | CQ30: =IF(Köpek!$B30="","",IF(Köpek!$C30="","",Köpek!$C30*AQ30*10)) ->  | CR30: =IF(Köpek!$B30="","",IF(Köpek!$C30="","",Köpek!$C30*AR30*10)) ->  | CS30: =IF(Köpek!$B30="","",IF(Köpek!$C30="","",Köpek!$C30*AS30*10)) ->  | CT30: =IF(Köpek!$B30="","",IF(Köpek!$C30="","",Köpek!$C30*AT30*10)) ->  | CU30: =IF(Köpek!$B30="","",IF(Köpek!$C30="","",Köpek!$C30*AU30*10)) ->  | CV30: =IF(Köpek!$B30="","",IF(Köpek!$C30="","",Köpek!$C30*AV30*10)) ->  | CW30: =IF(Köpek!$B30="","",IF(Köpek!$C30="","",Köpek!$C30*AW30*10)) ->  | CX30: =IF(Köpek!$B30="","",IF(Köpek!$C30="","",Köpek!$C30*AX30*10)) ->  | CY30: =IF(Köpek!$B30="","",IF(Köpek!$C30="","",Köpek!$C30*AY30*10)) ->  | CZ30: =IF(Köpek!$B30="","",IF(Köpek!$C30="","",Köpek!$C30*AZ30*10)) ->  | DA30: =IF(Köpek!$B30="","",IF(Köpek!$C30="","",Köpek!$C30*BA30*10)) ->  | DB30: =IF(Köpek!$B30="","",IF(Köpek!$C30="","",Köpek!$C30*BB30*10000)) ->  | DC30: =IF(Köpek!$B30="","",IF(Köpek!$C30="","",Köpek!$C30*BC30*10000)) ->  | DD30: =IF(Köpek!$B30="","",IF(Köpek!$C30="","",Köpek!$C30*BD30*10)) ->  | DE30: =IF(Köpek!$B30="","",IF(Köpek!$C30="","",Köpek!$C30*BE30*10000)) ->  | DF30: =IF(Köpek!$B30="","",IF(Köpek!$C30="","",Köpek!$C30*BF30)) ->  | DG30: =IF(Köpek!$B30="","",IF(Köpek!$C30="","",Köpek!$C30*BG30)) ->  | DH30: =IF(Köpek!$B30="","",IF(Köpek!$C30="","",Köpek!$C30*BH30)) ->  | DI30: =IF(Köpek!$B30="","",IF(Köpek!$C30="","",Köpek!$C30*BI30)) ->  | DJ30: =IF(Köpek!$B30="","",IF(Köpek!$C30="","",Köpek!$C30*BJ30*1000)) ->  | DK30: =IF(Köpek!$B30="","",IF(Köpek!$C30="","",Köpek!$C30*BK30)) ->  | DL30: =IF(Köpek!$B30="","",IF(Köpek!$C30="","",Köpek!$C30*BL30)) ->  | DM30: =IF(Köpek!$B30="","",IF(Köpek!$C30="","",Köpek!$C30*BM30)) ->  | DN30: =IF(Köpek!$B30="","",IF(Köpek!$C30="","",Köpek!$C30*BN30)) ->  | DO30: =IF(Köpek!$B30="","",IF(Köpek!$C30="","",Köpek!$C30*BO30)) ->  | DP30: =IF(Köpek!$B30="","",IF(Köpek!$C30="","",Köpek!$C30*BP30)) ->  | DQ30: =IF(Köpek!$B30="","",IF(Köpek!$C30="","",Köpek!$C30*BQ30)) ->  | DR30: =IF(Köpek!$B30="","",IF(Köpek!$C30="","",Köpek!$C30*BR30)) ->  | DS30: =IF(Köpek!$B30="","",IF(Köpek!$C30="","",Köpek!$C30*BS30)) ->  | DT30: =IF(Köpek!$B30="","",IF(Köpek!$C30="","",Köpek!$C30*BT30*1000)) ->  | DU30: =IF(Köpek!$B30="","",IF(Köpek!$C30="","",Köpek!$C30*BU30*1000)) ->  | DV30: =IF(Köpek!$B30="","",IF(Köpek!$C30="","",Köpek!$C30*BV30)) ->  | DW30: =IF(Köpek!$B30="","",IF(Köpek!$C30="","",Köpek!$C30*BW30*10)) ->  | DX30: =IF(Köpek!$B30="","",IF(Köpek!$C30="","",Köpek!$C30*BX30*10)) ->  | DY30: =IF(Köpek!$B30="","",IF(Köpek!$C30="","",Köpek!$C30*BY30*10)) ->  | DZ30: =IF(Köpek!$B30="","",IF(Köpek!$C30="","",Köpek!$C30*BZ30*10)) ->  | EA30: =IF(Köpek!$B30="","",IF(Köpek!$C30="","",Köpek!$C30*CA30*10)) ->  | EB30: =IF(Köpek!$B30="","",IF(Köpek!$C30="","",Köpek!$C30*CB30*10)) ->  | EC30: =IF(Köpek!$B30="","",IF(Köpek!$C30="","",Köpek!$C30*CC30)) ->  | EE30: Et-kemik unu | EF30: 94 | EG30: 50.9 | EH30: 9.8 | EI30: 2.8 | EJ30: 19.2 | EK30: 2.16 | EL30: 2.16 | EM30: 1.581 | EP30: 0.3 | EQ30: 0.07 | ES30: 3.55 | ET30: 0.96 | EU30: 1.41 | EV30: 3.12 | EW30: 2.64 | EX30: 0.71 | EY30: 0.52 | EZ30: 1.71 | FA30: 1.2 | FB30: 1.67 | FC30: 0.3 | FD30: 0.01 | FE30: 2.14 | FF30: 9.97 | FG30: 4.46 | FI30: 0.24 | FJ30: 0.97 | FK30: 0.67 | FL30: 0.51 | FM30: 0.38 | FN30: 9.26 | FO30: 1.2 | FP30: 564 | FQ30: 21 | FR30: 0.25 | FS30: 88 | FT30: 0.14 | FU30: 1996 | FV30: 0.3 | FW30: 46 | FX30: 4.1 | FY30: 4.4 | FZ30: 0.8 | GA30: 12.8 | GB30: 70 | GE30: 1 | GJ30: 80 | GK30: FH | GM30: CA | GN30: Yaşama payı, yaşlı | GP30: =105*Q5^0.75 -> 451.8692924 | GR30: 105 | GW30: Dalmaçyalı | GX30: 25 | GY30: 25 | GZ30: 25 | HA30: İri | HF30: Riboflavin, mg | HG30: 0.8162691162 | HH30: 1.3125 | HI30: 1.3125 | HJ30: 1.3125 | HK30: 1.325 | HR30: Selenyum, µg | HT30: Household Pet | HU30: 4.3 | HW30: Riboflavin, mg | HX30: 0.4403513188 | HY30: 1 | HZ30: 1 | IA30: 1 | IB30: 1
A31: =Köpek!A31 -> 0 | B31: =Köpek!B31 -> 0 | C31: =Köpek!C31 -> 0 | D31: Niasin, mg | E31: =Köpek!E31 -> 2.643157138 | F31: =DR1 -> 14.02716 | G31: FAZLA | H31: =(F31*100)/(C2*1000) -> 4.349506977 | I31: 9.793225458 | J31: 2.255170418 | AA31: 0 | AC31: 0 | CE31: =IF(Köpek!$B31="","",IF(Köpek!$C31="","",Köpek!$C31*AD31*10)) ->  | CF31: =IF(Köpek!$B31="","",IF(Köpek!$C31="","", IF(KKSecim="Köpek", Köpek!$C31*AE31*1000, Köpek!$C31*AF31*1000) ) ) ->  | CG31: =IF(Köpek!$B31="","",IF(Köpek!$C31="","",Köpek!$C31*AG31*10)) ->  | CH31: =IF(Köpek!$B31="","",IF(Köpek!$C31="","",Köpek!$C31*AH31*10)) ->  | CI31: =IF(Köpek!$B31="","",IF(Köpek!$C31="","",Köpek!$C31*AI31*10)) ->  | CJ31: =IF(Köpek!$B31="","",IF(Köpek!$C31="","",Köpek!$C31*AJ31*10)) ->  | CK31: =IF(Köpek!$B31="","",IF(Köpek!$C31="","",Köpek!$C31*AK31*10)) ->  | CL31: =IF(Köpek!$B31="","",IF(Köpek!$C31="","",Köpek!$C31*AL31*10)) ->  | CM31: =IF(Köpek!$B31="","",IF(Köpek!$C31="","",Köpek!$C31*AM31*10)) ->  | CN31: =IF(Köpek!$B31="","",IF(Köpek!$C31="","",Köpek!$C31*AN31*10)) ->  | CO31: =IF(Köpek!$B31="","",IF(Köpek!$C31="","",Köpek!$C31*AO31*10)) ->  | CP31: =IF(Köpek!$B31="","",IF(Köpek!$C31="","",Köpek!$C31*AP31*10)) ->  | CQ31: =IF(Köpek!$B31="","",IF(Köpek!$C31="","",Köpek!$C31*AQ31*10)) ->  | CR31: =IF(Köpek!$B31="","",IF(Köpek!$C31="","",Köpek!$C31*AR31*10)) ->  | CS31: =IF(Köpek!$B31="","",IF(Köpek!$C31="","",Köpek!$C31*AS31*10)) ->  | CT31: =IF(Köpek!$B31="","",IF(Köpek!$C31="","",Köpek!$C31*AT31*10)) ->  | CU31: =IF(Köpek!$B31="","",IF(Köpek!$C31="","",Köpek!$C31*AU31*10)) ->  | CV31: =IF(Köpek!$B31="","",IF(Köpek!$C31="","",Köpek!$C31*AV31*10)) ->  | CW31: =IF(Köpek!$B31="","",IF(Köpek!$C31="","",Köpek!$C31*AW31*10)) ->  | CX31: =IF(Köpek!$B31="","",IF(Köpek!$C31="","",Köpek!$C31*AX31*10)) ->  | CY31: =IF(Köpek!$B31="","",IF(Köpek!$C31="","",Köpek!$C31*AY31*10)) ->  | CZ31: =IF(Köpek!$B31="","",IF(Köpek!$C31="","",Köpek!$C31*AZ31*10)) ->  | DA31: =IF(Köpek!$B31="","",IF(Köpek!$C31="","",Köpek!$C31*BA31*10)) ->  | DB31: =IF(Köpek!$B31="","",IF(Köpek!$C31="","",Köpek!$C31*BB31*10000)) ->  | DC31: =IF(Köpek!$B31="","",IF(Köpek!$C31="","",Köpek!$C31*BC31*10000)) ->  | DD31: =IF(Köpek!$B31="","",IF(Köpek!$C31="","",Köpek!$C31*BD31*10)) ->  | DE31: =IF(Köpek!$B31="","",IF(Köpek!$C31="","",Köpek!$C31*BE31*10000)) ->  | DF31: =IF(Köpek!$B31="","",IF(Köpek!$C31="","",Köpek!$C31*BF31)) ->  | DG31: =IF(Köpek!$B31="","",IF(Köpek!$C31="","",Köpek!$C31*BG31)) ->  | DH31: =IF(Köpek!$B31="","",IF(Köpek!$C31="","",Köpek!$C31*BH31)) ->  | DI31: =IF(Köpek!$B31="","",IF(Köpek!$C31="","",Köpek!$C31*BI31)) ->  | DJ31: =IF(Köpek!$B31="","",IF(Köpek!$C31="","",Köpek!$C31*BJ31*1000)) ->  | DK31: =IF(Köpek!$B31="","",IF(Köpek!$C31="","",Köpek!$C31*BK31)) ->  | DL31: =IF(Köpek!$B31="","",IF(Köpek!$C31="","",Köpek!$C31*BL31)) ->  | DM31: =IF(Köpek!$B31="","",IF(Köpek!$C31="","",Köpek!$C31*BM31)) ->  | DN31: =IF(Köpek!$B31="","",IF(Köpek!$C31="","",Köpek!$C31*BN31)) ->  | DO31: =IF(Köpek!$B31="","",IF(Köpek!$C31="","",Köpek!$C31*BO31)) ->  | DP31: =IF(Köpek!$B31="","",IF(Köpek!$C31="","",Köpek!$C31*BP31)) ->  | DQ31: =IF(Köpek!$B31="","",IF(Köpek!$C31="","",Köpek!$C31*BQ31)) ->  | DR31: =IF(Köpek!$B31="","",IF(Köpek!$C31="","",Köpek!$C31*BR31)) ->  | DS31: =IF(Köpek!$B31="","",IF(Köpek!$C31="","",Köpek!$C31*BS31)) ->  | DT31: =IF(Köpek!$B31="","",IF(Köpek!$C31="","",Köpek!$C31*BT31*1000)) ->  | DU31: =IF(Köpek!$B31="","",IF(Köpek!$C31="","",Köpek!$C31*BU31*1000)) ->  | DV31: =IF(Köpek!$B31="","",IF(Köpek!$C31="","",Köpek!$C31*BV31)) ->  | DW31: =IF(Köpek!$B31="","",IF(Köpek!$C31="","",Köpek!$C31*BW31*10)) ->  | DX31: =IF(Köpek!$B31="","",IF(Köpek!$C31="","",Köpek!$C31*BX31*10)) ->  | DY31: =IF(Köpek!$B31="","",IF(Köpek!$C31="","",Köpek!$C31*BY31*10)) ->  | DZ31: =IF(Köpek!$B31="","",IF(Köpek!$C31="","",Köpek!$C31*BZ31*10)) ->  | EA31: =IF(Köpek!$B31="","",IF(Köpek!$C31="","",Köpek!$C31*CA31*10)) ->  | EB31: =IF(Köpek!$B31="","",IF(Köpek!$C31="","",Köpek!$C31*CB31*10)) ->  | EC31: =IF(Köpek!$B31="","",IF(Köpek!$C31="","",Köpek!$C31*CC31)) ->  | EE31: Hindi eti, derili | EF31: 29.6 | EG31: 20.4 | EH31: 8 | EJ31: 1.1 | EK31: 1.6 | EL31: 1.6 | EP31: 1.7 | EQ31: 0.15 | ER31: 0.05 | ES31: 0.87 | ET31: 0.5 | EU31: 0.5 | EV31: 1.08 | EW31: 1.15 | EX31: 0.37 | EY31: 0.1 | EZ31: 0.55 | FA31: 0.47 | FB31: 0.64 | FC31: 0.11 | FD31: 0.093 | FE31: 0.54 | FF31: 0.15 | FG31: 0.12 | FI31: 0.01 | FJ31: 0.17 | FK31: 0.05 | FN31: 0.93 | FO31: 0.02 | FP31: 16 | FQ31: 0 | FR31: 0.27 | FS31: 29 | FT31: 0.05 | FU31: 680 | FV31: 0.07 | FW31: 20 | FX31: 6.7 | FY31: 1.3 | FZ31: 0.5 | GA31: 2.1 | GB31: 0.004 | GC31: 18 | GE31: 4 | GF31: 2.3 | GG31: 2 | GH31: 1.7 | GI31: 0.15 | GJ31: 170 | GK31: FI | GM31: CA | GN31: Yaşama payı, Danua | GP31: =200*Q5^0.75 -> 860.7034141 | GR31: 200 | GW31: Danua (Great Dane) | GX31: 45 | GY31: 90 | GZ31: 67.5 | HA31: Dev | HF31: Niasin, mg | HG31: 2.643157138 | HH31: 4.25 | HI31: 4.25 | HJ31: 4.25 | HK31: 4.25 | HR31: Tiamin, mg | HT31: Japanese Bobtail | HU31: 3.6 | HW31: Niasin, mg | HX31: 4.403513188 | HY31: 10 | HZ31: 10 | IA31: 10 | IB31: 10
A32: =Köpek!A32 -> 0 | B32: =Köpek!B32 -> 0 | C32: =Köpek!C32 -> 0 | D32: Pantotenik asit, mg | E32: =Köpek!E32 -> 2.332197475 | F32: =DS1 -> 2.66285 | G32: TAMAM | H32: =(F32*100)/(C2*1000) -> 0.8256899225 | I32: 1.859099804 | J32: 0.4281109325 | AA32: 0 | AC32: 0 | CE32: =IF(Köpek!$B32="","",IF(Köpek!$C32="","",Köpek!$C32*AD32*10)) ->  | CF32: =IF(Köpek!$B32="","",IF(Köpek!$C32="","", IF(KKSecim="Köpek", Köpek!$C32*AE32*1000, Köpek!$C32*AF32*1000) ) ) ->  | CG32: =IF(Köpek!$B32="","",IF(Köpek!$C32="","",Köpek!$C32*AG32*10)) ->  | CH32: =IF(Köpek!$B32="","",IF(Köpek!$C32="","",Köpek!$C32*AH32*10)) ->  | CI32: =IF(Köpek!$B32="","",IF(Köpek!$C32="","",Köpek!$C32*AI32*10)) ->  | CJ32: =IF(Köpek!$B32="","",IF(Köpek!$C32="","",Köpek!$C32*AJ32*10)) ->  | CK32: =IF(Köpek!$B32="","",IF(Köpek!$C32="","",Köpek!$C32*AK32*10)) ->  | CL32: =IF(Köpek!$B32="","",IF(Köpek!$C32="","",Köpek!$C32*AL32*10)) ->  | CM32: =IF(Köpek!$B32="","",IF(Köpek!$C32="","",Köpek!$C32*AM32*10)) ->  | CN32: =IF(Köpek!$B32="","",IF(Köpek!$C32="","",Köpek!$C32*AN32*10)) ->  | CO32: =IF(Köpek!$B32="","",IF(Köpek!$C32="","",Köpek!$C32*AO32*10)) ->  | CP32: =IF(Köpek!$B32="","",IF(Köpek!$C32="","",Köpek!$C32*AP32*10)) ->  | CQ32: =IF(Köpek!$B32="","",IF(Köpek!$C32="","",Köpek!$C32*AQ32*10)) ->  | CR32: =IF(Köpek!$B32="","",IF(Köpek!$C32="","",Köpek!$C32*AR32*10)) ->  | CS32: =IF(Köpek!$B32="","",IF(Köpek!$C32="","",Köpek!$C32*AS32*10)) ->  | CT32: =IF(Köpek!$B32="","",IF(Köpek!$C32="","",Köpek!$C32*AT32*10)) ->  | CU32: =IF(Köpek!$B32="","",IF(Köpek!$C32="","",Köpek!$C32*AU32*10)) ->  | CV32: =IF(Köpek!$B32="","",IF(Köpek!$C32="","",Köpek!$C32*AV32*10)) ->  | CW32: =IF(Köpek!$B32="","",IF(Köpek!$C32="","",Köpek!$C32*AW32*10)) ->  | CX32: =IF(Köpek!$B32="","",IF(Köpek!$C32="","",Köpek!$C32*AX32*10)) ->  | CY32: =IF(Köpek!$B32="","",IF(Köpek!$C32="","",Köpek!$C32*AY32*10)) ->  | CZ32: =IF(Köpek!$B32="","",IF(Köpek!$C32="","",Köpek!$C32*AZ32*10)) ->  | DA32: =IF(Köpek!$B32="","",IF(Köpek!$C32="","",Köpek!$C32*BA32*10)) ->  | DB32: =IF(Köpek!$B32="","",IF(Köpek!$C32="","",Köpek!$C32*BB32*10000)) ->  | DC32: =IF(Köpek!$B32="","",IF(Köpek!$C32="","",Köpek!$C32*BC32*10000)) ->  | DD32: =IF(Köpek!$B32="","",IF(Köpek!$C32="","",Köpek!$C32*BD32*10)) ->  | DE32: =IF(Köpek!$B32="","",IF(Köpek!$C32="","",Köpek!$C32*BE32*10000)) ->  | DF32: =IF(Köpek!$B32="","",IF(Köpek!$C32="","",Köpek!$C32*BF32)) ->  | DG32: =IF(Köpek!$B32="","",IF(Köpek!$C32="","",Köpek!$C32*BG32)) ->  | DH32: =IF(Köpek!$B32="","",IF(Köpek!$C32="","",Köpek!$C32*BH32)) ->  | DI32: =IF(Köpek!$B32="","",IF(Köpek!$C32="","",Köpek!$C32*BI32)) ->  | DJ32: =IF(Köpek!$B32="","",IF(Köpek!$C32="","",Köpek!$C32*BJ32*1000)) ->  | DK32: =IF(Köpek!$B32="","",IF(Köpek!$C32="","",Köpek!$C32*BK32)) ->  | DL32: =IF(Köpek!$B32="","",IF(Köpek!$C32="","",Köpek!$C32*BL32)) ->  | DM32: =IF(Köpek!$B32="","",IF(Köpek!$C32="","",Köpek!$C32*BM32)) ->  | DN32: =IF(Köpek!$B32="","",IF(Köpek!$C32="","",Köpek!$C32*BN32)) ->  | DO32: =IF(Köpek!$B32="","",IF(Köpek!$C32="","",Köpek!$C32*BO32)) ->  | DP32: =IF(Köpek!$B32="","",IF(Köpek!$C32="","",Köpek!$C32*BP32)) ->  | DQ32: =IF(Köpek!$B32="","",IF(Köpek!$C32="","",Köpek!$C32*BQ32)) ->  | DR32: =IF(Köpek!$B32="","",IF(Köpek!$C32="","",Köpek!$C32*BR32)) ->  | DS32: =IF(Köpek!$B32="","",IF(Köpek!$C32="","",Köpek!$C32*BS32)) ->  | DT32: =IF(Köpek!$B32="","",IF(Köpek!$C32="","",Köpek!$C32*BT32*1000)) ->  | DU32: =IF(Köpek!$B32="","",IF(Köpek!$C32="","",Köpek!$C32*BU32*1000)) ->  | DV32: =IF(Köpek!$B32="","",IF(Köpek!$C32="","",Köpek!$C32*BV32)) ->  | DW32: =IF(Köpek!$B32="","",IF(Köpek!$C32="","",Köpek!$C32*BW32*10)) ->  | DX32: =IF(Köpek!$B32="","",IF(Köpek!$C32="","",Köpek!$C32*BX32*10)) ->  | DY32: =IF(Köpek!$B32="","",IF(Köpek!$C32="","",Köpek!$C32*BY32*10)) ->  | DZ32: =IF(Köpek!$B32="","",IF(Köpek!$C32="","",Köpek!$C32*BZ32*10)) ->  | EA32: =IF(Köpek!$B32="","",IF(Köpek!$C32="","",Köpek!$C32*CA32*10)) ->  | EB32: =IF(Köpek!$B32="","",IF(Köpek!$C32="","",Köpek!$C32*CB32*10)) ->  | EC32: =IF(Köpek!$B32="","",IF(Köpek!$C32="","",Köpek!$C32*CC32)) ->  | EE32: Hindi göğüs eti | EF32: 25.9 | EG32: 24.6 | EH32: 0.7 | EJ32: 1 | EK32: 1.11 | EL32: 1.11 | EP32: 0.11 | EQ32: 0.02 | ER32: 0.05 | ES32: 0.87 | ET32: 0.5 | EU32: 0.5 | EV32: 1.08 | EW32: 1.15 | EX32: 0.37 | EY32: 0.1 | EZ32: 0.55 | FA32: 0.47 | FB32: 0.64 | FC32: 0.11 | FD32: 0.093 | FE32: 0.54 | FF32: 0.01 | FG32: 0.206 | FI32: 0.028 | FJ32: 0.293 | FK32: 0.049 | FN32: 1 | FO32: 0.02 | FP32: 12 | FQ32: 0 | FR32: 0.244 | FS32: 12 | FT32: 0.06 | FU32: 680 | FV32: 0.08 | FW32: 63 | FX32: 7 | FY32: 1 | GA32: 6 | GB32: 0.005 | GE32: 4 | GF32: 0.2 | GG32: 0.2 | GH32: 0.11 | GI32: 0.02 | GJ32: 150 | GK32: FJ | GM32: CA | GN32: Yaşama payı, Terier | GP32: =180*Q5^0.75 -> 774.6330727 | GR32: 180 | GW32: Daschund, miniature | GX32: 5 | GY32: 5 | GZ32: 5 | HA32: Küçük | HF32: Pantotenik asit, mg | HG32: 2.332197475 | HH32: 3.75 | HI32: 3.75 | HJ32: 3.75 | HK32: 3.75 | HR32: Riboflavin, mg | HT32: Javanese | HU32: 3.6 | HW32: Pantotenik asit, mg | HX32: 0.6330050208 | HY32: 1.425 | HZ32: 1.44 | IA32: 1.4375 | IB32: 1.4375
A33: =Köpek!A33 -> 0 | B33: =Köpek!B33 -> 0 | C33: =Köpek!C33 -> 0 | D33: Pridoksin, mg | E33: =Köpek!E33 -> 0.2332197475 | F33: =DQ1 -> 0.8235 | G33: FAZLA | H33: =(F33*100)/(C2*1000) -> 0.2553488372 | I33: 0.5749361357 | J33: 0.1323954984 | AA33: 0 | AC33: 0 | CE33: =IF(Köpek!$B33="","",IF(Köpek!$C33="","",Köpek!$C33*AD33*10)) ->  | CF33: =IF(Köpek!$B33="","",IF(Köpek!$C33="","", IF(KKSecim="Köpek", Köpek!$C33*AE33*1000, Köpek!$C33*AF33*1000) ) ) ->  | CG33: =IF(Köpek!$B33="","",IF(Köpek!$C33="","",Köpek!$C33*AG33*10)) ->  | CH33: =IF(Köpek!$B33="","",IF(Köpek!$C33="","",Köpek!$C33*AH33*10)) ->  | CI33: =IF(Köpek!$B33="","",IF(Köpek!$C33="","",Köpek!$C33*AI33*10)) ->  | CJ33: =IF(Köpek!$B33="","",IF(Köpek!$C33="","",Köpek!$C33*AJ33*10)) ->  | CK33: =IF(Köpek!$B33="","",IF(Köpek!$C33="","",Köpek!$C33*AK33*10)) ->  | CL33: =IF(Köpek!$B33="","",IF(Köpek!$C33="","",Köpek!$C33*AL33*10)) ->  | CM33: =IF(Köpek!$B33="","",IF(Köpek!$C33="","",Köpek!$C33*AM33*10)) ->  | CN33: =IF(Köpek!$B33="","",IF(Köpek!$C33="","",Köpek!$C33*AN33*10)) ->  | CO33: =IF(Köpek!$B33="","",IF(Köpek!$C33="","",Köpek!$C33*AO33*10)) ->  | CP33: =IF(Köpek!$B33="","",IF(Köpek!$C33="","",Köpek!$C33*AP33*10)) ->  | CQ33: =IF(Köpek!$B33="","",IF(Köpek!$C33="","",Köpek!$C33*AQ33*10)) ->  | CR33: =IF(Köpek!$B33="","",IF(Köpek!$C33="","",Köpek!$C33*AR33*10)) ->  | CS33: =IF(Köpek!$B33="","",IF(Köpek!$C33="","",Köpek!$C33*AS33*10)) ->  | CT33: =IF(Köpek!$B33="","",IF(Köpek!$C33="","",Köpek!$C33*AT33*10)) ->  | CU33: =IF(Köpek!$B33="","",IF(Köpek!$C33="","",Köpek!$C33*AU33*10)) ->  | CV33: =IF(Köpek!$B33="","",IF(Köpek!$C33="","",Köpek!$C33*AV33*10)) ->  | CW33: =IF(Köpek!$B33="","",IF(Köpek!$C33="","",Köpek!$C33*AW33*10)) ->  | CX33: =IF(Köpek!$B33="","",IF(Köpek!$C33="","",Köpek!$C33*AX33*10)) ->  | CY33: =IF(Köpek!$B33="","",IF(Köpek!$C33="","",Köpek!$C33*AY33*10)) ->  | CZ33: =IF(Köpek!$B33="","",IF(Köpek!$C33="","",Köpek!$C33*AZ33*10)) ->  | DA33: =IF(Köpek!$B33="","",IF(Köpek!$C33="","",Köpek!$C33*BA33*10)) ->  | DB33: =IF(Köpek!$B33="","",IF(Köpek!$C33="","",Köpek!$C33*BB33*10000)) ->  | DC33: =IF(Köpek!$B33="","",IF(Köpek!$C33="","",Köpek!$C33*BC33*10000)) ->  | DD33: =IF(Köpek!$B33="","",IF(Köpek!$C33="","",Köpek!$C33*BD33*10)) ->  | DE33: =IF(Köpek!$B33="","",IF(Köpek!$C33="","",Köpek!$C33*BE33*10000)) ->  | DF33: =IF(Köpek!$B33="","",IF(Köpek!$C33="","",Köpek!$C33*BF33)) ->  | DG33: =IF(Köpek!$B33="","",IF(Köpek!$C33="","",Köpek!$C33*BG33)) ->  | DH33: =IF(Köpek!$B33="","",IF(Köpek!$C33="","",Köpek!$C33*BH33)) ->  | DI33: =IF(Köpek!$B33="","",IF(Köpek!$C33="","",Köpek!$C33*BI33)) ->  | DJ33: =IF(Köpek!$B33="","",IF(Köpek!$C33="","",Köpek!$C33*BJ33*1000)) ->  | DK33: =IF(Köpek!$B33="","",IF(Köpek!$C33="","",Köpek!$C33*BK33)) ->  | DL33: =IF(Köpek!$B33="","",IF(Köpek!$C33="","",Köpek!$C33*BL33)) ->  | DM33: =IF(Köpek!$B33="","",IF(Köpek!$C33="","",Köpek!$C33*BM33)) ->  | DN33: =IF(Köpek!$B33="","",IF(Köpek!$C33="","",Köpek!$C33*BN33)) ->  | DO33: =IF(Köpek!$B33="","",IF(Köpek!$C33="","",Köpek!$C33*BO33)) ->  | DP33: =IF(Köpek!$B33="","",IF(Köpek!$C33="","",Köpek!$C33*BP33)) ->  | DQ33: =IF(Köpek!$B33="","",IF(Köpek!$C33="","",Köpek!$C33*BQ33)) ->  | DR33: =IF(Köpek!$B33="","",IF(Köpek!$C33="","",Köpek!$C33*BR33)) ->  | DS33: =IF(Köpek!$B33="","",IF(Köpek!$C33="","",Köpek!$C33*BS33)) ->  | DT33: =IF(Köpek!$B33="","",IF(Köpek!$C33="","",Köpek!$C33*BT33*1000)) ->  | DU33: =IF(Köpek!$B33="","",IF(Köpek!$C33="","",Köpek!$C33*BU33*1000)) ->  | DV33: =IF(Köpek!$B33="","",IF(Köpek!$C33="","",Köpek!$C33*BV33)) ->  | DW33: =IF(Köpek!$B33="","",IF(Köpek!$C33="","",Köpek!$C33*BW33*10)) ->  | DX33: =IF(Köpek!$B33="","",IF(Köpek!$C33="","",Köpek!$C33*BX33*10)) ->  | DY33: =IF(Köpek!$B33="","",IF(Köpek!$C33="","",Köpek!$C33*BY33*10)) ->  | DZ33: =IF(Köpek!$B33="","",IF(Köpek!$C33="","",Köpek!$C33*BZ33*10)) ->  | EA33: =IF(Köpek!$B33="","",IF(Köpek!$C33="","",Köpek!$C33*CA33*10)) ->  | EB33: =IF(Köpek!$B33="","",IF(Köpek!$C33="","",Köpek!$C33*CB33*10)) ->  | EC33: =IF(Köpek!$B33="","",IF(Köpek!$C33="","",Köpek!$C33*CC33)) ->  | EE33: Hindi unu | EF33: 93.5 | EG33: 54 | EH33: 20 | EI33: 2 | EJ33: 12 | EK33: 3.96 | EL33: 3.89 | EP33: 2.94 | EQ33: 0.12 | ER33: 0.274 | ES33: 3.89 | ET33: 1.34 | EU33: 2.25 | EV33: 4.2 | EW33: 2.84 | EX33: 1.02 | EY33: 0.99 | EZ33: 2.04 | FA33: 1.68 | FB33: 2.1 | FC33: 0.46 | FD33: 0.305 | FE33: 2.76 | FF33: 3.5 | FG33: 2.05 | FI33: 0.21 | FJ33: 0.58 | FK33: 0.35 | FL33: 0.55 | FM33: 0.51 | FN33: 14 | FO33: 0.9 | FP33: 470 | FQ33: 11 | FR33: 0.78 | FS33: 120 | FT33: 0.3 | FU33: 5966 | FV33: 1 | FW33: 40 | FX33: 10.6 | FY33: 10.5 | FZ33: 1 | GA33: 4.4 | GB33: 0.31 | GE33: 2.1 | GJ33: 50 | GK33: FK | GM33: CA | GN33: Gebelik + , 4 hf - Doğum | GP33: =IF(KopekGebelik>=4,130*Q5^0.75+26*Q5,GP29) -> 559.4572192 | GR33: 130 | GW33: Doberman | GX33: 30 | GY33: 40 | GZ33: 35 | HA33: İri | HF33: Pridoksin, mg | HG33: 0.2332197475 | HH33: 0.375 | HI33: 0.375 | HJ33: 0.375 | HK33: 0.375 | HR33: Niasin, mg | HT33: Kinkalow | HU33: 4 | HW33: Pridoksin, mg | HX33: 0.2752195742 | HY33: 0.625 | HZ33: 0.625 | IA33: 0.625 | IB33: 0.625
A34: =Köpek!A34 -> 0 | B34: =Köpek!B34 -> 0 | C34: =Köpek!C34 -> 0 | D34: Vitamin B12, µg | E34: =Köpek!E34 -> 5.441794108 | F34: =DT1 -> 0.506 | G34: EKSİK | H34: =(F34*100)/(C2*1000) -> 0.1568992248 | I34: 0.3532698053 | J34: 0.08135048232 | AA34: 0 | AC34: 0 | CE34: =IF(Köpek!$B34="","",IF(Köpek!$C34="","",Köpek!$C34*AD34*10)) ->  | CF34: =IF(Köpek!$B34="","",IF(Köpek!$C34="","", IF(KKSecim="Köpek", Köpek!$C34*AE34*1000, Köpek!$C34*AF34*1000) ) ) ->  | CG34: =IF(Köpek!$B34="","",IF(Köpek!$C34="","",Köpek!$C34*AG34*10)) ->  | CH34: =IF(Köpek!$B34="","",IF(Köpek!$C34="","",Köpek!$C34*AH34*10)) ->  | CI34: =IF(Köpek!$B34="","",IF(Köpek!$C34="","",Köpek!$C34*AI34*10)) ->  | CJ34: =IF(Köpek!$B34="","",IF(Köpek!$C34="","",Köpek!$C34*AJ34*10)) ->  | CK34: =IF(Köpek!$B34="","",IF(Köpek!$C34="","",Köpek!$C34*AK34*10)) ->  | CL34: =IF(Köpek!$B34="","",IF(Köpek!$C34="","",Köpek!$C34*AL34*10)) ->  | CM34: =IF(Köpek!$B34="","",IF(Köpek!$C34="","",Köpek!$C34*AM34*10)) ->  | CN34: =IF(Köpek!$B34="","",IF(Köpek!$C34="","",Köpek!$C34*AN34*10)) ->  | CO34: =IF(Köpek!$B34="","",IF(Köpek!$C34="","",Köpek!$C34*AO34*10)) ->  | CP34: =IF(Köpek!$B34="","",IF(Köpek!$C34="","",Köpek!$C34*AP34*10)) ->  | CQ34: =IF(Köpek!$B34="","",IF(Köpek!$C34="","",Köpek!$C34*AQ34*10)) ->  | CR34: =IF(Köpek!$B34="","",IF(Köpek!$C34="","",Köpek!$C34*AR34*10)) ->  | CS34: =IF(Köpek!$B34="","",IF(Köpek!$C34="","",Köpek!$C34*AS34*10)) ->  | CT34: =IF(Köpek!$B34="","",IF(Köpek!$C34="","",Köpek!$C34*AT34*10)) ->  | CU34: =IF(Köpek!$B34="","",IF(Köpek!$C34="","",Köpek!$C34*AU34*10)) ->  | CV34: =IF(Köpek!$B34="","",IF(Köpek!$C34="","",Köpek!$C34*AV34*10)) ->  | CW34: =IF(Köpek!$B34="","",IF(Köpek!$C34="","",Köpek!$C34*AW34*10)) ->  | CX34: =IF(Köpek!$B34="","",IF(Köpek!$C34="","",Köpek!$C34*AX34*10)) ->  | CY34: =IF(Köpek!$B34="","",IF(Köpek!$C34="","",Köpek!$C34*AY34*10)) ->  | CZ34: =IF(Köpek!$B34="","",IF(Köpek!$C34="","",Köpek!$C34*AZ34*10)) ->  | DA34: =IF(Köpek!$B34="","",IF(Köpek!$C34="","",Köpek!$C34*BA34*10)) ->  | DB34: =IF(Köpek!$B34="","",IF(Köpek!$C34="","",Köpek!$C34*BB34*10000)) ->  | DC34: =IF(Köpek!$B34="","",IF(Köpek!$C34="","",Köpek!$C34*BC34*10000)) ->  | DD34: =IF(Köpek!$B34="","",IF(Köpek!$C34="","",Köpek!$C34*BD34*10)) ->  | DE34: =IF(Köpek!$B34="","",IF(Köpek!$C34="","",Köpek!$C34*BE34*10000)) ->  | DF34: =IF(Köpek!$B34="","",IF(Köpek!$C34="","",Köpek!$C34*BF34)) ->  | DG34: =IF(Köpek!$B34="","",IF(Köpek!$C34="","",Köpek!$C34*BG34)) ->  | DH34: =IF(Köpek!$B34="","",IF(Köpek!$C34="","",Köpek!$C34*BH34)) ->  | DI34: =IF(Köpek!$B34="","",IF(Köpek!$C34="","",Köpek!$C34*BI34)) ->  | DJ34: =IF(Köpek!$B34="","",IF(Köpek!$C34="","",Köpek!$C34*BJ34*1000)) ->  | DK34: =IF(Köpek!$B34="","",IF(Köpek!$C34="","",Köpek!$C34*BK34)) ->  | DL34: =IF(Köpek!$B34="","",IF(Köpek!$C34="","",Köpek!$C34*BL34)) ->  | DM34: =IF(Köpek!$B34="","",IF(Köpek!$C34="","",Köpek!$C34*BM34)) ->  | DN34: =IF(Köpek!$B34="","",IF(Köpek!$C34="","",Köpek!$C34*BN34)) ->  | DO34: =IF(Köpek!$B34="","",IF(Köpek!$C34="","",Köpek!$C34*BO34)) ->  | DP34: =IF(Köpek!$B34="","",IF(Köpek!$C34="","",Köpek!$C34*BP34)) ->  | DQ34: =IF(Köpek!$B34="","",IF(Köpek!$C34="","",Köpek!$C34*BQ34)) ->  | DR34: =IF(Köpek!$B34="","",IF(Köpek!$C34="","",Köpek!$C34*BR34)) ->  | DS34: =IF(Köpek!$B34="","",IF(Köpek!$C34="","",Köpek!$C34*BS34)) ->  | DT34: =IF(Köpek!$B34="","",IF(Köpek!$C34="","",Köpek!$C34*BT34*1000)) ->  | DU34: =IF(Köpek!$B34="","",IF(Köpek!$C34="","",Köpek!$C34*BU34*1000)) ->  | DV34: =IF(Köpek!$B34="","",IF(Köpek!$C34="","",Köpek!$C34*BV34)) ->  | DW34: =IF(Köpek!$B34="","",IF(Köpek!$C34="","",Köpek!$C34*BW34*10)) ->  | DX34: =IF(Köpek!$B34="","",IF(Köpek!$C34="","",Köpek!$C34*BX34*10)) ->  | DY34: =IF(Köpek!$B34="","",IF(Köpek!$C34="","",Köpek!$C34*BY34*10)) ->  | DZ34: =IF(Köpek!$B34="","",IF(Köpek!$C34="","",Köpek!$C34*BZ34*10)) ->  | EA34: =IF(Köpek!$B34="","",IF(Köpek!$C34="","",Köpek!$C34*CA34*10)) ->  | EB34: =IF(Köpek!$B34="","",IF(Köpek!$C34="","",Köpek!$C34*CB34*10)) ->  | EC34: =IF(Köpek!$B34="","",IF(Köpek!$C34="","",Köpek!$C34*CC34)) ->  | EE34: İstakoz, çiğ | EF34: 24 | EG34: 19.6 | EH34: 1.3 | EJ34: 2.4 | EK34: 0.93 | EL34: 0.93 | EM34: 0.8 | EO34: 0.8 | EP34: 0.04 | EQ34: 0.054 | ER34: 0.005 | ES34: 1.63 | ET34: 0.376 | EU34: 0.909 | EV34: 1.69 | EW34: 1.54 | EX34: 0.564 | EY34: 0.251 | EZ34: 0.784 | FA34: 0.721 | FB34: 0.909 | FC34: 0.22 | FE34: 0.941 | FF34: 0.048 | FG34: 0.144 | FI34: 0.029 | FJ34: 0.138 | FK34: 0.538 | FN34: 7 | FO34: 7 | FP34: 3 | FQ34: 0.4 | FR34: 0.381 | FS34: 46 | FT34: 0.05 | FV34: 0.17 | FW34: 20 | FX34: 15 | FY34: 0.5 | FZ34: 0.85 | GA34: 2.1 | GB34: 0.063 | GE34: 15 | GF34: 0.198 | GG34: 0.482 | GH34: 0.044 | GI34: 0.438 | GJ34: 500 | GK34: FL | GM34: CA, ECA, Yavru sayısı | GN34: Emziren dişi + | GP34: =145*Q5^0.75 + Q5*(24*GN11+12*GN12)*GN17 ->  | GR34: 145 | GW34: Eskimo köpeği | GX34: 27 | GY34: 48 | GZ34: 37.5 | HA34: İri | HF34: Kobalamin, µg | HG34: 5.441794108 | HH34: 8.75 | HI34: 8.75 | HJ34: 8.75 | HK34: 8.75 | HR34: Pantotenik asit, mg | HT34: Korat | HU34: 4 | HW34: Kobalamin, µg | HX34: 2.476976168 | HY34: 5.625 | HZ34: 5.6 | IA34: 5.625 | IB34: 5.625
D35: Folik asit, µg | E35: =Köpek!E35 -> 41.97955455 | F35: =DU1 -> 45.46 | G35: TAMAM | H35: =(F35*100)/(C2*1000) -> 14.09612403 | I35: 31.73842954 | J35: 7.308681672 | CE35: =SUM(CE37:CE68) -> 11.1 | EE35: İstiridye, çiğ | EF35: 15.2 | EG35: 7.8 | EH35: 1.5 | EJ35: 1.8 | EK35: 0.61 | EL35: 0.61 | EM35: 4.2 | EO35: 4.2 | EP35: 0.021 | EQ35: 0.016 | ER35: 0.017 | ES35: 0.649 | ET35: 0.15 | EU35: 0.362 | EV35: 0.674 | EW35: 0.612 | EX35: 0.225 | EY35: 0.1 | EZ35: 0.312 | FA35: 0.287 | FB35: 0.362 | FC35: 0.087 | FE35: 0.374 | FF35: 0.055 | FG35: 0.153 | FI35: 0.032 | FJ35: 0.248 | FK35: 0.16 | FN35: 79.3 | FO35: 0.6 | FP35: 30 | FQ35: 3.3 | FR35: 0.492 | FS35: 844 | FT35: 0.41 | FW35: 18 | FX35: 3.65 | FY35: 1.88 | FZ35: 0.8 | GA35: 1.66 | GB35: 0.172 | GC35: 570 | GD35: 10 | GE35: 8.5 | GF35: 0.354 | GG35: 0.439 | GH35: 0.038 | GI35: 0.4 | GJ35: 500 | GK35: FM | GW35: Eurasier | GX35: 18 | GY35: 32 | GZ35: 25 | HA35: =IF(GZ35<10,"Küçük", IF(GZ35<20,"Orta", IF(GZ35<50,"İri","Dev"))) -> İri | HF35: Folik asit, µg | HG35: 41.97955455 | HH35: 67.5 | HI35: 67.5 | HJ35: 67.5 | HK35: 67.5 | HR35: Pridoksin, mg | HT35: Kurilian Bobtail | HU35: 4.4 | HW35: Folik asit, µg | HX35: 82.56587227 | HY35: 187.5 | HZ35: 188 | IA35: 187.5 | IB35: 187.5
D36: Kolin, mg | E36: =Köpek!E36 -> 264.3157138 | F36: =DV1 -> 82.5 | G36: =IF(E36=0,"", IF(F36<E36*0.99,"EKSİK", IF(F36>E36*1.5,"FAZLA", "TAMAM")) ) -> EKSİK | H36: =(F36*100)/(C2*1000) -> 25.58139535 | I36: 57.59833782 | J36: 13.26366559 | AC36: HAMMADDELER | AD36: Biotin, mg/kg | CE36: Biotin,µg | EE36: Jelatin | EF36: 88.3 | EG36: 86.9 | EH36: 0.1 | EI36: 0 | EJ36: 1.3 | EK36: 3.54 | EL36: 3.54 | EM36: 0 | EN36: 0 | EO36: 0 | EP36: 0.002 | EQ36: 0.001 | ES36: 6.7 | ET36: 0.57 | EU36: 1.4 | EV36: 2.5 | EW36: 3.9 | EX36: 0.68 | EY36: 0 | EZ36: 1.8 | FA36: 0.11 | FB36: 1.7 | FC36: 0 | FE36: 2.4 | FF36: 0.28 | FG36: 0 | FI36: 0.011 | FJ36: 0.012 | FK36: 0.298 | FN36: 0 | FO36: 0.05 | FP36: 12 | FQ36: 0 | FR36: 0 | FS36: 0 | FT36: 0 | FV36: 0 | FW36: 0 | FX36: 0 | FY36: 0.7 | FZ36: 0 | GA36: 0.06 | GB36: 0 | GC36: 0 | GD36: 0 | GE36: 0 | GF36: 0.036 | GG36: 0.003 | GH36: 0.003 | GI36: 0.001 | GJ36: 50 | GK36: FN | GS36: Aktif | GT36: İnaktif | GU36: İnaktif | GW36: French Bulldog | GX36: 9 | GY36: 13 | GZ36: 11 | HA36: Orta | HF36: Kolin, mg | HG36: 264.3157138 | HH36: 425 | HI36: 425 | HJ36: 425 | HK36: 425 | HR36: Kobalamin, µg | HT36: Lambkin | HU36: 4 | HW36: Kolin, mg | HX36: 280.7239657 | HY36: 637.5 | HZ36: 637 | IA36: 637.5 | IB36: 637.5
D37: Biotin, µg | E37: =Köpek!E37 -> 0 | F37: =CE35 -> 11.1 | G37: =IF(E37=0,"", IF(F37<E37*0.99,"EKSİK", IF(F37>E37*2,"FAZLA", "TAMAM")) ) ->  | H37: =(F37*100)/(C2*1000) -> 3.441860465 | I37: 7.749594543 | J37: 1.784565916 | AC37: =AC3 -> Peynir,süzme | AD37: =IF($AC37=0,"",VLOOKUP($AC37,$EE$3:$GJ$510,FT$1,FALSE)) -> 0 | CE37: =IF(Köpek!$B3="","",IF(Köpek!$C3="","",Köpek!$C3*AD37*1000)) -> 0 | EE37: Kan unu | EF37: 94.3 | EG37: 89.7 | EH37: 0.8 | EI37: 0 | EJ37: 2.8 | EK37: 3.1 | EL37: 3.1 | EM37: 0 | EN37: 0 | EO37: 0 | ES37: 3.76 | ET37: 5.62 | EU37: 1.2 | EV37: 10.96 | EW37: 7.97 | EX37: 0.97 | EY37: 0.96 | EZ37: 6.11 | FA37: 2.56 | FB37: 4.04 | FC37: 1.1 | FE37: 7.47 | FF37: 0.16 | FG37: 0.21 | FI37: 0.02 | FJ37: 0.36 | FK37: 0.43 | FL37: 0.45 | FN37: 5 | FO37: 0.34 | FP37: 2034 | FQ37: 5 | FR37: 0.58 | FS37: 23 | FT37: 0.18 | FU37: 6930 | FV37: 0.2 | FW37: 26 | FX37: 2 | FY37: 2 | FZ37: 0.58 | GA37: 4 | GB37: 0.034 | GE37: 1 | GJ37: 70 | GK37: FO | GR37: Yaş | GS37: b | GT37: % | GU37: b | GW37: Golden Retriever | GX37: 25 | GY37: 36 | GZ37: 30.5 | HA37: İri | HR37: Folik asit, µg | HT37: LaPerm | HU37: 4 | HW37: Biotin, µg | HX37: 8.256587227 | HY37: 18.75 | HZ37: 18.75 | IA37: 18.75 | IB37: 18.75
D38: =EC2 -> FİYAT,TL | F38: =EC1 -> 23.559 | AC38: =AC4 -> Piliç,Göğüs,Et,Çiğ | AD38: 0.06 | CE38: =IF(Köpek!$B4="","",IF(Köpek!$C4="","",Köpek!$C4*AD38*1000)) -> 6 | EE38: Karaciğer, kuzu | EF38: 28.6 | EG38: 20.4 | EH38: 5 | EJ38: 1.4 | EK38: 1.34 | EL38: 1.31 | EM38: 1.8 | EP38: 0.32 | EQ38: 0.07 | ER38: 0.29 | ES38: 1.14 | ET38: 0.48 | EU38: 0.88 | EV38: 1.67 | EW38: 1.1 | EX38: 0.44 | EY38: 0.21 | EZ38: 0.91 | FA38: 0.73 | FB38: 0.88 | FC38: 0.24 | FD38: 0.09 | FE38: 1.12 | FF38: 0.01 | FG38: 0.36 | FI38: 0.02 | FJ38: 0.31 | FK38: 0.07 | FN38: 69.79 | FP38: 74 | FQ38: 2 | FR38: 0.82 | FS38: 47 | FT38: 1.3 | FU38: 3330 | FV38: 2.3 | FW38: 161 | FX38: 61.3 | FY38: 36.3 | FZ38: 3.4 | GA38: 9 | GB38: 0.9 | GC38: 73827 | GD38: 4 | GE38: 6 | GF38: 1.9 | GG38: 0.7 | GH38: 0.32 | GI38: 0.07 | GJ38: 370 | GK38: FP | GN38: Tablo 3-5 monte edilecek | GR38: 1 | GS38: 140 | GT38: 90 | GU38: =GS38*(GT38/100) -> 126 | GW38: Gordon Setter | GX38: 20 | GY38: 36 | GZ38: 28 | HA38: İri | HF38: Amino asitler | HR38: BİOTİN | HT38: Maine Coon | HU38: 7.3
AC39: Yumurta kabuğu | AD39: 0 | CE39: =IF(Köpek!$B5="","",IF(Köpek!$C5="","",Köpek!$C5*AD39*1000)) -> 0 | EE39: Karaciğer, sığır, çiğ | EF39: 29.2 | EG39: 20 | EH39: 3.9 | EJ39: 1.3 | EK39: 1.38 | EL39: 1.36 | EM39: 3.9 | EP39: 0.318 | EQ39: 0.007 | ER39: 0.29 | ES39: 1.26 | ET39: 0.55 | EU39: 0.92 | EV39: 1.88 | EW39: 1.39 | EX39: 0.51 | EY39: 0.31 | EZ39: 1.07 | FA39: 0.79 | FB39: 0.92 | FC39: 0.29 | FD39: 0.069 | FE39: 1.24 | FF39: 0.01 | FG39: 0.32 | FI39: 0.02 | FJ39: 0.32 | FK39: 0.07 | FN39: 33.39 | FO39: 0.16 | FP39: 68 | FQ39: 3 | FR39: 0.41 | FS39: 39 | FT39: 0.68 | FU39: 3330 | FV39: 2.48 | FW39: 128 | FX39: 76.2 | FY39: 27.8 | FZ39: 2.6 | GA39: 9.4 | GB39: 0.69 | GC39: 50697 | GD39: 4 | GE39: 6.7 | GF39: 1.2 | GG39: 0.5 | GH39: 0.318 | GI39: 0.007 | GJ39: 350 | GK39: FQ | GN39: Emziren dişi katsayı | GR39: 2 | GS39: 145 | GT39: 90 | GU39: 130.5 | GW39: Great Pyrenees | GX39: 41 | GY39: 64 | GZ39: 52.5 | HA39: Dev | HF39: Arjinin, g | HG39: =IF(HI$2=1,HH39, IF(HI$2=2,HI39, IF(HI$2=3,HJ39, IF(HI$2=4,HK39, "YOK")))) * HG$5/1000 -> 0.5472890075 | HH39: 1.98 | HI39: 1.65 | HJ39: 0.88 | HK39: 2.5 | HR39: Kolin, mg | HT39: Manx | HU39: 4.4 | HW39: Amino asitler
AC40: Balkabağı, çiğ | AD40: 0.004 | CE40: =IF(Köpek!$B6="","",IF(Köpek!$C6="","",Köpek!$C6*AD40*1000)) -> 0.16 | EE40: Karaciğer, kaz | EF40: 28.2 | EG40: 16.4 | EH40: 4.3 | EJ40: 1.3 | EK40: 1.29 | EL40: 1.29 | EM40: 6.3 | EP40: 0.181 | EQ40: 0.01 | ER40: 0.071 | ES40: 0.995 | ET40: 0.445 | EU40: 0.864 | EV40: 1.47 | EW40: 1.23 | EX40: 0.393 | EY40: 0.22 | EZ40: 0.812 | FA40: 0.576 | FB40: 0.733 | FC40: 0.23 | FE40: 1.02 | FF40: 0.043 | FG40: 0.261 | FI40: 0.02 | FJ40: 0.24 | FK40: 0.077 | FN40: 75.2 | FO40: 0.028 | FP40: 305 | FQ40: 0 | FR40: 0.61 | FS40: 30.7 | FT40: 0 | FV40: 7.38 | FW40: 65 | FX40: 61.8 | FY40: 32 | FZ40: 5.6 | GA40: 9.3 | GB40: 0.54 | GC40: 315000 | GF40: 1.581 | GG40: 0.262 | GH40: 0.252 | GI40: 0.01 | GJ40: 190 | GK40: FR | GN40: 1 | GO40: 0.75 | GR40: 3 | GS40: 145 | GT40: 87 | GU40: 126.15 | GW40: İngiliz çoban köpeği | GX40: 25 | GY40: 45 | GZ40: 35 | HA40: İri | HF40: Histidin, g | HG40: 0.2985212768 | HH40: 0.98 | HI40: 0.63 | HJ40: 0.48 | HK40: 1.1 | HT40: Minskin | HU40: 3.6 | HW40: Arjinin, g | HX40: =IF(HX$2=1,HY40, IF(HX$2=2,HZ40, IF(HX$2=3,IA40, IF(HX$2=4,IB40, "YOK")))) * HX$5/1000 -> 1.651317445 | HY40: 2.4 | HZ40: 1.93 | IA40: 3.75 | IB40: 3.75
AC41: Bezelye, yeşil, çiğ | AD41: 0.03 | CE41: =IF(Köpek!$B7="","",IF(Köpek!$C7="","",Köpek!$C7*AD41*1000)) -> 1.2 | EE41: Karaciğer, piliç | EF41: 25.01 | EG41: 19.01 | EH41: 4.01 | EI41: 0 | EJ41: 1.04 | EK41: 1.16 | EL41: 1.16 | EM41: 0.5 | EN41: 0 | EO41: 5 | EP41: 0.614 | EQ41: 0.062 | ER41: 0.29 | ES41: 1.19 | ET41: 0.52 | EU41: 0.918 | EV41: 1.68 | EW41: 1.53 | EX41: 0.429 | EY41: 0.202 | EZ41: 0.888 | FA41: 0.857 | FB41: 0.918 | FC41: 0.288 | FD41: 0.11 | FE41: 1.38 | FF41: 0.008 | FG41: 0.32 | FH41: 0 | FI41: 0.019 | FJ41: 0.255 | FK41: 0.067 | FL41: 0 | FN41: 35.1 | FP41: 91.5 | FQ41: 2.55 | FR41: 0.505 | FS41: 29 | FT41: 2.1 | FU41: 3330 | FV41: 7.8 | FW41: 100.2 | FX41: 60 | FY41: 34 | FZ41: 4.8 | GA41: 8 | GB41: 0.21 | GC41: 93700 | GD41: 2 | GE41: 3.5 | GF41: 1.15 | GG41: 1.25 | GH41: 0.634 | GI41: 0.332 | GJ41: 70 | GK41: FS | GN41: 2 | GO41: 0.95 | GR41: 4 | GS41: 141 | GT41: 84 | GU41: 118.44 | GW41: İrlanda kurtçusu | GX41: 40 | GY41: 69 | GZ41: 54.5 | HA41: Dev | HF41: İzolöysin, g | HG41: 0.5908233603 | HH41: 1.63 | HI41: 1.25 | HJ41: 0.95 | HK41: 1.78 | HT41: Munchkin | HU41: 4.3 | HW41: Histidin, g | HX41: 0.7816235909 | HY41: 0.83 | HZ41: 0.65 | IA41: 1.075 | IB41: 1.775
H42: IU'ye ÇEVİR | AC42: Havuç, çiğ | AD42: 0.017 | CE42: =IF(Köpek!$B8="","",IF(Köpek!$C8="","",Köpek!$C8*AD42*1000)) -> 0.34 | EE42: Karaciğer, tavuk | EF42: 26.4 | EG42: 18 | EH42: 3.9 | EJ42: 1.2 | EK42: 1.2 | EL42: 1.18 | EP42: 0.486 | EQ42: 0.006 | ER42: 0.29 | ES42: 1.1 | ET42: 0.48 | EU42: 0.95 | EV42: 1.62 | EW42: 1.36 | EX42: 0.43 | EY42: 0.24 | EZ42: 0.89 | FA42: 0.63 | FB42: 0.8 | FC42: 0.25 | FD42: 0.11 | FE42: 1.13 | FF42: 0.01 | FG42: 0.27 | FI42: 0.02 | FJ42: 0.23 | FK42: 0.08 | FL42: 0 | FN42: 39.5 | FP42: 86 | FQ42: 3 | FR42: 0.64 | FS42: 31 | FT42: 2.1 | FU42: 3330 | FV42: 7.38 | FW42: 93 | FX42: 61.8 | FY42: 19.6 | FZ42: 1.4 | GA42: 7.6 | GB42: 0.23 | GC42: 33231 | GD42: 2 | GE42: 3.5 | GF42: 1.6 | GG42: 1.3 | GH42: 0.486 | GI42: 0.006 | GJ42: 70 | GK42: FT | GN42: 3 | GO42: 1.1 | GR42: 5 | GS42: 137 | GT42: 81 | GU42: 110.97 | GW42: İrlanda Seteri | GX42: 25 | GY42: 34 | GZ42: 29.5 | HA42: İri | HF42: Metiyonin, g | HG42: 0.5161930411 | HH42: 0.88 | HI42: 0.65 | HJ42: 0.83 | HK42: 0.78 | HT42: Napoleon | HU42: 4.3 | HW42: İzolöysin, g | HX42: 1.321053956 | HY42: 1.4 | HZ42: 1.08 | IA42: 1.925 | IB42: 3
H43: Vitamin | I43: IU/100 g | J43: IU/100 g KM | K43: IU/100 kcal ME'de | AC43: Pirinç, beyaz, çiğ | AD43: 0.034 | CE43: =IF(Köpek!$B9="","",IF(Köpek!$C9="","",Köpek!$C9*AD43*1000)) -> 3.4 | EE43: Karides | EF43: 24.1 | EG43: 20.3 | EH43: 1.7 | EJ43: 1.2 | EK43: 1.06 | EL43: 1.06 | EM43: 0.9 | EP43: 0.028 | EQ43: 0.54 | ES43: 1.78 | ET43: 0.41 | EU43: 0.99 | EV43: 1.61 | EW43: 1.77 | EX43: 0.57 | EY43: 0.23 | EZ43: 0.86 | FA43: 0.68 | FB43: 0.82 | FC43: 0.28 | FD43: 0.039 | FE43: 0.96 | FF43: 0.05 | FG43: 0.21 | FI43: 0.04 | FJ43: 0.19 | FK43: 0.15 | FN43: 2.64 | FP43: 24 | FQ43: 1 | FR43: 0.38 | FS43: 11 | FU43: 809 | FV43: 0.03 | FW43: 26 | FX43: 2.8 | FY43: 0.3 | FZ43: 0.3 | GA43: 1 | GB43: 0.01 | GC43: 540 | GD43: 38 | GE43: 8.2 | GF43: 0.3 | GG43: 0.7 | GH43: 0.028 | GI43: 0.54 | GJ43: 450 | GK43: FU | GN43: 4 | GO43: 1.2 | GR43: 6 | GS43: 133 | GT43: 77 | GU43: 102.41 | GW43: İtalyan tazısı | GX43: 3 | GY43: 5 | GZ43: 4 | HA43: Küçük | HF43: Metiyonin + Sistin, g | HG43: 1.013728502 | HH43: 1.75 | HI43: 1.33 | HJ43: 1.63 | HK43: 1.55 | HT43: Nebelung | HU43: 3.2 | HW43: Metiyonin, g | HX43: 0.6605269782 | HY43: 1.1 | HZ43: 0.43 | IA43: 1.25 | IB43: 1.5
H44: Vit A | I44: =Köpek!H18/0.3 -> 321.8361757 | J44: =Köpek!I18/0.3 -> 724.6371247 | K44: =Köpek!N18/0.3 -> 556.2281172 | AC44: Kemik unu | AD44: 0 | CE44: =IF(Köpek!$B10="","",IF(Köpek!$C10="","",Köpek!$C10*AD44*1000)) -> 0 | EE44: Kaz eti, çiğ | EF44: 31.7 | EG44: 22.8 | EH44: 7.1 | EJ44: 1.1 | EK44: 1.58 | EL44: 1.58 | EP44: 0.851 | EQ44: 0.107 | ES44: 1.46 | ET44: 0.619 | EU44: 1.17 | EV44: 1.93 | EW44: 1.93 | EX44: 0.619 | EY44: 0.349 | EZ44: 0.946 | FA44: 0.874 | FB44: 0.983 | FC44: 0.317 | FE44: 1.2 | FF44: 0.013 | FG44: 0.312 | FI44: 0.024 | FJ44: 0.315 | FK44: 0.069 | FN44: 3.06 | FP44: 25.7 | FQ44: 0.24 | FR44: 0.24 | FS44: 23.4 | FV44: 0.11 | FW44: 42.8 | FX44: 19.7 | FY44: 3.77 | FZ44: 1.29 | GA44: 6.4 | GB44: 0.0049 | GC44: 300 | GD44: 10 | GE44: 0 | GF44: 2.611 | GG44: 0.957 | GH44: 0.851 | GI44: 0.107 | GJ44: 400 | GK44: FV | GR44: 7 | GS44: 130 | GT44: 74 | GU44: =GS44*(GT44/100) -> 96.2 | GW44: Kangal | GX44: 40 | GY44: 70 | GZ44: 55 | HA44: Dev | HF44: Löysin, g | HG44: 1.057262855 | HH44: 3.22 | HI44: 2.05 | HJ44: 1.7 | HK44: 5 | HT44: Norwegian FC | HU44: 4.1 | HW44: Metiyonin + Sistin, g | HX44: 1.144913429 | HY44: 2.2 | HZ44: 0.85 | IA44: 2.25 | IB44: 2.6
H45: Vit D | I45: =Köpek!H19/0.025 -> 0 | J45: =Köpek!I19/0.025 -> 0 | K45: =Köpek!N19/0.025 -> 0 | AC45: Vit-Min. (TheraVet ProCure) | AD45: 0 | CE45: =IF(Köpek!$B11="","",IF(Köpek!$C11="","",Köpek!$C11*AD45*1000)) ->  | EE45: Kaz eti, derili, çiğ | EF45: 50.3 | EG45: 15.8 | EH45: 33.6 | EJ45: 0.9 | EK45: 3.66 | EL45: 3.66 | EP45: 3.409 | EQ45: 0.214 | ES45: 0.99 | ET45: 0.431 | EU45: 0.736 | EV45: 1.32 | EW45: 1.24 | EX45: 0.381 | EY45: 0.246 | EZ45: 0.66 | FA45: 0.508 | FB45: 0.711 | FC45: 0.208 | FE45: 0.787 | FF45: 0.012 | FG45: 0.234 | FI45: 0.024 | FJ45: 0.315 | FK45: 0.069 | FN45: 1.36 | FO45: 0.012 | FP45: 25 | FQ45: 0.2 | FR45: 0.24 | FS45: 13.5 | FV45: 0.11 | FW45: 80 | FX45: 12.9 | FY45: 3.5 | FZ45: 1.25 | GA45: 5.8 | GB45: 0.0034 | GC45: 300 | GD45: 10 | GE45: 0 | GF45: 9.646 | GG45: 3.623 | GH45: 3.409 | GI45: 0.214 | GJ45: 400 | GK45: FW | GR45: 8 | GS45: 126 | GT45: 74 | GU45: =GS45*(GT45/100) -> 93.24 | GW45: Kuvasz | GX45: 50 | GY45: 50 | GZ45: 50 | HA45: Dev | HF45: Lizin, g | HG45: 0.5472890075 | HH45: 2.2 | HI45: 1.75 | HJ45: 0.88 | HK45: 2.25 | HT45: Ocicat | HU45: 5.5 | HW45: Löysin, g | HX45: 2.201756594 | HY45: 3.2 | HZ45: 2.55 | IA45: 4.5 | IB45: 5
H46: Vit E | I46: =Köpek!H20/1 -> 1.624186047 | J46: =Köpek!I20/1 -> 3.65697083 | K46: =Köpek!N20/1 -> 0.8421221865 | AC46: Ayçiçeği yağı | AD46: 0 | CE46: =IF(Köpek!$B12="","",IF(Köpek!$C12="","",Köpek!$C12*AD46*1000)) -> 0 | EE46: Kazein (Ca kazeinat) | EF46: 91 | EG46: 87 | EH46: 2 | EI46: 0 | EJ46: 1.5 | EK46: 3.07 | EL46: 3.07 | EM46: 1 | EN46: 1 | FF46: 1.45 | FI46: 0.01 | FJ46: 0.01 | FK46: 0.01 | FN46: 3.64 | FP46: 13.65 | FQ46: 4.55 | FS46: 27.3 | FV46: 0.46 | FW46: 0.91 | FX46: 2.64 | FY46: 1.55 | FZ46: 0.46 | GA46: 0.46 | GJ46: 50 | GK46: FX | GR46: 9 | GS46: 123 | GT46: 73 | GU46: 89.79 | GW46: Labrador | GX46: 25 | GY46: 34 | GZ46: 29.5 | HA46: İri | HF46: Fenilalanin, g | HG46: 0.7027688391 | HH46: 1.63 | HI46: 1.25 | HJ46: 1.13 | HK46: 2.08 | HT46: Ojos Azules | HU46: 4.3 | HW46: Lizin, g | HX46: 1.541229616 | HY46: 2.1 | HZ46: 0.85 | IA46: 2.75 | IB46: 3.5
AC47: 0 | CE47: =IF(Köpek!$B13="","",IF(Köpek!$C13="","",Köpek!$C13*AD47*1000)) ->  | EE47: Koyun eti, çiğ | EF47: 28.01 | EG47: 20.01 | EH47: 6 | EI47: 0 | EJ47: 2 | EK47: 1.35 | EL47: 1.35 | EM47: 0 | EN47: 0 | EO47: 0 | EP47: 0.139 | EQ47: 0.139 | ES47: 1.35 | ET47: 0.579 | EU47: 0.997 | EV47: 1.64 | EW47: 1.83 | EX47: 0.515 | EY47: 0.17 | EZ47: 0.804 | FA47: 0.804 | FB47: 0.868 | FC47: 0.187 | FD47: 0.05 | FE47: 1.09 | FF47: 0.0076 | FG47: 0.19 | FH47: 0 | FI47: 0.023 | FJ47: 0.38 | FK47: 0.078 | FL47: 0 | FN47: 1 | FO47: 0.03 | FP47: 24 | FQ47: 0.15 | FR47: 0.0509 | FS47: 37 | FT47: 0.01 | FV47: 0.02 | FW47: 52 | FX47: 5.5 | FY47: 2.2 | FZ47: 1.6 | GA47: 2.9 | GB47: 0.03 | GC47: 450 | GD47: 4 | GE47: 0 | GF47: 2.91 | GG47: 0.278 | GH47: 0.139 | GI47: 0.139 | GJ47: 370 | GK47: FY | GR47: 10 | GS47: 119 | GT47: 72 | GU47: 85.68 | GW47: Maltız | GX47: 3 | GY47: 4 | GZ47: 3.5 | HA47: Küçük | HF47: Fenilalanin + Tirozin, g | HG47: 1.150550754 | HH47: 3.25 | HI47: 2.5 | HJ47: 1.85 | HK47: 3.08 | HT47: Oriental SH | HU47: 3.7 | HW47: Fenilalanin, g | HX47: 0 | HY47: 1.3 | HZ47: 1 | IA47: 0 | IB47: 0
B48: AMİNO ASİTLER | C48: İHTİYAÇ | D48: MAMA | E48: SONUÇ | F48: % | G48: KM'de % | H48: 100 kcal ME'de | AC48: 0 | CE48: =IF(Köpek!$B14="","",IF(Köpek!$C14="","",Köpek!$C14*AD48*1000)) ->  | EE48: Kuzu eti, yağsız, çiğ | EF48: 30.9 | EG48: 17.9 | EH48: 12 | EJ48: 2.88 | EK48: 1.54 | EL48: 1.54 | EM48: 0.9 | EP48: 0.26 | EQ48: 1.05 | ER48: 0.12 | ES48: 1.06 | ET48: 0.53 | EU48: 0.84 | EV48: 1.14 | EW48: 1.14 | EX48: 0.42 | EY48: 0.2 | EZ48: 0.58 | FA48: 0.56 | FB48: 0.53 | FC48: 0.19 | FD48: 0.073 | FE48: 0.72 | FF48: 0.16 | FG48: 0.34 | FI48: 0.02 | FJ48: 0.29 | FK48: 0.08 | FN48: 0.58 | FO48: 0.075 | FP48: 9.6 | FR48: 0.2 | FS48: 22.5 | FT48: 0.03 | FU48: 693 | FV48: 0.05 | FW48: 14.77 | FX48: 2.8 | FY48: 0.9 | FZ48: 1 | GA48: 4.07 | GB48: 0.03 | GE48: 2 | GF48: 4.27 | GG48: 1.9 | GH48: 1.36 | GI48: 0.42 | GJ48: 550 | GK48: FZ | GR48: 11 | GS48: 116 | GT48: 71 | GU48: 82.36 | GW48: Miniature Pinscher | GX48: 4 | GY48: 5 | GZ48: 4.5 | HA48: Küçük | HF48: Treonin, g | HG48: 0.6716728728 | HH48: 2.03 | HI48: 1.58 | HJ48: 1.08 | HK48: 2.6 | HT48: Persian | HU48: 4.8 | HW48: Fenilalanin + Tirozin, g | HX48: 2.102677547 | HY48: 4.8 | HZ48: 3.83 | IA48: 4.775 | IB48: 4.775
B49: =Hesap!CG2 -> Arjinin, g | C49: =IF(KKSecim="Köpek",Hesap!HG39, IF(KKSecim="Kedi",Hesap!HX39,0)) -> 0.5472890075 | D49: =Hesap!CG1 -> 2.3036 | E49: =IF(C49=0,"", IF(D49<C49*0.99,"EKSİK", IF(D49>C49*2,"FAZLA", "TAMAM")) ) -> FAZLA | F49: =(D49*100)/(Köpek!$C$2*1000) -> 0.7142945736 | G49: =F49*100/Köpek!$H$3 -> 1.608285224 | H49: =D49*100/Köpek!$F$5 -> 0.3703536977 | J49: %'ye ÇEVİR | AC49: 0 | CE49: =IF(Köpek!$B15="","",IF(Köpek!$C15="","",Köpek!$C15*AD49*1000)) ->  | EE49: Kuzu eti, yağlı, çiğ | EF49: 33.5 | EG49: 18.4 | EH49: 14.1 | EI49: 0 | EJ49: 1.02 | EK49: 3.26 | EL49: 3.26 | EM49: 0 | EN49: 0 | EO49: 0 | EP49: 0.709 | EQ49: 0.709 | ER49: 0.12 | ES49: 0.981 | ET49: 0.42 | EU49: 0.724 | EV49: 1.19 | EW49: 1.33 | EX49: 0.374 | EY49: 0.124 | EZ49: 0.584 | FA49: 0.584 | FB49: 0.631 | FC49: 0.135 | FD49: 0.073 | FE49: 0.794 | FF49: 0.02 | FG49: 0.13 | FH49: 0 | FI49: 0.017 | FJ49: 0.218 | FK49: 0.066 | FL49: 0 | FN49: 1.22 | FO49: 0.075 | FP49: 15 | FQ49: 0.1 | FR49: 0.0605 | FS49: 34.2 | FT49: 0.01 | FV49: 0.02 | FW49: 43 | FX49: 5.5 | FY49: 3 | FZ49: 1.8 | GA49: 2 | GB49: 0.012 | GC49: 450 | GD49: 4 | GE49: 7 | GF49: 14.08 | GG49: 1.42 | GH49: 0.709 | GI49: 0.709 | GJ49: 500 | GK49: GA | GR49: 12 | GS49: 112 | GT49: 70 | GU49: 78.4 | GW49: Newfoundland | GX49: 45 | GY49: 68 | GZ49: 56.5 | HA49: Dev | HF49: Triptofan, g | HG49: 0.2176717643 | HH49: 0.58 | HI49: 0.45 | HJ49: 0.35 | HK49: 0.3 | HT49: Peterbald | HU49: 4 | HW49: Treonin, g | HX49: 1.188948561 | HY49: 1.6 | HZ49: 1.3 | IA49: 2.225 | IB49: 2.7
B50: =Hesap!CH2 -> Histidin, g | C50: =IF(KKSecim="Köpek",Hesap!HG40, IF(KKSecim="Kedi",Hesap!HX40,0)) -> 0.2985212768 | D50: =Hesap!CH1 -> 1.0044 | E50: FAZLA | F50: =(D50*100)/(Köpek!$C$2*1000) -> 0.3114418605 | G50: =F50*100/Köpek!$H$3 -> 0.7012335819 | H50: =D50*100/Köpek!$F$5 -> 0.1614790997 | J50: YİYECEKLER | K50: % | AC50: 0 | CE50: =IF(Köpek!$B16="","",IF(Köpek!$C16="","",Köpek!$C16*AD50*1000)) ->  | EE50: Kuzu, kıyma | EF50: 40.5 | EG50: 16.6 | EH50: 23.4 | EJ50: 0.9 | EK50: 2.77 | EL50: 2.65 | EP50: 1.36 | EQ50: 0.42 | ER50: 0.12 | ES50: 0.98 | ET50: 0.52 | EU50: 0.8 | EV50: 1.29 | EW50: 1.46 | EX50: 0.43 | EY50: 0.2 | EZ50: 0.67 | FA50: 0.56 | FB50: 0.71 | FC50: 0.19 | FD50: 0.073 | FE50: 0.89 | FF50: 0.02 | FG50: 0.16 | FI50: 0.02 | FJ50: 0.22 | FK50: 0.06 | FN50: 1.01 | FO50: 0.03 | FP50: 16 | FQ50: 0 | FR50: 0.19 | FS50: 34 | FT50: 0.01 | FU50: 693 | FV50: 0.18 | FW50: 60 | FX50: 6.5 | FY50: 2.1 | FZ50: 1.1 | GA50: 1.3 | GB50: 0.02 | GE50: 2 | GF50: 10.2 | GG50: 1.9 | GH50: 1.36 | GI50: 0.42 | GJ50: 450 | GK50: GB | GR50: 13 | GS50: 109 | GT50: 69 | GU50: 75.21 | GW50: Papillon | GX50: 3 | GY50: 5 | GZ50: 4 | HA50: Küçük | HF50: Valin, g | HG50: 0.7649607718 | HH50: 1.7 | HI50: 1.4 | HJ50: 1.23 | HK50: 3.25 | HT50: Pixie-bob | HU50: 5 | HW50: Triptofan, g | HX50: 0.2091668764 | HY50: 0.4 | HZ50: 0.33 | IA50: 0.475 | IB50: 0.475
B51: =Hesap!CI2 -> İzolöysin, g | C51: =IF(KKSecim="Köpek",Hesap!HG41, IF(KKSecim="Kedi",Hesap!HX41,0)) -> 0.5908233603 | D51: =Hesap!CI1 -> 1.6865 | E51: FAZLA | F51: =(D51*100)/(Köpek!$C$2*1000) -> 0.5229457364 | G51: =F51*100/Köpek!$H$3 -> 1.177449657 | H51: =D51*100/Köpek!$F$5 -> 0.2711414791 | J51: =IF(Köpek!B3="","",Köpek!B3) -> Peynir,süzme | K51: =IF(Köpek!C3="","",Köpek!C3*100/Köpek!$C$2) -> 3.100775194 | AC51: =AC17 -> 0 | CE51: =IF(Köpek!$B17="","",IF(Köpek!$C17="","",Köpek!$C17*AD51*1000)) ->  | EE51: Laktoz, kuru, toz | EF51: 98.1 | EG51: 0 | EH51: 0.1 | EI51: 0 | EJ51: 0.2 | EK51: 3.92 | EL51: 3.92 | EM51: 97.8 | EN51: 93.5 | FF51: 0.0465 | FG51: 0.031 | FI51: 0.0046 | FJ51: 0.0195 | FK51: 0.004 | FL51: 0 | FN51: 0 | FO51: 0.007 | FP51: 0.12 | FQ51: 0 | FR51: 0.0465 | FS51: 0.025 | FT51: 0 | FV51: 0 | FW51: 0 | FX51: 0 | FY51: 0 | FZ51: 0 | GA51: 0 | GC51: 7.98 | GD51: 0.336 | GE51: 0.023 | GJ51: 50 | GK51: GC | GR51: 14 | GS51: 105 | GT51: 68 | GU51: 71.4 | GW51: Pekingese | GX51: 3.6 | GY51: 4.5 | GZ51: 4.05 | HA51: Küçük | HF51: Mineral elementler | HT51: Ragdoll | HU51: 6.3 | HW51: Valin, g | HX51: 1.321053956 | HY51: 1.6 | HZ51: 1.28 | IA51: 2.5 | IB51: 3
B52: =Hesap!CJ2 -> Metiyonin, g | C52: =IF(KKSecim="Köpek",Hesap!HG42, IF(KKSecim="Kedi",Hesap!HX42,0)) -> 0.5161930411 | D52: =Hesap!CJ1 -> 0.8643 | E52: TAMAM | F52: =(D52*100)/(Köpek!$C$2*1000) -> 0.268 | G52: =F52*100/Köpek!$H$3 -> 0.6034211318 | H52: =D52*100/Köpek!$F$5 -> 0.1389549839 | J52: =IF(Köpek!B4="","",Köpek!B4) -> Piliç,Göğüs,Et,Çiğ | K52: =IF(Köpek!C4="","",Köpek!C4*100/Köpek!$C$2) -> 31.00775194 | AC52: 0 | CE52: =IF(Köpek!$B18="","",IF(Köpek!$C18="","",Köpek!$C18*AD52*1000)) ->  | EE52: Midye, çiğ | EF52: 19.4 | EG52: 11.9 | EH52: 2.2 | EJ52: 1.6 | EK52: 0.83 | EL52: 0.83 | EP52: 0.037 | EQ52: 0.029 | ER52: 0.082 | ES52: 0.895 | ET52: 0.286 | EU52: 0.571 | EV52: 0.914 | EW52: 0.952 | EX52: 0.324 | EY52: 0.19 | EZ52: 0.495 | FA52: 0.495 | FB52: 0.552 | FC52: 0.152 | FE52: 0.743 | FF52: 0.03 | FG52: 0.145 | FI52: 0.039 | FJ52: 0.145 | FK52: 0.582 | FN52: 2.2 | FO52: 1.4 | FP52: 77 | FQ52: 2.3 | FR52: 0.46 | FS52: 34 | FT52: 0 | FV52: 0.418 | FW52: 16 | FY52: 2 | GA52: 0.96 | GB52: 0.102 | GC52: 840 | GE52: 35 | GF52: 0.446 | GG52: 0.48 | GH52: 0.12 | GI52: 0.36 | GJ52: 12 | GK52: GD | GW52: Pomeranian | GX52: 1 | GY52: 3 | GZ52: 2 | HA52: Küçük | HF52: Vitaminler | HT52: RagaMuffin | HU52: 6.3 | HW52: Mineral elementler
B53: Metiyonin+Sistin, g | C53: =IF(KKSecim="Köpek",Hesap!HG43, IF(KKSecim="Kedi",Hesap!HX43,0)) -> 1.013728502 | D53: =Hesap!CJ1+Hesap!CK1 -> 1.2992 | E53: TAMAM | F53: =(D53*100)/(Köpek!$C$2*1000) -> 0.4028527132 | G53: =F53*100/Köpek!$H$3 -> 0.9070516423 | H53: =D53*100/Köpek!$F$5 -> 0.2088745981 | J53: =IF(Köpek!B5="","",Köpek!B5) -> Yumurta kabuğu | K53: =IF(Köpek!C5="","",Köpek!C5*100/Köpek!$C$2) -> 0.1550387597 | AC53: 0 | CE53: =IF(Köpek!$B19="","",IF(Köpek!$C19="","",Köpek!$C19*AD53*1000)) ->  | EE53: Ördek eti, çiğ | EF53: 26.2 | EG53: 18.3 | EH53: 5.1 | EJ53: 1.1 | EK53: 1.26 | EL53: 1.26 | EP53: 0.599 | EQ53: 0.105 | ES53: 1.17 | ET53: 0.497 | EU53: 0.936 | EV53: 1.55 | EW53: 1.55 | EX53: 0.497 | EY53: 0.281 | EZ53: 0.761 | FA53: 0.702 | FB53: 0.79 | FC53: 0.254 | FE53: 0.965 | FF53: 0.011 | FG53: 0.203 | FI53: 0.022 | FJ53: 0.297 | FK53: 0.086 | FN53: 1.4 | FO53: 0.012 | FP53: 12 | FQ53: 0.19 | FR53: 0.24 | FS53: 13.5 | FV53: 0.48 | FW53: 53 | FX53: 16 | FY53: 4.5 | FZ53: 3.6 | GA53: 3.4 | GB53: 0.004 | GC53: 240 | GF53: 1.069 | GG53: 0.878 | GH53: 0.631 | GI53: 0.247 | GJ53: 170 | GK53: GE | GW53: Poodle, Miniature | GX53: 7 | GY53: 8 | GZ53: 7.5 | HA53: Küçük | HF53: Yağ asitleri | HT53: Russian Blue | HU53: 3.2 | HW53: Vitaminler
B54: =Hesap!CL2 -> Löysin, g | C54: =IF(KKSecim="Köpek",Hesap!HG44, IF(KKSecim="Kedi",Hesap!HX44,0)) -> 1.057262855 | D54: =Hesap!CL1 -> 2.6136 | E54: FAZLA | F54: =(D54*100)/(Köpek!$C$2*1000) -> 0.8104186047 | G54: =F54*100/Köpek!$H$3 -> 1.824715342 | H54: =D54*100/Köpek!$F$5 -> 0.420192926 | J54: =IF(Köpek!B6="","",Köpek!B6) -> Balkabağı, çiğ | K54: =IF(Köpek!C6="","",Köpek!C6*100/Köpek!$C$2) -> 12.40310078 | AC54: 0 | CE54: =IF(Köpek!$B20="","",IF(Köpek!$C20="","",Köpek!$C20*AD54*1000)) ->  | EE54: Ördek eti, derili, çiğ | EF54: 51.5 | EG54: 11.5 | EH54: 39.3 | EJ54: 0.7 | EK54: 4 | EL54: 4 | EP54: 4.722 | EQ54: 0.392 | ES54: 0.772 | ET54: 0.276 | EU54: 0.533 | EV54: 0.901 | EW54: 0.919 | EX54: 0.294 | EY54: 0.18 | EZ54: 0.46 | FA54: 0.386 | FB54: 0.478 | FC54: 0.143 | FE54: 0.57 | FF54: 0.011 | FG54: 0.139 | FI54: 0.022 | FJ54: 0.297 | FK54: 0.086 | FN54: 1.4 | FO54: 0.012 | FP54: 12 | FQ54: 0.17 | FR54: 0.24 | FS54: 13.5 | FT54: 0.06 | FV54: 0.48 | FW54: 39.3 | FX54: 9.51 | FY54: 2.1 | FZ54: 1.97 | GA54: 1.9 | GB54: 0.0025 | GC54: 510 | GD54: 10 | GF54: 13.14 | GG54: 5.113 | GH54: 4.722 | GI54: 0.392 | GJ54: 170 | GK54: GF | GW54: Poodle, Standard | GX54: 20 | GY54: 25 | GZ54: 22.5 | HA54: İri | HF54: α-Linolenik asit, g | HG54: =IF(HI$2=1,HH54, IF(HI$2=2,HI54, IF(HI$2=3,HJ54, IF(HI$2=4,HK54, "YOK")))) * HG$5/1000 -> 0.06841112593 | HH54: 0.2 | HI54: 0.2 | HJ54: 0.11 | HK54: 0.2 | HT54: Safari | HU54: 9.1 | HW54: Yağ asitleri
B55: =Hesap!CM2 -> Lizin, g | C55: =IF(KKSecim="Köpek",Hesap!HG45, IF(KKSecim="Kedi",Hesap!HX45,0)) -> 0.5472890075 | D55: =Hesap!CM1 -> 2.5567 | E55: FAZLA | F55: =(D55*100)/(Köpek!$C$2*1000) -> 0.7927751938 | G55: =F55*100/Köpek!$H$3 -> 1.784989943 | H55: =D55*100/Köpek!$F$5 -> 0.4110450161 | J55: =IF(Köpek!B7="","",Köpek!B7) -> Bezelye, yeşil, çiğ | K55: =IF(Köpek!C7="","",Köpek!C7*100/Köpek!$C$2) -> 12.40310078 | AC55: 0 | CE55: =IF(Köpek!$B21="","",IF(Köpek!$C21="","",Köpek!$C21*AD55*1000)) ->  | EE55: Peynir,beyaz | EF55: 58.89 | EG55: 23.24 | EH55: 29.68 | EI55: 0 | EJ55: 3.18 | EK55: 3.71 | EL55: 3.71 | EM55: 2.79 | EN55: 0.5 | EP55: 0.49 | EQ55: 0.293 | ES55: 0.87 | ET55: 0.82 | EU55: 1.14 | EV55: 2.24 | EW55: 2.12 | EX55: 0.57 | EY55: 0.13 | EZ55: 1.23 | FA55: 1.12 | FB55: 0.88 | FC55: 0.32 | FE55: 1.47 | FF55: 0.674 | FG55: 0.451 | FI55: 0.024 | FJ55: 0.136 | FK55: 0.56 | FN55: 0.2 | FO55: 0.39 | FP55: 4.3 | FQ55: 0.1 | FR55: 0.145 | FS55: 26 | FU55: 154 | FV55: 0.2 | FW55: 1.2 | FX55: 2.9 | FY55: 3.5 | FZ55: 0.1 | GA55: 0.7 | GB55: 0.0126 | GC55: 3240 | GE55: 3 | GF55: 18.8 | GG55: 0.8 | GH55: 0.49 | GI55: 0.293 | GJ55: 250 | GK55: GG | GW55: Poodle, Toy | GX55: 3 | GY55: 4 | GZ55: 3.5 | HA55: Küçük | HT55: Savannah | HU55: 11.3 | HW55: α-Linolenik asit, g | HX55: =IF(HX$2=1,HY55, IF(HX$2=2,HZ55, IF(HX$2=3,IA55, IF(HX$2=4,IB55, "YOK")))) * HX$5/1000 -> 0.02201756594 | HY55: 0.05 | IA55: 0.05 | IB55: 0.05
B56: =Hesap!CN2 -> Fenilalanin, g | C56: =IF(KKSecim="Köpek",Hesap!HG46, IF(KKSecim="Kedi",Hesap!HX46,0)) -> 0.7027688391 | D56: =Hesap!CN1 -> 1.491 | E56: FAZLA | F56: =(D56*100)/(Köpek!$C$2*1000) -> 0.4623255814 | G56: =F56*100/Köpek!$H$3 -> 1.040959051 | H56: =D56*100/Köpek!$F$5 -> 0.2397106109 | J56: =IF(Köpek!B8="","",Köpek!B8) -> Havuç, çiğ | K56: =IF(Köpek!C8="","",Köpek!C8*100/Köpek!$C$2) -> 6.201550388 | AC56: 0 | CE56: =IF(Köpek!$B22="","",IF(Köpek!$C22="","",Köpek!$C22*AD56*1000)) ->  | EE56: Peynir, krem | EF56: 48.1 | EG56: 9.9 | EH56: 34.2 | EJ56: 1.5 | EK56: 3.57 | EL56: 3.57 | EM56: 2.15 | EN56: 2.155 | EO56: 0 | EP56: 0.71 | EQ56: 0.26 | ES56: 0.3105 | ET56: 0.2795 | EU56: 0.5435 | EV56: 0.9155 | EW56: 0.7915 | EX56: 0.2795 | EY56: 0.036 | EZ56: 0.5125 | FA56: 0.5435 | FB56: 0.3415 | FC56: 0.1365 | FE56: 0.6675 | FF56: 0.215 | FG56: 0.15 | FI56: 0.006 | FJ56: 0.119 | FK56: 0.5225 | FN56: 0.7 | FO56: 0.104 | FP56: 3 | FQ56: 0.35 | FR56: 0.0325 | FS56: 5.4 | FT56: 0.015 | FV56: 0.13 | FW56: 1.005 | FX56: 2.7 | FY56: 2 | FZ56: 0.375 | GA56: 0.55 | GB56: 0.0022 | GC56: 3040 | GD56: 3.35 | GE56: 8.7 | GF56: 22.136 | GG56: 0.9705 | GH56: 0.71 | GI56: 0.26 | GJ56: 250 | GK56: GH | GW56: Portekiz av köpeği | GX56: 16 | GY56: 25 | GZ56: 20.5 | HA56: İri | HT56: Scottish Fold | HU56: 5
B57: Fenilalanin+Tirozin, g | C57: =IF(KKSecim="Köpek",Hesap!HG47, IF(KKSecim="Kedi",Hesap!HX47,0)) -> 1.150550754 | D57: =Hesap!CN1+Hesap!CO1 -> 2.7594 | E57: FAZLA | F57: =(D57*100)/(Köpek!$C$2*1000) -> 0.855627907 | G57: =F57*100/Köpek!$H$3 -> 1.926507314 | H57: =D57*100/Köpek!$F$5 -> 0.4436334405 | J57: =IF(Köpek!B9="","",Köpek!B9) -> Pirinç, beyaz, çiğ | K57: =IF(Köpek!C9="","",Köpek!C9*100/Köpek!$C$2) -> 31.00775194 | AC57: 0 | CE57: =IF(Köpek!$B23="","",IF(Köpek!$C23="","",Köpek!$C23*AD57*1000)) ->  | EE57: Peynir,labne | EF57: 58.89 | EG57: 4.5 | EH57: 17.5 | EI57: 0 | EJ57: 3.18 | EK57: 1.9 | EL57: 1.9 | EM57: 4.5 | EN57: 4.5 | EP57: 0.49 | EQ57: 0.293 | ES57: 0.87 | ET57: 0.82 | EU57: 1.14 | EV57: 2.24 | EW57: 2.12 | EX57: 0.57 | EY57: 0.13 | EZ57: 1.23 | FA57: 1.12 | FB57: 0.88 | FC57: 0.32 | FE57: 1.47 | FF57: 0.2 | FG57: 0.1 | FI57: 0.024 | FJ57: 0.136 | FK57: 0.2 | FN57: 0.2 | FO57: 0.39 | FP57: 4.3 | FQ57: 0.1 | FR57: 0.145 | FS57: 26 | FU57: 154 | FV57: 0.2 | FW57: 1.2 | FX57: 2.9 | FY57: 3.5 | FZ57: 0.1 | GA57: 0.7 | GB57: 0.0126 | GC57: 3240 | GE57: 3 | GF57: 11.3 | GG57: 0.8 | GH57: 0.49 | GI57: 0.293 | GJ57: 200 | GK57: GI | GW57: Pug | GX57: 6 | GY57: 9 | GZ57: 7.5 | HA57: Küçük | HT57: Serengeti | HU57: 4.3
B58: =Hesap!CP2 -> Treonin, g | C58: =IF(KKSecim="Köpek",Hesap!HG48, IF(KKSecim="Kedi",Hesap!HX48,0)) -> 0.6716728728 | D58: =Hesap!CP1 -> 1.131 | E58: TAMAM | F58: =(D58*100)/(Köpek!$C$2*1000) -> 0.3506976744 | G58: =F58*100/Köpek!$H$3 -> 0.7896208493 | H58: =D58*100/Köpek!$F$5 -> 0.1818327974 | J58: =IF(Köpek!B10="","",Köpek!B10) -> Kemik unu | K58: =IF(Köpek!C10="","",Köpek!C10*100/Köpek!$C$2) -> 0.6201550388 | AC58: 0 | CE58: =IF(Köpek!$B24="","",IF(Köpek!$C24="","",Köpek!$C24*AD58*1000)) ->  | EE58: Peynir,mascarpone | EF58: 58.89 | EG58: 5.8 | EH58: 35.5 | EI58: 0 | EJ58: 3.18 | EK58: 3.55 | EL58: 3.55 | EM58: 3 | EN58: 3 | EP58: 0.49 | EQ58: 0.293 | ES58: 0.87 | ET58: 0.82 | EU58: 1.14 | EV58: 2.24 | EW58: 2.12 | EX58: 0.57 | EY58: 0.13 | EZ58: 1.23 | FA58: 1.12 | FB58: 0.88 | FC58: 0.32 | FE58: 1.47 | FF58: 0.2 | FG58: 0.1 | FI58: 0.024 | FJ58: 0.136 | FK58: 0.2 | FN58: 0.2 | FO58: 0.39 | FP58: 4.3 | FQ58: 0.1 | FR58: 0.145 | FS58: 26 | FU58: 154 | FV58: 0.2 | FW58: 1.2 | FX58: 2.9 | FY58: 3.5 | FZ58: 0.1 | GA58: 0.7 | GB58: 0.0126 | GC58: 3240 | GE58: 3 | GF58: 21.3 | GG58: 0.8 | GH58: 0.49 | GI58: 0.293 | GJ58: 112 | GK58: GJ | GW58: Rhodesian Ridgeback | GX58: 29 | GY58: 41 | GZ58: 35 | HA58: İri | HT58: Serval | HU58: 18
B59: =Hesap!CQ2 -> Triptofan, g | C59: =IF(KKSecim="Köpek",Hesap!HG49, IF(KKSecim="Kedi",Hesap!HX49,0)) -> 0.2176717643 | D59: =Hesap!CQ1 -> 0.3969 | E59: TAMAM | F59: =(D59*100)/(Köpek!$C$2*1000) -> 0.1230697674 | G59: =F59*100/Köpek!$H$3 -> 0.277100367 | H59: =D59*100/Köpek!$F$5 -> 0.06381028939 | J59: =IF(Köpek!B11="","",Köpek!B11) -> Vit-Min. (TheraVet ProCure) | K59: =IF(Köpek!C11="","",Köpek!C11*100/Köpek!$C$2) ->  | AC59: 0 | CE59: =IF(Köpek!$B25="","",IF(Köpek!$C25="","",Köpek!$C25*AD59*1000)) ->  | EE59: Peynir, Parmesan | EF59: 63.3 | EG59: 33.6 | EH59: 24.1 | EJ59: 4.1 | EK59: 3.57 | EL59: 3.57 | EM59: 0.1 | EN59: 0.05 | EO59: 0 | EP59: 0.501 | EQ59: 0.18 | ES59: 1.05 | ET59: 0.948 | EU59: 1.84 | EV59: 3.11 | EW59: 2.69 | EX59: 0.948 | EY59: 0.121 | EZ59: 1.74 | FA59: 1.84 | FB59: 1.16 | FC59: 0.463 | FE59: 2.26 | FF59: 1.18 | FG59: 0.93 | FI59: 0.044 | FJ59: 0.092 | FK59: 0.998 | FN59: 0.3 | FO59: 0.138 | FP59: 8.2 | FQ59: 0.59 | FR59: 0.11 | FS59: 27.5 | FT59: 0.015 | FV59: 0.07 | FW59: 2.71 | FX59: 5.3 | FY59: 3.32 | FZ59: 0.39 | GA59: 0.91 | GB59: 0.016 | GC59: 2140 | GD59: 2.4 | GE59: 6.1 | GF59: 15.607 | GG59: 0.681 | GH59: 0.501 | GI59: 0.18 | GJ59: 150 | GK59: EE | GW59: Rottweiler | GX59: 38 | GY59: 59 | GZ59: 48.5 | HA59: İri | HT59: Skookum | HU59: 4.3
B60: =Hesap!CS2 -> Valin, g | C60: =IF(KKSecim="Köpek",Hesap!HG50, IF(KKSecim="Kedi",Hesap!HX50,0)) -> 0.7649607718 | D60: =Hesap!CS1 -> 1.7861 | E60: FAZLA | F60: =(D60*100)/(Köpek!$C$2*1000) -> 0.5538294574 | G60: =F60*100/Köpek!$H$3 -> 1.24698656 | H60: =D60*100/Köpek!$F$5 -> 0.2871543408 | J60: =IF(Köpek!B12="","",Köpek!B12) -> Ayçiçeği yağı | K60: =IF(Köpek!C12="","",Köpek!C12*100/Köpek!$C$2) -> 3.100775194 | AC60: 0 | CE60: =IF(Köpek!$B26="","",IF(Köpek!$C26="","",Köpek!$C26*AD60*1000)) ->  | EE60: Peynir,süzme | EF60: 58.89 | EG60: 11 | EH60: 16 | EI60: 0 | EJ60: 3.18 | EK60: 1.96 | EL60: 1.96 | EM60: 2 | EN60: 1.8 | EP60: 0.49 | EQ60: 0.293 | ES60: 0.87 | ET60: 0.82 | EU60: 1.14 | EV60: 2.24 | EW60: 2.12 | EX60: 0.57 | EY60: 0.13 | EZ60: 1.23 | FA60: 1.12 | FB60: 0.88 | FC60: 0.32 | FE60: 1.47 | FF60: 0.2 | FG60: 0.1 | FI60: 0.024 | FJ60: 0.136 | FK60: 0.5 | FN60: 0.2 | FO60: 0.39 | FP60: 4.3 | FQ60: 0.1 | FR60: 0.145 | FS60: 26 | FU60: 154 | FV60: 0.2 | FW60: 1.2 | FX60: 2.9 | FY60: 3.5 | FZ60: 0.1 | GA60: 0.7 | GB60: 0.0126 | GC60: 3240 | GE60: 3 | GF60: 10 | GG60: 0.8 | GH60: 0.49 | GI60: 0.293 | GJ60: 100 | GW60: Saint Bernard | GX60: 50 | GY60: 91 | GZ60: 70.5 | HA60: Dev | HT60: Sokoke | HU60: 3.7
B61: MİNERAL ELEMENTLER | C61: İHTİYAÇ | D61: MAMA | E61: SONUÇ | F61: % | G61: KM'de % | H61: 100 kcal ME'de | J61: =IF(Köpek!B13="","",Köpek!B13) ->  | K61: =IF(Köpek!C13="","",Köpek!C13*100/Köpek!$C$2) ->  | AC61: 0 | CE61: =IF(Köpek!$B27="","",IF(Köpek!$C27="","",Köpek!$C27*AD61*1000)) ->  | EE61: Peynir altı suyu, tatlı | EF61: 6.9 | EG61: 0.8 | EH61: 0.4 | EJ61: 0.5 | EK61: 0.27 | EL61: 0.27 | EM61: 5.2 | EN61: 5.14 | EP61: 0.009 | EQ61: 0.003 | ES61: 0.025 | ET61: 0.016 | EU61: 0.047 | EV61: 0.078 | EW61: 0.068 | EX61: 0.016 | EY61: 0.017 | EZ61: 0.027 | FA61: 0.024 | FB61: 0.055 | FC61: 0.013 | FE61: 0.047 | FF61: 0.047 | FG61: 0.046 | FI61: 0.008 | FJ61: 0.161 | FK61: 0.054 | FP61: 0.6 | FQ61: 0 | FR61: 0.019 | FS61: 1.3 | FV61: 0.01 | FW61: 0.74 | FX61: 3.83 | FY61: 1.58 | FZ61: 0.36 | GA61: 0.31 | GB61: 0.0028 | GC61: 41.7 | GD61: 0.371 | GE61: 0.0918 | GF61: 0.228 | GG61: 0.012 | GH61: 0.009 | GI61: 0.003 | GJ61: 300 | GM61: Yaşlılık | GN61: Yaş | GO61: Canlı ağırlık | GP61: İhtiyaç, günlük | GW61: Saluki | GX61: 15 | GY61: 22 | GZ61: 18.5 | HA61: Orta | HT61: Siamese Modern | HU61: 3.7
B62: =Hesap!DD2 -> Potasyum, g | C62: =IF(KKSecim="Köpek",Hesap!HG21, IF(KKSecim="Kedi",Hesap!HX21,0)) -> 0.6219193267 | D62: =Hesap!DD1 -> 0.6341 | E62: =IF(C62=0,"", IF(D62<C62*0.99,"EKSİK", IF(D62>C62*1.5,"FAZLA", "TAMAM")) ) -> TAMAM | F62: =(D62*100)/(Köpek!$C$2*1000) -> 0.196620155 | G62: =F62*100/Köpek!$H$3 -> 0.4427043153 | H62: =D62*100/Köpek!$F$5 -> 0.1019453376 | J62: =IF(Köpek!B14="","",Köpek!B14) ->  | K62: =IF(Köpek!C14="","",Köpek!C14*100/Köpek!$C$2) ->  | AC62: 0 | CE62: =IF(Köpek!$B28="","",IF(Köpek!$C28="","",Köpek!$C28*AD62*1000)) ->  | EE62: Peynir altı suyu tozu | EF62: 96.8 | EG62: 12.5 | EH62: 0.8 | EI62: 0.1 | EJ62: 8.4 | EK62: 3.51 | EL62: 3.51 | EM62: 74.5 | EN62: 74.5 | EP62: 0.025 | EQ62: 0.009 | ES62: 0.37 | ET62: 0.19 | EU62: 0.86 | EV62: 1.2 | EW62: 1.04 | EX62: 0.2 | EY62: 0.3 | EZ62: 0.37 | FA62: 0.25 | FB62: 0.85 | FC62: 0.2 | FD62: 0.066 | FE62: 0.69 | FF62: 0.92 | FG62: 0.78 | FH62: 0.79 | FI62: 0.13 | FJ62: 1.13 | FK62: 1.3 | FL62: 1.5 | FM62: 1.04 | FN62: 1 | FP62: 145 | FQ62: 0 | FR62: 0.272 | FS62: 20 | FT62: 0.37 | FU62: 1675 | FV62: 0.12 | FW62: 11 | FX62: 45.9 | FY62: 28.5 | FZ62: 3.9 | GA62: 4 | GB62: 0.02 | GC62: 90 | GE62: 0.2 | GF62: 0.7 | GG62: 0 | GH62: 0.025 | GI62: 0.009 | GJ62: 300 | GM62: Küçük ırklar | GN62: 12 | GO62: < 10 kg | GP62: 100 kcal/kg CA/gün | GW62: Samoyed | GX62: 16 | GY62: 30 | GZ62: 23 | HA62: İri | HT62: Siamese Trad | HU62: 4.3
B63: =Hesap!DE2 -> Klorid, mg | C63: =IF(KKSecim="Köpek",Hesap!HG22, IF(KKSecim="Kedi",Hesap!HX22,0)) -> 186.575798 | D63: =Hesap!DE1 -> 0 | E63: EKSİK | F63: =(D63/10)/(Köpek!$C$2*1000) -> 0 | G63: =F63*100/Köpek!$H$3 -> 0 | H63: =D63*100/Köpek!$F$5 -> 0 | J63: =IF(Köpek!B15="","",Köpek!B15) ->  | K63: =IF(Köpek!C15="","",Köpek!C15*100/Köpek!$C$2) ->  | AC63: 0 | CE63: =IF(Köpek!$B29="","",IF(Köpek!$C29="","",Köpek!$C29*AD63*1000)) ->  | EE63: Peynir altı suyu protein tozu, 35 | EF63: 96.5 | EG63: 35 | EH63: 2.5 | EI63: 0 | EJ63: 8 | EK63: 3.51 | EL63: 3.51 | EM63: 51 | EN63: 51 | EP63: 0.025 | EQ63: 0.009 | ES63: 0.37 | ET63: 0.19 | EU63: 0.86 | EV63: 1.2 | EW63: 1.04 | EX63: 0.2 | EY63: 0.3 | EZ63: 0.37 | FA63: 0.25 | FB63: 0.85 | FC63: 0.2 | FD63: 0.066 | FE63: 0.69 | FF63: 0.92 | FG63: 0.78 | FH63: 0.79 | FI63: 0.13 | FJ63: 1.13 | FK63: 1.3 | FL63: 1.5 | FM63: 1.04 | FN63: 1 | FP63: 145 | FQ63: 0 | FR63: 0.272 | FS63: 20 | FT63: 0.37 | FU63: 1675 | FV63: 0.12 | FW63: 11 | FX63: 45.9 | FY63: 28.5 | FZ63: 3.9 | GA63: 4 | GB63: 0.02 | GC63: 90 | GE63: 0.2 | GF63: 0.7 | GG63: 0 | GH63: 0.025 | GI63: 0.009 | GJ63: 300 | GM63: Orta Irklar | GN63: 10 | GO63: 10-20 kg | GP63: 60-80 kcal/kg CA/gün | GW63: Schnauzer, Miniature | GX63: 5 | GY63: 7 | GZ63: 6 | HA63: Küçük | HT63: Siberian | HU63: 5
B64: =Hesap!DF2 -> Demir, mg | C64: =IF(KKSecim="Köpek",Hesap!HG25, IF(KKSecim="Kedi",Hesap!HX25,0)) -> 4.66439495 | D64: =Hesap!DF1 -> 4.0418 | E64: EKSİK | F64: =(D64*100)/(Köpek!$C$2*1000) -> 1.253271318 | G64: =F64*100/Köpek!$H$3 -> 2.82182984 | H64: =D64*100/Köpek!$F$5 -> 0.649807074 | J64: =IF(Köpek!B16="","",Köpek!B16) ->  | K64: =IF(Köpek!C16="","",Köpek!C16*100/Köpek!$C$2) ->  | AC64: 0 | CE64: =IF(Köpek!$B30="","",IF(Köpek!$C30="","",Köpek!$C30*AD64*1000)) ->  | EE64: Peynir altı suyu protein tozu, 70 | EF64: 97 | EG64: 73 | EH64: 3 | EI64: 0 | EJ64: 4 | EK64: 3.51 | EL64: 3.51 | EM64: 16 | EN64: 16 | EP64: 0.025 | EQ64: 0.009 | ES64: 0.37 | ET64: 0.19 | EU64: 0.86 | EV64: 1.2 | EW64: 1.04 | EX64: 0.2 | EY64: 0.3 | EZ64: 0.37 | FA64: 0.25 | FB64: 0.85 | FC64: 0.2 | FD64: 0.066 | FE64: 0.69 | FF64: 0.92 | FG64: 0.78 | FH64: 0.79 | FI64: 0.13 | FJ64: 1.13 | FK64: 1.3 | FL64: 1.5 | FM64: 1.04 | FN64: 1 | FP64: 145 | FQ64: 0 | FR64: 0.272 | FS64: 20 | FT64: 0.37 | FU64: 1675 | FV64: 0.12 | FW64: 11 | FX64: 45.9 | FY64: 28.5 | FZ64: 3.9 | GA64: 4 | GB64: 0.02 | GC64: 90 | GE64: 0.2 | GF64: 0.7 | GG64: 0 | GH64: 0.025 | GI64: 0.009 | GJ64: 300 | GM64: Büyük ırklar | GN64: 9 | GO64: 20-50 kg | GP64: 40-60 kcal/kg CA/gün | GW64: Shetland çoban köpeği | GX64: 6.4 | GY64: 12.3 | GZ64: 9.35 | HA64: Küçük | HT64: Singapura | HU64: 3.1
B65: =Hesap!DG2 -> Bakır, mg | C65: =IF(KKSecim="Köpek",Hesap!HG23, IF(KKSecim="Kedi",Hesap!HX23,0)) -> 0.93287899 | D65: =Hesap!DG1 -> 0.34296 | E65: EKSİK | F65: =(D65*100)/(Köpek!$C$2*1000) -> 0.106344186 | G65: =F65*100/Köpek!$H$3 -> 0.2394415265 | H65: =D65*100/Köpek!$F$5 -> 0.05513826367 | J65: =IF(Köpek!B17="","",Köpek!B17) ->  | K65: =IF(Köpek!C17="","",Köpek!C17*100/Köpek!$C$2) ->  | AC65: 0 | CE65: =IF(Köpek!$B31="","",IF(Köpek!$C31="","",Köpek!$C31*AD65*1000)) ->  | EE65: Piliç, Baget, Derili, Çiğ | EF65: 29 | EG65: 18.7 | EH65: 8.9 | EJ65: 1.4 | EK65: 1.55 | EL65: 1.55 | EM65: 0 | EP65: 1.74 | EQ65: 0.085 | ER65: 0.09 | ES65: 1.21 | ET65: 0.484 | EU65: 0.877 | EV65: 1.33 | EW65: 1.69 | EX65: 0.484 | EY65: 0.121 | EZ65: 0.696 | FA65: 0.575 | FB65: 0.756 | FC65: 0.197 | FE65: 0.998 | FF65: 0.009 | FG65: 0.172 | FI65: 0.02 | FJ65: 0.192 | FK65: 0.076 | FP65: 18 | FS65: 16 | FV65: 0.07 | FW65: 54 | FY65: 1.5 | FZ65: 0.6 | GA65: 2.6 | GB65: 0.003 | GC65: 420 | GD65: 15 | GE65: 5 | GF65: 2.525 | GG65: 1.904 | GH65: 1.788 | GI65: 0.116 | GJ65: 150 | GM65: Dev ırklar | GN65: 7 | GO65: > 50 kg | GW65: Shiba Inu | GX65: 6.8 | GY65: 11 | GZ65: 8.9 | HA65: Küçük | HT65: Snowshoe | HU65: 4.3
B66: =Hesap!DH2 -> Çinko, mg | C66: =IF(KKSecim="Köpek",Hesap!HG24, IF(KKSecim="Kedi",Hesap!HX24,0)) -> 9.3287899 | D66: =Hesap!DH1 -> 3.32948 | E66: EKSİK | F66: =(D66*100)/(Köpek!$C$2*1000) -> 1.032396899 | G66: =F66*100/Köpek!$H$3 -> 2.324515319 | H66: =D66*100/Köpek!$F$5 -> 0.5352861736 | J66: =IF(Köpek!B18="","",Köpek!B18) ->  | K66: =IF(Köpek!C18="","",Köpek!C18*100/Köpek!$C$2) ->  | AC66: 0 | CE66: =IF(Köpek!$B32="","",IF(Köpek!$C32="","",Köpek!$C32*AD66*1000)) ->  | EE66: Piliç,Boyun,Derili,Çiğ | EF66: 40.01 | EG66: 14.07 | EH66: 26.24 | EI66: 0 | EJ66: 0.55 | EK66: 2.97 | EL66: 2.97 | EM66: 0 | EP66: 5.04 | EQ66: 0.32 | ES66: 1.16 | ET66: 0.53 | EU66: 0.91 | EV66: 1.34 | EW66: 1.47 | EX66: 0.48 | EY66: 0.25 | EZ66: 0.72 | FA66: 0.59 | FB66: 0.76 | FC66: 0.2 | FD66: 0.02 | FE66: 0.89 | FF66: 0.018 | FG66: 0.112 | FI66: 0.013 | FJ66: 0.137 | FK66: 0.064 | FN66: 0.8 | FO66: 0.024 | FP66: 19 | FQ66: 0.3 | FR66: 0.12 | FS66: 18.6 | FT66: 0.05 | FU66: 561 | FV66: 0.05 | FW66: 36.1 | FX66: 8.5 | FY66: 1.9 | FZ66: 0.5 | GA66: 1.7 | GB66: 0.0026 | GC66: 648 | GE66: 3 | GF66: 7.3 | GG66: 5.7 | GH66: 5.041 | GI66: 0.32 | GJ66: 150 | GW66: Shih Tzu | GX66: 4 | GY66: 7 | GZ66: 5.5 | HA66: Küçük | HT66: Somali | HU66: 4.1
B67: =Hesap!DI2 -> Manganez, mg | C67: =IF(KKSecim="Köpek",Hesap!HG27, IF(KKSecim="Kedi",Hesap!HX27,0)) -> 0.746303192 | D67: =Hesap!DI1 -> 1.42796 | E67: FAZLA | F67: =(D67*100)/(Köpek!$C$2*1000) -> 0.4427782946 | G67: =F67*100/Köpek!$H$3 -> 0.996946939 | H67: =D67*100/Köpek!$F$5 -> 0.2295755627 | J67: =IF(Köpek!B19="","",Köpek!B19) ->  | K67: =IF(Köpek!C19="","",Köpek!C19*100/Köpek!$C$2) ->  | AC67: 0 | CE67: =IF(Köpek!$B33="","",IF(Köpek!$C33="","",Köpek!$C33*AD67*1000)) ->  | EE67: Piliç,But,Derili,Çiğ | EF67: 29.1 | EG67: 18.15 | EH67: 12.1 | EI67: 0 | EJ67: 0.9 | EK67: 1.87 | EL67: 1.87 | EM67: 0 | EP67: 2.34 | EQ67: 0.17 | ER67: 0.09 | ES67: 1.13 | ET67: 0.54 | EU67: 0.91 | EV67: 1.33 | EW67: 1.48 | EX67: 0.49 | EY67: 0.24 | EZ67: 0.71 | FA67: 0.59 | FB67: 0.75 | FC67: 0.2 | FD67: 0.02 | FE67: 0.88 | FF67: 0.01 | FG67: 0.149 | FI67: 0.021 | FJ67: 0.198 | FK67: 0.079 | FN67: 0.6 | FO67: 0.024 | FP67: 10.1 | FQ67: 0.2 | FR67: 0.132 | FS67: 17.7 | FT67: 0.05 | FU67: 566 | FV67: 0.11 | FW67: 54.4 | FX67: 11.1 | FY67: 2 | FZ67: 1 | GA67: 2.9 | GB67: 0.0032 | GC67: 369 | GE67: 4 | GF67: 3.4 | GG67: 2.7 | GH67: 2.34 | GI67: 0.17 | GJ67: 130 | GW67: Sibirya kurdu | GX67: 16 | GY67: 27 | GZ67: 21.5 | HA67: =IF(GZ67<10,"Küçük", IF(GZ67<20,"Orta", IF(GZ67<50,"İri","Dev"))) -> İri | HT67: Sphynx | HU67: 4.3
B68: =Hesap!DJ2 -> Selenyum, µg | C68: =IF(KKSecim="Köpek",Hesap!HG28, IF(KKSecim="Kedi",Hesap!HX28,0)) -> 54.41794108 | D68: =Hesap!DJ1 -> 20.86545 | E68: =IF(C68=0,"", IF(D68<C68*0.99,"EKSİK", IF(D68>C68*1.1,"FAZLA", "TAMAM")) ) -> EKSİK | F68: =(D68*100)/(Köpek!$C$2*1000) -> 6.469906977 | G68: =F68*100/Köpek!$H$3 -> 14.56745743 | H68: =D68*100/Köpek!$F$5 -> 3.354573955 | J68: =IF(Köpek!B20="","",Köpek!B20) ->  | K68: =IF(Köpek!C20="","",Köpek!C20*100/Köpek!$C$2) ->  | AC68: 0 | CE68: =IF(Köpek!$B34="","",IF(Köpek!$C34="","",Köpek!$C34*AD68*1000)) ->  | EE68: Piliç,Et+Deri,Çiğ | EF68: 34.01 | EG68: 18.6 | EH68: 15.06 | EI68: 0 | EJ68: 0.79 | EK68: 2.15 | EL68: 2.15 | EM68: 0 | EP68: 2.88 | EQ68: 0.19 | ES68: 1.17 | ET68: 0.54 | EU68: 0.92 | EV68: 1.35 | EW68: 1.51 | EX68: 0.49 | EY68: 0.25 | EZ68: 0.72 | FA68: 0.6 | FB68: 0.73 | FC68: 0.2 | FD68: 0.02 | FE68: 0.9 | FF68: 0.011 | FG68: 0.147 | FI68: 0.02 | FJ68: 0.189 | FK68: 0.07 | FN68: 0.5 | FO68: 0.024 | FP68: 9 | FQ68: 0.2 | FR68: 0.144 | FS68: 13.1 | FT68: 0.05 | FU68: 597 | FV68: 0.06 | FW68: 68 | FX68: 9.1 | FY68: 1.2 | FZ68: 0.6 | GA68: 3.5 | GB68: 0.0031 | GC68: 420 | GE68: 3 | GF68: 4.3 | GG68: 3.2 | GH68: 2.88 | GI68: 0.19 | GJ68: 180 | GW68: Springer Spaniel | GX68: 18 | GY68: 25 | GZ68: 21.5 | HA68: İri | HT68: Tonkinese | HU68: 4.4
B69: =Hesap!DK2 -> İyot, mg | C69: =IF(KKSecim="Köpek",Hesap!HG26, IF(KKSecim="Kedi",Hesap!HX26,0)) -> 0.1368222519 | D69: =Hesap!DK1 -> 0.03576 | E69: =IF(C69=0,"", IF(D69<C69*0.99,"EKSİK", IF(D69>C69*1.1,"FAZLA", "TAMAM")) ) -> EKSİK | F69: =(D69*100)/(Köpek!$C$2*1000) -> 0.01108837209 | G69: =F69*100/Köpek!$H$3 -> 0.02496626134 | H69: =D69*100/Köpek!$F$5 -> 0.005749196141 | J69: =IF(Köpek!B21="","",Köpek!B21) ->  | K69: =IF(Köpek!C21="","",Köpek!C21*100/Köpek!$C$2) ->  | EE69: Piliç,Göğüs,Deri+Et,Çiğ | EF69: 30.27 | EG69: 21.18 | EH69: 8.08 | EI69: 0 | EJ69: 1.26 | EK69: 1.6 | EL69: 1.6 | EM69: 0 | EP69: 1.54 | EQ69: 0.09 | ER69: 0.05 | ES69: 1.345 | ET69: 0.59 | EU69: 1.03 | EV69: 1.52 | EW69: 1.82 | EX69: 0.555 | EY69: 0.205 | EZ69: 0.81 | FA69: 0.67 | FB69: 0.87 | FC69: 0.23 | FD69: 0.025 | FE69: 1.06 | FF69: 0.011 | FG69: 0.19 | FI69: 0.025 | FJ69: 0.22 | FK69: 0.063 | FN69: 0.2 | FO69: 0.024 | FP69: 8.2 | FQ69: 0.1 | FR69: 0.08 | FS69: 8 | FT69: 0.06 | FU69: 335.5 | FV69: 0.04 | FW69: 99.1 | FX69: 4 | FY69: 0.9 | FZ69: 0.6 | GA69: 5.3 | GB69: 0.0034 | GC69: 245 | GD69: 15 | GE69: 4 | GF69: 2.34 | GG69: 1.73 | GH69: 1.56 | GI69: 0.11 | GJ69: 180 | GW69: Terrier, Airedale | GX69: 18 | GY69: 29 | GZ69: 23.5 | HA69: İri | HT69: Toyger | HU69: 4.3
B70: VİTAMİNLER | C70: İHTİYAÇ | D70: MAMA | E70: SONUÇ | F70: % | G70: KM'de % | H70: 100 kcal ME'de | J70: =IF(Köpek!B22="","",Köpek!B22) ->  | K70: =IF(Köpek!C22="","",Köpek!C22*100/Köpek!$C$2) ->  | EE70: Piliç,Göğüs,Et,Çiğ | EF70: 25.24 | EG70: 23.09 | EH70: 1.24 | EI70: 0 | EJ70: 1.02 | EK70: 1.1 | EL70: 1.1 | EM70: 0 | EP70: 0.17 | EQ70: 0.04 | ER70: 0.05 | ES70: 1.39 | ET70: 0.72 | EU70: 1.22 | EV70: 1.73 | EW70: 1.96 | EX70: 0.64 | EY70: 0.3 | EZ70: 0.92 | FA70: 0.78 | FB70: 0.73 | FC70: 0.27 | FD70: 0.033 | FE70: 1.15 | FF70: 0.011 | FG70: 0.196 | FI70: 0.028 | FJ70: 0.255 | FK70: 0.065 | FN70: 0.4 | FO70: 0.024 | FP70: 7.2 | FQ70: 0.2 | FR70: 0.178 | FS70: 8 | FT70: 0.06 | FU70: 734 | FV70: 0.04 | FW70: 111.9 | FX70: 8.2 | FY70: 0.9 | FZ70: 0.7 | GA70: 5.5 | GB70: 0.0038 | GC70: 63 | GE70: 1 | GF70: 0.3 | GG70: 0.3 | GH70: 0.17 | GI70: 0.04 | GJ70: 175 | GW70: Terrier, Border | GX70: 5 | GY70: 5.5 | GZ70: 5.25 | HA70: Küçük | HT70: Türk Ankara Kedisi | HU70: 4.1
B71: =Hesap!DO2 -> Tiamin, mg | C71: =IF(KKSecim="Köpek",Hesap!HG29, IF(KKSecim="Kedi",Hesap!HX29,0)) -> 0.3498296212 | D71: =Hesap!DO1 -> 0.325936 | E71: =IF(C71=0,"", IF(D71<C71*0.99,"EKSİK", IF(D71>C71*2,"FAZLA", "TAMAM")) ) -> EKSİK | F71: =(D71*100)/(Köpek!$C$2*1000) -> 0.1010654264 | G71: =F71*100/Köpek!$H$3 -> 0.2275560222 | H71: =D71*100/Köpek!$F$5 -> 0.05240128617 | J71: =IF(Köpek!B23="","",Köpek!B23) ->  | K71: =IF(Köpek!C23="","",Köpek!C23*100/Köpek!$C$2) ->  | EE71: Piliç,Kanat,Derili,Çiğ | EF71: 33.79 | EG71: 18.33 | EH71: 15.97 | EI71: 0 | EJ71: 0.69 | EK71: 2.22 | EL71: 2.22 | EM71: 0 | EP71: 2.95 | EQ71: 0.2 | ES71: 1.2 | ET71: 0.51 | EU71: 0.86 | EV71: 1.29 | EW71: 1.43 | EX71: 0.47 | EY71: 0.26 | EZ71: 0.7 | FA71: 0.56 | FB71: 0.74 | FC71: 0.2 | FD71: 0.005 | FE71: 0.87 | FF71: 0.012 | FG71: 0.132 | FI71: 0.018 | FJ71: 0.156 | FK71: 0.073 | FN71: 0.4 | FO71: 0.024 | FP71: 9.5 | FQ71: 0.2 | FR71: 0.155 | FS71: 13.3 | FT71: 0.026 | FU71: 561 | FV71: 0.04 | FW71: 59.3 | FX71: 7.7 | FY71: 0.9 | FZ71: 0.5 | GA71: 3.5 | GB71: 0.0032 | GC71: 441 | GE71: 3 | GF71: 4.5 | GG71: 3.4 | GH71: 2.95 | GI71: 0.2 | GJ71: 120 | GW71: Terrier, Boston | GX71: 4.5 | GY71: 11.3 | GZ71: 7.9 | HA71: Küçük | HT71: Türk Van Kedisi | HU71: 5
B72: =Hesap!DP2 -> Riboflavin, mg | C72: =IF(KKSecim="Köpek",Hesap!HG30, IF(KKSecim="Kedi",Hesap!HX30,0)) -> 0.8162691162 | D72: =Hesap!DP1 -> 0.275646 | E72: EKSİK | F72: =(D72*100)/(Köpek!$C$2*1000) -> 0.08547162791 | G72: =F72*100/Köpek!$H$3 -> 0.1924454718 | H72: =D72*100/Köpek!$F$5 -> 0.04431607717 | J72: =IF(Köpek!B24="","",Köpek!B24) ->  | K72: =IF(Köpek!C24="","",Köpek!C24*100/Köpek!$C$2) ->  | EE72: Piliç,Sırt,Deri+Et,Çiğ | EF72: 41.9 | EG72: 14.05 | EH72: 28.74 | EI72: 0 | EJ72: 0.64 | EK72: 3.19 | EL72: 3.19 | EM72: 0 | EP72: 5.581 | EQ72: 0.34 | ES72: 0.91 | ET72: 0.39 | EU72: 0.67 | EV72: 1 | EW72: 1.1 | EX72: 0.36 | EY72: 0.19 | EZ72: 0.54 | FA72: 0.43 | FB72: 0.57 | FC72: 0.15 | FD72: 0.01 | FE72: 0.67 | FF72: 0.013 | FG72: 0.113 | FI72: 0.015 | FJ72: 0.144 | FK72: 0.064 | FN72: 0.5 | FO72: 0.024 | FP72: 9.4 | FQ72: 0.2 | FR72: 0.121 | FS72: 12.6 | FT72: 0.03 | FU72: 561 | FV72: 0.06 | FW72: 48.4 | FX72: 8.2 | FY72: 1.2 | FZ72: 1 | GA72: 1.9 | GB72: 0.0025 | GC72: 753 | GE72: 4 | GF72: 8.3 | GG72: 6.1 | GH72: 5.581 | GI72: 0.34 | GJ72: 90 | GW72: Terrier, Bull | GX72: 24 | GY72: 28 | GZ72: 26 | HA72: İri
B73: =Hesap!DR2 -> Niasin, mg | C73: =IF(KKSecim="Köpek",Hesap!HG31, IF(KKSecim="Kedi",Hesap!HX31,0)) -> 2.643157138 | D73: =Hesap!DR1 -> 14.02716 | E73: FAZLA | F73: =(D73*100)/(Köpek!$C$2*1000) -> 4.349506977 | G73: =F73*100/Köpek!$H$3 -> 9.793225458 | H73: =D73*100/Köpek!$F$5 -> 2.255170418 | J73: =IF(Köpek!B25="","",Köpek!B25) ->  | K73: =IF(Köpek!C25="","",Köpek!C25*100/Köpek!$C$2) ->  | EE73: Sığır Akciğer,Çiğ | EF73: 20.62 | EG73: 16.2 | EH73: 2.5 | EI73: 0 | EJ73: 0.98 | EK73: 0.92 | EL73: 0.92 | EM73: 0 | EP73: 0.17 | EQ73: 0.02 | FF73: 0.01 | FG73: 0.224 | FI73: 0.014 | FJ73: 0.34 | FK73: 0.198 | FN73: 2.6 | FP73: 79.5 | FQ73: 0.2 | FR73: 0.443 | FS73: 16.1 | FV73: 0.11 | FW73: 40 | FX73: 10 | FY73: 2.3 | FZ73: 0.5 | GA73: 0.4 | GB73: 0.0381 | GC73: 138 | GF73: 0.9 | GG73: 0.3 | GH73: 0.17 | GI73: 0.02 | GJ73: 100 | GW73: Terrier, Cairn | GX73: 6 | GY73: 8 | GZ73: 7 | HA73: Küçük
B74: =Hesap!DS2 -> Pantotenik asit, mg | C74: =IF(KKSecim="Köpek",Hesap!HG32, IF(KKSecim="Kedi",Hesap!HX32,0)) -> 2.332197475 | D74: =Hesap!DS1 -> 2.66285 | E74: TAMAM | F74: =(D74*100)/(Köpek!$C$2*1000) -> 0.8256899225 | G74: =F74*100/Köpek!$H$3 -> 1.859099804 | H74: =D74*100/Köpek!$F$5 -> 0.4281109325 | J74: =IF(Köpek!B26="","",Köpek!B26) ->  | K74: =IF(Köpek!C26="","",Köpek!C26*100/Köpek!$C$2) ->  | EE74: Sığır böbreği, çiğ | EF74: 24.1 | EG74: 15.6 | EH74: 2.8 | EI74: 0 | EJ74: 1.1 | EK74: 1.06 | EL74: 1.06 | EM74: 0.9 | EO74: 0.9 | EP74: 0.102 | EQ74: 0.011 | ER74: 0.15 | ES74: 0.973 | ET74: 0.374 | EU74: 0.624 | EV74: 1.22 | EW74: 1.15 | EX74: 0.324 | EY74: 0.19 | EZ74: 0.649 | FA74: 0.574 | FB74: 0.649 | FC74: 0.19 | FE74: 0.899 | FF74: 0.00945 | FG74: 0.229 | FI74: 0.015 | FJ74: 0.21 | FK74: 0.195 | FN74: 4.4 | FO74: 0.042 | FP74: 69 | FQ74: 0.8 | FR74: 1.23 | FS74: 17 | FT74: 0.24 | FV74: 0.8 | FW74: 64 | FX74: 38.5 | FY74: 19 | FZ74: 4.4 | GA74: 4.3 | GB74: 0.31 | GC74: 870 | GD74: 10 | GE74: 2 | GF74: 1.199 | GG74: 0.169 | GH74: 0.158 | GI74: 0.011 | GJ74: 350 | GW74: Terrier, Fox | GX74: 7.3 | GY74: 8.2 | GZ74: =(GX74+GY74)/2 -> 7.75 | HA74: Küçük | HB74: 18-20
B75: =Hesap!DQ2 -> Pridoksin, mg | C75: =IF(KKSecim="Köpek",Hesap!HG33, IF(KKSecim="Kedi",Hesap!HX33,0)) -> 0.2332197475 | D75: =Hesap!DQ1 -> 0.8235 | E75: FAZLA | F75: =(D75*100)/(Köpek!$C$2*1000) -> 0.2553488372 | G75: =F75*100/Köpek!$H$3 -> 0.5749361357 | H75: =D75*100/Köpek!$F$5 -> 0.1323954984 | J75: =IF(Köpek!B27="","",Köpek!B27) ->  | K75: =IF(Köpek!C27="","",Köpek!C27*100/Köpek!$C$2) ->  | EE75: Sığır et suyu, kurutulmuş | EF75: 96.7 | EG75: 16 | EH75: 8.9 | EJ75: 48.2 | EK75: 2.38 | EL75: 2.34 | FF75: 0.06 | FG75: 0.32 | FI75: 0.05 | FJ75: 0.45 | FK75: 16.98 | FN75: 0 | FP75: 10 | FQ75: 5 | FR75: 0.28 | FV75: 0.32 | FW75: 45 | FX75: 3 | FY75: 2.4 | FZ75: 0.7 | GA75: 2 | GB75: 0.01 | GE75: 2.4 | GJ75: 125 | GW75: Terrier, İskoç | GX75: 8.5 | GY75: 10.5 | GZ75: 9.5 | HA75: Küçük
B76: =Hesap!DT2 -> Vitamin B12, µg | C76: =IF(KKSecim="Köpek",Hesap!HG34, IF(KKSecim="Kedi",Hesap!HX34,0)) -> 5.441794108 | D76: =Hesap!DT1 -> 0.506 | E76: EKSİK | F76: =(D76*100)/(Köpek!$C$2*1000) -> 0.1568992248 | G76: =F76*100/Köpek!$H$3 -> 0.3532698053 | H76: =D76*100/Köpek!$F$5 -> 0.08135048232 | J76: =IF(Köpek!B28="","",Köpek!B28) ->  | K76: =IF(Köpek!C28="","",Köpek!C28*100/Köpek!$C$2) ->  | EE76: Sığır eti | EF76: 40.6 | EG76: 15 | EH76: 23.5 | EJ76: 0.8 | EK76: 2.72 | EL76: 2.6 | EP76: 0.57 | EQ76: 0.24 | ER76: 0.046 | ES76: 1.15 | ET76: 0.44 | EU76: 0.58 | EV76: 1.2 | EW76: 1.16 | EX76: 0.43 | EY76: 0.23 | EZ76: 0.64 | FA76: 0.38 | FB76: 0.47 | FC76: 0.17 | FD76: 0.0285 | FE76: 0.92 | FF76: 0.008 | FG76: 0.156 | FI76: 0.02 | FJ76: 0.28 | FK76: 0.06 | FN76: 0.56 | FO76: 0.04 | FP76: 57 | FQ76: 0 | FR76: 0.159 | FS76: 36 | FT76: 0.0087 | FU76: 788 | FV76: 0.05 | FW76: 25 | FX76: 2.8 | FY76: 1.2 | FZ76: 0.7 | GA76: 2.9 | GB76: 0.03 | GF76: 9.2 | GG76: 0.9 | GH76: 0.57 | GI76: 0.24 | GJ76: 450 | GW76: Terrier, Jack Russell | GX76: 6 | GY76: 8 | GZ76: 7 | HA76: Küçük
B77: =Hesap!DU2 -> Folik asit, µg | C77: =IF(KKSecim="Köpek",Hesap!HG35, IF(KKSecim="Kedi",Hesap!HX35,0)) -> 41.97955455 | D77: =Hesap!DU1 -> 45.46 | E77: TAMAM | F77: =(D77*100)/(Köpek!$C$2*1000) -> 14.09612403 | G77: =F77*100/Köpek!$H$3 -> 31.73842954 | H77: =D77*100/Köpek!$F$5 -> 7.308681672 | J77: =IF(Köpek!B29="","",Köpek!B29) ->  | K77: =IF(Köpek!C29="","",Köpek!C29*100/Köpek!$C$2) ->  | EE77: Sığır eti, az yağlı kıyma, çiğ | EF77: 30 | EG77: 20.5 | EH77: 9.6 | EJ77: 0.9 | EK77: 1.689770554 | EL77: 1.689770554 | ER77: 0.046 | FD77: 0.0285 | FF77: 0.0069 | FG77: 0.175 | FI77: 0.0194 | FJ77: 0.304 | FK77: 0.064 | FN77: 0.68 | FO77: 0.08 | FP77: 23 | FQ77: 0.09 | FS77: 41.5 | FT77: 0.013 | FV77: 0.096 | FW77: 40 | FX77: 3.3 | FY77: 1.67 | FZ77: 0.45 | GA77: 2.6 | GB77: 0.021 | GC77: 101 | GD77: 5 | GE77: 2.3 | GJ77: 400 | GW77: Terrier, Soft Coated Wheaten | GX77: 14 | GY77: 20 | GZ77: 17 | HA77: Orta
B78: Kolin, mg | C78: =IF(KKSecim="Köpek",Hesap!HG36, IF(KKSecim="Kedi",Hesap!HX36,0)) -> 264.3157138 | D78: =Hesap!DV1 -> 82.5 | E78: EKSİK | F78: =(D78*100)/(Köpek!$C$2*1000) -> 25.58139535 | G78: =F78*100/Köpek!$H$3 -> 57.59833782 | H78: =D78*100/Köpek!$F$5 -> 13.26366559 | J78: =IF(Köpek!B30="","",Köpek!B30) ->  | K78: =IF(Köpek!C30="","",Köpek!C30*100/Köpek!$C$2) ->  | EE78: Sığır dili, çiğ | EF78: 32 | EG78: 16.02 | EH78: 12.04 | EI78: 0 | EJ78: 0.8 | EK78: 1.86 | EL78: 1.86 | EM78: 2.06 | EN78: 0 | EO78: 0.4 | EP78: 0.443 | EQ78: 0.088 | ES78: 1.06 | ET78: 0.415 | EU78: 0.674 | EV78: 1.3 | EW78: 1.53 | EX78: 0.415 | EY78: 0.158 | EZ78: 0.674 | FA78: 0.544 | FB78: 0.752 | FC78: 0.15 | FE78: 0.881 | FF78: 0.007 | FG78: 0.16 | FH78: 0 | FI78: 0.018 | FJ78: 0.29 | FK78: 0.08 | FL78: 0 | FN78: 1.3 | FO78: 0.023 | FP78: 25 | FQ78: 0.29 | FR78: 0.02 | FS78: 34 | FT78: 0.02 | FV78: 0.19 | FW78: 42.4 | FX78: 20 | FY78: 3.35 | FZ78: 0.83 | GA78: 1.25 | GB78: 0.049 | GC78: 0 | GD78: 0 | GE78: 1 | GF78: 5.86 | GG78: 0.531 | GH78: 0.443 | GI78: 0.088 | GJ78: 150 | GW78: Terrier, Welsh | GX78: 9 | GY78: 9 | GZ78: 9 | HA78: Küçük
B79: Biotin, µg | C79: =IF(KKSecim="Köpek",Hesap!HG37, IF(KKSecim="Kedi",Hesap!HX37,0)) -> 0 | D79: =Hesap!CE35 -> 11.1 | F79: =IF(KKSecim="Köpek","", IF(KKSecim="Kedi",(D79*100)/(Köpek!$C$2*1000))) ->  | G79: =IF(KKSecim="Köpek","",IF(KKSecim="Kedi",F79*100/Köpek!$H$3)) ->  | H79: =IF(KKSecim="Köpek","", IF(KKSecim="Kedi",D79*100/Köpek!$F$5)) ->  | J79: =IF(Köpek!B31="","",Köpek!B31) ->  | K79: =IF(Köpek!C31="","",Köpek!C31*100/Köpek!$C$2) ->  | EE79: Sığır işkembesi, çiğ | EF79: 15.8 | EG79: 12.1 | EH79: 3.7 | EJ79: 0.4 | EK79: 0.85 | EL79: 0.85 | EP79: 0.125 | EQ79: 0.007 | ES79: 1 | ET79: 0.36 | EU79: 0.59 | EV79: 0.95 | EW79: 1.04 | EX79: 0.32 | EY79: 0.17 | EZ79: 0.47 | FA79: 0.4 | FB79: 0.5 | FC79: 0.11 | FE79: 0.61 | FF79: 0.069 | FG79: 0.064 | FI79: 0.013 | FJ79: 0.067 | FK79: 0.097 | FN79: 0.9 | FP79: 6 | FQ79: 1 | FR79: 0.125 | FS79: 14 | FT79: 0.005 | FU79: 1950 | FV79: 0.05 | FW79: 9 | FX79: 2 | FY79: 1 | FZ79: 0.1 | GA79: 0.4 | GB79: 0.014 | GE79: 1 | GF79: 1.3 | GG79: 0.2 | GH79: 0.125 | GI79: 0.007 | GJ79: 200 | GW79: Terrier, West Highland White | GX79: 6 | GY79: 10 | GZ79: 8 | HA79: Küçük
B80: YAĞ ASİTLERİ | C80: İHTİYAÇ | D80: MAMA | E80: SONUÇ | F80: % | G80: KM'de % | H80: 100 kcal ME'de | J80: =IF(Köpek!B32="","",Köpek!B32) ->  | K80: =IF(Köpek!C32="","",Köpek!C32*100/Köpek!$C$2) ->  | EE80: Sığır kalbi, çiğ | EF80: 24.4 | EG80: 17.1 | EH80: 3.8 | EJ80: 1 | EK80: 1.13 | EL80: 1.11 | EM80: 0.1 | EP80: 0.407 | EQ80: 0.011 | ES80: 1.14 | ET80: 0.47 | EU80: 0.75 | EV80: 1.51 | EW80: 1.41 | EX80: 0.44 | EY80: 0.22 | EZ80: 0.77 | FA80: 0.62 | FB80: 0.8 | FC80: 0.19 | FD80: 0.065 | FE80: 0.89 | FF80: 0 | FG80: 0.17 | FI80: 0.02 | FJ80: 0.27 | FK80: 0.06 | FN80: 3.61 | FP80: 46 | FQ80: 0 | FR80: 0.22 | FS80: 24 | FT80: 0.02 | FV80: 0.02 | FW80: 95 | FX80: 23.2 | FY80: 10.2 | FZ80: 1.9 | GA80: 4.3 | GB80: 0.14 | GE80: 2 | GF80: 1.4 | GG80: 0.5 | GH80: 0.407 | GI80: 0.011 | GJ80: 250 | GW80: Terrier, Yorkshire | GX80: 3.2 | GY80: 3.2 | GZ80: 3.2 | HA80: Küçük
B81: =Hesap!CV2 -> Linolenik asit, g | C81: =IF(KKSecim="Köpek",Hesap!HG54, IF(KKSecim="Kedi",Hesap!HX55,0)) -> 0.06841112593 | D81: =Hesap!CV1 -> 0.1517 | E81: =IF(C81=0,"", IF(D81<C81*0.99,"EKSİK", IF(D81>C81*2,"FAZLA", "TAMAM")) ) -> FAZLA | F81: =(D81*100)/(Köpek!$C$2*1000) -> 0.04703875969 | G81: =F81*100/Köpek!$H$3 -> 0.1059111254 | H81: =D81*100/Köpek!$F$5 -> 0.02438906752 | J81: =IF(Köpek!B33="","",Köpek!B33) ->  | K81: =IF(Köpek!C33="","",Köpek!C33*100/Köpek!$C$2) ->  | EE81: Sığır Meme,Çiğ | EF81: 20 | EG81: 11.72 | EH81: 6 | EI81: 0.24 | EJ81: 1.48 | EK81: 1.12 | EL81: 1.12 | EM81: 0 | FF81: 0.524 | FG81: 0.274 | FI81: 0.016 | FJ81: 0.158 | FK81: 0.116 | FN81: 0.6 | FP81: 20.4 | FQ81: 0.6 | FS81: 20.8 | FV81: 0.06 | FW81: 20.4 | FX81: 9.3 | FY81: 2.9 | FZ81: 6.5 | GA81: 1.4 | GB81: 0.1124 | GC81: 599.994 | GJ81: 100 | GW81: Türk tazısı | GX81: 15 | GY81: 22 | GZ81: 18.5 | HA81: Orta
B82: =Hesap!CW2 -> Arahidonik asit, g | C82: =IF(KKSecim="Köpek",Hesap!HG17, IF(KKSecim="Kedi",Hesap!HX17,0)) -> 0 | D82: =Hesap!CW1 -> 0.55 | E82: =IF(C82=0,"", IF(D82<C82*0.99,"EKSİK", IF(D82>C82*2,"FAZLA", "TAMAM")) ) ->  | F82: =(D82*100)/(Köpek!$C$2*1000) -> 0.1705426357 | G82: =F82*100/Köpek!$H$3 -> 0.3839889188 | H82: =D82*100/Köpek!$F$5 -> 0.0884244373 | J82: =IF(Köpek!B34="","",Köpek!B34) ->  | K82: =IF(Köpek!C34="","",Köpek!C34*100/Köpek!$C$2) ->  | EE82: Süt, % 1.5 yağlı | EF82: 10.7 | EG82: 3.5 | EH82: 1.6 | EJ82: 0.8 | EK82: 0.48 | EL82: 0.48 | EM82: 4.7 | EN82: 4.71 | EP82: 0.027 | EQ82: 0.011 | ES82: 0.121 | ET82: 0.099 | EU82: 0.204 | EV82: 0.336 | EW82: 0.314 | EX82: 0.088 | EY82: 0.027 | EZ82: 0.176 | FA82: 0.149 | FB82: 0.149 | FC82: 0.047 | FE82: 0.242 | FF82: 0.121 | FG82: 0.0957 | FI82: 0.0118 | FJ82: 0.153 | FK82: 0.043 | FL82: 0.0955 | FN82: 0.0967 | FO82: 0.102 | FP82: 0.29 | FQ82: 0.02 | FR82: 0.0154 | FS82: 4.13 | FT82: 0.021 | FV82: 0.115 | FW82: 0.948 | FX82: 3.77 | FY82: 1.74 | FZ82: 0.463 | GA82: 0.492 | GB82: 0.00438 | GC82: 141 | GD82: 0.255 | GE82: 0.3 | GF82: 0.99 | GG82: 0.05 | GH82: 0.027 | GI82: 0.011 | GJ82: 20 | GW82: Vizsla | GX82: 18 | GY82: 27 | GZ82: 22.5 | HA82: İri
B83: =Hesap!CX2 -> Toplam doymuş yağlar, g | D83: =Hesap!CX1 -> 2.42775 | F83: =(D83*100)/(Köpek!$C$2*1000) -> 0.7527906977 | G83: =F83*100/Köpek!$H$3 -> 1.694961996 | H83: =D83*100/Köpek!$F$5 -> 0.3903135048 | EE83: Süt, % 3.5 yağlı | EF83: 12.3 | EG83: 3.4 | EH83: 3.5 | EJ83: 0.8 | EK83: 0.63 | EL83: 0.63 | EM83: 4.6 | EN83: 4.6 | EP83: 0.048 | EQ83: 0.014 | ES83: 0.118 | ET83: 0.097 | EU83: 0.198 | EV83: 0.327 | EW83: 0.306 | EX83: 0.086 | EY83: 0.026 | EZ83: 0.172 | FA83: 0.145 | FB83: 0.145 | FC83: 0.046 | FE83: 0.236 | FF83: 0.116 | FG83: 0.0927 | FI83: 0.011 | FJ83: 0.144 | FK83: 0.0443 | FL83: 0.0931 | FN83: 0.106 | FO83: 0.107 | FP83: 0.16 | FQ83: 0.0171 | FR83: 0.0164 | FS83: 4.15 | FT83: 0.0155 | FV83: 0.11 | FW83: 0.871 | FX83: 3.59 | FY83: 1.72 | FZ83: 0.415 | GA83: 0.46 | GB83: 0.00446 | GC83: 317 | GD83: 0.659 | GE83: 0.6 | GF83: 2.246 | GG83: 0.073 | GH83: 0.048 | GI83: 0.014 | GJ83: 25 | GW83: Weimaraner | GX83: 23 | GY83: 32 | GZ83: 27.5 | HA83: İri
B84: =Hesap!CY2 -> Toplam PUFA, g | D84: =Hesap!CY1 -> 5.847 | F84: =(D84*100)/(Köpek!$C$2*1000) -> 1.813023256 | G84: =F84*100/Köpek!$H$3 -> 4.082151287 | H84: =D84*100/Köpek!$F$5 -> 0.9400321543 | EE84: Süt, Jersey inek | EF84: 13 | EG84: 3.5 | EH84: 4.5 | EJ84: 0.8 | EK84: 0.7 | EL84: 0.7 | EM84: 5.5 | EN84: 4.72 | EP84: 0.048 | EQ84: 0.014 | ES84: 0.118 | ET84: 0.097 | EU84: 0.198 | EV84: 0.327 | EW84: 0.306 | EX84: 0.086 | EY84: 0.026 | EZ84: 0.172 | FA84: 0.145 | FB84: 0.145 | FC84: 0.046 | FE84: 0.236 | FF84: 0.116 | FG84: 0.0927 | FI84: 0.011 | FJ84: 0.144 | FK84: 0.0443 | FL84: 0.0931 | FN84: 0.106 | FO84: 0.107 | FP84: 0.16 | FQ84: 0.0171 | FR84: 0.0164 | FS84: 4.15 | FT84: 0.0155 | FV84: 0.11 | FW84: 0.871 | FX84: 3.59 | FY84: 1.72 | FZ84: 0.415 | GA84: 0.46 | GB84: 0.00446 | GC84: 317 | GD84: 0.659 | GE84: 0.6 | GF84: 2.246 | GG84: 0.073 | GH84: 0.048 | GI84: 0.014 | GJ84: 60 | GW84: Whippet | GX84: 11 | GY84: 21 | GZ84: 16 | HA84: Orta
EE85: Süt, keçi | EF85: 13 | EG85: 3.6 | EH85: 4.1 | EJ85: 0.8 | EK85: 0.69 | EL85: 0.69 | EM85: 4.4 | EN85: 4.4 | EP85: 0.121 | EQ85: 0.044 | ES85: 0.117 | ET85: 0.089 | EU85: 0.206 | EV85: 0.312 | EW85: 0.29 | EX85: 0.078 | EY85: 0.046 | EZ85: 0.156 | FA85: 0.179 | FB85: 0.162 | FC85: 0.044 | FE85: 0.24 | FF85: 0.134 | FG85: 0.111 | FI85: 0.014 | FJ85: 0.204 | FK85: 0.05 | FN85: 0.5 | FP85: 0.5 | FS85: 3 | FT85: 0.02 | FV85: 0.01 | FW85: 2.77 | FX85: 3.1 | FY85: 1.38 | FZ85: 0.48 | GA85: 0.46 | GB85: 0.0007 | GC85: 367 | GD85: 0.6 | GE85: 1.06 | GF85: 2.591 | GG85: 0.165 | GH85: 0.121 | GI85: 0.044 | GJ85: 50
EE86: Süt tozu, tam | EF86: 97.6 | EG86: 27.07 | EH86: 26.08 | EI86: 0 | EJ86: 5.09 | EK86: 5.01 | EL86: 5.01 | EM86: 37.8 | EN86: 37.7 | EO86: 0 | EP86: 0.56 | EQ86: 0.2 | ES86: 0.955 | ET86: 0.782 | EU86: 1.61 | EV86: 2.65 | EW86: 2.48 | EX86: 0.695 | EY86: 0.213 | EZ86: 1.39 | FA86: 1.17 | FB86: 1.17 | FC86: 0.373 | FE86: 1.91 | FF86: 0.96 | FG86: 0.81 | FH86: 0 | FI86: 0.093 | FJ86: 1.19 | FK86: 0.36 | FL86: 0.78 | FM86: 0.24 | FN86: 0.58 | FO86: 0.69 | FP86: 6.2 | FQ86: 0.61 | FR86: 0.14 | FS86: 39.1 | FT86: 0.1 | FV86: 0.37 | FW86: 6.46 | FX86: 22.7 | FY86: 14.2 | FZ86: 3.25 | GA86: 3.02 | GB86: 0.0325 | GC86: 2650 | GD86: 12 | GE86: 6.2 | GF86: 17.04 | GG86: 0.76 | GH86: 0.56 | GI86: 0.2 | GJ86: 150
EE87: Süt tozu, yağsız | EF87: 92.5 | EG87: 34.6 | EH87: 0.8 | EI87: 0.1 | EJ87: 8 | EK87: 3.62 | EL87: 3.62 | EM87: 52 | EN87: 52 | EP87: 0.019 | EQ87: 0.011 | ES87: 1.16 | ET87: 0.94 | EU87: 1.97 | EV87: 3.45 | EW87: 2.7 | EX87: 0.94 | EY87: 0.36 | EZ87: 1.67 | FA87: 1.83 | FB87: 1.67 | FC87: 0.48 | FD87: 0.007 | FE87: 2.33 | FF87: 1.27 | FG87: 0.968 | FH87: 1 | FI87: 0.12 | FJ87: 1.794 | FK87: 0.52 | FL87: 0.9 | FM87: 0.32 | FN87: 3 | FO87: 2 | FP87: 3 | FQ87: 2 | FR87: 0.273 | FS87: 39 | FT87: 0.33 | FU87: 1322 | FV87: 0.62 | FW87: 12 | FX87: 35.8 | FY87: 20.6 | FZ87: 3.5 | GA87: 0.4 | GB87: 0.03 | GC87: 66 | GD87: 83 | GE87: 9 | GF87: 0.5 | GG87: 0 | GH87: 0.019 | GI87: 0.011 | GJ87: 25
EE88: Tavşan eti, çiğ | EF88: 25.4 | EG88: 20.4 | EH88: 4 | EJ88: 1 | EK88: 1.18 | EL88: 1.18 | EP88: 0.791 | EQ88: 0.375 | ER88: 0.072 | ES88: 1.49 | ET88: 0.675 | EU88: 1.24 | EV88: 1.85 | EW88: 2.24 | EX88: 0.675 | EY88: 0.163 | EZ88: 0.924 | FA88: 0.924 | FB88: 1.07 | FC88: 0.281 | FE88: 1.31 | FF88: 0.013 | FG88: 0.21 | FI88: 0.028 | FJ88: 0.383 | FK88: 0.058 | FN88: 1.5 | FO88: 0.0055 | FP88: 8 | FQ88: 0.38 | FR88: 0.1 | FS88: 17 | FT88: 0.01 | FV88: 0.05 | FW88: 100 | FX88: 7.8 | FY88: 1.4 | FZ88: 1.15 | GA88: 6 | GB88: 0.1 | GC88: 100 | GE88: 4 | GF88: 1.645 | GG88: 1.287 | GH88: 0.864 | GI88: 0.424 | GJ88: 500
EE89: Tavuk eti, derili | EF89: 38.2 | EG89: 17.6 | EH89: 20.3 | EJ89: 1 | EK89: 2.53 | EL89: 2.43 | EP89: 2.88 | EQ89: 0.19 | ES89: 1.1 | ET89: 0.52 | EU89: 0.88 | EV89: 1.28 | EW89: 1.43 | EX89: 0.47 | EY89: 0.23 | EZ89: 0.68 | FA89: 0.57 | FB89: 0.73 | FC89: 0.2 | FD89: 0.02 | FE89: 0.85 | FF89: 0.01 | FG89: 0.17 | FI89: 0.02 | FJ89: 0.2 | FK89: 0.07 | FN89: 0.74 | FO89: 0.024 | FP89: 10 | FQ89: 0 | FR89: 0.14 | FS89: 12 | FT89: 0.03 | FU89: 597 | FV89: 0.06 | FW89: 63 | FX89: 9.2 | FY89: 1.7 | FZ89: 1.1 | GA89: 3.3 | GB89: 0 | GC89: 420 | GE89: 3 | GF89: 4.3 | GG89: 3.2 | GH89: 2.88 | GI89: 0.19 | GJ89: 100
EE90: Tavuk taşlığı | EF90: 23.8 | EG90: 18.2 | EH90: 4.2 | EJ90: 0.9 | EK90: 0.94 | EL90: 0.94 | EP90: 0.262 | EQ90: 0 | ES90: 1.31 | ET90: 0.37 | EU90: 0.86 | EV90: 1.28 | EW90: 1.26 | EX90: 0.48 | EY90: 0.24 | EZ90: 0.76 | FA90: 0.55 | FB90: 0.84 | FC90: 0.16 | FD90: 0.03 | FE90: 0.82 | FF90: 0.01 | FG90: 0.14 | FI90: 0.02 | FJ90: 0.24 | FK90: 0.08 | FN90: 0.96 | FP90: 35 | FQ90: 1 | FR90: 0.56 | FS90: 0 | FU90: 597 | FV90: 0.52 | FW90: 47 | FX90: 7.5 | FY90: 1.9 | FZ90: 0.3 | GA90: 1.4 | GB90: 0.02 | GC90: 192 | GE90: 11.9 | GF90: 0.5 | GG90: 0.4 | GH90: 0.262 | GI90: 0 | GJ90: 25
EE91: Tavuk unu | EF91: 93.5 | EG91: 59 | EH91: 13.5 | EI91: 2 | EJ91: 16 | EK91: 3.96 | EL91: 3.89 | EP91: 1.9845 | EQ91: 0.081 | ER91: 1.37 | ES91: 3.89 | ET91: 1.34 | EU91: 2.25 | EV91: 4.2 | EW91: 2.84 | EX91: 1.02 | EY91: 0.99 | EZ91: 2.04 | FA91: 1.68 | FB91: 2.1 | FC91: 0.46 | FD91: 0.305 | FE91: 2.76 | FF91: 3.5 | FG91: 2.05 | FI91: 0.21 | FJ91: 0.58 | FK91: 0.35 | FL91: 0.55 | FM91: 0.51 | FN91: 14 | FO91: 0.05 | FP91: 470 | FQ91: 11 | FR91: 0.78 | FS91: 120 | FT91: 0.3 | FU91: 5966 | FV91: 1 | FW91: 40 | FX91: 10.6 | FY91: 10.5 | FZ91: 1 | GA91: 4.4 | GB91: 0.31 | GE91: 2.1 | GJ91: 75
EE92: Yoğurt (Yağlı) | EF92: 12.1 | EG92: 3.47 | EH92: 3.25 | EI92: 0 | EJ92: 0.72 | EK92: 0.61 | EL92: 0.61 | EM92: 4.66 | EN92: 4.66 | EP92: 0.065 | EQ92: 0.027 | ES92: 0.1 | ET92: 0.086 | EU92: 0.19 | EV92: 0.35 | EW92: 0.31 | EX92: 0.1 | EY92: 0.032 | EZ92: 0.19 | FA92: 0.18 | FB92: 0.14 | FC92: 0.02 | FE92: 0.29 | FF92: 0.121 | FG92: 0.095 | FI92: 0.012 | FJ92: 0.155 | FK92: 0.046 | FN92: 0.1 | FO92: 0.12 | FP92: 0.5 | FQ92: 0 | FR92: 0.022 | FS92: 5.9 | FU92: 152 | FV92: 0.07 | FW92: 0.8 | FX92: 3.9 | FY92: 1.4 | FZ92: 0.3 | GA92: 0.3 | GB92: 0.0037 | GC92: 297 | GE92: 1 | GF92: 2.1 | GG92: 0.1 | GH92: 0.065 | GI92: 0.027 | GJ92: 75
EE93: Yoğurt (Yağsız) | EF93: 14.77 | EG93: 5.73 | EH93: 0.18 | EI93: 0 | EJ93: 1.18 | EK93: 0.56 | EL93: 0.56 | EM93: 7.68 | EN93: 7.68 | EP93: 0.004 | EQ93: 0.001 | ES93: 0.17 | ET93: 0.14 | EU93: 0.31 | EV93: 0.58 | EW93: 0.51 | EX93: 0.17 | EY93: 0.052 | EZ93: 0.31 | FA93: 0.29 | FB93: 0.24 | FC93: 0.032 | FE93: 0.47 | FF93: 0.199 | FG93: 0.157 | FI93: 0.019 | FJ93: 0.255 | FK93: 0.077 | FN93: 0.2 | FO93: 0.06 | FP93: 0.9 | FQ93: 0.1 | FR93: 0.036 | FS93: 9.7 | FU93: 152 | FV93: 0.12 | FW93: 1.2 | FX93: 6.4 | FY93: 2.3 | FZ93: 0.5 | GA93: 0.5 | GB93: 0.0061 | GC93: 21 | GF93: 0.1 | GG93: 0 | GH93: 0.004 | GI93: 0.001 | GJ93: 60
EE94: Yumurta, çırpılmış, ticari | EF94: 21.8 | EG94: 10.8 | EH94: 7.9 | EJ94: 2.1 | EK94: 1.18 | EL94: 1.18 | EM94: 0.9 | EP94: 0.922 | EQ94: 0.054 | ER94: 0.111 | ES94: 0.82 | ET94: 0.31 | EU94: 0.67 | EV94: 1.09 | EW94: 0.91 | EX94: 0.38 | EY94: 0.27 | EZ94: 0.68 | FA94: 0.5 | FB94: 0.56 | FC94: 0.17 | FE94: 0.86 | FF94: 0.052 | FG94: 0.145 | FI94: 0.01 | FJ94: 0.153 | FK94: 0.65 | FL94: 0.979 | FN94: 0.445 | FO94: 0.23 | FP94: 12.3 | FQ94: 0.255 | FR94: 0.17 | FS94: 9.2 | FT94: 0.218 | FU94: 2510 | FV94: 0.47 | FW94: 0.9 | FX94: 12.1 | FY94: 3.25 | FZ94: 0.625 | GA94: 0.775 | GB94: 0.0062 | GC94: 925 | GD94: 13.2 | GE94: 25 | GF94: 2.429 | GG94: 1.094 | GH94: 1.04 | GI94: 0.054 | GJ94: 22
EE95: Yumurta,Çiğ | EF95: 24.67 | EG95: 12.49 | EH95: 10.02 | EI95: 0 | EJ95: 0.94 | EK95: 1.49 | EL95: 1.49 | EM95: 1.22 | EP95: 1.15 | EQ95: 0.074 | ER95: 0.156 | ES95: 0.82 | ET95: 0.31 | EU95: 0.67 | EV95: 1.09 | EW95: 0.91 | EX95: 0.38 | EY95: 0.27 | EZ95: 0.68 | FA95: 0.5 | FB95: 0.56 | FC95: 0.17 | FE95: 0.86 | FF95: 0.049 | FG95: 0.178 | FI95: 0.01 | FJ95: 0.121 | FK95: 0.126 | FN95: 0.1 | FO95: 0.49 | FP95: 14.4 | FQ95: 0.2 | FR95: 0.317 | FS95: 11 | FT95: 0.24 | FU95: 2510 | FV95: 0.47 | FW95: 0.7 | FX95: 12.6 | FY95: 5.1 | FZ95: 0.6 | GA95: 1.4 | GB95: 0.01 | GC95: 1461 | GD95: 8.75 | GE95: 1 | GF95: 3.1 | GG95: 1.4 | GH95: 1.15 | GI95: 0.074 | GJ95: 5
EE96: Yumurta (kabuklu çiğ) | EF96: 25 | EG96: 12 | EH96: 10 | EI96: 0 | EJ96: 4 | EK96: 1.4 | EL96: 1.4 | EP96: 1.15 | EQ96: 0.074 | ER96: 0.156 | ES96: 0.82 | ET96: 0.31 | EU96: 0.67 | EV96: 1.09 | EW96: 0.91 | EX96: 0.38 | EY96: 0.27 | EZ96: 0.68 | FA96: 0.5 | FB96: 0.56 | FC96: 0.17 | FE96: 0.86 | FF96: 4 | FI96: 0.01 | FJ96: 0.121 | FK96: 0.11 | FN96: 0.1 | FO96: 0.19 | FP96: 8 | FQ96: 0.2 | FR96: 0.317 | FS96: 11 | FT96: 0.238 | FU96: 2510 | FV96: 0.47 | FW96: 0.7 | FX96: 12.6 | FY96: 5.1 | FZ96: 0.6 | GA96: 1.4 | GB96: 0.01 | GC96: 1461 | GD96: 8.75 | GE96: 1 | GF96: 3.1 | GG96: 1.4 | GH96: 1.15 | GI96: 0.074 | GJ96: 5
EE97: Yumurta kabuğu | EF97: 99.66 | EG97: 4.48 | EH97: 0.22 | EJ97: 94.45 | FF97: 33.63 | FG97: 0.06 | FI97: 0.33 | FJ97: 0.04 | FK97: 0.05 | GJ97: 70
EE98: Yumurta akı, kurutulmuş | EF98: 94.2 | EG98: 81.1 | EH98: 0 | EI98: 0 | EJ98: 5.3 | EK98: 3.61 | EL98: 3.61 | EM98: 7.8 | EO98: 0 | EP98: 0 | EQ98: 0 | ES98: 4.4 | ET98: 1.8 | EU98: 4.5 | EV98: 6.9 | EW98: 5.6 | EX98: 2.9 | EY98: 2.1 | EZ98: 4.7 | FA98: 3.1 | FB98: 3.6 | FC98: 1 | FE98: 5.2 | FF98: 0.062 | FG98: 0.111 | FI98: 0.088 | FJ98: 1.125 | FK98: 1.28 | FN98: 0 | FO98: 0.34 | FP98: 1.5 | FQ98: 0 | FR98: 0 | FS98: 1 | FT98: 0.57 | FV98: 0.18 | FW98: 8.65 | FX98: 7.75 | FY98: 25.3 | FZ98: 0.05 | GA98: 0.36 | GB98: 0.0018 | GC98: 0 | GD98: 0 | GE98: 0 | GF98: 0 | GG98: 0 | GH98: 0 | GI98: 0 | GJ98: 1000
EE99: Yumurta sarısı,Çiğ | EF99: 51.19 | EG99: 16.76 | EH99: 30.87 | EI99: 0 | EJ99: 1.77 | EK99: 3.58 | EL99: 3.58 | EM99: 1.78 | EP99: 3.54 | ER99: 0.39 | FF99: 0.14 | FG99: 0.49 | FI99: 0.01 | FJ99: 0.09 | FK99: 0.04 | FN99: 0.3 | FO99: 1.77 | FP99: 35.3 | FQ99: 0.7 | FS99: 31.1 | FT99: 0.574 | FV99: 1.46 | FW99: 0.2 | FX99: 38.1 | FY99: 6.4 | FZ99: 1.7 | GA99: 3.9 | GB99: 0.031 | GC99: 6483 | GJ99: 500
EE100: Yumurta sarısı, kurutulmuş | EF100: 97 | EG100: 34.3 | EH100: 55.8 | EI100: 0 | EJ100: 3.4 | EK100: 6.47 | EL100: 6.47 | EM100: 3.6 | EP100: 6.4 | EQ100: 0.126 | ER100: 0.6 | ES100: 2.5 | ET100: 0.88 | EU100: 1.8 | EV100: 3 | EW100: 2.7 | EX100: 0.82 | EY100: 0.6 | EZ100: 1.5 | FA100: 1.5 | FB100: 1.8 | FC100: 0.4 | FE100: 1.9 | FF100: 0.284 | FG100: 0.92 | FI100: 0.013 | FJ100: 0.244 | FK100: 0.135 | FN100: 0 | FO100: 3.49 | FP100: 54.2 | FQ100: 0 | FR100: 0 | FS100: 49.3 | FT100: 1.1 | FV100: 2.44 | FW100: 0.95 | FX100: 77.7 | FY100: 18.8 | FZ100: 2.9 | GA100: 6.6 | GB100: 0.0533 | GC100: 10280 | GD100: 0 | GE100: 0 | GF100: 17 | GG100: 8.33 | GH100: 7.23 | GI100: 0.634 | GJ100: 1000
EE101: Yumurta unu, tam | EF101: 96.6 | EG101: 47.2 | EH101: 41.1 | EI101: 0 | EJ101: 3.6 | EK101: 5.91 | EL101: 5.7 | EM101: 4.9 | EN101: 3.1 | EP101: 4.614 | EQ101: 0.565 | ER101: 0.2 | ES101: 2.84 | ET101: 1.12 | EU101: 2.58 | EV101: 4.05 | EW101: 3.4 | EX101: 1.48 | EY101: 1.1 | EZ101: 2.52 | FA101: 1.93 | FB101: 2.27 | FC101: 0.58 | FE101: 2.89 | FF101: 0.22 | FG101: 0.82 | FI101: 0.04 | FJ101: 0.49 | FK101: 0.52 | FN101: 1.96 | FO101: 2.74 | FP101: 68 | FQ101: 1 | FR101: 1.2 | FS101: 53 | FT101: 0.309 | FU101: 10070 | FV101: 1.71 | FW101: 3 | FX101: 59.1 | FY101: 15.4 | FZ101: 2 | GA101: 3.9 | GB101: 0.04 | GC101: 2991 | GD101: 47 | GE101: 43.8 | GF101: 12.7 | GG101: 5.8 | GH101: 4.614 | GI101: 0.565 | GJ101: 500
EE155: Bitkisel kaynaklı yiyecekler | EF155: KM,% | EG155: HP,% | EH155: HY,% | EI155: HS,% | EJ155: HK,% | EK155: ME,kcal/g (köpek) | EL155: ME,kcal/g (kedi) | EM155: CHO,% | EN155: Şeker,% | EO155: Nişasta,% | EP155: 18:2n-6, % | EQ155: 18:3n-3, % | ER155: 20:4n-6, % | ES155: Arjinin, % | ET155: Histidin, % | EU155: İzolöysin, % | EV155: Löysin, % | EW155: Lizin, % | EX155: Metiyonin, % | EY155: Sistin,% | EZ155: Fenilalanin, % | FA155: Tirozin, % | FB155: Treonin, % | FC155: Triptofan, % | FD155: Taurin,% | FE155: Valin, % | FF155: Ca,% | FG155: P,% | FH155: Kul P,% | FI155: Mg,% | FJ155: K,% | FK155: Na,% | FL155: Cl,% | FM155: S,% | FN155: Cu,mg/kg | FO155: I,mg/kg | FP155: Fe,mg/kg | FQ155: Mn,mg/kg | FR155: Se,mg/kg | FS155: Zn,mg/kg | FT155: Biotin,mg/kg | FU155: Kolin,mg/kg | FV155: Folat,mg/kg | FW155: Niasin,mg/kg | FX155: Pant. asit,mg/kg | FY155: Riboflavin,mg/kg | FZ155: Tiamin,mg/kg | GA155: Vit. B6,mg/kg | GB155: Vit. B12,mg/kg | GC155: Vitamin A,µg/kg | GD155: Kolekalsiferol,µg/kg | GE155: Vit. E,mg/kg | GF155: Doymuş,% | GG155: PUFA,% | GH155: Toplam n-6,% | GI155: Toplam n-3,% | GJ155: Fiyat,TL
EE156: Ahududu, çiğ | EF156: 13.8 | EG156: 1.4 | EH156: 1.3 | EI156: 4.4 | EJ156: 0.5 | EK156: 0.51 | EL156: 0.51 | EM156: 4 | EN156: 4.05 | EP156: 0.472 | EQ156: 0.401 | FC156: 0.015 | FF156: 0.0197 | FG156: 0.038 | FI156: 0.017 | FJ156: 0.228 | FK156: 0.002 | FN156: 1.05 | FO156: 0.004 | FP156: 5.5 | FQ156: 12 | FR156: 0.00189 | FS156: 3.4 | FT156: 0.019 | FV156: 0.44 | FW156: 5 | FX156: 2.4 | FY156: 0.5 | FZ156: 0.3 | GA156: 0.9 | GC156: 35 | GE156: 14 | GF156: 0.104 | GG156: 0.873 | GH156: 0.472 | GI156: 0.401 | GJ156: 200
EE157: Ananas, çiğ | EF157: 14.5 | EG157: 0.5 | EH157: 0.4 | EI157: 1.4 | EJ157: 0.4 | EK157: 0.55 | EL157: 0.55 | EM157: 10.8 | EN157: 10.8 | EW157: 0.011 | EX157: 0.002 | EZ157: 0.013 | FA157: 0.013 | FC157: 0.006 | FF157: 0.0189 | FG157: 0.0139 | FI157: 0.014 | FJ157: 0.174 | FK157: 0.004 | FN157: 0.9 | FO157: 0.014 | FP157: 2 | FQ157: 15 | FR157: 0.006 | FS157: 0.82 | FV157: 0.121 | FW157: 2 | FX157: 1.6 | FY157: 0.2 | FZ157: 0.8 | GA157: 0.9 | GC157: 50 | GE157: 1 | GJ157: 120
EE158: Armut, çiğ | EF158: 15 | EG158: 0.3 | EH158: 0.1 | EI158: 3.2 | EJ158: 0.3 | EK158: 0.49 | EL158: 0.49 | EM158: 8.3 | EN158: 8.33 | EP158: 0.025 | EQ158: 0.008 | ES158: 0.009 | ET158: 0.006 | EU158: 0.012 | EV158: 0.02 | EW158: 0.02 | EX158: 0.003 | EY158: 0.002 | EZ158: 0.012 | FA158: 0.005 | FB158: 0.011 | FC158: 0.003 | FE158: 0.015 | FF158: 0.0101 | FG158: 0.0112 | FI158: 0.00646 | FJ158: 0.122 | FK158: 0.000778 | FN158: 0.65 | FO158: 0.00165 | FP158: 1.03 | FQ158: 0.523 | FR158: 0.001 | FS158: 1.12 | FT158: 0.00447 | FV158: 0.16 | FW158: 2.3 | FX158: 0.518 | FY158: 0.0857 | FZ158: 0.0971 | GA158: 0.1 | GC158: 54.2 | GE158: 5.8 | GF158: 0.012 | GG158: 0.033 | GH158: 0.025 | GI158: 0.008 | GJ158: 60
EE159: Arpa | EF159: 87.9 | EG159: 10.5 | EH159: 2.2 | EI159: 5.3 | EJ159: 1.3 | EK159: 3.45 | EL159: 3.45 | EM159: 74.5 | EN159: 0.8 | EO159: 52.83 | EP159: 0.695 | EQ159: 0.077 | ES159: 0.62 | ET159: 0.28 | EU159: 0.45 | EV159: 0.85 | EW159: 0.47 | EX159: 0.24 | EY159: 0.27 | EZ159: 0.7 | FA159: 0.36 | FB159: 0.42 | FC159: 0.2 | FE159: 0.61 | FF159: 0.032 | FG159: 0.29 | FH159: 0.15 | FI159: 0.096 | FJ159: 0.309 | FK159: 0.004 | FL159: 0.15 | FM159: 0.15 | FN159: 3 | FO159: 0.09 | FP159: 40 | FQ159: 19 | FR159: 0.377 | FS159: 28 | FT159: 0.18 | FU159: 378 | FV159: 0.08 | FW159: 63 | FX159: 1 | FY159: 1 | FZ159: 4 | GA159: 4 | GB159: 0 | GC159: 666 | GE159: 6 | GF159: 0.3 | GG159: 0.8 | GH159: 0.695 | GI159: 0.077 | GJ159: 8.5
EE160: Ayçiçeği tohumu, kabuksuz | EF160: 95.3 | EG160: 24.2 | EH160: 54.4 | EI160: 9.9 | EJ160: 3.1 | EK160: 6.2 | EL160: 6.2 | EM160: 3.6 | EN160: 3.4 | EO160: 0.162 | EP160: 23.527 | ES160: 1.99 | ET160: 0.577 | EU160: 0.922 | EV160: 1.4 | EW160: 0.859 | EX160: 0.527 | EY160: 0.385 | EZ160: 1.05 | FA160: 0.568 | FB160: 0.808 | FC160: 0.355 | FE160: 1.11 | FF160: 0.0875 | FG160: 0.67 | FI160: 0.32 | FJ160: 0.755 | FN160: 18 | FP160: 48.5 | FQ160: 22 | FR160: 0.099 | FS160: 46.5 | FT160: 0.998 | FV160: 1.51 | FW160: 28.8 | FX160: 4.69 | FY160: 1.95 | FZ160: 13.1 | GA160: 5.73 | GE160: 369 | GF160: 5.436 | GG160: 23.527 | GH160: 23.527 | GI160: 0 | GJ160: 50
EE161: Ayva, çiğ | EF161: 16.2 | EG161: 0.4 | EH161: 0.1 | EI161: 1.9 | EJ161: 0.4 | EK161: 0.6 | EL161: 0.6 | EM161: 13.4 | EP161: 0.036 | FF161: 0.011 | FG161: 0.017 | FI161: 0.008 | FJ161: 0.197 | FK161: 0.004 | FN161: 1.3 | FW161: 2 | FX161: 0.81 | FY161: 0.3 | FZ161: 0.2 | GA161: 0.4 | GC161: 20 | GF161: 0.007 | GG161: 0.036 | GH161: 0.036 | GI161: 0 | GJ161: 60
EE162: Badem, çiğ | EF162: 94.9 | EG162: 21.2 | EH162: 52.1 | EI162: 10.6 | EJ162: 3.1 | EK162: 6.06 | EL162: 6.06 | EM162: 6.5 | EN162: 6.55 | EP162: 11.359 | ES162: 2.57 | ET162: 0.574 | EU162: 0.853 | EV162: 1.58 | EW162: 0.666 | EX162: 0.187 | EY162: 0.284 | EZ162: 1.21 | FA162: 0.691 | FB162: 0.663 | FC162: 0.237 | FE162: 1.01 | FF162: 0.257 | FG162: 0.489 | FI162: 0.264 | FJ162: 0.73 | FK162: 0.0007 | FN162: 10 | FO162: 0.0015 | FP162: 34 | FQ162: 23.5 | FR162: 0.0215 | FS162: 33 | FT162: 0.825 | FV162: 0.761 | FW162: 18.8 | FX162: 3.13 | FY162: 9.39 | FZ162: 1.37 | GA162: 1.28 | GE162: 234 | GF162: 4.05 | GG162: 11.359 | GH162: 11.359 | GI162: 0 | GJ162: 250
EE163: Bal | EF163: 82 | EG163: 0.3 | EJ163: 0.2 | EK163: 3.27 | EL163: 3.27 | EM163: 75.1 | EN163: 75.1 | FC163: 0.001 | FF163: 0.005 | FG163: 0.0072 | FI163: 0.0029 | FJ163: 0.051 | FK163: 0.011 | FN163: 0.31 | FO163: 0.005 | FP163: 4 | FQ163: 3.7 | FR163: 0 | FS163: 3.5 | FV163: 0 | FW163: 1 | FX163: 0.7 | FY163: 1 | FZ163: 0 | GA163: 1.6 | GJ163: 250
EE164: Balkabağı, çiğ | EF164: 5.55 | EG164: 1 | EH164: 0.15 | EI164: 1.05 | EJ164: 0.6 | EK164: 0.185 | EL164: 0.185 | EM164: 2.85 | EN164: 2.3 | EO164: 0.6 | EP164: 0.0285 | EQ164: 0.049 | ES164: 0.0445 | ET164: 0.018 | EU164: 0.036 | EV164: 0.0525 | EW164: 0.047 | EX164: 0.0135 | EY164: 0.008 | EZ164: 0.097 | FA164: 0.0245 | FB164: 0.022 | FC164: 0.0105 | FE164: 0.042 | FF164: 0.02455 | FG164: 0.0422 | FI164: 0.0144 | FJ164: 0.2585 | FK164: 0.00341 | FN164: 0.655 | FO164: 0.0015 | FP164: 4.39 | FQ164: 1.075 | FR164: 0.0029 | FS164: 2.475 | FT164: 0.004 | FV164: 0.3715 | FW164: 3.435 | FX164: 2.775 | FY164: 0.81 | FZ164: 0.379 | GA164: 0.765 | GC164: 65.5 | GE164: 1 | GF164: 0.039 | GG164: 0.0775 | GH164: 0.0285 | GI164: 0.049 | GJ164: 40
EE165: Bamya, çiğ | EF165: 9.8 | EG165: 2 | EH165: 0.1 | EI165: 0.9 | EJ165: 0.7 | EK165: 0.35 | EL165: 0.35 | EM165: 6.1 | EP165: 0.027 | EQ165: 0.001 | ES165: 0.083 | ET165: 0.031 | EU165: 0.07 | EV165: 0.106 | EW165: 0.08 | EX165: 0.021 | EY165: 0.019 | EZ165: 0.064 | FA165: 0.086 | FB165: 0.064 | FC165: 0.017 | FE165: 0.09 | FF165: 0.081 | FG165: 0.063 | FI165: 0.057 | FJ165: 0.303 | FK165: 0.008 | FN165: 0.94 | FP165: 8 | FQ165: 9.9 | FR165: 0 | FS165: 6 | FT165: 0 | FV165: 0.88 | FW165: 0.24 | FX165: 2.45 | FY165: 0.6 | FZ165: 2 | GA165: 2.15 | GC165: 333 | GF165: 0.026 | GG165: 0.028 | GH165: 0.027 | GI165: 0.001 | GJ165: 90
EE166: Bezelye, yeşil, çiğ | EF166: 20.04 | EG166: 5.09 | EH166: 0.7 | EI166: 5.09 | EJ166: 0.8 | EK166: 0.7 | EL166: 0.7 | EM166: 7 | EN166: 4.7 | EO166: 1.8 | EP166: 0.32 | EQ166: 0.064 | ES166: 0.704 | ET166: 0.105 | EU166: 0.228 | EV166: 0.352 | EW166: 0.371 | EX166: 0.05 | EY166: 0.019 | EZ166: 0.209 | FA166: 0.133 | FB166: 0.219 | FC166: 0.047 | FE166: 0.285 | FF166: 0.03 | FG166: 0.13 | FH166: 0 | FI166: 0.028 | FJ166: 0.3 | FK166: 0.002 | FL166: 0 | FN166: 1.1 | FO166: 0.0015 | FP166: 18 | FQ166: 3.8 | FR166: 0.0102 | FS166: 7.5 | FT166: 0.03 | FV166: 0.25 | FW166: 22 | FX166: 7.5 | FY166: 1.3 | FZ166: 3.1 | GA166: 1.6 | GB166: 0 | GC166: 180.2 | GD166: 0 | GE166: 0.2 | GF166: 0.128 | GG166: 0.384 | GH166: 0.32 | GI166: 0.064 | GJ166: 40
EE167: Bezelye, olgun kuru, çiğ | EF167: 90.5 | EG167: 22 | EH167: 2.01 | EI167: 7.04 | EJ167: 2.06 | EK167: 3.51 | EL167: 3.51 | EM167: 56.4 | EN167: 2.37 | EO167: 39.4 | EP167: 0.948 | EQ167: 0.197 | ES167: 2.04 | ET167: 0.493 | EU167: 0.915 | EV167: 1.41 | EW167: 1.51 | EX167: 0.165 | EY167: 0.148 | EZ167: 0.915 | FA167: 0.528 | FB167: 0.739 | FC167: 0.183 | FE167: 1.16 | FF167: 0.0378 | FG167: 0.407 | FH167: 0 | FI167: 0.082 | FJ167: 1.12 | FK167: 0.026 | FL167: 0 | FN167: 6.9 | FO167: 0.005 | FP167: 55 | FQ167: 12 | FR167: 0.14 | FS167: 38 | FT167: 0.005 | FV167: 0.33 | FW167: 25 | FX167: 20 | FY167: 1.8 | FZ167: 8.2 | GA167: 0.75 | GB167: 0 | GC167: 12.5 | GD167: 0 | GE167: 0 | GF167: 0.376 | GG167: 1.15 | GH167: 0.948 | GI167: 0.197 | GJ167: 40
EE168: Biber, kırmızı, tatlı, çiğ | EF168: 9.1 | EG168: 0.9 | EH168: 0.1 | EI168: 1.7 | EJ168: 0.5 | EK168: 0.31 | EL168: 0.31 | EM168: 5.2 | EN168: 5.24 | EP168: 0.036 | EQ168: 0.021 | ES168: 0.035 | ET168: 0.015 | EU168: 0.028 | EV168: 0.037 | EW168: 0.043 | EX168: 0.007 | EY168: 0.007 | EZ168: 0.028 | FA168: 0.014 | FB168: 0.03 | FC168: 0.005 | FE168: 0.043 | FF168: 0.00664 | FG168: 0.0245 | FI168: 0.0118 | FJ168: 0.239 | FK168: 0.00039 | FN168: 0.509 | FO168: 0.00144 | FP168: 3.17 | FQ168: 1.03 | FR168: 0.00143 | FS168: 1.28 | FT168: 0.0163 | FV168: 0.88 | FW168: 9.84 | FX168: 1.66 | FY168: 0.763 | FZ168: 0.474 | GA168: 4.3 | GC168: 1060 | GE168: 22.6 | GF168: 0.021 | GG168: 0.056 | GH168: 0.036 | GI168: 0.021 | GJ168: 40
EE169: Biber, sarı, tatlı, çiğ | EF169: 8.4 | EG169: 0.9 | EI169: 1.5 | EJ169: 0.5 | EK169: 0.23 | EL169: 0.23 | EN169: 3.85 | FF169: 0.00998 | FG169: 0.0278 | FI169: 0.0114 | FJ169: 0.229 | FK169: 0.00176 | FN169: 0.265 | FO169: 0.00102 | FP169: 2.5 | FQ169: 1.22 | FR169: 0.00409 | FS169: 1.56 | FT169: 0.0179 | FV169: 0 | FW169: 9.28 | FX169: 1.46 | FY169: 0.125 | FZ169: 0.555 | GA169: 4.55 | GE169: 23.6 | GJ169: 40
EE170: Biber, yeşil, tatlı, çiğ | EF170: 6.4 | EG170: 0.9 | EH170: 0.3 | EI170: 1.8 | EJ170: 0.4 | EK170: 0.22 | EL170: 0.22 | EM170: 2.7 | EN170: 2.6 | EO170: 0.1 | EP170: 0.095 | EQ170: 0.055 | ES170: 0.035 | ET170: 0.014 | EU170: 0.027 | EV170: 0.036 | EW170: 0.042 | EX170: 0.007 | EY170: 0.007 | EZ170: 0.027 | FA170: 0.013 | FB170: 0.029 | FC170: 0.005 | FE170: 0.042 | FF170: 0.00855 | FG170: 0.0274 | FI170: 0.0111 | FJ170: 0.187 | FK170: 0.006 | FN170: 0.83 | FO170: 0.004 | FP170: 3.54 | FQ170: 1 | FR170: 0.001 | FS170: 1.1 | FV170: 0.35 | FW170: 6 | FX170: 2.3 | FY170: 0.25 | FZ170: 0.34 | GA170: 1.9 | GC170: 139 | GE170: 5.5 | GF170: 0.055 | GG170: 0.15 | GH170: 0.095 | GI170: 0.055 | GJ170: 40
EE171: Bira mayası, kurutulmuş | EF171: 93,3 | EG171: 44.4 | EH171: 2,3 | EI171: 2.6 | EJ171: 6 | EK171: 3.46 | EL171: 3.46 | EM171: 39.15 | EN171: 0.3 | EO171: 1 | EP171: 0.05 | ES171: 2.06 | ET171: 0.98 | EU171: 1.99 | EV171: 2.76 | EW171: 2.85 | EX171: 0.7 | EY171: 0.29 | EZ171: 1.61 | FA171: 1.2 | FB171: 2,01 | FC171: 0,49 | FD171: 0.011 | FE171: 2.3 | FF171: 0.32 | FG171: 1.16 | FH171: 0.45 | FI171: 0.23 | FJ171: 1.79 | FK171: 0.09 | FL171: 0.1 | FM171: 0.32 | FN171: 13.7 | FO171: 0.1 | FP171: 161 | FQ171: 15 | FR171: 1 | FS171: 85 | FT171: 2 | FU171: 2871 | FV171: 40 | FW171: 360 | FX171: 110 | FY171: 40 | FZ171: 23.3 | GA171: 20 | GB171: 0 | GH171: 0.05 | GJ171: 370
EE172: Brokoli | EF172: 10.7 | EG172: 2.8 | EH172: 0.4 | EI172: 2.6 | EJ172: 0.9 | EK172: 0.34 | EL172: 0.34 | EM172: 6.6 | EN172: 1.7 | EO172: 0 | EP172: 0.017 | EQ172: 0.021 | ES172: 0.19 | ET172: 0.059 | EU172: 0.079 | EV172: 0.13 | EW172: 0.14 | EX172: 0.038 | EY172: 0.028 | EZ172: 0.12 | FA172: 0.05 | FB172: 0.088 | FC172: 0.033 | FE172: 0.13 | FF172: 0.047 | FG172: 0.066 | FI172: 0.021 | FJ172: 0.316 | FK172: 0.33 | FN172: 0 | FO172: 0.005 | FP172: 7 | FQ172: 2 | FR172: 0.025 | FS172: 4 | FT172: 0.06 | FU172: 187 | FV172: 0.63 | FW172: 6 | FX172: 6 | FY172: 1 | FZ172: 1 | GA172: 2 | GB172: 0 | GC172: 1869 | GE172: 8 | GH172: 0.017 | GI172: 0.021 | GJ172: 80
EE173: Brokoli unu | EF173: 90 | EG173: 23.55140187 | EH173: 3.364485981 | EI173: 21.86915888 | EJ173: 7.570093458 | EK173: 2.859813084 | EL173: 2.859813084 | EM173: 55.51401869 | EN173: 14.29906542 | EO173: 0 | EP173: 0.1429906542 | EQ173: 0.176635514 | ER173: 0 | ES173: 1.598130841 | ET173: 0.4962616822 | EU173: 0.6644859813 | EV173: 1.093457944 | EW173: 1.177570093 | EX173: 0.3196261682 | EY173: 0.2355140187 | EZ173: 1.009345794 | FA173: 0.4205607477 | FB173: 0.7401869159 | FC173: 0.2775700935 | FD173: 0 | FE173: 1.093457944 | FF173: 0.3953271028 | FG173: 0.5551401869 | FH173: 0 | FI173: 0.176635514 | FJ173: 2.657943925 | FK173: 2.775700935 | FL173: 0 | FM173: 0 | FN173: 0 | FO173: 0.03 | FP173: 58.87850467 | FQ173: 16.82242991 | FR173: 0.2102803738 | FS173: 33.64485981 | FT173: 0.5046728972 | FU173: 1572.897196 | FV173: 5.299065421 | FW173: 50.46728972 | FX173: 50.46728972 | FY173: 8.411214953 | FZ173: 8.411214953 | GA173: 16.82242991 | GB173: 0 | GC173: 15720.56075 | GD173: 0 | GE173: 67.28971963 | GF173: 0 | GG173: 0 | GH173: 0.1429906542 | GI173: 0.176635514 | GJ173: 70
EE174: Brüksel lahanası | EF174: 14.9 | EG174: 4 | EH174: 0.4 | EI174: 3.95 | EJ174: 1.25 | EK174: 0.48 | EL174: 0.48 | EM174: 9.3 | EN174: 2.16 | EO174: 0.25 | EP174: 0.0595 | EQ174: 0.173 | ES174: 0.25 | ET174: 0.085 | EU174: 0.14 | EV174: 0.175 | EW174: 0.19 | EX174: 0.0405 | EY174: 0.022 | EZ174: 0.114 | FA174: 0.0365 | FB174: 0.135 | FC174: 0.0445 | FE174: 0.2 | FF174: 0.0323 | FG174: 0.0764 | FI174: 0.024 | FJ174: 0.436 | FK174: 0.0165 | FN174: 0.765 | FO174: 0.005 | FP174: 11.5 | FQ174: 2.85 | FR174: 0.0135 | FS174: 4.15 | FT174: 0.002 | FU174: 95.5 | FV174: 0.955 | FW174: 7.5 | FX174: 5.115 | FY174: 1.3 | FZ174: 1.1 | GA174: 2.4 | GB174: 0 | GC174: 468.5 | GE174: 9 | GF174: 0.0895 | GG174: 0.26 | GH174: 0.0595 | GI174: 0.173 | GJ174: 50
EE175: Buğday, tane | EF175: 89 | EG175: 14.4 | EH175: 1.8 | EI175: 2.7 | EJ175: 1.52 | EK175: 3.15 | EL175: 3.15 | EM175: 55.4 | EN175: 0.4 | EO175: 55.8 | EP175: 0.6 | EQ175: 0.027 | ES175: 0.97 | ET175: 0.45 | EU175: 0.57 | EV175: 1.1 | EW175: 0.6 | EX175: 0.26 | EY175: 0.34 | EZ175: 0.73 | FA175: 0.45 | FB175: 0.51 | FC175: 0.21 | FE175: 0.77 | FF175: 0.029 | FG175: 0.288 | FI175: 0.126 | FJ175: 0.363 | FK175: 0.002 | FN175: 4 | FO175: 0.03 | FP175: 32 | FQ175: 40 | FR175: 0.707 | FS175: 27 | FT175: 0.02 | FU175: 312 | FV175: 0.38 | FW175: 55 | FX175: 10 | FY175: 1 | FZ175: 4 | GA175: 3 | GB175: 0 | GC175: 27 | GD175: 0 | GE175: 10 | GF175: 0.3 | GG175: 0.6 | GH175: 0.6 | GI175: 0.027 | GJ175: 10.5
EE176: Buğday germ unu | EF176: 89 | EG176: 25 | EH176: 7 | EI176: 3.5 | EJ176: 5.3 | EK176: 3.87 | EL176: 3.96 | EM176: 51.8 | EP176: 5.288 | EQ176: 0.723 | ES176: 1.83 | ET176: 0.62 | EU176: 0.79 | EV176: 1.1 | EW176: 1.37 | EX176: 0.42 | EY176: 0.46 | EZ176: 0.93 | FA176: 0.7 | FB176: 0.94 | FC176: 0.3 | FE176: 1.12 | FF176: 0.01 | FG176: 1 | FH176: 0.31 | FI176: 0.22 | FJ176: 0.9 | FK176: 0.02 | FL176: 0.08 | FM176: 0.31 | FN176: 10 | FP176: 41 | FQ176: 100 | FR176: 0.6 | FS176: 115 | FT176: 0.19 | FU176: 3175 | FV176: 2.8 | FW176: 68 | FX176: 23.2 | FY176: 6.1 | FZ176: 21.9 | GA176: 13 | GB176: 0 | GC176: 0 | GD176: 0 | GE176: 0 | GF176: 1.7 | GG176: 6 | GH176: 5.288 | GI176: 0.723 | GJ176: 9
EE177: Buğday unu, beyaz | EF177: 88.1 | EG177: 10.3 | EH177: 1.5 | EI177: 2.2 | EJ177: 0.5 | EK177: 3.55 | EL177: 3.55 | EM177: 76.2 | EN177: 0.5 | EO177: 64.5 | EP177: 0.828 | EQ177: 0.017 | ES177: 0.42 | ET177: 0.23 | EU177: 0.36 | EV177: 0.71 | EW177: 0.23 | EX177: 0.18 | EY177: 0.22 | EZ177: 0.52 | FA177: 0.31 | FB177: 0.28 | FC177: 0.13 | FE177: 0.42 | FF177: 0.02 | FG177: 0.11 | FI177: 0.02 | FJ177: 0.11 | FK177: 0 | FN177: 1.44 | FO177: 0.03 | FP177: 12 | FQ177: 7 | FR177: 0.34 | FS177: 7 | FT177: 0.02 | FU177: 312 | FV177: 0.26 | FW177: 13 | FX177: 4.4 | FY177: 0.4 | FZ177: 1.2 | GA177: 0.4 | GB177: 0 | GE177: 0.6 | GF177: 0.3 | GG177: 0.8 | GH177: 0.828 | GI177: 0.017 | GJ177: 10
EE178: Buğday kepeği | EF178: 90.1 | EG178: 15.5 | EH178: 4.3 | EI178: 11.3 | EJ178: 5.8 | EK178: 2.16 | EL178: 2.16 | EM178: 64.5 | EN178: 0.4 | EO178: 51.4625 | EP178: 2.039 | EQ178: 0.167 | ES178: 0.97 | ET178: 0.45 | EU178: 0.57 | EV178: 1.1 | EW178: 0.6 | EX178: 0.26 | EY178: 0.34 | EZ178: 0.73 | FA178: 0.45 | FB178: 0.51 | FC178: 0.21 | FE178: 0.77 | FF178: 0.073 | FG178: 1.013 | FI178: 0.611 | FJ178: 1.182 | FK178: 0.002 | FL178: 0.09 | FM178: 0.16 | FN178: 10 | FO178: 0.08 | FP178: 106 | FQ178: 112 | FR178: 0.776 | FS178: 73 | FT178: 0.37 | FU178: 744 | FV178: 0.79 | FW178: 136 | FX178: 22 | FY178: 6 | FZ178: 5 | GA178: 13 | GC178: 27 | GE178: 15 | GF178: 0.6 | GG178: 2.2 | GH178: 2.039 | GI178: 0.167 | GJ178: 8
EE179: Buğday unu, tam | EF179: 88.3 | EG179: 10.07 | EH179: 2.04 | EI179: 11.06 | EJ179: 1.05 | EK179: 3.39 | EL179: 3.39 | EM179: 61.3 | EN179: 0.54 | EO179: 61.4 | EP179: 1.03 | EQ179: 0.071 | ES179: 0.551 | ET179: 0.276 | EU179: 0.423 | EV179: 0.754 | EW179: 0.368 | EX179: 0.171 | EY179: 0.176 | EZ179: 0.515 | FA179: 0.294 | FB179: 0.349 | FC179: 0.147 | FE179: 0.57 | FF179: 0.02908 | FG179: 0.313 | FI179: 0.103 | FJ179: 0.379 | FK179: 0.00413 | FN179: 3.17 | FO179: 0.027 | FP179: 33.1 | FQ179: 27.4 | FR179: 0.001 | FS179: 26 | FT179: 0.02 | FV179: 0.5 | FW179: 56 | FX179: 6.8 | FY179: 0.75 | FZ179: 3.9 | GA179: 3.4 | GB179: 0 | GC179: 0 | GD179: 0 | GE179: 8.7 | GF179: 0.348 | GG179: 1.1 | GH179: 1.03 | GI179: 0.071 | GJ179: 9
EE180: Bulgur, çiğ | EF180: 89.2 | EG180: 10.8 | EH180: 1.9 | EI180: 9.8 | EJ180: 1.3 | EK180: 3.42 | EL180: 3.42 | EM180: 45.5 | EN180: 0.9 | EO180: 44.6 | EP180: 0.552 | ES180: 0.495 | ET180: 0.273 | EU180: 0.404 | EV180: 0.833 | EW180: 0.276 | EX180: 0.194 | EY180: 0.242 | EZ180: 0.565 | FA180: 0.295 | FB180: 0.333 | FC180: 0.152 | FE180: 0.511 | FF180: 0.0329 | FG180: 0.267 | FI180: 0.0685 | FJ180: 0.375 | FK180: 0.011 | FN180: 4.3 | FP180: 19 | FQ180: 13.5 | FR180: 0.0345 | FS180: 23 | FT180: 0.043 | FV180: 0.231 | FW180: 14.9 | FX180: 4.68 | FY180: 0.384 | FZ180: 1.78 | GA180: 1.85 | GE180: 0.942 | GF180: 0.228 | GG180: 0.552 | GH180: 0.552 | GJ180: 60
EE181: Ceviz, kuru | EF181: 97.6 | EG181: 14.1 | EH181: 64.6 | EJ181: 1.7 | EK181: 7.07 | EL181: 7.07 | EM181: 2.8 | EN181: 2.6 | EO181: 0.225 | EP181: 30.791 | EQ181: 6.419 | ES181: 2.22 | ET181: 0.358 | EU181: 0.56 | EV181: 1.06 | EW181: 0.422 | EX181: 0.253 | EY181: 0.261 | EZ181: 0.664 | FA181: 0.475 | FB181: 0.503 | FC181: 0.198 | FE181: 0.69 | FF181: 0.0832 | FG181: 0.369 | FI181: 0.142 | FJ181: 0.38 | FN181: 10.5 | FP181: 22.9 | FQ181: 24.5 | FR181: 0.012 | FS181: 27 | FT181: 0.18 | FV181: 1.23 | FW181: 5.62 | FX181: 4.64 | FY181: 1.64 | FZ181: 2.52 | GA181: 1.91 | GE181: 8.9 | GF181: 4.651 | GG181: 37.21 | GH181: 30.791 | GI181: 6.419 | GJ181: 150
EE182: Chia tohumları | EF182: 93.9 | EG182: 21.4 | EH182: 34.1 | EI182: 40.9 | EJ182: 4.4 | EK182: 4.47 | EL182: 4.47 | EM182: 1.8 | EN182: 1.75 | EP182: 5.618 | EQ182: 19.253 | ES182: 1.96 | ET182: 0.525 | EU182: 0.691 | EV182: 1.29 | EW182: 0.949 | EX182: 0.653 | EY182: 0.414 | EZ182: 0.989 | FA182: 0.65 | FB182: 0.7 | FC182: 0.285 | FE182: 0.92 | FF182: 0.545 | FG182: 0.645 | FI182: 0.32 | FJ182: 0.64 | FN182: 16 | FP182: 65 | FQ182: 44 | FR182: 0.097 | FS182: 50.5 | FT182: 0.245 | FV182: 0.707 | FW182: 41.3 | FX182: 3.39 | FY182: 2.02 | FZ182: 4.71 | GA182: 1.37 | GE182: 0 | GF182: 3.06 | GG182: 24.871 | GH182: 5.618 | GI182: 19.253 | GJ182: 200
EE183: Çavdar unu, tam | EF183: 89.2 | EG183: 8.7 | EH183: 2.3 | EI183: 14.8 | EJ183: 1.6 | EK183: 3.33 | EL183: 3.33 | EM183: 54.8 | EN183: 2.32 | EO183: 52.5 | EP183: 1.014 | EQ183: 0.138 | ES183: 0.494 | ET183: 0.225 | EU183: 0.344 | EV183: 0.599 | EW183: 0.374 | EX183: 0.147 | EY183: 0.136 | EZ183: 0.419 | FA183: 0.225 | FB183: 0.329 | FC183: 0.109 | FE183: 0.509 | FF183: 0.0333 | FG183: 0.301 | FI183: 0.0926 | FJ183: 0.438 | FK183: 0.00511 | FM183: 0.14 | FN183: 3.17 | FO183: 0.046 | FP183: 28 | FQ183: 21.6 | FR183: 0.015 | FS183: 28 | FT183: 0.06 | FV183: 0.742 | FW183: 17 | FX183: 4.9 | FY183: 1.06 | FZ183: 3.3 | GA183: 2.8 | GE183: 8 | GF183: 0.296 | GG183: 1.152 | GH183: 1.014 | GI183: 0.138 | GJ183: 11
EE184: Çavdar, tane | EF184: 89 | EG184: 8.5 | EH184: 1.2 | EI184: 2 | EJ184: 1.74 | EK184: 2.85 | EL184: 2.85 | EM184: 50 | EN184: 5.64 | EO184: 53.7 | EP184: 1.014 | EQ184: 0.138 | ES184: 0.512 | ET184: 0.233 | EU184: 0.357 | EV184: 0.621 | EW184: 0.388 | EX184: 0.152 | EY184: 0.141 | EZ184: 0.434 | FA184: 0.233 | FB184: 0.341 | FC184: 0.113 | FE184: 0.527 | FF184: 0.0288 | FG184: 0.36 | FI184: 0.098 | FJ184: 0.428 | FK184: 0.0038 | FM184: 0.14 | FN184: 3.2 | FP184: 40 | FQ184: 37 | FR184: 0.015 | FS184: 29 | FT184: 0.06 | FV184: 0.56 | FW184: 17 | FX184: 13.4 | FY184: 1.7 | FZ184: 3.7 | GA184: 2.84 | GE184: 11.5 | GF184: 0.296 | GG184: 1.152 | GH184: 1.014 | GI184: 0.138 | GJ184: 10
EE185: Çilek, çiğ | EF185: 10 | EG185: 0.7 | EH185: 0.6 | EI185: 1.5 | EJ185: 0.4 | EK185: 0.38 | EL185: 0.38 | EM185: 6.1 | EN185: 6.07 | EO185: 0 | EP185: 0.182 | EQ185: 0.166 | ES185: 0.04 | ET185: 0.012 | EU185: 0.024 | EV185: 0.039 | EW185: 0.035 | EX185: 0.01 | EY185: 0.004 | EZ185: 0.022 | FA185: 0.011 | FB185: 0.022 | FC185: 0.008 | FE185: 0.029 | FF185: 0.0185 | FG185: 0.0238 | FI185: 0.0125 | FJ185: 0.179 | FK185: 0.000508 | FN185: 0.383 | FO185: 0.000503 | FP185: 2.55 | FQ185: 3.42 | FR185: 0.0018 | FS185: 1.04 | FT185: 0.00701 | FV185: 1.17 | FW185: 4.34 | FX185: 1.29 | FY185: 0.111 | FZ185: 0.145 | GA185: 0.455 | GC185: 33.3 | GE185: 4.14 | GF185: 0.05 | GG185: 0.348 | GH185: 0.182 | GI185: 0.166 | GJ185: 150
EE186: Darı, tane | EF186: 91.3 | EG186: 11 | EH186: 4.2 | EI186: 8.5 | EJ186: 3.3 | EK186: 3.56 | EL186: 3.56 | EM186: 63.5 | ES186: 0.556 | ET186: 0.225 | EU186: 0.765 | EV186: 1.44 | EW186: 0.357 | EX186: 0.302 | EZ186: 0.58 | FB186: 0.278 | FC186: 0.093 | FE186: 0.769 | FF186: 0.0095 | FG186: 0.24 | FI186: 0.1 | FJ186: 0.22 | FK186: 0.0004 | FM186: 0.15 | FN186: 4.9 | FO186: 0.05 | FP186: 48 | FQ186: 7.1 | FR186: 0.16 | FS186: 34 | FV186: 0.3 | FW186: 47.2 | FX186: 0 | FY186: 2.9 | FZ186: 4.21 | GA186: 7.5 | GE186: 0.5 | GJ186: 40
EE187: Dere otu, çiğ | EF187: 14.1 | EG187: 3.5 | EH187: 1.1 | EI187: 2.1 | EJ187: 2.5 | EK187: 0.48 | EL187: 0.48 | EM187: 4.9 | EP187: 0.077 | EQ187: 0.012 | FC187: 0.066 | FF187: 0.202 | FG187: 0.0519 | FI187: 0.028 | FJ187: 0.647 | FK187: 0.027 | FN187: 2.2 | FO187: 0.039 | FP187: 55 | FQ187: 27 | FR187: 0.027 | FS187: 18 | FT187: 0.004 | FV187: 1.16 | FW187: 24 | FX187: 3 | FY187: 4.3 | FZ187: 1.9 | GA187: 3 | GC187: 4990 | GE187: 17 | GF187: 0.056 | GG187: 0.089 | GH187: 0.077 | GI187: 0.012 | GJ187: 15
EE188: Domates, olgun, çiğ | EF188: 6 | EG188: 0.7 | EH188: 0.3 | EI188: 1.04 | EJ188: 0.6 | EK188: 0.2 | EL188: 0.2 | EM188: 2.09 | EN188: 1.02 | EO188: 0.09 | EP188: 0.127 | EQ188: 0.013 | ES188: 0.027 | ET188: 0.012 | EU188: 0.034 | EV188: 0.029 | EW188: 0.034 | EX188: 0.008 | EY188: 0.006 | EZ188: 0.02 | FA188: 0.027 | FB188: 0.02 | FC188: 0.007 | FE188: 0.021 | FF188: 0.00887 | FG188: 0.02901 | FH188: 0 | FI188: 0.009 | FJ188: 0.242 | FK188: 0.01008 | FL188: 0 | FN188: 0.39 | FO188: 0.003 | FP188: 2.3 | FQ188: 1.1 | FR188: 0.003 | FS188: 0.84 | FT188: 0.015 | FV188: 0.29 | FW188: 7 | FX188: 3.3 | FY188: 0.18 | FZ188: 0.41 | GA188: 0.84 | GB188: 0 | GC188: 827 | GD188: 0 | GE188: 7.4 | GF188: 0.052 | GG188: 0.14 | GH188: 0.127 | GI188: 0.013 | GJ188: 50
EE189: Domates, kurutulmuş | EF189: 85.4 | EG189: 14.01 | EH189: 3 | EI189: 12.03 | EJ189: 12.06 | EK189: 2.84 | EL189: 2.84 | EM189: 43.5 | EN189: 37.6 | EP189: 1.29 | EQ189: 0.013 | ES189: 0.339 | ET189: 0.215 | EU189: 0.339 | EV189: 0.519 | EW189: 0.519 | EX189: 0.122 | EY189: 0.183 | EZ189: 0.361 | FA189: 0.248 | FB189: 0.361 | FC189: 0.104 | FE189: 0.361 | FF189: 0.11 | FG189: 0.356 | FH189: 0 | FI189: 0.194 | FJ189: 3.43 | FK189: 2.1 | FL189: 0 | FN189: 14.2 | FO189: 0.02 | FP189: 90.9 | FQ189: 18.5 | FR189: 0.055 | FS189: 19.9 | FT189: 0.132 | FV189: 0.68 | FW189: 90.5 | FX189: 20.9 | FY189: 4.89 | FZ189: 5.28 | GA189: 3.32 | GB189: 0 | GC189: 437 | GD189: 0 | GE189: 0.1 | GF189: 0.499 | GG189: 1.31 | GH189: 1.29 | GI189: 0.013 | GJ189: 50
EE190: Ekmek, buğday | EF190: 64.8 | EG190: 8.2 | EH190: 2.5 | EI190: 3.1 | EJ190: 1.9 | EK190: 2.58 | EL190: 2.58 | EM190: 48.4 | EO190: 47.2 | EP190: 0.64 | EQ190: 0.061 | ES190: 0.33 | ET190: 0.186 | EU190: 0.358 | EV190: 0.616 | EW190: 0.201 | EX190: 0.133 | EY190: 0.158 | EZ190: 0.43 | FA190: 0.201 | FB190: 0.244 | FC190: 0.086 | FE190: 0.416 | FF190: 0.0233 | FG190: 0.0857 | FI190: 0.0199 | FJ190: 0.119 | FK190: 0.473 | FL190: 0.405 | FN190: 1.12 | FO190: 0.194 | FP190: 8.97 | FQ190: 5.01 | FR190: 0.0471 | FS190: 6.34 | FT190: 0.0176 | FV190: 0.283 | FW190: 11.3 | FX190: 3.02 | FY190: 0.436 | FZ190: 1.4 | GA190: 0.614 | GE190: 5 | GF190: 0.431 | GG190: 0.701 | GH190: 0.64 | GI190: 0.061 | GJ190: 9
EE191: Ekmek, buğday, kepekli | EF191: 56.9 | EG191: 9.8 | EH191: 1.9 | EI191: 5.2 | EJ191: 2.6 | EK191: 2.16 | EL191: 2.16 | EM191: 36.4 | EN191: 0.5 | EP191: 0.408 | EQ191: 0.07 | ES191: 0.395 | ET191: 0.223 | EU191: 0.43 | EV191: 0.739 | EW191: 0.241 | EX191: 0.16 | EY191: 0.189 | EZ191: 0.516 | FA191: 0.241 | FB191: 0.292 | FC191: 0.103 | FE191: 0.499 | FF191: 0.19 | FG191: 0.088 | FI191: 0.0649 | FJ191: 0.326 | FK191: 0.495 | FN191: 2.2 | FO191: 0.22 | FP191: 46.8 | FQ191: 6 | FR191: 0.075 | FS191: 14.3 | FT191: 0.019 | FV191: 0.21 | FW191: 10 | FX191: 5 | FY191: 4.4 | FZ191: 4.5 | GA191: 0.9 | GE191: 5 | GF191: 0.459 | GG191: 0.478 | GH191: 0.408 | GI191: 0.07 | GJ191: 10
EE192: Ekmek, çavdar | EF192: 54.2 | EG192: 5.3 | EH192: 1.3 | EI192: 8.5 | EJ192: 2.1 | EK192: 1.98 | EL192: 1.98 | EM192: 35.7 | EN192: 3.78 | EO192: 31.9 | EP192: 0.547 | EQ192: 0.103 | ES192: 0.245 | ET192: 0.127 | EU192: 0.218 | EV192: 0.372 | EW192: 0.191 | EX192: 0.086 | EY192: 0.082 | EZ192: 0.254 | FA192: 0.109 | FB192: 0.191 | FC192: 0.064 | FE192: 0.309 | FF192: 0.0287 | FG192: 0.163 | FI192: 0.049 | FJ192: 0.248 | FK192: 0.437 | FL192: 0.826 | FM192: 0.092 | FN192: 1.77 | FO192: 0.196 | FP192: 16.2 | FQ192: 12.4 | FR192: 0.00892 | FS192: 14.2 | FT192: 0.048 | FV192: 0.247 | FW192: 5.21 | FX192: 2.39 | FY192: 0.671 | FZ192: 1.76 | GA192: 1.58 | GE192: 2 | GF192: 0.21 | GG192: 0.65 | GH192: 0.547 | GI192: 0.103 | GJ192: 20
EE193: Ekmek, peksimet | EF193: 92.2 | EG193: 9.3 | EH193: 5.8 | EI193: 3.3 | EJ193: 1.5 | EK193: 3.85 | EL193: 3.85 | EM193: 71.4 | EP193: 0.83 | ES193: 0.359 | ET193: 0.212 | EU193: 0.424 | EV193: 0.702 | EW193: 0.245 | EX193: 0.155 | EY193: 0.16 | EZ193: 0.473 | FA193: 0.196 | FB193: 0.31 | FC193: 0.109 | FE193: 0.506 | FF193: 0.02 | FG193: 0.12 | FI193: 0.0224 | FJ193: 0.189 | FK193: 0.166 | FO193: 0.035 | FP193: 7 | FQ193: 0 | FR193: 0 | FS193: 12 | FT193: 0 | FV193: 0 | FW193: 13 | FX193: 0 | FY193: 0.2 | FZ193: 1.3 | GA193: 0.9 | GC193: 851 | GD193: 4.4 | GE193: 9 | GF193: 2.11 | GG193: 0.956 | GH193: 0.956 | GJ193: 20
EE194: Elma | EF194: 14.3 | EG194: 0.3 | EH194: 0.3 | EI194: 2.2 | EJ194: 0.3 | EK194: 0.52 | EL194: 0.52 | EM194: 12.9 | EN194: 8.11 | EP194: 0.154 | EQ194: 0.041 | ES194: 0.006 | ET194: 0.004 | EU194: 0.009 | EV194: 0.014 | EW194: 0.013 | EX194: 0.003 | EY194: 0.001 | EZ194: 0.007 | FA194: 0.004 | FB194: 0.008 | FC194: 0.003 | FE194: 0.01 | FF194: 0.00385 | FG194: 0.0174 | FI194: 0.0044 | FJ194: 0.12 | FK194: 0.003 | FN194: 0.28 | FO194: 0.002 | FP194: 1.24 | FQ194: 0.47 | FR194: 0.003 | FS194: 0.32 | FT194: 0.09 | FV194: 0.003 | FW194: 1 | FX194: 1 | FY194: 0.11 | FZ194: 0.16 | GA194: 0.51 | GF194: 0.067 | GG194: 0.195 | GH194: 0.154 | GI194: 0.041 | GJ194: 6
